Workbook

Sheet VzorPolozky (hidden)
A1: Položkový rozpočet
A2: S:
A3: O:
A4: R:
A6: P.č. | B6: Číslo položky | C6: Název položky | D6: MJ | E6: množství | F6: cena / MJ | G6: celkem

Sheet Identifikační údaje
A1: Akce: | B1: ČRo Brno – III. etapa rekonstrukce budovy Beethovenova 25/4
A3: Místo plnění: | B3: Budova Českého rozhlasu Brno na adrese Beethovenova 25/4, 657 42 Brno
A5: Datum vyplnění:
A7: Zadavatel: | B7: Český rozhlas | E7: =CONCATENATE(B7,", ",B8) -> Český rozhlas, Vinohradská 12, 120 99 Praha 2
B8: Vinohradská 12, 120 99 Praha 2
A9: IČ: | B9: 45245053
A10: DIČ: | B10: CZ45245053
A12: Projektant: | B12: Ing. arch. Klement Miloš | E12: =CONCATENATE(B12,", ",B13) -> Ing. arch. Klement Miloš, Nejedlého 381/19, 638 00 Brno - Lesná
B13: Nejedlého 381/19, 638 00 Brno - Lesná
A14: IČ: | B14: 15188736
A15: DIČ: | B15: CZ6101021344
A17: Uchazeč:
A19: Obchodní název | E19: =CONCATENATE(B19,", ",B20,", ",B22," ",B21) -> , ,
A20: Ulice a č.p.
A21: Město
A22: PSČ
A23: IČ
A24: DIČ
A26: Kontaktní osoba
A27: telefon
A28: e-mail
A32: Poznámka :
A33: Ve všech listech tohoto souboru můžete měnit pouze buňky s modrým pozadím. Jedná se o tyto údaje : - údaje o firmě - jednotkové ceny položek zadané na maximálně dvě desetinná místa

Sheet Pokyny pro vyplnění
A1: -1
B2: POKYNY A PODMÍNKY PRO VYPLNĚNÍ TABULKY PRO VÝPOČET NABÍDKOVÉ CENY - VV
B4: AKCE: | C4: ='Identifikační údaje'!B1 -> ČRo Brno – III. etapa rekonstrukce budovy Beethovenova 25/4
B6: Pozn.:
C7: Tato tabulka pro výpočet nabídkové ceny nahrazuje výkaz výměr, jež byl zpracován jako součást
B8: projektové dokumentace, zhotovené Ing. arch. Klementem Milošem Nejedlého 381/19, 638 00 Brno - Lesná,
B9: v prosinci 2017, pod zakázkovým číslem 12/2017, jež je přílohou zadávací dokumenatce této vřejné zakázky.
B12: 1. POKYNY K VYPLŇOVÁNÍ TABULKY
B14: Ve všech listech tohoto souboru můžete měnit pouze buňky s modrým pozadím. Jedná se o tyto údaje :
B16: ¨- datum
B17: - údaje o uchazeči
B18: - jednotkové ceny položek zadané na maximálně dvě desetinná místa
B20: V titulním listu (identifikační údaje) stavby vyplňte údaje o Uchazeči (přenesou se do ostatních sestav i v jiných listech)
B23: 2. PODMÍNKY PRO ZPRACOVÁNÍ NABÍDKOVÉ CENY
B25: Preambule
B27: Tento soupis stavebních prací, dodávek a služeb je sestaven jako podklad pro zpracování nabídek dodavatelů na veřejnou zakázku na stavební práce a obsahuje podmínky a požadavky zadavatele, za kterých má být zpracována nabídková cena dodavatelů. Účelem tohoto soupisu je zabezpečit obsahovou shodu všech nabídkových cen a usnadnit následné posouzení předložených cenových nabídek.
B28: Předpokládá se, že dodavatel před zpracováním cenové nabídky pečlivě prostuduje všechny pokyny a podmínky pro zpracování nabídkové ceny obsažené v zadávacích podmínkách a bude se jimi při zpracování nabídkové ceny řídit. Soupis stavebních prací, dodávek a služeb je sestaven v souladu s podmínkami vyhlášky Ministerstva pro místní rozvoj č.230/2012 Sb.
B30: Vymezení některých pojmů
B32: Pro účely zpracování nabídkové ceny se jsou použity některé pojmy, pod kterými se rozumí:
B33: Soupisem stavebních prací dodávek a služeb dokument, ve kterém jsou definovány zadavatelem požadované stavební práce, dodávky a služby v podrobnostech nezbytných pro zpracování cenové nabídky dodavatele. Soupis obsahuje i vymezení požadovaného množství stavebních prací, dodávek a služeb.
B34: Cenovou soustavou uspořádaný soubor informací o stavebních a montážních pracích, materiálech a výrobcích obsahující zatřídění položek, podrobný popis a měrnou jednotku, způsob měření a další technické a cenové podmínky pro možnost stanovení jednotkové ceny.
B35: Ostatními náklady náklady dodavatele spojené se splněním povinností dodavatele vyplývajících z obchodních či jiných podmínek zadávací dokumentace. Patří do nich zejména náklady na vyhotovení dokumentace skutečného provedení stavby, náklady na geodetické zaměření dokončeného díla, náklady spojené s podmínkami pro publicitu projektu, náklady na dílenskou či výrobní dokumentaci apod.
B36: Položkovým rozpočtem dokument odpovídající svým obsahem a strukturou soupisu stavebních prací, dodávek a služeb, předaného zadavatelem dodavateli ke zpracování nabídky, v němž dodavatel doplní k jednotlivým položkám stavebních prací, dodávek nebo služeb svoje nabídkové jednotkové ceny a stanoví i celkovou nabídkovou cenu příslušné položky a dále stanoví nabídkové ceny dle struktury soupisu až po celkovou nabídkovou cenu za veškeré stavební práce, dodávky nebo služby, které jsou obsahem soupisu stavebních prací, dodávek a služeb.
B37: Vedlejšími náklady náklady na činností zhotovitele, které nejsou zahrnuty v položkách soupisu stavebních prací, dodávek nebo služeb, ale se zhotovením stav-by souvisí a jsou pro realizaci stavby nezbytné. Někdy se definují jako vedlejší rozpočtové náklady a zahrnují zejména náklady na vybudování, provoz a odstranění zařízení staveniště.
B39: Cenová soustava
B41: Použitá cenová soustava
B42: Soupisy stavebních prací, dodávek a služeb jsou zpracovány s použitím cenové soustavy zpracované společností RTS, a.s.. Položky z cenové soustavy mají uveden odkaz na cenovou soustavu včetně označení příslušného ceníku.
B44: Technické podmínky
B45: Obsah jednotlivých položek, způsob měření a ostatní další podmínky definující obsah a použití jednotlivých položek jsou obsaženy v cenových a technických podmínkách příslušných ceníků (viz zařazení u položky), které jsou volně dostupné na elektronické adrese www.cenovasoustava.cz
B47: Individuální položky
B48: Položky soupisu prací, které cenová soustava neobsahuje, jsou označeny popisem „vlastní“. Pro tyto položky jsou cenové a technické podmínky definovány jejich popisem, případně odkazem na konkrétní část příslušné dokumentace.
B50: Závaznost a změna soupisu
B52: Závaznost soupisu
B53: Poskytnuté soupisy jsou pro zpracování nabídkové ceny závazné. Je vyloučeno jakékoliv vyřazení položek ze soupisu, doplnění položek do soupisu, slučování položek a jakýkoliv zásah do popisu položky, množství měrných jednotek nebo jakkoliv měnit či upravovat jakýkoliv jiný údaj v soupisu.
B55: Zvláštní podmínky pro stanovení nabídkové ceny
B57: Přeprava vybouraných hmot, suti a vytěžené zeminy
B58: Pokud soupis obsahuje i některé technologické položky vztahující se k uložení vytěžené zeminy nebo vybouraných hmot, vodorovné přesuny zeminy nebo vybouraných hmot pak v takových případech zpracovatel soupisu předpokládá určitou přepravní vzdálenost. Pokud z technologického postupu dodavatele vyplývá jiná přepravní vzdálenost, je povinností dodavatele stanovit takovou jednotkovou cenu, aby celková cena položky odpovídala jeho konkrétním technologickým podmínkám a konkrétní přepravní vzdálenosti, při soupisem vymezeném množství měrných jednotek.
B60: Vnitrostaveništní přesun stavebního materiálu
B61: Pokud soupis obsahuje i položky vztahující se ke vnitrostaveništnímu přesunu materiálů (položky označené jako přesun hmot), pak v takových případech je povinností dodavatele stanovit takovou jednotkovou cenu, aby celková cena položky odpovídala jeho konkrétním technologickým podmínkám a konkrétní přepravní vzdálenosti, při soupisem vymezeném množství měrných jednotek.
B62: Vnitrostaveništní přesun hmot prací PSV (pomocná stavební výroba) může být v soupisu stanoven procenticky z hodnoty ceny za provedení příslušných řemeslných prací, dodávek a služeb. V takovém případě není v soupisu uvedeno množství měrných jednotek. Dodavatel ocení celkovou cenu u takové položky přesunu hmot vždy konkrétní částkou v Kč, bez ohledu na to, jakým způsobem k jejímu výpočtu dospěl.
B64: Příplatky za ztížené podmínky prací
B65: Pokud soupis položku příplatku za ztížené podmínky obsahuje, je dodavatel povinen ji ocenit bez ohledu na to, že tento příplatek dodavatel standardně neuplatňuje.
B67: Vedlejší a ostatní náklady
B68: Tyto náklady jsou popsány v samostatném soupisu stavebních prací, dodávek a služeb s tím, že dodavatel je povinen v rámci těchto nákladů ocenit všechny definované náklady souhrnně pro celou stavbu.
B72: 3. SPECIFICKÉ PODMÍNKY PRO ZPRACOVÁNÍ NABÍDKOVÉ CENY
B74: Zde doplní zpracovatel soupisu případná specifika týkající se konkrétní zakázky.
B77: 4. ELEKTRONICKÁ PODOBA SOUPISU
B79: Elektronická podoba soupisu
B80: V souladu se zákonem jsou předložené soupisy zpracovány i v elektronické podobě. Elektronickou podobou soupisu stavebních prací, dodávek a služeb je formát MS EXCEL.
B81: Popis formátu soupisu odpovídá svou strukturou vzorovému soupisu volně dostupnému na internetové adrese:
B83: www.stavebnionline.cz/soupis
B85: Zpracování elektronické podoby soupisu
B86: Předaný formát MS EXCEL je nepřístupným (uzamčeným) souborem, do kterého dodavatel doplňuje pouze jednotkové ceny ke všem položkám. Ostatní cenové údaje, jako celková cena položky, mezisoučty za stavební či funkční díly nebo součty celkové ceny stavebního objektu, jakož i cena stavby jsou výsledkem vložených matematických vzorců v příslušných pozicích souboru.
B88: Jiný formát soupisu
B89: Pokud by kterýkoliv dodavatel měl problémy s předaným formátem, lze na požádání poskytnout soupis stavebních prací také ve formátu *.xml, což je standardní formát používaný pro přenosy dat. Dokumentace tohoto formátu je volně přístupná na webových stránkách MMR.
B91: Závěrečné ustanovení
B92: Ostatní podmínky vztahující se ke zpracování nabídkové ceny jsou uvedeny v zadávací dokumentaci.
B94: 5. OBCHODNÍ NÁZVY MATERIÁLŮ A VÝROBKŮ
B96: V případě, že položka tabulky pro výpočet nabídkové ceny obsahuje konkrétní obchodní označení výrobku či materiálu (referenční výrobek), je zhotovitel oprávněn jej nahradit výrobkem či materiálem stejných technických parametrů a jakosti.

Sheet Rekapitulace stavby
C3: REKAPITULACE STAVBY
C4: Kód:
C5: Stavba: | J5: ='Identifikační údaje'!B1 -> ČRo Brno – III. etapa rekonstrukce budovy Beethovenova 25/4
C6: KSO: | AJ6: CC-CZ:
C7: Místo: | J7: ='Identifikační údaje'!B3 -> Budova Českého rozhlasu Brno na adrese Beethovenova 25/4, 657 42 Brno | AJ7: Datum: | AM7: ='Identifikační údaje'!B5 -> 00:00:00
C9: Zadavatel: | AJ9: IČ: | AM9: ='Identifikační údaje'!B9 -> 45245053
D10: ='Identifikační údaje'!E7 -> Český rozhlas, Vinohradská 12, 120 99 Praha 2 | AJ10: DIČ: | AM10: ='Identifikační údaje'!B10 -> CZ45245053
C12: Uchazeč: | AJ12: IČ: | AM12: ='Identifikační údaje'!B23 -> 0
D13: ='Identifikační údaje'!E19 -> , , | AJ13: DIČ: | AM13: ='Identifikační údaje'!B24 -> 0
C15: Projektant: | AJ15: IČ: | AM15: ='Identifikační údaje'!B14 -> 15188736
D16: ='Identifikační údaje'!E12 -> Ing. arch. Klement Miloš, Nejedlého 381/19, 638 00 Brno - Lesná | AJ16: DIČ: | AM16: ='Identifikační údaje'!B15 -> CZ6101021344
C18: Poznámka:
C22: CENA ZA STAVBU CELKEM BEZ DPH | AJ22: =AN51+AF56+AF61+AN66+AN70+AN73+AN76+AN79+AN84+AN86+AM90+AF97 -> 0
B39: REKAPITULACE OBJEKTŮ STAVBY A SOUPISŮ PRACÍ
B42: Stavba: | K42: ='Identifikační údaje'!B1 -> ČRo Brno – III. etapa rekonstrukce budovy Beethovenova 25/4
B44: Místo: | K44: =IF($J$7="","",$J$7) -> Budova Českého rozhlasu Brno na adrese Beethovenova 25/4, 657 42 Brno | AH44: Datum: | AL44: =IF($AM$7="","",$AM$7) -> 00:00:00
B46: Zadavatel: | K46: =IF($D$10="","",$D$10) -> Český rozhlas, Vinohradská 12, 120 99 Praha 2 | AH46: Projektant: | AL46: =IF($D$16="","",$D$16) -> Ing. arch. Klement Miloš, Nejedlého 381/19, 638 00 Brno - Lesná
B47: Uchazeč: | K47: =IF($D$13="Vyplň údaj","",$D$13) -> , ,
B49: Kód | H49: Objekt, Soupis prací | AF49: Cena bez DPH [CZK]
B51: Objekt SO 02 (II. TSK) rekonstrukce prostoru celého mezipatra celkem | AN51: =SUM(AF52:AO55) -> 0
C52: 01 | I52: SO 02 - Stavebně - architektonická část | AF52: ='01_SO O2 - Stav arch část'!D47:D47 -> 0
C53: 02 | I53: SO 02 - Silnoproudá elektroinstalace | AF53: ='02_SO 02 - Silnoproud'!H34:H34 -> 0
C54: 03 | I54: SO 02 - Vzduchotechnika a chlazení | AF54: ='03_SO 02 - VZT'!H37:H37 -> 0
C55: 04 | I55: SO 02 - Akustika | AF55: ='04_SO 02 - akustika'!I31:I31 -> 0
B56: Objekt SO 03 (III. TSK) Výtah a související schodiště celkem | AF56: =SUM(AF57:AO60) -> 0
C57: 05 | I57: SO 03 - Stavebně - architektonická část | AF57: ='05_S0 03 - Stav-arch část '!D41 -> 0
C58: 06 | I58: SO 03 - Silnoproudá elektroinstalace | AF58: ='06_SO O3 - Silnoproud'!H35:H35 -> 0
C59: 07 | I59: SO 03 - Vzduchotechnika a chlazení | AF59: ='07_SO 03 - VZT'!H43 -> 0
C60: 08 | I60: SO 03 - Výtah | AF60: ='08_SO 03 - Výtah'!D48:D48 -> 0
B61: Objekt SO 04 (IV. TSK) Toalety ve všech patrech | AF61: =SUM(AF62:AO65) -> 0
C62: 09 | I62: SO 04 - Stavebně - architektonická část | AF62: ='09_SO O4 - Stav arch část'!D44 -> 0
C63: 10 | I63: SO 04 - Silnoproudá elektroinstalace | AF63: ='10_SO 04 - Silnoproud'!H35 -> 0
C64: 11 | I64: SO 04 - Vzduchotechnika a chlazení | AF64: ='011_SO 04 - VZT'!H35 -> 0
C65: 12 | I65: SO 04 - Zdravotně technické instalace | AF65: ='12_SO 04 - ZTI'!I32 -> 0
B66: Objekt SO 05 (V. TSK) rekonstrukce prostoru 1. patra | AN66: =SUM(AF67:AO69) -> 0
C67: 13 | I67: SO 05 - Stavebně - architektonická část | AF67: ='13_SO 05 - Stav arch část'!D44:D44 -> 0
C68: 14 | I68: SO 05 - Silnoproudá elektroinstalace | AF68: ='14_SO 05 - Silnoproud'!H36:H36 -> 0
C69: 15 | I69: SO 05 - Vzduchotechnika a chlazení | AF69: ='15_SO 05 - VZT'!H35:H35 -> 0
B70: Objekt SO 06 (VI. TSK) rekonstrukce prostoru 2. patra a serverovny | AN70: =SUM(AF71:AO72) -> 0
C71: 16 | I71: SO 06 - Stavebně - architektonická část | AF71: ='16_SO 06 - Stav arch část'!D44:D44 -> 0
C72: 17 | I72: SO 06 - Silnoproudá elektroinstalace | AF72: ='17_SO 06 - Silnoproud'!H35:H35 -> 0
B73: Objekt SO 07 (VII. TSK) rekonstrukce prostoru 3. patra | AN73: =SUM(AF74:AO75) -> 0
C74: 18 | I74: SO 07 - Stavebně - architektonická část | AF74: ='18_SO 07 - Stav arch část'!D44:D44 -> 0
C75: 19 | I75: SO 07 - Silnoproudá elektroinstalace | AF75: ='19_SO 07 - Silnoproud'!H35:H35 -> 0
B76: Objekt SO 08 (VIII. TSK) rekonstrukce prostoru 4. patra | AN76: =SUM(AF77:AO78) -> 0
C77: 20 | I77: SO 08 - Stavebně - architektonická část | AF77: ='20_SO 08 - Stav arch část'!D44:D44 -> 0
C78: 21 | I78: SO 08 - Silnoproudá elektroinstalace | AF78: ='21_SO 08 - Silnoproud'!H35:H35 -> 0
B79: Objekt SO 09 (IX. TSK) rekonstrukce prostoru 5. patra vč. střechy a 6. patra | AN79: =SUM(AF80:AO83) -> 0
C80: 22 | I80: SO 09 - Stavebně - architektonická část | AF80: ='22_SO 09 - Stav arch část'!D46:D46 -> 0
C81: 23 | I81: SO 09 - Silnoproudá elektroinstalace | AF81: ='23_SO 09 - Silnoproud'!H34:H34 -> 0
C82: 24 | I82: SO 09 - Vzduchotechnika a chlazení | AF82: ='24_SO 09 - VZT'!H36:H36 -> 0
C83: 25 | I83: SO 09 - Střecha | AF83: ='25_SO 09 - Střecha'!D41:D41 -> 0
B84: Objekt SO 10 (X. TSK) rekonstrukce světlíku vč. jeho nadstřešní části | AN84: =SUM(AF85) -> 0
C85: 26 | I85: SO 10 - Stavebně - architektonická část | AF85: ='26_SO 10 - Stav arch část'!D36:D36 -> 0
B86: Objekt SO 11 (XI. TSK) úpravy hlavního vstupu, recepce a vstupní haly v přízemí vč. schodiště | AN86: =SUM(AF87:AO89) -> 0
C87: 27 | I87: SO 11 - Stavebně - architektonická část | AF87: ='27_SO 11 - Stav arch část'!D43:D43 -> 0
C88: 28 | I88: SO 11 - Silnoproudá elektroinstalace | AF88: ='28_SO 11 - Silnoproud'!H36:H36 -> 0
C89: 29 | I89: SO 11 - Vzduchotechnika a chlazení | AF89: ='29_SO 11 - VZT'!H35:H35 -> 0
B90: Objekt SO 12 (XII. TSK) Páteřní rozvody silnoproudu v šachtách a napojení rozvaděčů, ústřední vytápění, EPS | AM90: =SUM(AF91:AO96) -> 0
C91: 30 | I91: SO 12 - Stavebně - architektonická část | AF91: ='30_SO 12 - Stav arch část'!G32 -> 0
C92: 31 | I92: SO 12 - Silnoproudá elektroinstalace | AF92: ='31_SO 12 - Silnoproud'!H33:H33 -> 0
C93: 32 | I93: SO 12 - Ústřední vytápění | AF93: ='32_SO 12 - ÚT'!H32:H32 -> 0
C94: 33 | I94: SO 12 - EPS | AF94: ='33_SO 12 - EPS'!H32:H32 -> 0
C95: 34 | I95: SO 12 - MaR | AF95: ='34_SO 12 - MaR'!H33:H33 -> 0
C96: 35 | I96: SO 12 - Slaboproud | AF96: ='35_SO 12 - Slaboproud'!H32:H32 -> 0
C97: 36 | I97: Vedlejší a ostatní náklady stavby | AF97: ='36 - VRN'!F32 -> 0

Sheet 01_SO O2 - Stav arch část
A1: =CONCATENATE('Rekapitulace stavby'!C52,"_",'Rekapitulace stavby'!I52) -> 01_SO 02 - Stavebně - architektonická část
A3: SPECIFIKACE DODÁVEK A PRACÍ
A4: Název akce:
A5: ='Identifikační údaje'!B1 -> ČRo Brno – III. etapa rekonstrukce budovy Beethovenova 25/4
A7: Zadavatel: | C7: ='Identifikační údaje'!E7 -> Český rozhlas, Vinohradská 12, 120 99 Praha 2
B8: IČ: | C8: ='Identifikační údaje'!B9 -> 45245053
B9: DIČ: | C9: ='Identifikační údaje'!B10 -> CZ45245053
A11: Projektant: | C11: ='Identifikační údaje'!E12 -> Ing. arch. Klement Miloš, Nejedlého 381/19, 638 00 Brno - Lesná
B12: IČ: | C12: ='Identifikační údaje'!B14 -> 15188736
B13: DIČ: | C13: ='Identifikační údaje'!B15 -> CZ6101021344
A15: Uchazeč: | C15: ='Identifikační údaje'!E19 -> , ,
B16: IČ: | C16: ='Identifikační údaje'!B23 -> 0
B17: DIČ: | C17: ='Identifikační údaje'!B24 -> 0
A19: Místo stavby: | C19: ='Identifikační údaje'!B3 -> Budova Českého rozhlasu Brno na adrese Beethovenova 25/4, 657 42 Brno
A21: Datum vyplnění: | C21: ='Identifikační údaje'!B5 -> 00:00:00
A23: =CONCATENATE("REKAPITULACE DODÁVEK A PRACÍ OBJEKTU ",'Rekapitulace stavby'!I52) -> REKAPITULACE DODÁVEK A PRACÍ OBJEKTU SO 02 - Stavebně - architektonická část
A25: P.č. | B25: Číslo položky | C25: Název položky | D25: Kč bez DPH
A27: Díl: | B27: =B80 -> 3 | C27: =C80 -> Svislé a kompletní konstrukce | G27: =G80 -> 0
A28: Díl: | B28: =B104 -> 43 | C28: =C104 -> Schodiště | G28: =G104 -> 0
A29: Díl: | B29: =B111 -> 61 | C29: =C111 -> Upravy povrchů vnitřní | G29: =G111 -> 0
A30: Díl: | B30: =B150 -> 63 | C30: =C150 -> Podlahy a podlahové konstrukce | G30: =G150 -> 0
A31: Díl: | B31: =B157 -> 94 | C31: =C157 -> Lešení a stavební výtahy | G31: =G157 -> 0
A32: Díl: | B32: =B161 -> 95 | C32: =C161 -> Dokončovací kce na pozem.stav. | G32: =G161 -> 0
A33: Díl: | B33: =B181 -> 96 | C33: =C181 -> Bourání konstrukcí | G33: =G181 -> 0
A34: Díl: | B34: =B237 -> 99 | C34: =C237 -> Staveništní přesun hmot | G34: =G237 -> 0
A35: Díl: | B35: =B239 -> 713 | C35: =C239 -> Izolace tepelné | G35: =G239 -> 0
A36: Díl: | B36: =B251 -> 714 | C36: =C251 -> Izolace akustické a protiotřesové | G36: =G251 -> 0
A37: Díl: | B37: =B258 -> 766 | C37: =C258 -> Konstrukce truhlářské | G37: =G258 -> 0
A38: Díl: | B38: =B321 -> 767 | C38: =C321 -> Konstrukce zámečnické | G38: =G321 -> 0
A39: Díl: | B39: =B338 -> 771 | C39: =C338 -> Kamenné dlažby | G39: =G338 -> 0
A40: Díl: | B40: =B345 -> 775 | C40: =C345 -> Podlahy vlysové a parketové | G40: =G345 -> 0
A41: Díl: | B41: =B353 -> 776 | C41: =C353 -> Podlahy povlakové | G41: =G353 -> 0
A42: Díl: | B42: =B369 -> 781 | C42: =C369 -> Obklady keramické | G42: =G369 -> 0
A43: Díl: | B43: =B376 -> 784 | C43: =C376 -> Malby | G43: =G376 -> 0
A44: Díl: | B44: =B379 -> 40 | C44: =C379 -> Podhledy | G44: =G379 -> 0
A45: Díl: | B45: =B388 -> 770 | C45: =C388 -> Kamenné obklady | G45: =G388 -> 0
A47: =CONCATENATE("CELKEM ZA OBJEKT ",'Rekapitulace stavby'!I52, " v Kč bez DPH") -> CELKEM ZA OBJEKT SO 02 - Stavebně - architektonická část v Kč bez DPH | D47: =SUM(G27:G45) -> 0
A78: P.č. | B78: Číslo položky | C78: Název položky | D78: MJ | E78: množství | F78: cena / MJ | G78: celkem
B79: Ceník, kapitola | C79: Poznámka uchazeče
A80: Díl: | B80: 3 | C80: Svislé a kompletní konstrukce | G80: =SUBTOTAL(9,G81:G102) -> 0
A81: =1 -> 1 | B81: 340 23-921 | C81: Zazdívka otvorů pl.4 m2,cihlami tl.zdi do 10 cm | D81: m2 | E81: 6.09 | G81: =E81*F81 -> 0
C82: 1,00*2,10*2+0,90*2,10 | E82: 6.09
A83: =A81+1 -> 2 | B83: 340 23-9212 | C83: Zazdívka otvorů pl.4 m2,cihlami tl.zdi nad 10 cm | D83: m2 | E83: 19.29 | G83: =E83*F83 -> 0
C84: 0,75*2,10+0,90*2,10+2,05*3,70 | E84: 11.05
C85: ;nadsvětlíky | E85: 0
C86: 3,00*0,80+2,50*0,80+2,80*0,80+2,00*0,80 | E86: 8.24
A87: =A83+1 -> 3 | B87: 342 24-812 | C87: Příčky POROTHERM AKU na MVC 5,tl.125 mm | D87: m2 | E87: 80.1481 | G87: =E87*F87 -> 0
C88: (2,425+3,75+2,425)*2,90 | E88: 24.94
C89: (2,13+0,71)*2,70+1,746*2,90-1,35*2,20 | E89: 9.7614
C90: 1,747*2,90-1,30*2,20 | E90: 2.2063
C91: (2,17+0,70+1,45)*3,80+(2,10+4,50)*2,90-2,00*1,20 | E91: 33.156
C92: 3,19*2,90-0,90*2,00+0,693*3,80 | E92: 10.0844
A93: =A87+1 -> 4 | B93: 342 24-811 | C93: Příčky POROTHERM AKU na MVC 5, tl.100 mm | D93: m2 | E93: 25.594 | G93: =E93*F93 -> 0
C94: (0,70+0,50+0,70+0,50)*2,70 | E94: 6.48
C95: (1,225+1,605+2,20)*3,80 | E95: 19.114
A96: =A93+1 -> 5 | B96: 310 23-921 | C96: Zazdívka otvorů plochy do 4 m2 cihlami na MVC | D96: m3 | E96: 2.235 | G96: =E96*F96 -> 0
C97: 1,30*2,10*0,30+2,00*1,20*0,30+0,40*2,90*0,30*2 | E97: 2.235
A98: =A96+1 -> 6 | B98: 3171 PŘ | C98: Překlad z profilu I120 dl.2500mm vč.plentování cihlami a rabicem | D98: ks | E98: 6 | G98: =E98*F98 -> 0
A99: =A98+1 -> 7 | B99: 3172 PŘ | C99: Překlad z profilu I100 dl.1200mm vč.plentování cihlami a rabicem | D99: ks | E99: 7 | G99: =E99*F99 -> 0
A100: =A99+1 -> 8 | B100: 3173 PŘ | C100: Překlad z profilu I160 dl.4800mm vč.plentování cihlami a rabicem | D100: ks | E100: 1 | G100: =E100*F100 -> 0
C101: poz.13 - pro vynesení příčky:1 | E101: 1
A102: =A100+1 -> 9 | B102: 342 01-22 | C102: Příčka SDK tl.100mm,ocel.kce, SDK15mm + SDK12mm zesílení příčky | D102: m2 | E102: 13.58 | G102: =E102*F102 -> 0
C103: M30:4,85*2,80 | E103: 13.58
A104: Díl: | B104: 43 | C104: Schodiště | G104: =SUBTOTAL(9,G105:G110) -> 0
A105: =A102+1 -> 10 | B105: 431 P2b= Kp/1 | C105: Stávající schodiště z teracových stupňů vč.soklíku repase - očištění, impregnace povrchu | D105: ks | E105: 54 | G105: =E105*F105 -> 0
C106: případní doplnění chybějících částí:54 | E106: 54
A107: =A105+1 -> 11 | B107: 431 P2b= Kp/4 | C107: Stávající schodiště z teracových stupňů vč.soklíku repase - očištění, impregnace povrchu | D107: ks | E107: 6 | G107: =E107*F107 -> 0
C108: případní doplnění chybějících částí:6 | E108: 6
A109: =A107+1 -> 12 | B109: 4311 P2b=Kp/4 | C109: Stávající teracová podlaha vč.soklíku repase - očištění, impregnace povrchu | D109: m2 | E109: 14.7 | G109: =E109*F109 -> 0
C110: případní doplnění chybějících částí:14,70 | E110: 14.7
A111: Díl: | B111: 61 | C111: Upravy povrchů vnitřní | G111: =SUBTOTAL(9,G112:G149) -> 0
A112: =A109+1 -> 13 | B112: 612 47-3182.R00 | C112: Omítka vnitřního zdiva ze suché směsi, štuková | D112: m2 | E112: 263.7162 | G112: =E112*F112 -> 0
C113: 6,90*2+19,29*2+80,1481*2+25,52*2 | E113: 263.7162
A114: =A112+1 -> 14 | B114: 612 10-003 | C114: Oprava omítek stěn vnitřních vápenocem. štukových oprava | D114: m2 | E114: 797.3583 | G114: =E114*F114 -> 0
C115: M05:(10,90+5,155+10,90)*3,90-1,50*2,20-0,85*2,00*6 | E115: 91.6245
C116: -1,40*2,20-1,36*2,20-24,10 | E116: -30.172
C117: M06:(5,90+6,165)*2*3,70-0,85*2,00*3-1,40*2,20 | E117: 81.101
C118: -3,65*3,70-3,975*2,90 | E118: -25.0325
C119: M06a:(3,65+1,505)*3,70 | E119: 19.0735
C120: M07:(1,505+3,65)*3,70 | E120: 19.0735
C121: M10:(7,25+6,50)*2*1,70 | E121: 46.75
C122: M11:(8,30+3,719)*2*3,70-0,85*2,004 | E122: 87.2372
C123: ;M12:;dřevěný obklad | E123: 0
C124: M15:(3,806+1,746+3,806)*2,80-0,85*2,00-1,35*2,20 | E124: 21.5324
C125: (4,50+2,546)*2*3,70-1,40*2,20*2 | E125: 45.9804
C126: M17A:(2,74+2,17)*2*3,70-0,85*2,00 | E126: 34.634
C127: M17B:(2,326+2,70)*2*3,70-0,85*2,00 | E127: 35.4924
C128: M18:(4,684+4,692)*3,70-0,85*2,00*2 | E128: 31.2912
C129: ;M19:;akustický obklad | E129: 0
C130: ;M20:;akustický obklad | E130: 0
C131: ;M21:;akustický obklad | E131: 0
C132: ;M22:;akustický obklad | E132: 0
C133: ;M23:;akustický obklad | E133: 0
C134: M24:(3,55+3,624)*2*2,80-2,625*2,02-0,85*2,00 | E134: 33.1719
C135: M25:(2,425+3,75)*2,80-0,85*2,00 | E135: 15.59
C136: M26:(3,55+7,105)*2*2,80-2,70*2,07-0,85*2,00 | E136: 52.379
C137: M27:(3,905+7,105)*2*2,80-2,67*2,02-0,85*2,00 | E137: 54.5626
C138: M28:(4,19+6,936)*2*2,80-2,683*2,02-0,85*2,00 | E138: 55.1859
C139: M29:(9,663+1,916)*2*2,80-0,85*2,00*3-0,90*2,00*3 | E139: 54.3424
C140: -1,35*2,20*2 | E140: -5.94
C141: M29a:(4,98+1,749)*2*2,80-0,85*2,00*3-0,90*2,00 | E141: 30.7824
C142: -1,35*2,20 | E142: -2.97
C143: M30:(3,39+7,105)*2*2,80-2,675*2,02-0,85*2,00 | E143: 51.6685
A144: =A114+1 -> 15 | B144: 611 10-0013.RAA | C144: Oprava omítek stropů vnitřních vápenocem.štukových oprava z 50 % | D144: m2 | E144: 54.6 | G144: =E144*F144 -> 0
C145: 54,60 | E145: 54.6
A146: =A144+1 -> 16 | B146: 611 42-113 | C146: Oprava váp. omítek stropů -vyspravení pod podhledy | D146: m2 | E146: 436.9 | G146: =E146*F146 -> 0
A147: =A146+1 -> 17 | B147: 612 40-339 | C147: Hrubá výplň rýh ve stěnách maltou zapravení svislých drážek po rozvodech ÚT | D147: m2 | E147: 11.43 | G147: =E147*F147 -> 0
C148: ;poz.5 | E148: 0
C149: 0,30*2,80*7+0,30*3,70*3+0,60*3,70*1 | E149: 11.43
A150: Díl: | B150: 63 | C150: Podlahy a podlahové konstrukce | G150: =SUBTOTAL(9,G151:P156) -> 0
A151: =A147+1 -> 18 | B151: 632 44-1 P4 | C151: Potěr anhydrit tl. 50 mm oddilatovaný od stěn EPS 20 mm | D151: m2 | E151: 154.8 | G151: =E151*F151 -> 0
A152: =A151+1 -> 19 | B152: 632 44-1 P5 | C152: Potěr anhydrit tl. 50 mm oddilatovaný od stěn EPS 20 mm | D152: m2 | E152: 9.1 | G152: =E152*F152 -> 0
A153: =A152+1 -> 20 | B153: 632 44-2 P4 | C153: Zvýšená podlaha z desek RG2 BSEN tl.23mm - systém zvýšených podlah z dřevotřísk.desek D+M | D153: m2 | E153: 154.8 | G153: =E153*F153 -> 0
C154: 154,80 | E154: 154.8
A155: =A153+1 -> 21 | B155: 632 44-2 P5 | C155: Zvýšená podlaha z desek RG2 BSEN tl.23mm - systém zvýšených podlah z dřevotřísk.desek D+M | D155: m2 | E155: 9.1 | G155: =E155*F155 -> 0
A156: =A155+1 -> 22 | B156: 632 44-2 P2 | C156: Očištění stáv.mramorových podlah po odstranění PVC | D156: m2 | E156: 54.6 | G156: =E156*F156 -> 0
A157: Díl: | B157: 94 | C157: Lešení a stavební výtahy | G157: =SUBTOTAL(9,G158:P160) -> 0
A158: =A156+1 -> 23 | B158: 941 95-5002.R00 | C158: Lešení lehké pomocné, výška podlahy do 1,9 m | D158: m2 | E158: 436.9 | G158: =E158*F158 -> 0
C159: pro podhledy SDK:345,90 | E159: 345.9
C160: pro akust.podhledy:4,80+24,00+15,80+23,80+22,60 | E160: 91
A161: Díl: | B161: 95 | C161: Dokončovací kce na pozem.stav. | G161: =SUBTOTAL(9,G162:G180) -> 0
A162: =A158+1 -> 24 | B162: 952 90-1111.R00 | C162: Vyčištění budov o výšce podlaží do 4 m | D162: m2 | E162: 485.6 | G162: =E162*F162 -> 0
C163: ;mezipatro | E163: 0
C164: 54,60+31,20+2,80+5,60+42,20+29,00+60,00 | E164: 225.4
C165: 14,70+4,80+4,80+24,50+4,80+24,00+15,80 | E165: 93.4
C166: 23,80+22,60+13,00+28,40+29,50+17,50+8,80 | E166: 143.6
C167: 23,20 | E167: 23.2
A168: =A162+1 -> 25 | B168: 95001 | C168: HZS - nezměřitelné práce | D168: hog | E168: 300 | G168: =E168*F168 -> 0
A169: =A168+1 -> 26 | B169: 95002 | C169: Práce výše neuvedené | D169: kpl. | E169: 1 | G169: =E169*F169 -> 0
A170: =A169+1 -> 27 | B170: 95003 | C170: Vyklizení mobiliáře vč.ekologické likvidace | D170: kpl. | E170: 1 | G170: =E170*F170 -> 0
C171: ;11ks kovového regálu dl.5500mm | E171: 0
C172: ;1ks kovového regálu dl.3700mm | E172: 0
C173: ;1ks kovového regálu dl.1800mm | E173: 0
C174: ;4ks kovového regálu dl.900mm | E174: 0
C175: ;výška všech regálů je 2500mm š=42mm | E175: 0
C176: ;10ks polic | E176: 0
C177: ;4ks plech skříní v=2900mm š=1100mm hl.400mm | E177: 0
C178: ;4ks masivních psacích stolů | E178: 0
C179: kpl:1 | E179: 1
A180: =A170+1 -> 28 | B180: 95004 | C180: Uzavření rekonstruovaného prostoru proti šíření prašnosti | D180: kpl. | E180: 1 | G180: =E180*F180 -> 0
A181: Díl: | B181: 96 | C181: Bourání konstrukcí | G181: =SUBTOTAL(9,G182:G236) -> 0
A182: =A180+1 -> 29 | B182: 962 03-2231.R00 | C182: Bourání zdiva z cihel pálených na MVC | D182: m3 | E182: 3 | G182: =E182*F182 -> 0
A183: =A182+1 -> 30 | B183: 962 03-1132.R00 | C183: Bourání příček cihelných tl. 10 cm | D183: m2 | E183: 39.8943 | G183: =E183*F183 -> 0
C184: ;A | E184: 0
C185: (3,55+3,55+1,747+1,746+3,405)*2,85 | E185: 39.8943
A186: =A183+1 -> 31 | B186: 962 03-1133.R00 | C186: Bourání příček cihelných tl. 15 cm | D186: m2 | E186: 6.076 | G186: =E186*F186 -> 0
C187: ;A | E187: 0
C188: 2,17*2,80 | E188: 6.076
A189: =A186+1 -> 32 | B189: 971 03-36 E | C189: Vybourání otv. zeď cihel. pl.4 m2, tl.30 cm, MVC | D189: m3 | E189: 0.7875 | G189: =E189*F189 -> 0
C190: 2,00*1,00*0,275+0,95*2,00*0,125 | E190: 0.7875
A191: =A189+1 -> 33 | B191: 968 06-1125.R00 | C191: Vyvěšení dřevěných dveřních křídel pl. do 2 m2 | D191: kus | E191: 13 | G191: =E191*F191 -> 0
C192: ;C | E192: 0
C193: 13 | E193: 13
A194: =A191+1 -> 34 | B194: 968 06-245 | C194: Vybourání dveřních zárubní pl. do 2 m2 | D194: m2 | E194: 23.4 | G194: =E194*F194 -> 0
C195: ;C | E195: 0
C196: 0,90*2,00*13 | E196: 23.4
A197: =A194+1 -> 35 | B197: 965 08 B | C197: Odstranění kompletní vrstvy podlahy vč.násypu v tl.180 mm | D197: m3 | E197: 32.85 | G197: =E197*F197 -> 0
C198: (11,10+25,90+7,40+18,80+25,70)*0,18 | E198: 16.002
C199: (57,70+19,90+16,00)*0,18 | E199: 16.848
A200: =A197+1 -> 36 | B200: 714 11-08 F | C200: Demontáž akustických obkladů stěn - kompletní konstrukce vč.roštu | D200: m2 | E200: 263.0778 | G200: =E200*F200 -> 0
C201: (3,59+5,064)*2*2,85 | E201: 49.3278
C202: (3,565+7,15)*2*3,00 | E202: 64.29
C203: (3,715+3,715)*2*3,00 | E203: 44.58
C204: (5,215+2,17)*2*3,00 | E204: 44.31
C205: (5,215+4,88)*2*3,00 | E205: 60.57
A206: =A200+1 -> 37 | B206: 714 11-09 G | C206: Demontáž kazetových podhledů - kompletní konstrukce vč.roštu | D206: m2 | E206: 38 | G206: =E206*F206 -> 0
C207: 9,50+13,00+15,50 | E207: 38
A208: =A206+1 -> 38 | B208: 714 11-19 H | C208: Demontáž akustických podhledů - kompletní konstrukce vč.roštu | D208: m2 | E208: 166.5 | G208: =E208*F208 -> 0
C209: 11,10+25,90+7,40+18,80+25,70+57,70+19,90 | E209: 166.5
A210: =A208+1 -> 39 | B210: 776 51-18 D | C210: Odstranění PVC a koberců lepených | D210: m2 | E210: 298.5 | G210: =E210*F210 -> 0
C211: ;PVC | E211: 0
C212: 54,30+9,50+13,00+15,50+27,90 | E212: 120.2
C213: ;koberce | E213: 0
C214: 23,90+13,50+43,50+31,70+65,70 | E214: 178.3
A215: =A210+1 -> 40 | B215: 76701 K | C215: Odstranění zvýšené konstrukce podlahy | D215: m2 | E215: 44.4 | G215: =E215*F215 -> 0
C216: 19,90+24,50 | E216: 44.4
A217: =A215+1 -> 41 | B217: 962 08-11 L | C217: Bourání nadsvětlíků z luxferů | D217: m2 | E217: 0.42 | G217: =E217*F217 -> 0
C218: 0,30*0,80+0,30*0,30*2 | E218: 0.42
A219: =A217+1 -> 42 | B219: 968 06-22 SV | C219: Vybourání dřevěných rámů nadsvětlíků | D219: m2 | E219: 6.075 | G219: =E219*F219 -> 0
C220: 2,70*0,75*3 | E220: 6.075
A221: =A219+1 -> 43 | B221: 96808 C | C221: Demontáž akustického okna | D221: m2 | E221: 6 | G221: =E221*F221 -> 0
C222: 2,00*1,00*3 | E222: 6
A223: =A221+1 -> 44 | B223: 96809 SCH | C223: Demontáž vyrovnávacího schodiště | D223: ks | E223: 1 | G223: =E223*F223 -> 0
C224: 1 | E224: 1
A225: =A223+1 -> 45 | B225: 96504-22 | C225: Bourání drážek svislých pro specialisty vč. zapravení | D225: kpl. | E225: 1 | G225: =E225*F225 -> 0
A226: =A225+1 -> 46 | B226: 96504-21 | C226: Bourání mřížek v podlahách pro prostup tepla | D226: ks | E226: 6 | G226: =E226*F226 -> 0
A227: =A226+1 -> 47 | B227: 979 08-2111.R00 | C227: Vnitrostaveništní doprava suti do 10 m | D227: t | E227: 64.6 | G227: =E227*F227 -> 0
A228: =A227+1 -> 48 | B228: 979 01-121 | C228: Svislá doprava suti a vybour. hmot nošením | D228: t | E228: 64.6 | G228: =E228*F228 -> 0
A229: =A228+1 -> 49 | B229: 979 08-2121.R00 | C229: Příplatek k vnitrost. dopravě suti za dalších 5 m | D229: t | E229: 323 | G229: =E229*F229 -> 0
C230: 5*64,60 | E230: 323
A231: =A229+1 -> 50 | B231: 979 08-1111.R00 | C231: Odvoz suti a vybour. hmot na skládku do 1 km | D231: t | E231: 64.6 | G231: =E231*F231 -> 0
A232: =A231+1 -> 51 | B232: 979 08-1121.R00 | C232: Příplatek k odvozu za každý další 1 km | D232: t | E232: 1227.4 | G232: =E232*F232 -> 0
C233: 19*64,60 | E233: 1227.4
A234: =A232+1 -> 52 | B234: 979 09-3111.R00 | C234: Uložení suti na skládku bez zhutnění | D234: t | E234: 64.6 | G234: =E234*F234 -> 0
A235: =A234+1 -> 53 | B235: 979 99-999 | C235: Poplatek za skladku | D235: t | E235: 59.85 | G235: =E235*F235 -> 0
A236: =A235+1 -> 54 | B236: 979 99-0201 | C236: Poplatek za skládku suti -azbestocementové výrobky | D236: t | E236: 4.75 | G236: =E236*F236 -> 0
A237: Díl: | B237: 99 | C237: Staveništní přesun hmot | G237: =SUBTOTAL(9,G238) -> 0
A238: =A236+1 -> 55 | B238: 999 28-1112.R00 | C238: Přesun hmot pro opravy a údržbu do výšky 36 m | D238: t | E238: 80.83 | G238: =E238*F238 -> 0
A239: Díl: | B239: 713 | C239: Izolace tepelné | G239: =SUBTOTAL(9,G240:G250) -> 0
A240: =A238+1 -> 56 | B240: 713 12-1 P4 | C240: Izolace tepelná podlah na sucho, jednovrstvá včetně dodávky EPS T 5000 tl.20 mm | D240: m2 | E240: 162.54 | G240: =E240*F240 -> 0
... 156 more rows

Sheet 02_SO 02 - Silnoproud
A1: =CONCATENATE('Rekapitulace stavby'!C53,"_",'Rekapitulace stavby'!I53) -> 02_SO 02 - Silnoproudá elektroinstalace
A3: SPECIFIKACE DODÁVEK A PRACÍ
A4: Název akce:
A5: ='Identifikační údaje'!B1 -> ČRo Brno – III. etapa rekonstrukce budovy Beethovenova 25/4
A7: Zadavatel: | C7: ='Identifikační údaje'!B7 -> Český rozhlas
B8: IČ: | C8: ='Identifikační údaje'!B9 -> 45245053
B9: DIČ: | C9: ='Identifikační údaje'!B10 -> CZ45245053
A11: Projektant: | C11: ='Identifikační údaje'!B12 -> Ing. arch. Klement Miloš
B12: IČ: | C12: ='Identifikační údaje'!B14 -> 15188736
B13: DIČ: | C13: ='Identifikační údaje'!B15 -> CZ6101021344
A15: Uchazeč: | C15: ='Identifikační údaje'!E19 -> , ,
B16: IČ: | C16: ='Identifikační údaje'!B23 -> 0
B17: DIČ: | C17: ='Identifikační údaje'!B24 -> 0
A19: Místo stavby: | C19: ='Identifikační údaje'!B3 -> Budova Českého rozhlasu Brno na adrese Beethovenova 25/4, 657 42 Brno
A21: Datum: | C21: ='Identifikační údaje'!B5 -> 00:00:00
A23: =CONCATENATE("REKAPITULACE DODÁVEK A PRACÍ OBJEKTU ",'Rekapitulace stavby'!I53) -> REKAPITULACE DODÁVEK A PRACÍ OBJEKTU SO 02 - Silnoproudá elektroinstalace
A25: P.č. | B25: Ozn. | D25: Materiál celkem | F25: Montáž celkem | H25: M+M celkem
A27: =B40 -> A. | B27: =C40 -> Svítidla a příslušenství | D27: =F40 -> 0 | F27: =H40 -> 0 | H27: =D27+F27 -> 0
A28: =B70 -> B. | B28: =C70 -> Spínače, zásuvky a ostatní přístroje | D28: =F70 -> 0 | F28: =H70 -> 0 | H28: 0
A29: =B89 -> C. | B29: =C89 -> Instalační, úložný a ochranný materiál | D29: =F89 -> 0 | F29: =H89 -> 0 | H29: 0
A30: =B102 -> D. | B30: =C102 -> Kabely a vodiče | D30: =F102 -> 0 | F30: =H102 -> 0 | H30: 0
A31: =B111 -> E. | B31: =C111 -> Pospojování, uzemnění | D31: =F111 -> 0 | F31: =H111 -> 0 | H31: 0
A32: =B115 -> G. | B32: =C115 -> Ostatní | D32: =F115 -> 0 | F32: =H115 -> 0 | H32: 0
A34: =CONCATENATE("CELKEM ZA OBJEKT ",'Rekapitulace stavby'!I53, " v Kč bez DPH") -> CELKEM ZA OBJEKT SO 02 - Silnoproudá elektroinstalace v Kč bez DPH | H34: =SUBTOTAL(9,H27:I32) -> 0
A36: Textová, výkresová i tabulková část projektové dokumentace tvoří jeden vzájemně se doplňující a provázaný celek. Jednotliví účastníci výběrového řízení se musí seznámit s projektojektovou dokumentací v návaznosti na soupis prací a na základě těchto informací části díla nacenit. Dále je potřeba při stanovení ceny dle vykázané výměry započítat všechny předpokládané doplňkové prvky a činnosti s touto položkou související tak, aby cena byla kompletní a prvek funkční.
A37: 1
F38: Materiál | H38: Montáž
A39: poř.č. | B39: položka | C39: popis položky | D39: MJ | E39: množství | F39: jedn.cena | G39: celkem [Kč] | H39: jedn.cena | I39: celkem [Kč]
B40: A. | C40: Svítidla a příslušenství | F40: =SUBTOTAL(9,G42:G68) -> 0 | H40: =SUBTOTAL(9,I42:I68) -> 0
C41: (komplet, včetně zdrojů, závěsů, pomocného materiálu, osazení zapojení, vyzkoušení apod.)
A42: 1 | C42: Svítidlo ON-AIR | D42: ks | E42: 11 | G42: =E42*F42 -> 0 | I42: =E42*H42 -> 0
A43: =A42+1 -> 2 | C43: svítidlo typ A10 - Svítidlo stropní přisazené, korpus Al, bílá barva, difuzor mikroprisma,Ø 300 mm, v=87 mm, LED 39W, 3000 K, 6000 lm, stmív. driver DALI | D43: ks | E43: 16 | G43: 0 | I43: 0
A44: 3 | C44: svítidlo typ A2 - Svítidlo stropní přisazené, bílá barva, Ø 90 mm, v=450 mm, spodní část svítidla seříznuta pod úhlem 15°, LED 13W, 3000 K, 1330 lm, 30° | D44: ks | E44: 15 | G44: 0 | I44: 0
A45: 4 | C45: svítidlo typ A3 - Svítidlo stropní přisazené, bílá barva, Ø 90 mm, v=900 mm, spodní část svítidla seříznuta pod úhlem 15°, LED 13W, 3000 K, 1330 lm, 30° | D45: ks | E45: 13 | G45: 0 | I45: 0
A46: 5 | C46: svítidlo typ A4 - Svítidlo průmyslové, pro zářivku 2x58W, G13, EP | D46: ks | E46: 1 | G46: 0 | I46: 0
A47: 6 | C47: svítidlo typ A6 - Svítidlo stropní přisazené, bílá barva, difuzor opál, odsazený, Ø 130 mm, v=100 mm, LED 15W, 3000 K, 1280 lm, IP40 | D47: ks | E47: 2 | G47: 0 | I47: 0
A48: 7 | C48: svítidlo typ B3 - Svítidlo stropní závěsné, pětiramenné, tvar dle historické předlohy,měděný korpus + nikl leštěný, difuzor sklo satin, 5x Ø 480 mm, svícení přímé LED 5x 40W, 3000 K, 5x 2520 lm, svícení nepřímé LED 5x10W, 3000 K, vč. Driverů | D48: ks | E48: 1 | G48: =E48*F48 -> 0 | I48: =E48*H48 -> 0
A49: 8 | C49: svítidlo typ B4 - Svítidlo stropní závěsné, stříbrně šedá barva, difuzor mikroprisma, lankový závěs, Ø 610 mm, v=22 mm, svícení direct - indirect, LED 65W, 6783 lm, 4000 K, předřadník stmívatelný DALI | D49: ks | E49: 2 | G49: 0 | I49: 0
A50: 9 | C50: svítidlo typ B5 - Svítidlo stropní závěsné, Aluminium eloxované, difuzor PMMA opál / mikroprisma, lankový závěs, Ø 675 mm, v=15 mm, LED 54W, 4500 lm, 4000 K, předřadník stmívatelný DALI | D50: ks | E50: 12 | G50: 0 | I50: 0
A51: 10 | C51: svítidlo typ B6 - Svítidlo stropní závěsné, Aluminium eloxované, difuzor PMMA opál / mikroprisma, lankový závěs, Ø 675 mm, v=15 mm, LED 54W, 4500 lm, 4000 K, předřadník stmívatelný DALI | D51: ks | E51: 6 | G51: 0 | I51: 0
A52: 11 | C52: svítidlo typ B7-1 - Svítidlo stropní závěsné, korpus Al, bílá barva, difuzor mikroprisma,velikost 62x110x2556 mm, svícení direct-indirect, LED 45+35W, 4000 K, 8235+6405 lm, napájení, závěs 2m | D52: ks | E52: 8 | G52: 0 | I52: 0
A53: 12 | C53: svítidlo typ B8 - Svítidlo stropní závěsné, nerez leštěný, l=1612 mm, pro zářivku 1x58W, G13, EP | D53: ks | E53: 1 | G53: 0 | I53: 0
A54: 13 | C54: svítidlo typ C11 - Svítidlo vestavné do podhledu SDK, bílá barva, hluboce odsazený světelný zdroj, velikost 92x92 mm, vestavná hloubka 106mm, LED 7,5W, 4000 K, 1030 lm, 44° | D54: ks | E54: 3 | G54: 0 | I54: 0
A55: 14 | C55: svítidlo typ C12-1- Svítidlo vestavné do podhledu SDK, korpus a koncovky AL, bílá barva, difuzor mikroprisma, š=78 mm, l=1424 mm, vestavná hloubka 100 mm, LED 25W, 4000 K, 4350 lm, IP43- profil- difuzor- koncovky- LED- úchyt | D55: ks | E55: 5 | G55: 0 | I55: 0
A56: 15 | C56: svítidlo typ C4 - Svítidlo vestavné do podhledu SDK, bílá barva, difuzor mikroprisma, Ø 220 mm, vestavná hloubka 60 mm, LED 30W, 3000 K, 4650 lm, IP43 | D56: ks | E56: 8 | G56: 0 | I56: 0
A57: 16 | C57: Svítidlo typ C13 - Svítidlo vestavné do podhledu SDK, korpus Al, bílá barva, difuzor opál - odsazený, Ø 110 mm, vestavná hloubka 70 mm, LED SMD 2835, 13W, 3000 K, 925 lm, 90°, IP54 | D57: ks | E57: 5 | G57: 0 | I57: 0
A58: 17 | C58: svítidlo typ C5 - Svítidlo vestavné do podhledu SDK, bílá barva, odsazený opálový difuzor, Ø 220 mm, vestavná hloubka 90 mm, LED 30W, 3000 K, 4650 lm, IP43 | D58: ks | E58: 4 | G58: 0 | I58: 0
A59: 18 | C59: svítidlo typ C6 - Svítidlo vestavné do podhledu SDK, bílá barva, hluboce utopený světelný zdroj, UGR 13,6, Ø 108 mm, vestavná hloubka 120 mm, LED 7,5W, 4000K, 1030 lm | D59: ks | E59: 6 | G59: 0 | I59: 0
A60: 19 | C60: svítidlo typ C7 - Svítidlo vestavné do podhledu SDK, bílá barva, hluboce utopený světelný zdroj, UGR 13,6, Ø 108 mm, vestavná hloubka 120 mm, LED 7,5W, 4000K, 1030 lm | D60: ks | E60: 9 | G60: 0 | I60: 0
A61: 20 | C61: svítidlo typ C9 - Svítidlo vestavné do podhledu SDK, bílá barva odsazený opálový difuzor, Ø 175 mm, vestavná hloubka 70 mm, LED 20W, 3000 K, 1700 lm, IP54 | D61: ks | E61: 15 | G61: 0 | I61: 0
A62: 21 | C62: svítidlo typ D2 - Svítidlo nástěnné, kopie původního svítidla, korpus mosaz, povrch lesklý nikl, difuzor sklo opál, Ø 200 mm, vyložení 300 mm, 1xE27, 40W max | D62: ks | E62: 8 | G62: 0 | I62: 0
A63: 22 | C63: svítidlo typ D5 - Svítidlo nástěnné, svícení direct - indirect, Al + difuzor opál 2x, 42x85x1200 mm, LED 14,4W/m, 3000K, 1060 lm/m, 24V, vč. Driveru | D63: ks | E63: 1 | G63: 0 | I63: 0
A64: 23 | C64: svítidlo typ D8 - Svítidlo přisazené, nerez leštěný, l=1012 mm, pro zářivku 1x30W, G13, EP | D64: ks | E64: 2 | G64: 0 | I64: 0
A65: 24 | C65: svítidlo typ E2 - Osvětlovací lišta, vestavná do nábytku, Al, š. 22 mm, vestav. hloubka 12 mm, difuzor opál, LED 12V, 12W/m, 3000 K, celková délka 1500 mm | D65: ks | E65: 1 | G65: 0 | I65: 0
A66: 25 | C66: svítidlo typ G1 - Svítidlo stojanové, černohnědá barva mat, stínidlo Al, difuzor opál PMMA, Ø 420 mm, celková výška 1500 mm, 3x E27, 3x20W max | D66: ks | E66: 3 | G66: 0 | I66: 0
A67: 26 | C67: svítidlo typ E1 Svítidlo pro prosvětlení stropu ze skleněných tvárnic (luxfer), Al profil 36x67 mm, celková délka 1200 mm, difuzor opál, LED 15W/m, 3000 K, 1440 lm/m, 24V, 240 ch/m | D67: ks | E67: 27 | G67: 0 | I67: 0
A68: 27 | C68: NOUZOVÉ OSVĚTLENÍ s připojením k CBS Inotec | D68: ks | E68: 13 | G68: 0 | I68: 0
B70: B. | C70: Spínače, zásuvky a ostatní přístroje | F70: =SUBTOTAL(9,G73:G87) -> 0 | H70: =SUBTOTAL(9,I73:I87) -> 0
C71: (komplet, včetně příslušenství, pomocného materiálu, osazení, zapojení, vyzkoušení apod.)
C72: Návazně na předchozí etapy rekonstrukce budou osaztovány výrobky z řady ABB Time
A73: =A68+1 -> 28 | C73: Domovní spínač řazení 1, komplet | D73: ks | E73: 11 | G73: =E73*F73 -> 0 | I73: =E73*H73 -> 0
A74: 29 | C74: Domovní spínač řazení 5, komplet | D74: ks | E74: 6 | G74: 0 | I74: 0
A75: 30 | C75: Domovní spínač řazení 6, komplet | D75: ks | E75: 16 | G75: 0 | I75: 0
A76: 31 | C76: Domovní spínač řazení 6+6, komplet | D76: ks | E76: 8 | G76: 0 | I76: 0
A77: 32 | C77: Domovní spínač řazení 7, komplet | D77: ks | E77: 13 | G77: 0 | I77: 0
A78: 33 | C78: Stmívač s otočným ovládáním | D78: ks | E78: 4 | G78: 0 | I78: 0
A79: 34 | C79: Zásuvkový box pro montáž na pracovní desku stolu 2x zásuvka 230V 16A | D79: ks | E79: 10 | G79: 0 | I79: 0
A80: 35 | C80: Zásuvkový box pro montáž pod pracovní desku stolu 3x zásuvka 230V 16A | D80: ks | E80: 9 | G80: 0 | I80: 0
A81: 36 | C81: Domovní zásuvka 230V 16A,napájení z trafa komplet | D81: ks | E81: 142 | G81: =E81*F81 -> 0 | I81: =E81*H81 -> 0
A82: 37 | C82: Domovní zásuvka 230V 16A,napájení z dieslu komplet | D82: ks | E82: 9 | G82: 0 | I82: 0
A83: 38 | C83: Domovní zásuvka 230V 16A,napájení z UPS komplet | D83: ks | E83: 9 | G83: 0 | I83: 0
A84: 39 | C84: Domovní zásuvka 230V 16A s vestavěnou přepěťovou ochranou ,napájení z trafa komplet | D84: ks | E84: 8 | G84: 0 | I84: 0
A85: 40 | C85: Napojení SLP zařízení 230V, dle montážního návodu | D85: ks | E85: 12 | G85: 0 | I85: 0
A86: 41 | C86: Napojení sporáku (varné desky) přes odbočnou krabici KO100 | D86: ks | E86: 1 | G86: 0 | I86: 0
A87: 42 | C87: Podlahová krabice 6modulů vlhká údržba podlahy 4x zásuvka 230V 16A, 2x rezerva SLP | D87: ks | E87: 7 | G87: 0 | I87: 0
B89: C. | C89: Instalační, úložný a ochranný materiál | F89: =SUBTOTAL(9,G90:G100) -> 0 | H89: =SUBTOTAL(9,I89:I100) -> 0
C90: (komplet, včetně příslušenství, pomocného materiálu, výkopu, záhozu výkopu, vytyčení trasy, osazení, zapojení, vyzkoušení apod.)
A91: =A87+1 -> 43 | C91: Krabice přístrojová | D91: ks | E91: 226 | G91: =E91*F91 -> 0 | I91: =E91*H91 -> 0
A92: =A91+1 -> 44 | C92: Krabice odbočná včetně wago svorek | D92: ks | E92: 100 | G92: =E92*F92 -> 0 | I92: =E92*H92 -> 0
A93: 45 | C93: Odbočná krabice pro připojení elektroinstalace ve stolech komplet včetně víčka a wago svorek. Z krabice 2x vývod tr25mm pod stůl | D93: ks | E93: 11 | G93: =E93*F93 -> 0 | I93: =E93*H93 -> 0
A94: 46 | C94: Kanál pro uložení vedení v duté podlaze | D94: m | E94: 25 | G94: =E94*F94 -> 0 | I94: =E94*H94 -> 0
A95: 47 | C95: Elektroinstalační trubka 25mm v podlaze | D95: m | E95: 20 | G95: =E95*F95 -> 0 | I95: =E95*H95 -> 0
A96: 48 | C96: Elektroinstalační trubka 50mm průchod stěnou v duté podlaze | D96: m | E96: 15 | G96: 0 | I96: 0
A97: 49 | C97: Kabelový drátový žlab 200x100 včetně příslušenství a závěsů | D97: m | E97: 50 | G97: 0 | I97: 0
A98: 50 | C98: Lišta vkládací montáž na nábytek 18x13 | D98: m | E98: 20 | G98: 0 | I98: 0
A99: 51 | C99: Vývod pro připojení elektroinstalace ve stolech režie a studia komplet | D99: ks | E99: 22 | G99: 0 | I99: 0
A100: 52 | C100: Krabice odbočná včetně wago svorek s funkční schopností při požáru | D100: ks | E100: 13 | G100: 0 | I100: 0
B102: D. | C102: Kabely a vodiče | F102: =SUBTOTAL(9,G103:G109) -> 0 | H102: =SUBTOTAL(9,I102:I109) -> 0
C103: (komplet, včetně vyhotovení drážky, zapravení drážky, vytyčení trasy, pomocného materiálu, příchytek, spojek, odlehčovacích oblouků, zapojení, vyzkoušení apod.)
A104: =A100+1 -> 53 | C104: CYKY J 3x1,5 | D104: m | E104: 1100 | G104: =E104*F104 -> 0 | I104: =E104*H104 -> 0
A105: =A104+1 -> 54 | C105: CYKY J 3x2,5 | D105: m | E105: 2000 | G105: 0 | I105: 0
A106: =A105+1 -> 55 | C106: CYKY J 5x2,5 | D106: m | E106: 110 | G106: 0 | I106: 0
A107: =A106+1 -> 56 | C107: CYKY O 3x1,5 | D107: m | E107: 350 | G107: 0 | I107: 0
A108: =A107+1 -> 57 | C108: Kabel H05VV-F 3Gx2,5 | D108: m | E108: 40 | G108: 0 | I108: 0
A109: =A108+1 -> 58 | C109: Rozvody pro NO kabel s funkční schopností P60R -O 3x1,5 B2CAS1D0 | D109: m | E109: 80 | G109: 0 | I109: 0
B111: E. | C111: Pospojování, uzemnění | F111: =SUBTOTAL(9,G112:G113) -> 0 | H111: =SUBTOTAL(9,I111:I113) -> 0
C112: (komplet, včetně příslušenství, svorek, pomocného materiálu, osazení, zapojení, vyzkoušení apod.)
A113: =A109+1 -> 59 | C113: Vodič CYA4 žlutozelený včetně svorek - doplňkové pospojení | D113: m | E113: 50 | G113: =E113*F113 -> 0 | I113: =E113*H113 -> 0
B115: G. | C115: Ostatní | F115: =SUBTOTAL(9,G116:G121) -> 0 | H115: =SUBTOTAL(9,I115:I121) -> 0
A116: =A113+1 -> 60 | C116: Výchozí revize | D116: hod | E116: 20 | G116: =E116*F116 -> 0 | I116: =E116*H116 -> 0
A117: =A116+1 -> 61 | C117: Demontáže včetně likvidace odpadu | D117: hod | E117: 150 | G117: =E117*F117 -> 0 | I117: 0
A118: =A117+1 -> 62 | C118: Stavební přípomoce | D118: kpl | E118: 1 | F118: --- | G118: --- | I118: 0
A119: =A118+1 -> 63 | C119: Pomocný a podružný materiál upevňovací | D119: kpl | E119: 1 | G119: =E119*F119 -> 0 | I119: 0
A120: =A119+1 -> 64 | C120: Zednické výpomoci (PPV) | D120: kpl | E120: 1 | F120: --- | G120: --- | I120: 0
A121: =A120+1 -> 65 | C121: Doprava materiálu | D121: kpl | E121: 1 | F121: --- | G121: --- | I121: 0

Sheet 03_SO 02 - VZT
A1: =CONCATENATE('Rekapitulace stavby'!C54,"_",'Rekapitulace stavby'!I54) -> 03_SO 02 - Vzduchotechnika a chlazení
A3: SPECIFIKACE DODÁVEK A PRACÍ
A4: Název akce:
A5: ='Identifikační údaje'!B1 -> ČRo Brno – III. etapa rekonstrukce budovy Beethovenova 25/4
A7: Zadavatel: | C7: ='Identifikační údaje'!E7 -> Český rozhlas, Vinohradská 12, 120 99 Praha 2 | D7: Projektant: | F7: ='Identifikační údaje'!E12 -> Ing. arch. Klement Miloš, Nejedlého 381/19, 638 00 Brno - Lesná
B8: IČ | C8: ='Identifikační údaje'!B9 -> 45245053 | E8: IČ | F8: ='Identifikační údaje'!B14 -> 15188736
B9: DIČ | C9: ='Identifikační údaje'!B10 -> CZ45245053 | E9: DIČ | F9: ='Identifikační údaje'!B15 -> CZ6101021344
A11: Uchazeč: | C11: ='Identifikační údaje'!E19 -> , , | D11: Místo stavby: | F11: ='Identifikační údaje'!B3 -> Budova Českého rozhlasu Brno na adrese Beethovenova 25/4, 657 42 Brno
B12: IČ | C12: ='Identifikační údaje'!B23 -> 0
B13: DIČ | C13: ='Identifikační údaje'!B24 -> 0
A15: Datum: | C15: ='Identifikační údaje'!B5 -> 00:00:00
A17: P.Č. | B17: Č.Z | C17: Popis položky: | D17: Měrná jednotka | F17: Cena | J17: Poznámka
F18: Jednotková | H18: Celkem
D19: - | E19: počet | F19: Dodávka | G19: Montáž | H19: Dodávka | I19: Montáž
F20: [ Kč ] | G20: [ Kč ] | H20: [ Kč ] | I20: [ Kč ]
C21: =CONCATENATE("REKAPITULACE OBJEKTU ",'Rekapitulace stavby'!I54) -> REKAPITULACE OBJEKTU SO 02 - Vzduchotechnika a chlazení
A22: 1 | B22: 2.3 | C22: =C45 -> Zařízení č.2.3 - Větrání a chlazení – studio S6 a studio S6 – přízemí (místnost č.P06, P07) - příprava na XI. TSK | D22: kpl | E22: 1 | F22: - | G22: - | H22: =H51 -> 0 | I22: =I51 -> 0 | J22: -
A23: 2 | B23: 2.4 | C23: =C61 -> Zařízení č.2.4 - Větrání a chlazení – režie A studio A – mezipatro | D23: kpl | E23: 1 | F23: - | G23: - | H23: =H86 -> 0 | I23: =I86 -> 0 | J23: -
A24: 3 | B24: 2.5 | C24: =C93 -> Zařízení č.2.5 - Větrání a chlazení – režie B studio B – mezipatro | D24: kpl | E24: 1 | F24: - | G24: - | H24: =H118 -> 0 | I24: =I118 -> 0 | J24: -
A25: 4 | B25: 9 | C25: =C125 -> Zařízení č.9 - Chlazení místnosti s RACC M25 | D25: kpl | E25: 1 | F25: - | G25: - | H25: =H131 -> 0 | I25: =I131 -> 0 | J25: -
C26: Mezisoučet | H26: =SUM(H22:H25) -> 0 | I26: =SUM(I22:I25) -> 0 | J26: Kč bez DPH
A28: =A25+1 -> 5 | B28: - | C28: Protipožární ucpávky | D28: ks | E28: 16 | H28: =E28*F28 -> 0 | I28: =E28*G28 -> 0 | J28: -
A29: =A28+1 -> 6 | B29: - | C29: Doprava | D29: kpl | E29: 1 | I29: =E29*G29 -> 0 | J29: -
A30: 7 | B30: - | C30: Přesuny | D30: kpl | E30: 1 | I30: 0 | J30: -
A31: 8 | B31: - | C31: Uvedení do provozu, zaregulování, vyzkoušení, předávací řízení | D31: kpl | E31: 1 | I31: 0 | J31: -
A32: 9 | B32: - | C32: Inženýrská a koordinační činnost | D32: kpl | E32: 1 | I32: 0 | J32: -
A33: 10 | B33: - | C33: Dílenská a výrobní projektová dokumentace | D33: kpl | E33: 1 | I33: 0 | J33: -
A34: 11 | B34: - | C34: Dokumentace konečného provedení, návody, atesty, prohlášení o shodě | D34: kpl | E34: 1 | I34: 0 | J34: -
C35: Mezisoučet | H35: =SUM(H28:H34) -> 0 | I35: =SUM(I28:I34) -> 0 | J35: Kč bez DPH
A37: CELKEM D+M | C37: =CONCATENATE("OBJEKTU ",'Rekapitulace stavby'!I54," v Kč bez DPH") -> OBJEKTU SO 02 - Vzduchotechnika a chlazení v Kč bez DPH | H37: =H26+H35+I26+I35 -> 0
A41: P.Č. | B41: Č.P. | C41: Popis položky: | D41: Měrná jednotka | F41: Cena | J41: Poznámka
F42: Jednotková cena | H42: Celková cena
D43: - | E43: počet | F43: Dodávka | G43: Montáž | H43: Dodávka | I43: Montáž
F44: [ Kč ] | G44: [ Kč ] | H44: [ Kč ] | I44: [ Kč ]
C45: Zařízení č.2.3 - Větrání a chlazení – studio S6 a studio S6 – přízemí (místnost č.P06, P07) - příprava na XI. TSK
A46: =A34+1 -> 12 | B46: 2.3.1 | C46: Větrací jednotka - referenční výrobek Systemair KA HSI-2/1,5-S-R-50 ve vnitřním provedení ve složení: | D46: ks | E46: 1 | H46: =E46*F46 -> 0 | I46: =E46*G46 -> 0
C47: Přívod: klapka, směšovací komora, filtr G4,
C48: ventilátor (1500m3/h, 350Pa), ohřívač vodní, chladič - přímé chlazení, filtr F7
C49: včetně tlumících manžet a rámu
C50: dodávka v rozloženém stavu
A51: =CONCATENATE(C45," - celkem") -> Zařízení č.2.3 - Větrání a chlazení – studio S6 a studio S6 – přízemí (místnost č.P06, P07) - příprava na XI. TSK - celkem | H51: =SUM(H46:H50) -> 0 | I51: =SUM(I46:I50) -> 0 | J51: bez DPH
A57: P.Č. | B57: Č.P. | C57: Popis položky: | D57: Měrná jednotka | F57: Cena | J57: Poznámka
F58: Jednotková cena | H58: Celková cena
D59: - | E59: počet | F59: Dodávka | G59: Montáž | H59: Dodávka | I59: Montáž
F60: [ Kč ] | G60: [ Kč ] | H60: [ Kč ] | I60: [ Kč ]
C61: Zařízení č.2.4 - Větrání a chlazení – režie A studio A – mezipatro
A62: =A46+1 -> 13 | B62: 2.4.1 | C62: Větrací jednotka - referenční výrobek KA HSI-2/1-S-R-50 ve vnitřním provedení ve složení: | D62: ks | E62: 1 | H62: =E62*F62 -> 0 | I62: =E62*G62 -> 0
C63: Přívod: klapka, směšovací komora, filtr G4,
C64: ventilátor (800m3/h, 350Pa), ohřívač vodní, chladič - přímé chlazení, filtr F7
C65: včetně tlumících manžet
C66: dodávka v rozloženém stavu
A67: =A62+1 -> 14 | B67: 2.4.2 | C67: Venkovní kondenzační jednotka Standard Invertor - referenční výrobek UU18W.UE4 | D67: ks | E67: 1 | H67: =E67*F67 -> 0 | I67: =E67*G67 -> 0
A68: =A67+1 -> 15 | C68: Řídící box - referenční výrobek KM113.05OU | D68: ks | E68: 1 | H68: =E68*F68 -> 0 | I68: =E68*G68 -> 0
A69: =A68+1 -> 16 | C69: Předizolované Cu potrubí včetně prodrátování a zalištování | D69: bm | E69: 40 | H69: 0 | I69: 0
A70: 17 | C70: Doplnění chladiva R410A | D70: kg | E70: 1 | H70: 0 | I70: 0
A71: 18 | B71: 2.4.3 | C71: Odporový parní vyvíječ - referenční výrobek Flair Condair RS Visual 5 | D71: ks | E71: 1 | H71: 0 | I71: 0
A72: 19 | C72: Trubice 81-500 (min.šíře potrubí 550mm) | D72: ks | E72: 1 | H72: 0 | I72: 0
A73: 20 | C73: Parní hadice Condair - referenční výrobek DS80 (D=57/45mm) | D73: bm | E73: 4 | H73: 0 | I73: 0
A74: 21 | C74: Kondenzační hadice KS 10 (D=12/8mm) | D74: bm | E74: 4 | H74: 0 | I74: 0
A75: 22 | B75: 2.4.4 | C75: Regulační klapka - referenční výrobek RKN 300 x 200 na servo - servopohon dodávka MaR | D75: ks | E75: 2 | H75: 0 | I75: 0
A76: 23 | C76: Regulační klapka - referenční výrobek RKN 200 x 200 na servo - servopohon dodávka MaR | D76: ks | E76: 2 | H76: 0 | I76: 0
A77: 24 | B77: 2.4.5 | C77: Tlumič hluku - referenční výrobek JTH 300/300/1000 | D77: ks | E77: 2 | H77: 0 | I77: 0
A78: 25 | B78: 2.4.6 | C78: Tlumič hluku - referenční výrobek JTH 200/300/1000 | D78: ks | E78: 12 | H78: 0 | I78: 0
A79: 26 | B79: 2.4.7 | C79: Výustka - referenční výrobek NOVA - A - 2 - 1 - 1000 x 150 - R1 - nátěr RAL…… | D79: ks | E79: 2 | H79: 0 | I79: 0
A80: 27 | B80: 2.4.8 | C80: Výustka - referenční výrobek NOVA - A - 1 - 1 - 500 x 300 - R1 - nátěr RAL…… | D80: ks | E80: 6 | H80: 0 | I80: 0
A81: 28 | C81: Čtyřhranné ocel. potrubí sk. I včetně tvarovek | D81: m2 | E81: 93 | H81: 0 | I81: 0
A82: 29 | C82: Černý nátěr potrubí | D82: m2 | E82: 48 | H82: 0 | I82: 0
A83: 30 | C83: Tep a protihluk.izol.tl. 4 cm - iz. deskami nebo pásy | D83: m2 | E83: 36 | H83: 0 | I83: 0
A84: 31 | C84: Těžká hluková izolace - referenční výrobek Orstech 65H - tl. 4 cm - iz. deskami nebo pásy - provedení dle požadavku profese akustika | D84: m2 | E84: 58 | H84: 0 | I84: 0
A86: =CONCATENATE(C61," - celkem") -> Zařízení č.2.4 - Větrání a chlazení – režie A studio A – mezipatro - celkem | H86: =SUM(H62:H84) -> 0 | I86: =SUM(I62:I84) -> 0 | J86: bez DPH
A89: P.Č. | B89: Č.P. | C89: Popis položky: | D89: Měrná jednotka | F89: Cena | J89: Poznámka
F90: Jednotková cena | H90: Celková cena
D91: - | E91: počet | F91: Dodávka | G91: Montáž | H91: Dodávka | I91: Montáž
F92: [ Kč ] | G92: [ Kč ] | H92: [ Kč ] | I92: [ Kč ]
C93: Zařízení č.2.5 - Větrání a chlazení – režie B studio B – mezipatro
A94: =A84+1 -> 32 | C94: Větrací jednotka - referenční výrobek Systemair KA HSI-2/1-S-R-50 ve vnitřním provedení ve složení: | D94: ks | E94: 1 | H94: =E94*F94 -> 0 | I94: =E94*G94 -> 0
C95: Přívod: klapka, směšovací komora, filtr G4,
C96: ventilátor (800m3/h, 350Pa), ohřívač vodní, chladič - přímé chlazení, filtr F7
C97: včetně tlumících manžet
C98: dodávka v rozloženém stavu
A99: =A94+1 -> 33 | C99: Venkovní kondenzační jednotka Standard Invertor - referenční výrobek UU18W.UE4 | D99: ks | E99: 1 | H99: =E99*F99 -> 0 | I99: =E99*G99 -> 0
A100: =A99+1 -> 34 | C100: Řídící box - referenční výrobek KM113.05OU | D100: ks | E100: 1 | H100: =E100*F100 -> 0 | I100: =E100*G100 -> 0
A101: =A100+1 -> 35 | C101: Předizolované Cu potrubí včetně prodrátování a zalištování | D101: bm | E101: 40 | H101: 0 | I101: 0
A102: 36 | C102: Doplnění chladiva R410A | D102: kg | E102: 1 | H102: 0 | I102: 0
A103: 37 | C103: Odporový parní vyvíječ - referenční výrobek Flair Condair RS Visual 5 | D103: ks | E103: 1 | H103: 0 | I103: 0
A104: 38 | C104: Trubice 81-500 (min.šíře potrubí 550mm) | D104: ks | E104: 1 | H104: 0 | I104: 0
A105: 39 | C105: Parní hadice Condair - referenční výrobek DS80 (D=57/45mm) | D105: bm | E105: 4 | H105: 0 | I105: 0
A106: 40 | C106: Kondenzační hadice KS 10 (D=12/8mm) | D106: bm | E106: 4 | H106: 0 | I106: 0
A107: 41 | C107: Regulační klapka - referenční výrobek RKN 300 x 200 na servo - servopohon dodávka MaR | D107: ks | E107: 4 | H107: 0 | I107: 0
A108: 42 | C108: Tlumič hluku - referenční výrobek JTH 300/300/1000 | D108: ks | E108: 4 | H108: 0 | I108: 0
A109: 43 | C109: Tlumič hluku - referenční výrobek JTH 200/300/1000 | D109: ks | E109: 8 | H109: 0 | I109: 0
A110: 44 | C110: Výustka - referenční výrobek NOVA - A - 2 - 1 - 1000 x 150 - R1 - nátěr RAL…… | D110: ks | E110: 2 | H110: 0 | I110: 0
A111: 45 | C111: Výustka - referenční výrobek NOVA - A - 1 - 1 - 500 x 300 - R1 - nátěr RAL…… | D111: ks | E111: 6 | H111: 0 | I111: 0
A112: 46 | C112: Stěnová mřížka - referenční výrobek NOVA - L - 1 - 1 - 500 x 200 - 20,0 | D112: ks | E112: 8 | H112: 0 | I112: 0
A113: 47 | C113: Čtyřhranné ocel. potrubí sk. I včetně tvarovek | D113: m2 | E113: 56 | H113: 0 | I113: 0
A114: 48 | C114: Černý nátěr potrubí | D114: m2 | E114: 40 | H114: 0 | I114: 0
A115: 49 | C115: Tep a protihluk.izol.tl. 4 cm - iz. deskami nebo pásy | D115: m2 | E115: 28 | H115: 0 | I115: 0
A116: 50 | C116: Těžká hluková izolace - referenční výrobek Orstech 65H - tl. 4 cm - iz. deskami nebo pásy - provedení dle požadavku profese akustika | D116: m2 | E116: 30 | H116: 0 | I116: 0
A118: =CONCATENATE(C93," - celkem") -> Zařízení č.2.5 - Větrání a chlazení – režie B studio B – mezipatro - celkem | H118: =SUM(H94:H116) -> 0 | I118: =SUM(I94:I116) -> 0 | J118: bez DPH
A121: P.Č. | B121: Č.P. | C121: Popis položky: | D121: Měrná jednotka | F121: Cena | J121: Poznámka
F122: Jednotková cena | H122: Celková cena
D123: - | E123: počet | F123: Dodávka | G123: Montáž | H123: Dodávka | I123: Montáž
F124: [ Kč ] | G124: [ Kč ] | H124: [ Kč ] | I124: [ Kč ]
C125: Zařízení č.9 - Chlazení místnosti s RACC M25
A126: =A116+1 -> 51 | B126: 9.1 | C126: Venkovní kondenzační jednotka - referenční výrobek UJ36W UO2 | D126: ks | E126: 2 | H126: =E126*F126 -> 0 | I126: =E126*G126 -> 0
A127: =A126+1 -> 52 | C127: Nástěnná jednotka Standard Invertor - referenční výrobek UJ36 NV2 včetně infraovladače | D127: ks | E127: 2 | H127: =E127*F127 -> 0 | I127: =E127*G127 -> 0
A128: =A127+1 -> 53 | C128: Předizolované Cu potrubí včetně prodrátování a zalištování | D128: ks | E128: 60 | H128: =E128*F128 -> 0 | I128: =E128*G128 -> 0
A131: =CONCATENATE(C125," - celkem") -> Zařízení č.9 - Chlazení místnosti s RACC M25 - celkem | H131: =SUM(H126:H130) -> 0 | I131: =SUM(I126:I130) -> 0 | J131: bez DPH

Sheet 04_SO 02 - akustika
A1: =CONCATENATE('Rekapitulace stavby'!C55,"_",'Rekapitulace stavby'!I55) -> 04_SO 02 - Akustika
A3: SPECIFIKACE DODÁVEK A PRACÍ
A4: Název akce:
A5: ='[2]Identifikační údaje'!B1 -> ČRo Brno – rekonstrukce suterénu a studiového komplexu v přízemí budovy
A7: Zadavatel: | C7: ='Identifikační údaje'!B7 -> Český rozhlas
B8: IČ: | C8: ='Identifikační údaje'!B9 -> 45245053
B9: DIČ: | C9: ='Identifikační údaje'!B10 -> CZ45245053
A11: Projektant: | C11: ='Identifikační údaje'!B12 -> Ing. arch. Klement Miloš
B12: IČ: | C12: ='Identifikační údaje'!B14 -> 15188736
B13: DIČ: | C13: ='Identifikační údaje'!B15 -> CZ6101021344
A15: Uchazeč: | C15: ='Identifikační údaje'!E19 -> , ,
B16: IČ: | C16: ='Identifikační údaje'!B23 -> 0
B17: DIČ: | C17: ='Identifikační údaje'!B24 -> 0
A19: Místo stavby: | C19: ='Identifikační údaje'!B3 -> Budova Českého rozhlasu Brno na adrese Beethovenova 25/4, 657 42 Brno
A21: Datum: | C21: ='Identifikační údaje'!B5 -> 00:00:00
A23: =CONCATENATE("REKAPITULACE DODÁVEK A PRACÍ OBJEKTU ",'Rekapitulace stavby'!I55) -> REKAPITULACE DODÁVEK A PRACÍ OBJEKTU SO 02 - Akustika
A25: P.č. | C25: Ozn. | D25: Název položky | I25: Kč bez DPH
A27: Díl: | B27: =A51 -> 1 | D27: =D51 -> Akustické úpravy stěn | I27: =I59 -> 0
A28: Díl: | B28: =A62 -> 2 | D28: =D62 -> Akustické úpravy stropu | I28: =I67 -> 0
A29: Díl: | B29: =A70 -> 3 | D29: =D70 -> Akustická měření a projekční činnost | I29: =I83 -> 0
A31: =CONCATENATE("CELKEM ZA OBJEKT ",'Rekapitulace stavby'!I55, " v Kč bez DPH") -> CELKEM ZA OBJEKT SO 02 - Akustika v Kč bez DPH | I31: =SUM(I27:J29) -> 0
A35: Poznámky:
A36: V ceně je obsažena komplexní dodávka a montáž včetně dopravy, přesunu hmot, VRN a hrubého úklidu staveniště.
A37: V ceně akustických obkladů jsou obsaženy také všechny obložky a zakončení s ním související.
A38: Všechny výše uvedené rozměry je nutné před zahájením vlastní výroby ověřit zaměřením přímo na stavbě.
A51: 1 | D51: Akustické úpravy stěn
A52: Čís. pol. | B52: Zkratka | C52: Název položky | G52: MJ | H52: množství | I52: jednotková cena | J52: celkem [Kč] | K52: Technické specifikace, technické a uživatelské standardy stavby, podrobný popis položky
A53: 1 | B53: RS | C53: Rezonátor stěnový | G53: m2 | H53: 25 | J53: =I53*H53 -> 0 | K53: akustický prvek se zvýrazněnou pohltivostí v úzkém pásmu nízkých frekvencí s mírnou působností i na středních a vyšších frekvencích; jedná se o prvek na bázi dřeva uzavřeného objemu a s rezonanční štěrbinou, která je orientována směrem k podlaze; rubová strana štěrbiny je překryta pruzvučnou textilií; vnitřní dutina je zatlumena absorpčním materiálem; šířka a hloubka štěrbiny, vlastnosti a množství absorpčního materiálu v dutině dle požadovaných hodnot činitele zvukové pohltivosti; Požadovaný činitel zvukové pohltivosti v oktávových pásmech: 125 Hz - a » 0,6; 250 Hz - a » 0,4; 500 Hz - a » 0,35; 1000 Hz - a » 0,3; 2000 Hz - a » 0,25; 4000 Hz - a » 0,2 šiřka stykové spáry 3-5 mm; skryté kotevní prvky; povrchová úprava přírodní dýha - javor, jasan nebo dub dle výběru architekta z předložených vzorků; požadavky PBŘ: nebudou použity výrobky, které při požáru jako hořící odkapávají nebo odpadávají (při zkoušce dle ČSN 730865);
A54: =A53+1 -> 2 | B54: KPS | C54: Kmitající panel | G54: m2 | H54: 11.7 | J54: 0 | K54: akustický prvek se zvýrazněnou pohltivostí v úzkém pásmu nízkých frekvencí; panel je tvořen tenkou čelní deskou na bázi dřeva pružně uchycenou k podkladnímu nosnému roštu, prvek má uzavřený objem; v dutině je vložen absorpční materiál v množství a s parametry dle požadovaných hodnot činitele zvukové pohltivosti Požadovaný činitel zvukové pohltivosti v oktávových pásmech: 125 Hz - a » 0,5; 250 Hz - a » 0,18; 500 Hz - a » 0,09; 1000 Hz - a » 0,07; 2000 Hz - a » 0,09; 4000 Hz - a » 0,12 šiřka stykové spáry 3-5 mm; skryté kotevní prvky; povrchová úprava přírodní dýha - javor, jasan nebo dub dle výběru architekta z předložených vzorků; požadavky PBŘ: nebudou použity výrobky, které při požáru jako hořící odkapávají nebo odpadávají (při zkoušce dle ČSN 730865);
A55: =A54+1 -> 3 | B55: LA | C55: Laťový absorbér | G55: m2 | H55: 65.4 | J55: 0 | K55: laťový absorpční prvek s pohltivostí v celém kmitočtovém pásmu s maximem zvukové pohltivosti na nízkých a středních kmitočtech; jedná se o prvek na bázi dřeva; lícová strana prvku je tvořena lamelami tloušťky 20 mm a šířky 20 - 60 mm; latě tvoří 60-70 % plochy prvku; instalace na vyrovnávací norný rošt; v dutině za obkadem je vložen absorpční materiál v množství a s parametry dle požadovaných akustických vlastností; Požadovaný činitel zvukové pohltivosti v oktávových pásmech: 125 Hz - a » 0,72; 250 Hz - a » 0,78; 500 Hz - a » 0,85; 1000 Hz - a » 0,75; 2000 Hz - a » 0,6; 4000 Hz - a » 0,5 šiřka stykové spáry 3-5 mm; skryté kotevní prvky; povrchová úprava přírodní dýha - javor, jasan nebo dub dle výběru architekta z předložených vzorků; požadavky PBŘ: nebudou použity výrobky, které při požáru jako hořící odkapávají nebo odpadávají (při zkoušce dle ČSN 730865);
A56: =A55+1 -> 4 | B56: VP | C56: Vykrývací panely | G56: m2 | H56: 45.3 | J56: 0 | K56: rovné obkladové desky na bázi dřeva kotvené na vyrovnávací nosný rastr sloužící pro vizuální sjednocení ploch; v dutině za obkadem je vložen absorpční materiál v množství a s parametry dle požadovaných akustických vlastností; Požadovaný činitel zvukové pohltivosti v oktávových pásmech: 125 Hz - a » 0,15-0,2 povrchová úprava přírodní dýha - javor, jasan nebo dub dle výběru architekta z předložených vzorků; požadavky PBŘ: nebudou použity výrobky, které při požáru jako hořící odkapávají nebo odpadávají (při zkoušce dle ČSN 730865);
A57: =A56+1 -> 5 | B57: SO | C57: Sokl | G57: bm | H57: 52 | J57: 0 | K57: rovné obkladové desky výšky 150 mm z materiálu na bázi dřeva kotvené k nosnému roštu; povrchová úprava přírodní dýha - javor, jasan nebo dub dle výběru architekta z předložených vzorků; požadavky PBŘ: nebudou použity výrobky, které při požáru jako hořící odkapávají nebo odpadávají (při zkoušce dle ČSN 730865);
A58: =A57+1 -> 6 | B58: RO | C58: D+M - režijní okno se zvýšenou neprůzvučností | G58: ks | H58: 3 | J58: 0 | K58: jedná se o atypické režijní okno se zvýšenou vzduchovou neprůzvučností tvořené dvěma skly usazenými šikmo pod úhlem 12°; skla mají tloušťku 10 mm a 14 až 16 mm; skla jsou v rámu pružně umístěna v pryžovém loži; vnitřní prostor mezi skly je po celém obvodu zatlumen polyuretanovou pěnou tl. 30 až 40 mm; více viz výkresová příloha
A59: =CONCATENATE("Celkem Kč bez DPH za ",A51," - ",D51) -> Celkem Kč bez DPH za 1 - Akustické úpravy stěn | I59: =SUM(J53:J58) -> 0
A62: 2 | D62: Akustické úpravy stropu
A63: Čís. pol. | B63: Zkratka | C63: Název položky | G63: MJ | H63: množství | I63: jednotková cena | J63: celkem [Kč] | K63: Technické specifikace, technické a uživatelské standardy stavby, podrobný popis položky
A64: =A58+1 -> 7 | B64: RP | C64: Rezonátor podhledový | G64: m2 | H64: 12.3 | J64: =I64*H64 -> 0 | K64: akustický prvek se zvýrazněnou pohltivostí v úzkém pásmu nízkých frekvencí s mírnou působností i na středních a vyšších frekvencích; jedná se o prvek na bázi dřeva uzavřeného objemu a s rezonanční štěrbinou, která je v čelní desce prvku; rubová strana štěrbiny je překryta pruzvučnou textilií; vnitřní dutina je zatlumena absorpčním materiálem; šířka a hloubka štěrbiny, vlastnosti a množství absorpčního materiálu v dutině dle požadovaných hodnot činitele zvukové pohltivosti; umístění podél obvodu místností Požadovaný činitel zvukové pohltivosti v oktávových pásmech: 125 Hz - a » 0,6; 250 Hz - a » 0,4; 500 Hz - a » 0,35; 1000 Hz - a » 0,3; 2000 Hz - a » 0,25; 4000 Hz - a » 0,2 šiřka stykové spáry 3-5 mm; skryté kotevní prvky; povrchová úprava přírodní dýha - javor, jasan nebo dub dle výběru architekta z předložených vzorků; požadavky PBŘ: nebudou použity výrobky, které při požáru jako hořící odkapávají nebo odpadávají (při zkoušce dle ČSN 730865);
A65: =A64+1 -> 8 | B65: MPA | C65: Minerální podhled třídy A | G65: m2 | H65: 55.6 | J65: =I65*H65 -> 0 | K65: širokopásmový rastrový podhled z materiálu na bázi skelné vaty; tloušťka kazety 20 mm; rozměr 1200x600 mm; viditelný povrch je opatřen speciální vrstvou; zadní strana panelu je potažena skelnou tkaninou; podhled má částečně skrytý rošt nosné konstrukce; mezi panely je mezera 8 mm; na kazety bude v celé ploše doplněna přídavná absorpční vložka; panely jsou demontovatelné; údržba denním stíráním prachu/vysáváním a týdenním čištěním za mokra; Požadovaný činitel zvukové pohltivosti v oktávových pásmech: 125 Hz - a » 0,6; 250 Hz - a » 0,72; 500 Hz - a » 0,76; 1000 Hz - a » 0,81; 2000 Hz - a » 0,9; 4000 Hz - a » 0,9 povrch v bílé barvě; požadavky PBŘ: nebudou použity výrobky, které při požáru jako hořící odkapávají nebo odpadávají (při zkoušce dle ČSN 730865);
A66: =A65+1 -> 9 | B66: MPE | C66: Minerální podhled třídy E | G66: m2 | H66: 12.6 | J66: =I66*H66 -> 0 | K66: rastrový podhled s nízkou zvukovou pohltivostí; tloušťka kazety 20 mm; rozměr 1200x600 mm; viditelný povrch je opatřen speciální vrstvou; zadní strana panelu je potažena skelnou tkaninou; podhled má částečně skrytý rošt nosné konstrukce; mezi panely je mezera 8 mm; na kazety bude v celé ploše doplněna přídavná absorpční vložka; panely jsou demontovatelné; údržba denním stíráním prachu/vysáváním a týdenním čištěním za mokra; Požadovaný činitel zvukové pohltivosti v oktávových pásmech: 125 Hz - a » 0,4; 250 Hz - a » 0,25; 500 Hz - a » 0,15; 1000 Hz - a » 0,35; 2000 Hz - a » 0,2; 4000 Hz - a » 0,15 povrch v bílé barvě; požadavky PBŘ: nebudou použity výrobky, které při požáru jako hořící odkapávají nebo odpadávají (při zkoušce dle ČSN 730865);
A67: =CONCATENATE("Celkem Kč bez DPH za ",A62," - ",D62) -> Celkem Kč bez DPH za 2 - Akustické úpravy stropu | I67: =SUM(J64:J66) -> 0
A70: 3 | D70: Akustická měření a projekční činnost
A71: Čís. pol. | B71: Zkratka | C71: Název položky | G71: MJ | H71: množství | I71: jednotková cena | J71: celkem [Kč] | K71: Technické specifikace, technické a uživatelské standardy stavby, podrobný popis položky
A72: =A66+1 -> 10 | B72: MHLw-E | C72: Měření kročejové neprůzvučnosti - etapové | G72: kpl. | H72: 1 | J72: =I72*H72 -> 0 | K72: měření kročejové neprůzvučnosti dle platných norem mezi prostory mezipatra a akusticky náročnými prostory v přízemí během realizace (např. mezi M29A, M27 a P22); včetně protokolárního zpracování výsledků a vyhodnocení s příslušnými závěry v komplexní vazbě na akusticku stavby jako celku;
A73: =A72+1 -> 11 | B73: MHLw-Z | C73: Měření kročejové neprůzvučnosti - závěrečné | G73: kpl. | H73: 1 | J73: =I73*H73 -> 0 | K73: měření kročejové neprůzvučnosti dle platných norem mezi prostory mezipatra a akusticky náročnými prostory v přízemí po realizaci;
A74: =A73+1 -> 12 | B74: MHRw-E | C74: Měření vzduchové neprůzvučnosti - etapové | G74: ks | H74: 7 | J74: =I74*H74 -> 0 | K74: měření vzduchové neprůzvučnosti dle platných norem vybraných konstrukcí během realizace v koordinaci s průběhem stavebních prací; včetně protokolárního zpracování výsledků a vyhodnocení s příslušnými závěry v komplexní vazbě na akusticku stavby jako celku;
A75: 13 | B75: MHRw-Z | C75: Měření vzduchové neprůzvučnosti - závěrečné | G75: ks | H75: 7 | J75: 0 | K75: měření vzduchové neprůzvučnosti dle platných norem vybraných konstrukcí po realizaci; měřeny budou stěny mezi akusticky náročnými místnostmi v mezipatře, neprůzvučnost stropů nad přízemím a nad mezipatrem;
A76: 14 | B76: MHP - Z | C76: Měření hladin akustického tlaku pozadí - závěrečné | G76: ks | H76: 4 | J76: 0 | K76: měření hladin akustického tlaku pozadí bude provedeno v akusticky náročných prostorech po realizaci;
A77: 15 | B77: MD-E | C77: Měření doby dozvuku - etapové | G77: ks | H77: 8 | J77: 0 | K77: měření doby dozvuku dle normy ČSN EN ISO 3382-1 ve všech akusticky náročných prostorech s definovanými požadavky na cílovou dobu dozvuku; minimálně dvě etapová měření v každém prostoru; včetně protokolárního zpracování výsledků a vyhodnocení s příslušnými závěry v komplexní vazbě na akustiku jednotlivých prostor
A78: 16 | B78: MD - Z | C78: Měření doby dozvuku - závěrečné | G78: ks | H78: 4 | J78: 0 | K78: měření doby dozvuku dle normy ČSN EN ISO 3382-1 ve všech akusticky náročných prostorech s definovanými požadavky na cílovou dobu dozvuku po realizaci; včetně protokolárního zpracování výsledků a vyhodnocení
A79: 17 | B79: MA - T | C79: Měření činitele zvukové pohltivosti dle ČSN ISO 10534-1 nebo ČSN ISO 10534-2 | G79: ks | H79: 1 | J79: 0 | K79: měření činitele zvukové pohltivosti vzorků materiálů v impedanční trubici dle normy ČSN ISO 10534-1 nebo ČSN ISO 10534-2; součástí měření je také vyhodnocení a protokolární zpracování
A80: 18 | B80: MA-P | C80: Měření činitele zvukové pohltivosti dle ČSN EN ISO 354 | G80: ks | H80: 3 | J80: 0 | K80: měření činitele zvukové pohltivosti vzorků materiálů v dozvukové komeře dle normy ČSN EN ISO 354; měřeny budou následující vzorky: RS, KPS, RP; včetně protokolárního zpracování výsledků a vyhodnocení s příslušnými závěry v komplexní vazbě na akustiku jednotlivých prostor
A81: 19 | B81: DD-P | C81: dílenská dokumentace - prostorová akustika | G81: ks | H81: 1 | J81: 0 | K81: dílenská dokumentace profese prostorová akustika; zejména detaily provedení atypických akustických prvků; tato bude předložena k odsouhlasení generálnímu projektantovi; projektantovi akustiky a zástupci investora
A82: 20 | B82: DD-S | C82: dílenská dokumentace - stavební akustika | G82: ks | H82: 1 | J82: 0 | K82: konzultační činnost a projekční podpora související s prováděním díla vázaného na stavební akustiku; bez účasti přímo na stavbě
A83: =CONCATENATE("Celkem Kč bez DPH za ",A70," - ",D70) -> Celkem Kč bez DPH za 3 - Akustická měření a projekční činnost | I83: =SUM(J72:J82) -> 0

Sheet 05_S0 03 - Stav-arch část
A1: =CONCATENATE('Rekapitulace stavby'!C57,"_",'Rekapitulace stavby'!I57) -> 05_SO 03 - Stavebně - architektonická část
A3: SPECIFIKACE DODÁVEK A PRACÍ
A4: Název akce:
A5: ='Identifikační údaje'!B1 -> ČRo Brno – III. etapa rekonstrukce budovy Beethovenova 25/4
A7: Zadavatel: | C7: ='Identifikační údaje'!E7 -> Český rozhlas, Vinohradská 12, 120 99 Praha 2
B8: IČ: | C8: ='Identifikační údaje'!B9 -> 45245053
B9: DIČ: | C9: ='Identifikační údaje'!B10 -> CZ45245053
A11: Projektant: | C11: ='Identifikační údaje'!E12 -> Ing. arch. Klement Miloš, Nejedlého 381/19, 638 00 Brno - Lesná
B12: IČ: | C12: ='Identifikační údaje'!B14 -> 15188736
B13: DIČ: | C13: ='Identifikační údaje'!B15 -> CZ6101021344
A15: Uchazeč: | C15: ='Identifikační údaje'!E19 -> , ,
B16: IČ: | C16: ='Identifikační údaje'!B23 -> 0
B17: DIČ: | C17: ='Identifikační údaje'!B24 -> 0
A19: Místo stavby: | C19: ='Identifikační údaje'!B3 -> Budova Českého rozhlasu Brno na adrese Beethovenova 25/4, 657 42 Brno
A21: Datum vyplnění: | C21: ='Identifikační údaje'!B5 -> 00:00:00
A23: =CONCATENATE("REKAPITULACE DODÁVEK A PRACÍ OBJEKTU ",'Rekapitulace stavby'!I57) -> REKAPITULACE DODÁVEK A PRACÍ OBJEKTU SO 03 - Stavebně - architektonická část
A25: P.č. | B25: Číslo položky | C25: Název položky | D25: Kč bez DPH
A27: Díl: | B27: =B80 -> 3 | C27: =C80 -> Svislé a kompletní konstrukce | G27: =G80 -> 0
A28: Díl: | B28: =B94 -> 43 | C28: =C94 -> Schodiště | G28: =G94 -> 0
A29: Díl: | B29: =B102 -> 61 | C29: =C102 -> Upravy povrchů vnitřní | G29: =G102 -> 0
A30: Díl: | B30: =B114 -> 95 | C30: =C114 -> Dokončovací kce na pozem.stav. | G30: =G114 -> 0
A31: Díl: | B31: =B120 -> 96 | C31: =C120 -> Bourání konstrukcí | G31: =G120 -> 0
A32: Díl: | B32: =B202 -> 99 | C32: =C202 -> Staveništní přesun hmot | G32: =G202 -> 0
A33: Díl: | B33: =B204 -> 766 | C33: =C204 -> Konstrukce truhlářské | G33: =G204 -> 0
A34: Díl: | B34: =B212 -> 767 | C34: =C212 -> Konstrukce zámečnické | G34: =G212 -> 0
A35: Díl: | B35: =B253 -> 771 | C35: =C253 -> Kamenné dlažby | G35: =G253 -> 0
A36: Díl: | B36: =B279 -> 775 | C36: =C279 -> Podlahy vlysové a parketové | G36: =G279 -> 0
A37: Díl: | B37: =B282 -> 776 | C37: =C282 -> Podlahy povlakové | G37: =G282 -> 0
A38: Díl: | B38: =B285 -> 782 | C38: =C285 -> Konstrukce z přírodního kamene | G38: =G285 -> 0
A39: Díl: | B39: =B303 -> 784 | C39: =C303 -> Malby | G39: =G303 -> 0
A41: =CONCATENATE("CELKEM ZA OBJEKT ",'Rekapitulace stavby'!I57, " v Kč bez DPH") -> CELKEM ZA OBJEKT SO 03 - Stavebně - architektonická část v Kč bez DPH | D41: =SUM(G27:G40) -> 0
A78: P.č. | B78: Číslo položky | C78: Název položky | D78: MJ | E78: množství | F78: cena / MJ | G78: celkem
B79: Ceník, kapitola | C79: Poznámka uchazeče
A80: Díl: | B80: 3 | C80: Svislé a kompletní konstrukce | G80: =SUBTOTAL(9,G81:G93) -> 0 | AB80: POL | AJ80: 21
A81: =1 -> 1 | B81: 317001 | C81: Překlad z 4x I 140 dl.1100 mm vč.plentování cihlami a rabicem | D81: ka | E81: 1 | G81: =E81*F81 -> 0
C82: suterén:1 | E82: 1
A83: =A81+1 -> 2 | B83: 317002 | C83: Překlad z 2x I 220 dl.4200 mm vč.plentování cihlami a rabicem | D83: ka | E83: 1 | G83: =E83*F83 -> 0
C84: nad schodištěm:1 | E84: 1
A85: =A83+1 -> 3 | B85: 317003 | C85: Překlad z 2x I 220 dl.1200 mm vč.plentování cihlami a rabicem | D85: ka | E85: 1 | G85: =E85*F85 -> 0 | Z85: 1
C86: nad schodištěm:1 | E86: 1 | AB86: POL | AJ86: 21
A87: =A85+1 -> 4 | B87: 317004 | C87: Překlad z 2x I 140 dl.1600 mm vč.plentování cihlami a rabicem | D87: ka | E87: 1 | G87: =E87*F87 -> 0
C88: nad okny vrátnice:1 | E88: 1
A89: =A87+1 -> 5 | B89: 317005 | C89: Překlad z 2x I 100 dl.1600 mm vč.plentování cihlami a rabicem | D89: ka | E89: 1 | G89: =E89*F89 -> 0 | AB89: POL | AJ89: 21
C90: nad okny vrátnice:1 | E90: 1
A91: =A89+1 -> 6 | B91: 342 26-2 | C91: Příčka sádrokart. dvoj. oc. kce, 2x opl. tl.125 mm desky protipožární tl. EI45-DP1 | D91: m2 | E91: 18.33 | G91: =E91*F91 -> 0
C92: ;vč.povrchové úpravy | E92: 0
C93: mezipatro:(1,72+2,98)*3,90 | E93: 18.33
A94: Díl: | B94: 43 | C94: Schodiště | G94: =SUBTOTAL(9,G95:G101) -> 0
A95: =A91+1 -> 7 | B95: 430a Kp/2 | C95: Stávající kamenné schodiště - odstranění lepidel, vytmelení, přebroušení, naimpregnování ;vč.teracového soklu v=300 mm | D95: m | E95: 88.44 | G95: =E95*F95 -> 0
C96: přímé schodišťové stupně:66*1,34 | E96: 88.44
A97: =A95+1 -> 8 | B97: 430b Kp/2 | C97: Stávající kamenné schodiště - odstranění lepidel, vytmelení, přebroušení, naimpregnování | D97: m | E97: 148.74 | G97: =E97*F97 -> 0
C98: ;vč.teracového soklu v=300 mm
C99: kosé schodišťové stupně:111*1,34 | E99: 148.74
A100: =A97+1 -> 9 | B100: 430 Kp/ | C100: Stávající kamenné podesty - odstranění lepidel, vytmelení, přebroušení, naimpregnování | D100: m2 | E100: 62.4 | G100: =E100*F100 -> 0 | Z100: 0
C101: ;vč.teracového soklu v=300 mm
A102: Díl: | B102: 61 | C102: Upravy povrchů vnitřní | G102: =SUBTOTAL(9,G103:G113) -> 0
A103: =A100+1 -> 10 | B103: 612 47-3182.R00 | C103: Omítka vnitřního zdiva ze suché směsi, štuková | D103: m2 | E103: 69.836 | G103: =E103*F103 -> 0
C104: zazdění instal.průduchů:12,915/0,30 | E104: 43.05 | Z104: 0
C105: zazdívky:4,228*2+18,33 | E105: 26.786
A106: =A103+1 -> 11 | B106: 611 10-0013.RAA | C106: Oprava omítek stropů vnitřních vápenocem.štukových oprava z 50 %, malba dvojnásobná otěruvzdorná bílá vč. penetrace | D106: m2 | E106: 75.48 | G106: =E106*F106 -> 0 | AB106: POL | AJ106: 21
C107: 3,40*3,70*6 | E107: 75.48
A108: =A106+1 -> 12 | B108: 612 10-0033.RAA | C108: Oprava omítek stěn vnitřních vápenocem. štukových oprava z 50 %, malba dvojnásobná otěruvzdorná bílá vč. penetrace | D108: m2 | E108: 476 | G108: =E108*F108 -> 0
C109: (4,80+3,70)*2*3,50*8 | E109: 476 | Z109: 0
A110: =A108+1 -> 13 | B110: 61201 A2 | C110: Sádrokartonový podhled protipožární REI 30DP1, vč.potřebného lešení a povrchové úpravy | D110: m2 | E110: 22.1 | G110: =E110*F110 -> 0 | Z110: 1
C111: 5.np:22,10 | E111: 22.1 | Z111: 2
A112: =A110+1 -> 14 | B112: 61201 A | C112: Sádrokartonový podhled, vč.potřebného lešení a povrchové úpravy | D112: m2 | E112: 26.56 | G112: =E112*F112 -> 0 | AB112: POL | AJ112: 21
C113: 10,50+10,30+5,76 | E113: 26.56
A114: Díl: | B114: 95 | C114: Dokončovací kce na pozem.stav. | G114: =SUBTOTAL(9,G115:G119) -> 0
A115: =A112+1 -> 15 | B115: 99001 | C115: HZS - nezměřitelné práce | D115: hod | E115: 120 | G115: =E115*F115 -> 0
A116: =A115+1 -> 16 | B116: 955 | C116: Doplnění stropu venkovní šachty z 2xI160 dl.1805 mm a PZD desek 80/29/6,5 mm | D116: m2 | E116: 2.13 | G116: =E116*F116 -> 0
A117: =A116+1 -> 17 | B117: 950 | C117: Uzavření rekonstruovaného prostoru proti šíření prašnosti | D117: kpl. | E117: 1 | G117: =E117*F117 -> 0 | Z117: 0
A118: =A117+1 -> 18 | B118: 952 90-1111.R00 | C118: Vyčištění budov o výšce podlaží do 4 m | D118: m2 | E118: 147 | G118: =E118*F118 -> 0 | AB118: POL | AJ118: 21
C119: 7*21,00 | E119: 147
A120: Díl: | B120: 96 | C120: Bourání konstrukcí | G120: =SUBTOTAL(9,G121:G201) -> 0 | Z120: 0
A121: =A118+1 -> 19 | B121: 963 01-251 O | C121: Bourání otvoru pro odvětrání CHÚC | D121: m2 | E121: 1.44 | G121: =E121*F121 -> 0
C122: 6.patro:1,20*1,20 | E122: 1.44
A123: =A121+1 -> 20 | B123: 971 03-365 A | C123: Vybourání otv. zeď cihel., MVC | D123: m3 | E123: 1.08 | G123: =E123*F123 -> 0
C124: ;A | E124: 0 | Z124: 0
C125: suterén:0,90*2,00*0,60 | E125: 1.08 | AB125: SPX
A126: =A123+1 -> 21 | B126: 962 03-1132.R00 | C126: Bourání příček cihelných tl. 10 cm | D126: m2 | E126: 4.6221 | G126: =E126*F126 -> 0
C127: ;A | E127: 0
C128: suterén:(1,05+0,64)*2,735 | E128: 4.6221
A129: =A126+1 -> 22 | B129: 968 06-1125.R00 | C129: Vyvěšení dřevěných dveřních křídel pl. do 2 m2 | D129: kus | E129: 16 | G129: =E129*F129 -> 0 | Z129: 0
C130: ;C | E130: 0 | AB130: POL | AJ130: 21
C131: suterén:1 | E131: 1
C132: přízemí:2 | E132: 2
C133: mezioatro:3 | E133: 3
C134: 1.patro:2 | E134: 2
C135: 2.patro:2 | E135: 2
C136: 3.patro:2 | E136: 2
C137: 4.patro:2 | E137: 2
C138: 5.patro:2 | E138: 2 | Z138: 0
A139: =A129+1 -> 23 | B139: 968 06-245 | C139: Vybourání dveřních zárubní pl. do 2 m2 | D139: m2 | E139: 25.9745 | G139: =E139*F139 -> 0
C140: ;C | E140: 0
C141: suterén:0,80*2,00*1 | E141: 1.6 | Z141: 0
C142: přízemí:0,95*2,00+1,00*2,00 | E142: 3.9
C143: mezipatro:0,85*1,97+1,40*2,00 | E143: 4.4745
C144: 1.patro:1,40*2,00 | E144: 2.8
C145: 2.patro:1,40*2,00 | E145: 2.8
C146: 3.patro:1,40*2,00 | E146: 2.8
C147: 4.patro:1,40*2,00 | E147: 2.8
C148: 5.patro:1,00*2,00*1,20*2,00 | E148: 4.8
A149: =A139+1 -> 24 | B149: 968 06 | C149: Vybourání dveří Zpd/6 a Zpd/7 a jejich uskladnění | D149: ks | E149: 2 | G149: =E149*F149 -> 0
A150: =A149+1 -> 25 | B150: 776 51 D | C150: Odstranění PVC a koberců | D150: m2 | E150: 316 | G150: =E150*F150 -> 0
C151: ;PVC 2x | E151: 0 | Z151: 0
C152: prízemí:(10,50+10,30+20,10)*2 | E152: 81.8 | AB152: SPX
C153: mezipatro:17,90*2 | E153: 35.8 | AB153: POL | AJ153: 21
C154: 1.patro:17,90*2 | E154: 35.8
C155: 2.patro:19,10*2 | E155: 38.2
C156: 3.patro:21,00*2 | E156: 42
C157: 4.patro:19,10*2 | E157: 38.2
C158: 5.patro:22,10*2 | E158: 44.2
A159: =A150+1 -> 26 | B159: 96956 G | C159: Odstranění podhledů vč.podkladního roštu | D159: n2 | E159: 10.3 | G159: =E159*F159 -> 0
C160: ;G | E160: 0 | Z160: 0
C161: přízemí:10,30 | E161: 10.3 | AB161: SPX
A162: =A159+1 -> 27 | B162: 965 02-4121.R00 | C162: Bourání kamenných podlah z desek plochy do 1 m2 | D162: m2 | E162: 9.7864 | G162: =E162*F162 -> 0 | AB162: POL | AJ162: 21
C163: ;Kp/m | E163: 0
C164: ;přízemí | E164: 0
C165: Kp/m1:0,665*0,975*4 | E165: 2.5935
C166: Kp/m2:1,35*1,33*1 | E166: 1.7955
C167: Kp/m3:0,52*1,57*1 | E167: 0.8164
C168: Kp/m4:1,40*0,255*1 | E168: 0.357
C169: ;mezipatro | E169: 0
C170: Kp/m5:0,40*1,30*4 | E170: 2.08
C171: ;3.patro | E171: 0
C172: Kp/m6:1,60*0,67*1 | E172: 1.072
C173: ;4.patro | E173: 0
C174: Kp/m6:1,60*0,67*1 | E174: 1.072
A175: =A162+1 -> 28 | B175: 776 20-082 | C175: Odstranění PVC podlah lepených .- ze schodišť | D175: m | E175: 466.32 | G175: =E175*F175 -> 0
C176: 174*1,34*2 | E176: 466.32
A177: =A175+1 -> 29 | B177: 972 05-4 O | C177: Vybourání otvoru ve stropě | D177: kus | E177: 6 | G177: =E177*F177 -> 0
C178: mezipatro:1 | E178: 1
C179: 1.patro:1 | E179: 1
C180: 2.patro:1 | E180: 1
C181: 3.patro:1 | E181: 1
C182: 4.patro:1 | E182: 1
C183: 5.patro:1 | E183: 1
A184: =A177+1 -> 30 | B184: 9608 EL | C184: Vybourání el. rozvaděče | D184: ks | E184: 6 | G184: =E184*F184 -> 0
C185: mezipatro:1 | E185: 1
C186: 1.patro:1 | E186: 1
C187: 2.patro:1 | E187: 1
C188: 3.patro:1 | E188: 1
C189: 4.patro:1 | E189: 1
C190: 5.patro:1 | E190: 1
A191: =A184+1 -> 31 | B191: 979 01-1211.R00 | C191: Svislá doprava suti a vybour. hmot za 2.NP nošením | D191: t | E191: 29.8 | G191: =E191*F191 -> 0
A192: =A191+1 -> 32 | B192: 979 01-1219.R00 | C192: Přípl.k svislé dopr.suti za každé další NP nošením | D192: t | E192: =3*29.8 -> 89.4 | G192: =E192*F192 -> 0 | AB192: SPX
C193: 3*29,8 | E193: 107.7 | AB193: POL_NEZ | AC193: 1 | AJ193: 21
A194: =A192+1 -> 33 | B194: 979 08-2111.R00 | C194: Vnitrostaveništní doprava suti do 10 m | D194: t | E194: 29.8 | G194: =E194*F194 -> 0 | Z194: 0
A195: =A194+1 -> 34 | B195: 979 08-2121.R00 | C195: Příplatek k vnitrost. dopravě suti za dalších 5 m | D195: t | E195: =2*29.8 -> 59.6 | G195: =E195*F195 -> 0 | AB195: POL | AJ195: 21
C196: 2*29,8 | E196: 71.8
A197: =A195+1 -> 35 | B197: 979 08-1111.R00 | C197: Odvoz suti a vybour. hmot na skládku do 1 km | D197: t | E197: 29.8 | G197: =E197*F197 -> 0 | AB197: POL | AJ197: 21
A198: =A197+1 -> 36 | B198: 979 08-1121.R00 | C198: Příplatek k odvozu za každý další 1 km | D198: t | E198: =19*29.8 -> 566.2 | G198: =E198*F198 -> 0 | AB198: POL | AJ198: 21
C199: 19*29,8 | E199: =19*29.8 -> 566.2
A200: =A198+1 -> 37 | B200: 979 093111 | C200: Uložení suti na skládku bez zhuznění | D200: t | E200: 29.8 | G200: =E200*F200 -> 0 | Z200: 0
A201: =A200+1 -> 38 | B201: 979 99-999 | C201: Poplatek za skladku | D201: t | E201: 29.8 | G201: =E201*F201 -> 0 | Z201: 1
A202: Díl: | B202: 99 | C202: Staveništní přesun hmot | G202: =SUBTOTAL(9,G203) -> 0 | Z202: 0
A203: =A201+1 -> 39 | B203: 999 28-1112.R00 | C203: Přesun hmot pro opravy a údržbu do výšky 36 m | D203: t | E203: 27.6 | G203: =E203*F203 -> 0 | AB203: POL | AJ203: 21
A204: Díl: | B204: 766 | C204: Konstrukce truhlářské | G204: =SUBTOTAL(9,G205:G211) -> 0 | AB204: POL_NEZ | AC204: 1 | AJ204: 21
A205: =A203+1 -> 40 | B205: 766 Tpo/2a | C205: Okenní sestava 1350/2700 mm repase - očištění, obroušení, nový nátěr | D205: ks | E205: 1 | G205: =E205*F205 -> 0
C206: oprava a doplnění kování:1 | E206: 1
A207: =A205+1 -> 41 | B207: 766 Tpd/1 | C207: Repase stávajících dveří dýhovaných vč.zárubně 850/1970mm , překování otevíranosti, PBŘ úpravy | D207: ks | E207: 1 | G207: =E207*F207 -> 0 | AB207: DIL
A208: =A207+1 -> 42 | B208: 766 Tpd/9d | C208: Repase stávajících dveří vč.zárubně 850/2000mm | D208: ks | E208: 1 | G208: =E208*F208 -> 0 | Z208: 0
A209: =A208+1 -> 43 | B209: 766 Tn/11 | C209: Nábytek vrátnice - viz výkres D.1.1.c.1 | D209: ks | E209: 1 | G209: =E209*F209 -> 0 | AB209: SPX
B210: poznámka 1 | C210: Truhlářské konstrukce jsou kompletní výrobky dle popisu v tabulkách
B211: poznámka 2 | C211: Truhlářské výrobky jsou vč.přesunu hmot
A212: Díl: | B212: 767 | C212: Konstrukce zámečnické | G212: =SUBTOTAL(9,G213:G252) -> 0
A213: =A209+1 -> 44 | B213: 767 Zp/2 | C213: Restaurátorská obnova zábradlí hlavního schodiště - odstranění stávajícího nátěru, očištění, tmelení, nový nátěr, madlo rovněž restaurátorská obnova, odstranění stávajícího nátěru, očištění, tmelení, klavírní černý lak | D213: m | E213: 36.14 | G213: =E213*F213 -> 0
A214: =A213+1 -> 45 | B214: 767 Zp/4b | C214: Restaurátorská obnova zábradlí schodiště před oknem - odstranění stávajícího nátěru, očištění, tmelení, nový nátěr, madlo rovněž restaurátorská obnova, odstranění stávajícího nátěru, očištění, tmelení, klavírní černý lak | D214: m | E214: 6.2 | G214: 0 | Z214: 1
A215: =A214+1 -> 46 | B215: 767 Zp/4a | C215: Restaurátorská obnova zábradlí schodiště u výtahové šachty - odstranění stávajícího nátěru, očištění, tmelení, nový nátěr, madlo rovněž restaurátorská obnova, odstranění stávajícího nátěru, očištění, tmelení, klavírní černý lak | D215: m | E215: 5.2 | G215: 0
A216: =A215+1 -> 47 | B216: 767 Zp/4b | C216: Restaurátorská obnova zábradlí schodiště před oknem - odstranění stávajícího nátěru, očištění, tmelení, nový nátěr, madlo rovněž restaurátorská obnova, odstranění stávajícího nátěru, očištění, tmelení, klavírní černý lak | D216: m | E216: 2.16 | G216: 0
A217: =A216+1 -> 48 | B217: 767 Zp/7a | C217: Okenní mříže v přízemí - očištění, zrestaurování, nový nátěr, vč.doplnění pošk.prvků, 1350x2700 | D217: ks | E217: 1 | G217: 0 | AB217: POL | AJ217: 21
A218: 49 | B218: 767 Zp/7b | C218: Okenní mříže v přízemí - očištění, zrestaurování, nový nátěr, vč.doplnění pošk.prvků, 1350x540 | D218: ks | E218: 2 | G218: 0
A219: 50 | B219: 767 Zp/10 | C219: Dvířka hydrantu na schodišti - očištění, zrestaurování, nový nátěr, | D219: ks | E219: 7 | G219: 0 | Z219: 0
A220: 51 | B220: 767 Zp/20 | C220: Čistící zóna | D220: ks | E220: 2 | G220: 0 | Z220: 1
A221: 52 | B221: 767 Zp/21 | C221: perforovaná mříž 1350 x x540 mm | D221: ks | E221: 1 | G221: 0 | AB221: POL | AJ221: 21
A222: 53 | B222: 767b Zpo/1d | C222: Okno schodišť.2x1000/16500 mm - očištění, zrestaurování, nový nátěr, | D222: ks | E222: 1 | G222: 0
A223: 54 | B223: 767a Zpo/1c | C223: Okno schodišť.2x1000/5500 mm - očištění, zrestaurování, nový nátěr, | D223: ks | E223: 1 | G223: 0 | Z223: 0
A224: =A223+1 -> 55 | B224: 767 Zpd/3 | C224: Dveře vstupní proskl.2kř 1700/2130 mm - očištění, zrestaurování, nový nátěr, | D224: ks | E224: 1 | G224: =E224*F224 -> 0 | AB224: POL | AJ224: 21
A225: =A224+1 -> 56 | B225: 767 Zpd/5 | C225: Dveře do schod.proskl.2kř 1390/2130 mm - repase očištění, obrouš.nový nátěr, nové přesklení | D225: ks | E225: 2 | G225: 0
C226: vč.samozavírače:5 | E226: 5
A227: =A225+1 -> 57 | B227: 767 Zno/1R | C227: Roleta v okně.do vrátnice 2200/1000 mm protipožární EI30DP1-C3-Sm | D227: ks | E227: 1 | G227: 0 | Z227: 0
A228: =A227+1 -> 58 | B228: 767 Zno/2 | C228: Okno ocel.do vrátnice 2200/1000 mm - nové | D228: ks | E228: 1 | G228: 0 | Z228: 1
A229: =A228+1 -> 59 | B229: 767 Zno/4 | C229: Okno ocel.do vrátnice 1190/980 mm - nové | D229: ks | E229: 1 | G229: 0 | AB229: POL | AJ229: 21
A230: =A229+1 -> 60 | B230: 767 Zno/3 | C230: Okno fixni 1110/1750 mm - nové | D230: ks | E230: 1 | G230: 0
A231: =A230+1 -> 61 | B231: 767 Zn/3 | C231: mříž do chodníku 1550/1050 mm - nové | D231: ks | E231: 1 | G231: =E231*F231 -> 0 | Z231: 1
A232: =A231+1 -> 62 | B232: 767 Zn/5 | C232: zábradlí suterénu | D232: ks | E232: 1 | G232: 0 | AB232: POL | AJ232: 21
A233: 63 | B233: 767 Zn/6 | C233: protipožární dvířka na výtahovém rozvaděči 350/2100 | D233: ks | E233: 1 | G233: 0
A234: 64 | B234: 767 Zn/7 | C234: žaluzie kryjící VZT výustku | D234: ks | E234: 1 | G234: 0 | Z234: 0
A235: 65 | B235: 767 Zn/9 | C235: stupadla - ocelové úchyty v suterénu | D235: ks | E235: 8 | G235: 0 | Z235: 1
A236: =A235+1 -> 66 | B236: 767 Zn/19 | C236: protidešťová mřížka 710x1350 | D236: ks | E236: 1 | G236: 0
A237: 67 | B237: 767 Zn/20 | C237: popisky pater z nerezového plechu tl. 15 mm | D237: ks | E237: 7 | G237: 0 | Z237: 0
A238: 68 | B238: 767 Zn/21 | C238: zábradlí do suterénu - nové | D238: ks | E238: 1 | G238: 0 | Z238: 1
A239: 69 | B239: 767 Zn/24 | C239: krytí kondenzačních jednotek včetně betonového základu - nové | D239: ks | E239: 1 | G239: 0 | AB239: POL | AJ239: 21
A240: 70 | B240: 767 Zn/25 | C240: stěna z tahokovu, viz výkres D 1.1.b24 - nové | D240: ks | E240: 1 | G240: 0
A241: 71 | B241: 767 Zn/26 | C241: schůdky - přechod přes VZT k vodoměru v suterénu - nové | D241: ks | E241: 1 | G241: 0 | Z241: 0
A242: 72 | B242: 767 Znd/1 | C242: Dveře do schod. 1kř.proskl. s mříží 815/2000mm vč.zárubně nové, pož.EI30-DP1-C3-Sm | D242: ks | E242: 2 | G242: 0
A243: =A242+1 -> 73 | B243: 767 Zpd/11 | C243: Dveře do schodiště 1kř.proskl. s mříží 815/1930mm vyjmutí a uložení k druhotnému použití | D243: ks | E243: 2 | G243: 0
A244: =A243+1 -> 74 | B244: 767 Zn/30 | C244: SDK dvířka s pož.odolností EI 30 DP1 800/1000 mm kouřotěsné (S200) | D244: ks | E244: 7 | G244: =E244*F244 -> 0
A245: =A244+1 -> 75 | B245: 767 Znd/2 | C245: Dveře do schod. 2kř.proskl. s mříží 1470/2000mm vč.zárubně nové, pož.EI30-DP1-C3-Sm včetně dopojení elektromechanického zámku, jehož dodávka je součástí dodávky profese slaboproud a protažení přípojného kabelu křídlem dveří | D245: ks | E245: 5 | G245: 0 | AB245: SPX
C246: panikové kování, samozavírač:5 | E246: 5
... 61 more rows

Sheet 06_SO O3 - Silnoproud
A1: =CONCATENATE('Rekapitulace stavby'!C58,"_",'Rekapitulace stavby'!I58) -> 06_SO 03 - Silnoproudá elektroinstalace
A3: SPECIFIKACE DODÁVEK A PRACÍ
A4: Název akce:
A5: ='Identifikační údaje'!B1 -> ČRo Brno – III. etapa rekonstrukce budovy Beethovenova 25/4
A7: Zadavatel: | C7: ='Identifikační údaje'!B7 -> Český rozhlas
B8: IČ: | C8: ='Identifikační údaje'!B9 -> 45245053
B9: DIČ: | C9: ='Identifikační údaje'!B10 -> CZ45245053
A11: Projektant: | C11: ='Identifikační údaje'!B12 -> Ing. arch. Klement Miloš
B12: IČ: | C12: ='Identifikační údaje'!B14 -> 15188736
B13: DIČ: | C13: ='Identifikační údaje'!B15 -> CZ6101021344
A15: Uchazeč: | C15: ='Identifikační údaje'!E19 -> , ,
B16: IČ: | C16: ='Identifikační údaje'!B23 -> 0
B17: DIČ: | C17: ='Identifikační údaje'!B24 -> 0
A19: Místo stavby: | C19: ='Identifikační údaje'!B3 -> Budova Českého rozhlasu Brno na adrese Beethovenova 25/4, 657 42 Brno
A21: Datum: | C21: ='Identifikační údaje'!B5 -> 00:00:00
A23: =CONCATENATE("REKAPITULACE DODÁVEK A PRACÍ OBJEKTU ",'Rekapitulace stavby'!I58) -> REKAPITULACE DODÁVEK A PRACÍ OBJEKTU SO 03 - Silnoproudá elektroinstalace
A25: P.č. | B25: Ozn. | D25: Materiál celkem | F25: Montáž celkem | H25: M+M celkem
A27: =B41 -> A. | B27: =C41 -> Svítidla a příslušenství | D27: =F41 -> 0 | F27: =H41 -> 0 | H27: =D27+F27 -> 0
A28: =B51 -> B. | B28: =C51 -> Spínače, zásuvky a ostatní přístroje | D28: =F51 -> 0 | F28: =H51 -> 0 | H28: 0
A29: =B63 -> C. | B29: =C63 -> Instalační, úložný a ochranný materiál | D29: =F63 -> 0 | F29: =H63 -> 0 | H29: 0
A30: =B70 -> D. | B30: =C70 -> Kabely a vodiče | D30: =F70 -> 0 | F30: =H70 -> 0 | H30: 0
A31: =B80 -> E. | B31: =C80 -> Pospojování, uzemnění | D31: =F80 -> 0 | F31: =H80 -> 0 | H31: 0
A32: =B84 -> F. | B32: =C84 -> Rozvaděče | D32: =F84 -> 0 | F32: =H84 -> 0 | H32: 0
A33: =B88 -> G. | B33: =C88 -> Ostatní | D33: =F88 -> 0 | F33: =H88 -> 0 | H33: 0
A35: =CONCATENATE("CELKEM ZA OBJEKT ",'Rekapitulace stavby'!I58, " v Kč bez DPH") -> CELKEM ZA OBJEKT SO 03 - Silnoproudá elektroinstalace v Kč bez DPH | H35: =SUBTOTAL(9,H27:I33) -> 0
A37: Textová, výkresová i tabulková část projektové dokumentace tvoří jeden vzájemně se doplňující a provázaný celek. Jednotliví účastníci výběrového řízení se musí seznámit s projektojektovou dokumentací v návaznosti na soupis prací a na základě těchto informací části díla nacenit. Dále je potřeba při stanovení ceny dle vykázané výměry započítat všechny předpokládané doplňkové prvky a činnosti s touto položkou související tak, aby cena byla kompletní a prvek funkční.
A38: 1
F39: Materiál | H39: Montáž
A40: poř.č. | B40: položka | C40: popis položky | D40: MJ | E40: množství | F40: jedn.cena | G40: celkem [Kč] | H40: jedn.cena | I40: celkem [Kč]
B41: A. | C41: Svítidla a příslušenství | F41: =SUBTOTAL(9,G43:G49) -> 0 | H41: =SUBTOTAL(9,I43:I49) -> 0
C42: (komplet, včetně zdrojů, závěsů, pomocného materiálu, osazení zapojení, vyzkoušení apod.)
A43: 1 | C43: svítidlo typ A6 - Svítidlo stropní přisazené, bílá barva, difuzor opál, odsazený, Ø 130 mm, v=100 mm, LED 15W, 3000 K, 1280 lm, IP40 | D43: ks | E43: 7 | G43: =E43*F43 -> 0 | I43: =E43*H43 -> 0
A44: =A43+1 -> 2 | C44: svítidlo typ A7 - Svítidlo přisazené, bílá barva, difuzor opál, 80x80x1480 mm, pro zářivku 2x49W, G5, EP | D44: ks | E44: 1 | G44: =E44*F44 -> 0 | I44: 0
A45: 3 | C45: svítidlo typ C3 - Svítidlo vestavné do podhledu SDK, bílá barva odsazený opálový difuzor, Ø 175 mm, vestavná hloubka 70 mm, LED 20W, 3000 K, 1700 lm, IP54 | D45: ks | E45: 5 | G45: 0 | I45: 0
A46: 4 | C46: svítidlo typ D1 - Svítidlo nástěnné, bílá barva, difuzor mikroprisma, velikost 270x370 mm, vyložení 160 mm, LED přímo - nepřímo svítící, 20W, 3000 K, 3000 lm | D46: ks | E46: 28 | G46: 0 | I46: 0
A47: 5 | C47: svítidlo typ D12 - Svítidlo přisazené, bílá barva + sklo mat, 250x250x95 mm, 2xE27, 2x12W max | D47: ks | E47: 1 | G47: 0 | I47: 0
A48: 6 | C48: svítidlo typ D13 - Svítidlo přisazené, bílá barva, difuzor opál, 80x30x600 mm, LED 20W, 3000 K, 1700 lm | D48: ks | E48: 1 | G48: 0 | I48: 0
A49: 7 | C49: NOUZOVÉ OSVĚTLENÍ s připojením k CBS Inotec | D49: ks | E49: 25 | G49: 0 | I49: 0
B51: B. | C51: Spínače, zásuvky a ostatní přístroje | F51: =SUBTOTAL(9,G54:G61) -> 0 | H51: =SUBTOTAL(9,I54:I61) -> 0
C52: (komplet, včetně příslušenství, pomocného materiálu, osazení, zapojení, vyzkoušení apod.)
C53: Návazně na předchozí etapy rekonstrukce budou osaztovány výrobky z řady ABB Time
A54: =A49+1 -> 8 | C54: Domovní spínač řazení 1, komplet | D54: ks | E54: 1 | G54: =E54*F54 -> 0 | I54: =E54*H54 -> 0
A55: 9 | C55: Domovní spínač řazení 6, komplet | D55: ks | E55: 16 | G55: 0 | I55: 0
A56: 10 | C56: Domovní spínač řazení 7, komplet | D56: ks | E56: 3 | G56: 0 | I56: 0
A57: 11 | C57: Tlačítkový ovlada 1x přepínací kontakt se sklem - modrá barva - požární větrání CHUC | D57: ks | E57: 4 | G57: 0 | I57: 0
A58: 12 | C58: Domovní zásuvka 230V 16A,napájení z trafa komplet | D58: ks | E58: 1 | G58: 0 | I58: 0
A59: 13 | C59: Napojení požárního ventilátoru 400V, dle montážního návodu | D59: ks | E59: 1 | G59: 0 | I59: 0
A60: 14 | C60: Napojení požárního otevírání světlíku přes odbočnou krabici s funkční schopností při požáru, dle montážního návodu | D60: ks | E60: 1 | G60: 0 | I60: 0
A61: 15 | C61: Napojení rozvaděče výtahu RV1, dle montážního návodu | D61: ks | E61: 1 | G61: 0 | I61: 0
B63: C. | C63: Instalační, úložný a ochranný materiál | F63: =SUBTOTAL(9,G64:G68) -> 0 | H63: =SUBTOTAL(9,I63:I68) -> 0
C64: (komplet, včetně příslušenství, pomocného materiálu, výkopu, záhozu výkopu, vytyčení trasy, osazení, zapojení, vyzkoušení apod.)
A65: =A61+1 -> 16 | C65: Krabice přístrojová | D65: ks | E65: 21 | G65: =E65*F65 -> 0 | I65: =E65*H65 -> 0
A66: =A65+1 -> 17 | C66: Krabice odbočná včetně wago svorek | D66: ks | E66: 10 | G66: =E66*F66 -> 0 | I66: =E66*H66 -> 0
A67: =A66+1 -> 18 | C67: Protipožární ucpávka pro průchod kabelů stěnou nebo stropem, požární odolnost dle požadavku specialisty PO, materiál: var.- požárně ochranná malta, var.-minerální vlna + desky z minerální vlny + požárně ochranná stěrková hmota, var.- protipožární polštáře | D67: m2 | E67: 0.5 | G67: =E67*F67 -> 0 | I67: =E67*H67 -> 0
A68: =A67+1 -> 19 | C68: Krabice odbočná včetně wago svorek s funkční schopností při požáru | D68: ks | E68: 25 | G68: =E68*F68 -> 0 | I68: =E68*H68 -> 0
B70: D. | C70: Kabely a vodiče | F70: =SUBTOTAL(9,G71:G78) -> 0 | H70: =SUBTOTAL(9,I70:I78) -> 0
C71: (komplet, včetně vyhotovení drážky, zapravení drážky, vytyčení trasy, pomocného materiálu, příchytek, spojek, odlehčovacích oblouků, zapojení, vyzkoušení apod.)
A72: =A68+1 -> 20 | C72: Bezhalogenový kabel -J 3x1,5 B2CAS1D0 | D72: m | E72: 380 | G72: =E72*F72 -> 0 | I72: =E72*H72 -> 0
A73: =A72+1 -> 21 | C73: Bezhalogenový kabel -J 3x2,5 B2CAS1D0 | D73: m | E73: 85 | G73: 0 | I73: 0
A74: 22 | C74: Bezhalogenový kabel -O 3x1,5 B2CAS1D0 | D74: m | E74: 127 | G74: 0 | I74: 0
A75: 23 | C75: Bezhalogenový kabel -J 5x6 B2CAS1D0 | D75: m | E75: 17 | G75: 0 | I75: 0
A76: 24 | C76: Kabel s funkční schopností P30-R -J 5x1,5 B2CAS1D0 | D76: m | E76: 51 | G76: 0 | I76: 0
A77: 25 | C77: Kabel s funkční schopností P30-R -O 3x1,5 B2CAS1D0 | D77: m | E77: 42 | G77: 0 | I77: 0
A78: 26 | C78: Rozvody pro NO kabel s funkční schopností P60R -O 3x1,5 B2CAS1D0 | D78: m | E78: 102 | G78: 0 | I78: 0
B80: E. | C80: Pospojování, uzemnění | F80: =SUBTOTAL(9,G81:G82) -> 0 | H80: =SUBTOTAL(9,I80:I82) -> 0
C81: (komplet, včetně příslušenství, svorek, pomocného materiálu, osazení, zapojení, vyzkoušení apod.)
A82: =A78+1 -> 27 | C82: Vodič CYA16 žlutozelený včetně svorek - hlavní pospojení | D82: m | E82: 6 | G82: =E82*F82 -> 0 | I82: =E82*H82 -> 0
B84: F. | C84: Rozvaděče | F84: =SUBTOTAL(9,G85:G86) -> 0 | H84: =SUBTOTAL(9,I84:I86) -> 0
C85: (komplet, včetně příslušenství, svorek, pomocného materiálu, osazení, zapojení, vyzkoušení apod.)
A86: =A82+1 -> 28 | C86: Úpravy ve stávajícím požárním rozvaděči UPFD | D86: ks | E86: 1 | G86: =E86*F86 -> 0 | I86: =E86*H86 -> 0
B88: G. | C88: Ostatní | F88: =SUBTOTAL(9,G89:G95) -> 0 | H88: =SUBTOTAL(9,I88:I95) -> 0
A89: =A86+1 -> 29 | C89: Výchozí revize | D89: hod | E89: 10 | G89: =E89*F89 -> 0 | I89: =E89*H89 -> 0
A90: =A89+1 -> 30 | C90: Demontáže včetně likvidace odpadu | D90: hod | E90: 30 | G90: =E90*F90 -> 0 | I90: 0
A91: 31 | C91: Stavební přípomoce | D91: kpl | E91: 1 | F91: --- | G91: --- | I91: 0
A92: =A91+1 -> 32 | C92: Pomocný a podružný materiál upevňovací | D92: kpl | E92: 1 | G92: =E92*F92 -> 0 | I92: 0
A93: 33 | C93: Zednické výpomoci (PPV) | D93: kpl | E93: 1 | F93: --- | G93: --- | I93: 0
A94: 34 | C94: Doprava materiálu | D94: kpl | E94: 1 | F94: --- | G94: --- | I94: 0
A95: 35 | C95: Zařízení typu UPFD + náhradní zdroj UPS, integrované ve společné skříni, pracující ze spol.sady baterií | D95: ks | E95: 1 | G95: =E95*F95 -> 0 | I95: 0
C96: Specifikace položky:
C97: Skříň distribuce energie pro motory
C98: Modul řízeného nabíječe
C99: 1x EMC filtry
C100: servisní manuální ByPass (pro každý motor zvlášť)
C101: 1x RS232 pro nastavení invertorů
C102: 1x RS232 pro nastavení modulu automatiky monitorování
C103: RS 485 pro velín (MODBUS RTU)
C104: SOUPIS POŽADOVANÝCH VÝSTUPŮ ZE ZDROJE UPFD :
C105: 1) P1 - ventilátor požárního větrání 400V / 6.35kW, doba zálohování (samostatnosti) 30 min
C106: 2) K1 - VZT požární klapka - servopohon - 230V, doba zálohování (samostatnosti) 30 min
C107: 3) K2 - VZT požární klapka - servopohon - 230V, doba zálohování (samostatnosti) 30 min
C108: SOUPIS OVLÁDACÍCH VSTUPŮ DO ZDROJE UPFD :
C109: 1) Signál z EPS - signál: aktivace CHÚC
C110: 2) TOTAL STOP - odstavení zdroje
C112: UPFD má výstupy 400V pro každý motor samostatně a další část UPS 2500W/230V pro klapky a servopohony. Každý motor se bude spouštět samostatným signálem na základě povelů ( bezpotenciálový kontakt z EPS nebo např.tlačítko), což umožňuje řízení a spouštění libovolné kombinace. Různé doby zálohy pro různá zařízení v rozmezí od 15 minut do 45 minut. Motory a ovládání se připojí přímo do UPFD, bez jakýchkoliv přepínacích a jistících prvků. Přepínání mezi sítí a akumulátory je automatické (součást UPFD). Základní signalizace LED. UPFD může být vybaveno Touchscreen.

Sheet 07_SO 03 - VZT
A1: =CONCATENATE('Rekapitulace stavby'!C59,"_",'Rekapitulace stavby'!I59) -> 07_SO 03 - Vzduchotechnika a chlazení
A3: SPECIFIKACE DODÁVEK A PRACÍ
A4: Název akce:
A5: ='Identifikační údaje'!B1 -> ČRo Brno – III. etapa rekonstrukce budovy Beethovenova 25/4
A7: Zadavatel: | C7: ='Identifikační údaje'!E7 -> Český rozhlas, Vinohradská 12, 120 99 Praha 2 | D7: Projektant: | F7: ='Identifikační údaje'!E12 -> Ing. arch. Klement Miloš, Nejedlého 381/19, 638 00 Brno - Lesná
B8: IČ | C8: ='Identifikační údaje'!B9 -> 45245053 | E8: IČ | F8: ='Identifikační údaje'!B14 -> 15188736
B9: DIČ | C9: ='Identifikační údaje'!B10 -> CZ45245053 | E9: DIČ | F9: ='Identifikační údaje'!B15 -> CZ6101021344
A11: Uchazeč: | C11: ='Identifikační údaje'!E19 -> , , | D11: Místo stavby: | F11: ='Identifikační údaje'!B3 -> Budova Českého rozhlasu Brno na adrese Beethovenova 25/4, 657 42 Brno
B12: IČ | C12: ='Identifikační údaje'!B23 -> 0
B13: DIČ | C13: ='Identifikační údaje'!B24 -> 0
A15: Datum: | C15: ='Identifikační údaje'!B5 -> 00:00:00
A17: P.Č. | B17: Č.Z | C17: Popis položky: | D17: Měrná jednotka | F17: Cena | J17: Poznámka
F18: Jednotková | H18: Celkem
D19: - | E19: počet | F19: Dodávka | G19: Montáž | H19: Dodávka | I19: Montáž
F20: [ Kč ] | G20: [ Kč ] | H20: [ Kč ] | I20: [ Kč ]
C21: =CONCATENATE("REKAPITULACE OBJEKTU ",'Rekapitulace stavby'!I59) -> REKAPITULACE OBJEKTU SO 03 - Vzduchotechnika a chlazení
A22: 1 | B22: 1 | C22: =C51 -> Zařízení č.8 - Větrání CHUC B | D22: kpl | E22: 1 | F22: - | G22: - | H22: =H60 -> 0 | I22: =I60 -> 0 | J22: -
A23: 2 | B23: 2.1 | C23: =C70 -> Zařízení č.12 - Úprava stávajícího větrání výměníkové stanice | D23: kpl | E23: 1 | F23: - | G23: - | H23: =H75 -> 0 | I23: =I75 -> 0 | J23: -
C24: Mezisoučet | H24: =SUM(H22:H23) -> 0 | I24: =SUM(I22:I23) -> 0 | J24: Kč bez DPH
A26: =A23+1 -> 3 | B26: - | C26: Protipožární ucpávky | D26: ks | E26: 3 | H26: =E26*F26 -> 0 | I26: =E26*G26 -> 0 | J26: -
A27: =A26+1 -> 4 | B27: - | C27: Materiál pro spoje, montáž, závěsy, atd. | D27: kpl | E27: 1 | H27: =E27*F27 -> 0 | I27: =E27*G27 -> 0 | J27: -
A28: =A27+1 -> 5 | C28: Demontáž stáv.vzduchotechnických rozvodů | D28: kpl | E28: 1 | H28: =E28*F28 -> 0 | I28: =E28*G28 -> 0 | J28: -
A29: =A28+1 -> 6 | C29: Demontáž stěny z Tahokovu a opětná montáž po přesunutí chladicí jednotky | D29: ks | E29: 1 | H29: 0 | I29: 0 | J29: -
A30: 7 | C30: Přesunutí chladicí jednotky do dvora | D30: ks | E30: 1 | H30: 0 | I30: 0 | J30: -
A31: 8 | C31: Výkopové práce a základy ve dvoře pro přesunutí chladicí jednotky | D31: m3 | E31: 4 | H31: 0 | I31: 0 | J31: -
A32: 9 | C32: Rozebrání a opětovné položení dlažby | D32: m2 | E32: 12 | H32: 0 | I32: 0 | J32: -
A33: 10 | C33: Průraz v základech | D33: ks | E33: 1 | H33: 0 | I33: 0 | J33: -
A34: 11 | C34: Odvětrání CHÚC typu B 1200/1200 mm kompletní konstrukce včvynášecích profilů a protipo|žár. SDK desek:1 | D34: ks | E34: 1 | H34: 0 | I34: 0 | J34: -
A35: =A34+1 -> 12 | B35: - | C35: Doprava | D35: kpl | E35: 1 | I35: =E35*G35 -> 0 | J35: -
A36: 13 | B36: - | C36: Přesuny | D36: kpl | E36: 1 | I36: 0 | J36: -
A37: 14 | B37: - | C37: Uvedení do provozu, zaregulování, vyzkoušení, předávací řízení | D37: kpl | E37: 1 | I37: 0 | J37: -
A38: 15 | B38: - | C38: Inženýrská a koordinační činnost | D38: kpl | E38: 1 | I38: 0 | J38: -
A39: 16 | B39: - | C39: Dílenská a výrobní projektová dokumentace | D39: kpl | E39: 1 | I39: 0 | J39: -
A40: 17 | B40: - | C40: Dokumentace konečného provedení, návody, atesty, prohlášení o shodě | D40: kpl | E40: 1 | I40: 0 | J40: -
C41: Mezisoučet | H41: =SUM(H26:H40) -> 0 | I41: =SUM(I26:I40) -> 0 | J41: Kč bez DPH
A43: CELKEM D+M | C43: =CONCATENATE("OBJEKTU ",'Rekapitulace stavby'!I59," v Kč bez DPH") -> OBJEKTU SO 03 - Vzduchotechnika a chlazení v Kč bez DPH | H43: =H24+H41+I24+I41 -> 0
A47: P.Č. | B47: Č.P. | C47: Popis položky: | D47: Měrná jednotka | F47: Cena | J47: Poznámka
F48: Jednotková cena | H48: Celková cena
D49: - | E49: počet | F49: Dodávka | G49: Montáž | H49: Dodávka | I49: Montáž
F50: [ Kč ] | G50: [ Kč ] | H50: [ Kč ] | I50: [ Kč ]
C51: Zařízení č.8 - Větrání CHUC B
A52: =A40+1 -> 18 | B52: 8.1 | C52: Ventilátor - referenční výrobek TGT/2-500-6/14-LP-2,2kW | D52: ks | E52: 1 | H52: =E52*F52 -> 0 | I52: =E52*G52 -> 0
A53: =A52+1 -> 19 | B53: 0 | C53: Pružná spojka - referenční výrobek ACOP 500 | D53: ks | E53: 2 | H53: 0 | I53: 0
A54: =A53+1 -> 20 | B54: 8.2 | C54: Přetlaková klapka pro montáž na střechu - referenční výrobek DEK-V 600/900 -DS 1200/1200 pro mn.vzduchu 8800 m3/h včetně servopohonu 230V s havarijní funkcí - nátěr RAL…... dle požadavku architekta | D54: ks | E54: 1 | H54: 0 | I54: 0
A55: 21 | B55: 8.3 | C55: Zpětná klapka - referenční výrobek TSK 500 | D55: ks | E55: 1 | H55: 0 | I55: 0
A56: 22 | B56: 8.4 | C56: Protidešťová žaluzie pozinkovaná se sítem 1350 x 710 - nátěr RAL…... | D56: ks | E56: 1 | H56: 0 | I56: 0
A57: 23 | B57: 8.5 | C57: Výustka - referenční výrobek NOVA - A - 1 - 1 - 1000 x 500 - nátěr RAL…… | D57: ks | E57: 2 | H57: 0 | I57: 0
A58: 24 | B58: 0 | C58: Trouba SPIRO - 500 - včetně tvarovek | D58: bm | E58: 8 | H58: 0 | I58: 0
A59: 25 | C59: Čtyřhranné ocel. potrubí sk. I včetně tvarovek | D59: m2 | E59: 10 | H59: 0 | I59: 0
A60: =CONCATENATE(C51," - celkem") -> Zařízení č.8 - Větrání CHUC B - celkem | H60: =SUM(H52:H59) -> 0 | I60: =SUM(I52:I59) -> 0 | J60: bez DPH
A66: P.Č. | B66: Č.P. | C66: Popis položky: | D66: Měrná jednotka | F66: Cena | J66: Poznámka
F67: Jednotková cena | H67: Celková cena
D68: - | E68: počet | F68: Dodávka | G68: Montáž | H68: Dodávka | I68: Montáž
F69: [ Kč ] | G69: [ Kč ] | H69: [ Kč ] | I69: [ Kč ]
C70: Zařízení č.12 - Úprava stávajícího větrání výměníkové stanice
A71: =A59+1 -> 26 | B71: PK12.1 | C71: Požární klapka - referenční výrobek PKTM III-K 300/375 - .40 TPM 075/09 | D71: ks | E71: 1 | H71: =E71*F71 -> 0 | I71: =E71*G71 -> 0
A72: =A71+1 -> 27 | C72: Trouba SPIRO - 300 - včetně tvarovek | D72: bm | E72: 2 | H72: =E72*F72 -> 0 | I72: =E72*G72 -> 0
A73: =A72+1 -> 28 | C73: Demontáž potrubí D300 | D73: bm | E73: 5 | H73: =E73*F73 -> 0 | I73: =E73*G73 -> 0
A75: =CONCATENATE(C70," - celkem") -> Zařízení č.12 - Úprava stávajícího větrání výměníkové stanice - celkem | H75: =SUM(H71:H73) -> 0 | I75: =SUM(I71:I73) -> 0 | J75: bez DPH

Sheet 08_SO 03 - Výtah
A1: =CONCATENATE('Rekapitulace stavby'!C60,"_",'Rekapitulace stavby'!I60) -> 08_SO 03 - Výtah
A3: SPECIFIKACE DODÁVEK A PRACÍ
A4: Název akce:
A5: ='Identifikační údaje'!B1 -> ČRo Brno – III. etapa rekonstrukce budovy Beethovenova 25/4
A7: Zadavatel: | C7: ='Identifikační údaje'!E7 -> Český rozhlas, Vinohradská 12, 120 99 Praha 2
B8: IČ: | C8: ='Identifikační údaje'!B9 -> 45245053
B9: DIČ: | C9: ='Identifikační údaje'!B10 -> CZ45245053
A11: Projektant: | C11: ='Identifikační údaje'!E12 -> Ing. arch. Klement Miloš, Nejedlého 381/19, 638 00 Brno - Lesná
B12: IČ: | C12: ='Identifikační údaje'!B14 -> 15188736
B13: DIČ: | C13: ='Identifikační údaje'!B15 -> CZ6101021344
A15: Uchazeč: | C15: ='Identifikační údaje'!E19 -> , ,
B16: IČ: | C16: ='Identifikační údaje'!B23 -> 0
B17: DIČ: | C17: ='Identifikační údaje'!B24 -> 0
A19: Místo stavby: | C19: ='Identifikační údaje'!B3 -> Budova Českého rozhlasu Brno na adrese Beethovenova 25/4, 657 42 Brno
A21: Datum vyplnění: | C21: ='Identifikační údaje'!B5 -> 00:00:00
A23: =CONCATENATE("REKAPITULACE DODÁVEK A PRACÍ OBJEKTU ",'Rekapitulace stavby'!I60) -> REKAPITULACE DODÁVEK A PRACÍ OBJEKTU SO 03 - Výtah
A25: P.č. | B25: Číslo položky | C25: Název položky | D25: Kč bez DPH
B26: Ceník, kapitola
A27: Díl: | B27: =B75 -> 0 | C27: =C75 -> Přípravné a pomocné práce | G27: =G75 -> 0
A28: Díl: | B28: =B78 -> 3 | C28: =C78 -> Svislé a kompletní konstrukce | G28: =G78 -> 0
A29: Díl: | B29: =B82 -> 311 | C29: =C82 -> Sádrokartony | G29: =G82 -> 0
A30: Díl: | B30: =B86 -> 311 | C30: =C86 -> Sádrokartony | G30: =G86 -> 0
A31: Díl: | B31: =B92 -> 34 | C31: =C92 -> Stěny a příčky | G31: =G92 -> 0
A32: Díl: | B32: =B95 -> 4 | C32: =C95 -> Vodorovné konstrukce | G32: =G95 -> 0
A33: Díl: | B33: =B98 -> 61 | C33: =C98 -> Upravy povrchů vnitřní | G33: =G98 -> 0
A34: Díl: | B34: =B122 -> 63 | C34: =C122 -> Podlahy a podlahové konstrukce | G34: =G122 -> 0
A35: Díl: | B35: =B132 -> 94 | C35: =C132 -> Lešení a stavební výtahy | G35: =G132 -> 0
A36: Díl: | B36: =B139 -> 95 | C36: =C139 -> Dokončovací konstrukce na pozemních stavbách | G36: =G139 -> 0
A37: Díl: | B37: =B147 -> 96 | C37: =C147 -> Bourání konstrukcí | G37: =G147 -> 0
A38: Díl: | B38: =B151 -> 99 | C38: =C151 -> Staveništní přesun hmot | G38: =G151 -> 0
A39: Díl: | B39: =B153 -> 767 | C39: =C153 -> Konstrukce zámečnické | G39: =G153 -> 0
A40: Díl: | B40: =B164 -> 783 | C40: =C164 -> Nátěry | G40: =G164 -> 0
A41: Díl: | B41: =B171 -> 784 | C41: =C171 -> Malby | G41: =G171 -> 0
A42: Díl: | B42: =B180 -> M21 | C42: =C180 -> Elektromontáže | G42: =G180 -> 0
A43: Díl: | B43: =B189 -> M33 | C43: =C189 -> Montáže dopravích zařízení a vah - výtahy | G43: =G189 -> 0
A44: Díl: | B44: =B191 -> M33 | C44: =C191 -> Montáže dopravích zařízení a vah - výtahy | G44: =G191 -> 0
A45: Díl: | B45: =B193 -> 311 | C45: =C193 -> Sádrokartony | G45: =G193 -> 0
A46: Díl: | B46: =B197 -> M43 | C46: =C197 -> Montáže ocelových konstrukcí | G46: =G197 -> 0
A48: =CONCATENATE("CELKEM ZA OBJEKT ",'Rekapitulace stavby'!I60, " v Kč bez DPH") -> CELKEM ZA OBJEKT SO 03 - Výtah v Kč bez DPH | D48: =SUM(G27:G46) -> 0
A73: P.č. | B73: Číslo položky | C73: Název položky | D73: MJ | E73: množství | F73: cena / MJ | G73: celkem
B74: Ceník, kapitola | C74: Poznámka uchazeče
A75: Díl: | B75: 0 | C75: Přípravné a pomocné práce | G75: =SUBTOTAL(9,G76:G77) -> 0 | AA75: POL | AI75: 21
A76: =1 -> 1 | B76: 382111001MZ | C76: Rozměření poloh | D76: kus | E76: 1 | G76: =E76*F76 -> 0
A77: =A76+1 -> 2 | B77: R01 | C77: Drobné detaily neobsažené v polož. stavebním rozpočtu | D77: kpl. | E77: 1 | G77: =E77*F77 -> 0
A78: Díl: | B78: 3 | C78: Svislé a kompletní konstrukce | G78: =SUBTOTAL(9,G79:P81) -> 0
A79: =A77+1 -> 3 | B79: 389200030RPP | C79: Pilíř pro měřicí skříně-zazdění niky, 2,4x0,40x0,30m -pož.obezdění rozvaděče pórobeton 7,5cm, omítka, 2x protipož.větrací mřížka 300/100mm | D79: kus | E79: 1 | G79: =E79*F79 -> 0
A80: =A79+1 -> 4 | B80: 713582114R35 | C80: Revizní dvířka Promat do masivních stěn,300x500 mm, typ SP, požární odolnost EI 15 | D80: kus | E80: 1 | G80: =E80*F80 -> 0 | Y80: 0
A81: =A80+1 -> 5 | B81: 713582126R12 | C81: Revizní dvířka Promat do masivních stěn,300x1200 mm, typ SP, požární odolnost EI 15 | D81: kus | E81: 1 | G81: =E81*F81 -> 0
A82: Díl: | B82: 311 | C82: Sádrokartony | G82: =SUBTOTAL(9,G83:P85) -> 0 | AA82: SPX
A83: =A81+1 -> 6 | B83: 347015122R00 | C83: Předstěna SDK, tl.95mm, ocel. kce CW, 2x Rigips habito 12,5mm, EI 30DP1 | D83: m2 | E83: 44.87 | G83: =E83*F83 -> 0 | AA83: POL | AI83: 21
C84: Z1 : 1,45*(26,771+3,3+0,25) | E84: 43.97
C85: PS : 1,8*0,5 | E85: 0.9
A86: Díl: | B86: 311 | C86: Sádrokartony | G86: =SUBTOTAL(9,G87:P91) -> 0
A87: =A83+1 -> 7 | B87: 342266211RT6 | C87: Obklad stěn sádrokartonem lepený na zdivo, desky protipožární tl. 12,5 mm, EI 30DP1 | D87: m2 | E87: 1 | G87: =E87*F87 -> 0
A88: =A87+1 -> 8 | B88: 342266998R00 | C88: Příplatek pro obklad za plochu do 5 m2 | D88: m2 | E88: 0.87 | G88: =E88*F88 -> 0
C89: 1,45*0,4 | E89: 0.58
C90: 1,45*0,2 | E90: 0.29
A91: =A88+1 -> 9 | B91: 906 RT3 | C91: HZS - nezměřitelné práce malého rozsahu, Práce v tarifní třídě 6 | D91: h | E91: 8 | G91: =E91*F91 -> 0 | Y91: 0
A92: Díl: | B92: 34 | C92: Stěny a příčky | G92: =SUBTOTAL(9,G93:P94) -> 0 | AA92: SPX
A93: =A91+1 -> 10 | B93: 346244371RT2 | C93: Zazdívka rýhí, kapes cihlami tl. 14 cm, s použitím suché maltové směsi | D93: m2 | E93: 7.5 | G93: =E93*F93 -> 0
C94: 2*0,15*0,15 | E94: 0.05
A95: Díl: | B95: 4 | C95: Vodorovné konstrukce | G95: =SUBTOTAL(9,G96:P97) -> 0
A96: =A93+1 -> 11 | B96: 417320039RAC | C96: Ztužující věnec ŽB beton C 25/30, 20 x 14 cm, bednění, výztuž 150 kg/m3 | D96: m | E96: 8.2 | G96: =E96*F96 -> 0 | Y96: 0
C97: 2*2,3+2*1,8 | E97: 8.2 | AA97: POL | AI97: 21
A98: Díl: | B98: 61 | C98: Upravy povrchů vnitřní | G98: =SUBTOTAL(9,G99:G121) -> 0
A99: =A96+1 -> 12 | B99: 346481111RT2 | C99: Zaplentování rýh, nosníků rabicovým pletivem, s použitím suché maltové směsi | D99: m2 | E99: 0.44 | G99: =E99*F99 -> 0
C100: 0,3*1,45 | E100: 0.44
A101: =A99+1 -> 13 | B101: 602011144RT2 | C101: Štuk na stěnách vnitřní, ručně, tloušťka vrstvy 3 mm | D101: m2 | E101: 88.8 | G101: =E101*F101 -> 0
A102: =A101+1 -> 14 | B102: 602011191R00 | C102: Podklad.nátěr stěn pod tenkovr.omítky Cemix PASN | D102: m2 | E102: 88.8 | G102: =E102*F102 -> 0
C103: Položka pořadí 39 : 88,79500 | E103: 88.8
A104: =A102+1 -> 15 | B104: 602016191R00 | C104: Penetrační nátěr stěn PROFI | D104: m2 | E104: 88.8 | G104: =E104*F104 -> 0
C105: 30,1*(0,75*2+1,45) | E105: 88.8 | Y105: 0
A106: =A104+1 -> 16 | B106: 611401211RT2 | C106: Oprava omítky na stropech o ploše do 0,25 m2, vápennou štukovou omítkou | D106: kus | E106: 8 | G106: =E106*F106 -> 0
C107: dotčené prostory-podlaží : 8 | E107: 8
A108: =A106+1 -> 17 | B108: 612401191RT2 | C108: Omítka malých ploch vnitřních stěn do 0,09 m2, vápennou štukovou omítkou | D108: kus | E108: 2 | G108: =E108*F108 -> 0
C109: kapsy : 2 | E109: 2
A110: =A108+1 -> 18 | B110: 612431111R00 | C110: Omítka sádrokartonových stěn Feinputz | D110: m2 | E110: 296.69 | G110: =E110*F110 -> 0
C111: Z1 : 1,45*(26,771+3,3+0,25) | E111: 43.97
C112: PS : 1,8*0,5 | E112: 0.9
C113: výtahová šachta-interier : 30,9*(2*1,92+2*1,42) | E113: 206.42
C114: výtahová šachta-exterier : 3,3*1,72*8,0 | E114: 45.41 | Y114: 0
A115: =A110+1 -> 19 | B115: 612401391RT2 | C115: Omítka malých ploch vnitřních stěn do 1 m2, s použitím suché maltové směsi | D115: kus | E115: 8 | G115: =E115*F115 -> 0
C116: dotčené prostory-podlaží : 8 | E116: 8
A117: =A115+1 -> 20 | B117: 612409991RT2 | C117: Začištění omítek kolem oken,dveří apod., s použitím suché maltové směsi | D117: m | E117: 89.6 | G117: =E117*F117 -> 0
C118: dotčené prostory-podlaží : 8*(4,0+1,6+1,6+4,0) | E118: 89.6
A119: =A117+1 -> 21 | B119: 612425931RT2 | C119: Omítka vápenná vnitřního ostění - štuková, s použitím suché maltové směsi | D119: m2 | E119: 0.44 | G119: =E119*F119 -> 0
A120: =A119+1 -> 22 | B120: 632477123R00 | C120: Reprofil.polymercement.maltou,tl.do10 mm+penetrace | D120: m2 | E120: 0.44 | G120: =E120*F120 -> 0
A121: =A120+1 -> 23 | B121: 905 RT2 | C121: HZS - nezměřitelné práce malého rozsahu, Práce v tarifní třídě 5 | D121: h | E121: 8 | G121: =E121*F121 -> 0
A122: Díl: | B122: 63 | C122: Podlahy a podlahové konstrukce | G122: =SUBTOTAL(9,G123:P131) -> 0 | Y122: 0
A123: =A121+1 -> 24 | B123: 632451022R00 | C123: Vyrovnávací potěr MC 15, v pásu, tl. 30 mm | D123: m2 | E123: 2.64 | G123: =E123*F123 -> 0 | AA123: SPX
C124: nástupiště : 8*1,1*0,3 | E124: 2.64 | AA124: POL | AI124: 21
A125: =A123+1 -> 25 | B125: 634601131R00 | C125: Zaplnění dilatačních spár mazanin, šířka 30 mm | D125: m | E125: 8.8 | G125: =E125*F125 -> 0
C126: nástupiště : 8*1,1 | E126: 8.8
A127: =A125+1 -> 26 | B127: 771578011R00 | C127: Spára podlaha - stěna, silikonem | D127: m | E127: 17.6 | G127: =E127*F127 -> 0
A128: =A127+1 -> 27 | B128: 631100000RA0 | C128: Podlaha z dlažby mramorové v materiálu pohledově shodném s mramorem schodiště | D128: m2 | E128: 0.88 | G128: =E128*F128 -> 0
C129: 8*1,1*0,1 | E129: 0.88
A130: =A128+1 -> 28 | B130: 905 RT2 | C130: HZS - nezměřitelné práce malého rozsahu, Práce v tarifní třídě 5 | D130: h | E130: 8 | G130: =E130*F130 -> 0
A131: =A130+1 -> 29 | B131: R63-01 | C131: Příplatek za malý rozsah mramor.dlažby | D131: kpl. | E131: 1 | G131: =E131*F131 -> 0 | Y131: 0
A132: Díl: | B132: 94 | C132: Lešení a stavební výtahy | G132: =SUBTOTAL(9,G133:P138) -> 0 | AA132: SPX
A133: =A131+1 -> 30 | B133: 941955002R00 | C133: Lešení lehké pomocné, výška podlahy do 1,9 m | D133: m2 | E133: 40 | G133: =E133*F133 -> 0 | AA133: POL | AI133: 21
C134: 8*5,0 | E134: 40
A135: =A133+1 -> 31 | B135: 941941111KPL | C135: Pronájem lešení, doprava, manipulace | D135: kompl. | E135: 1 | G135: =E135*F135 -> 0
A136: =A135+1 -> 32 | B136: 949311113U00 | C136: Mtž leš trub šachta do 6m2 v 30m | D136: m | E136: 30 | G136: =E136*F136 -> 0
A137: =A136+1 -> 33 | B137: 94931121U00 | C137: Přípl ZKD den leš k 94931-1111/2/3 | D137: m | E137: 60 | G137: =E137*F137 -> 0
A138: =A137+1 -> 34 | B138: 949311813U00 | C138: Dmtž leš trub šachta do 6m2 v 30m | D138: m | E138: 30 | G138: =E138*F138 -> 0
A139: Díl: | B139: 95 | C139: Dokončovací konstrukce na pozemních stavbách | G139: =SUBTOTAL(9,G140:P146) -> 0
A140: =A138+1 -> 35 | B140: 952901111R00 | C140: Vyčištění budov o výšce podlaží do 4 m | D140: m2 | E140: 150 | G140: =E140*F140 -> 0
A141: =A140+1 -> 36 | B141: 953941312R00 | C141: Osazení hasicího přístroje na stěnu | D141: kus | E141: 1 | G141: =E141*F141 -> 0
A142: =A141+1 -> 37 | B142: 954112111R00 | C142: SDK obklad ocel.sloupů 4str., RF tl.12,5+15 mm | D142: m | E142: 1.45 | G142: =E142*F142 -> 0
A143: =A142+1 -> 38 | B143: 713541201R00 | C143: Tmelení spár 2 x 15 mm protipožárním tmelem Promat | D143: m | E143: 5.8 | G143: =E143*F143 -> 0
C144: 4*1,45 | E144: 5.8
A145: =A143+1 -> 39 | B145: 905 RT2 | C145: HZS - nezměřitelné práce malého rozsahu, Práce v tarifní třídě 5 | D145: h | E145: 8 | G145: =E145*F145 -> 0
A146: =A145+1 -> 40 | B146: 44984142R | C146: Přístroj hasicí sněhový S5Kte | D146: kus | E146: 1 | G146: =E146*F146 -> 0
A147: Díl: | B147: 96 | C147: Bourání konstrukcí | G147: =SUBTOTAL(9,G148:P150) -> 0
A148: =A146+1 -> 41 | B148: 317314125R00 | C148: Podbetonování zhlaví nosníků, zdivo šířky 250 mm | D148: kus | E148: 4 | G148: =E148*F148 -> 0
A149: =A148+1 -> 42 | B149: 767141800R00 | C149: Demontáž konstr.pro beztm.zasklení,vč.zasklení | D149: m2 | E149: 85.48 | G149: =E149*F149 -> 0
C150: PL/B : 26,711*(1,6+1,6) | E150: 85.48
A151: Díl: | B151: 99 | C151: Staveništní přesun hmot | G151: =SUBTOTAL(9,G152:P152) -> 0
A152: =A149+1 -> 43 | B152: 999281151R00 | C152: Přesun hmot pro opravy a údržbu do v. 25 m,nošením | D152: t | E152: 12.94 | G152: =E152*F152 -> 0
A153: Díl: | B153: 767 | C153: Konstrukce zámečnické | G153: =SUBTOTAL(9,G154:P163) -> 0
A154: =A152+1 -> 44 | B154: 767995101R00 | C154: Výroba a montáž kov. atypických konstr. do 5 kg | D154: kg | E154: 10 | G154: =E154*F154 -> 0
A155: =A154+1 -> 45 | B155: 767995104R00 | C155: Výroba a montáž kov. atypických konstr. do 50 kg | D155: kg | E155: 165.67 | G155: =E155*F155 -> 0
C156: I160 - 17,9kg/m : 4*1,85*17,9 | E156: 132.46
C157: Jackel -17,95kg/m : 1,85*17,95 | E157: 33.21 | AA157: SPX
A158: =A155+1 -> 46 | B158: 13380530R | C158: Tyč průřezu I 160, střední, jakost oceli 11373 | D158: t | E158: 0.15 | G158: =E158*F158 -> 0 | AA158: POL_NEZ | AB158: 1 | AI158: 21
C159: hmotnost 17,90 kg/m : 4*1,85*17,9*0,001*1,08 | E159: 0.15 | Y159: 0
A160: =A158+1 -> 47 | B160: 55399999R | C160: Ocelové výrobky - kotvy a spojky-atypické prvky | D160: kg | E160: 10 | G160: =E160*F160 -> 0 | AA160: POL | AI160: 21
A161: =A160+1 -> 48 | B161: 14587796160 | C161: Profil obdélník. uzavř.svařovaný S235 160x100x6 mm | D161: t | E161: 0.04 | G161: =E161*F161 -> 0
C162: 17,95kg/m : 1,85*17,95*0,001*1,08 | E162: 0.04 | AA162: POL | AI162: 21
A163: =A161+1 -> 49 | B163: 998767104R00 | C163: Přesun hmot pro zámečnické konstr., výšky do 36 m | D163: t | E163: 0.2 | G163: =E163*F163 -> 0 | AA163: POL | AI163: 21
A164: Díl: | B164: 783 | C164: Nátěry | G164: =SUBTOTAL(9,G165:P170) -> 0
A165: =A163+1 -> 50 | B165: 777615217U00 | C165: Podlaha beton nátěr 2xSikafloor 261, nátěr dojezdu výtahu odolný proti ropným produktům | D165: m2 | E165: 4.21 | G165: =E165*F165 -> 0 | Y165: 0
C166: podlaha prohlubně : 1,6*1,6+1,4*0,4 | E166: 3.12 | Y166: 1
C167: stěny prohlubně : 0,15*(1,61+1,59+1,61+0,2+0,4+1,4+0,4) | E167: 1.09 | Y167: 0
A168: =A165+1 -> 51 | B168: 783220010RAC | C168: Nátěr kovových doplňkových konstrukcí syntetický, dvojnásobný krycí s 1x emailováním | D168: m2 | E168: 20.2 | G168: =E168*F168 -> 0 | AA168: POL | AI168: 21
C169: I160 - 0,575m2/m : 4*1,85*0,575 | E169: 4.26 | Y169: 1
C170: Jackel 160/80 : 1,85*17,95*0,48 | E170: 15.94 | AA170: POL | AI170: 21
A171: Díl: | B171: 784 | C171: Malby | G171: =SUBTOTAL(9,G172:P179) -> 0
A172: =A168+1 -> 52 | B172: 784191101R00 | C172: Penetrace podkladu univerzální 1x | D172: m2 | E172: 586.84 | G172: =E172*F172 -> 0 | AA172: POL_NEZ | AB172: 1 | AI172: 21
C173: omítky-dotčené prostory nástupišť (odhad) : 8*25,00 | E173: 200
C174: Z1 : 1,45*(26,771+3,3+0,25) | E174: 43.97
C175: Z2 : 5*0,5*0,9 | E175: 2.25 | AA175: DIL
C176: výtahová šachta-interier : 30,9*(2*1,92+2*1,42) | E176: 206.42 | Y176: 0
C177: výtahová šachta-exterier : 3,3*1,72*8,0 | E177: 45.41 | AA177: SPX
C178: komínová stěna : 88,795 | E178: 88.8
A179: =A172+1 -> 53 | B179: 784195112R00 | C179: Malba tekutá, bílá, 2 x | D179: m2 | E179: 586.84 | G179: =E179*F179 -> 0
A180: Díl: | B180: M21 | C180: Elektromontáže | G180: =SUBTOTAL(9,G181:P188) -> 0
A181: =A179+1 -> 54 | B181: M21-02 | C181: ELEKTRO - připojení přívodu k výtahu na stávající domovní rozvod | D181: kpl | E181: 1 | G181: =E181*F181 -> 0 | Y181: 1
A182: =A181+1 -> 55 | B182: M21-03 | C182: ELEKTRO - připojení výtahu do SSK - kabel UTP cat. 6A vč. 4 konektorů na konci kabelu | D182: m | E182: 300 | G182: 0
A183: 56 | B183: M21-04 | C183: ELEKTRO - připojení výtahu do SSK - chránička pro kabel UTP cat. 6A | D183: m | E183: 300 | G183: =E183*F183 -> 0
A184: 57 | B184: M21-05 | C184: ELEKTRO - připojení výtahu do SSK - příchytky na strop a stěnu pro chráničku na kabel UTP cat. 6A | D184: kpl | E184: 1 | G184: =E184*F184 -> 0
A185: 58 | B185: M21-06 | C185: ELEKTRO - připojení výtahu do SSK - měřící protokol pro kabel UTP cat. 6A | D185: kpl | E185: 1 | G185: =E185*F185 -> 0
A186: 59 | B186: M21-07 | C186: ELEKTRO - revize | D186: kpl | E186: 1 | G186: 0
A187: 60 | B187: 210100099 | C187: Bezhalogenový přívodní kabel, vč.montáže | D187: kpl. | E187: 1 | G187: 0
A188: 61 | B188: R013 | C188: Hluková zkouška | D188: kpl | E188: 1 | G188: 0 | Y188: 0
A189: Díl: | B189: M33 | C189: Montáže dopravích zařízení a vah - výtahy | G189: =SUBTOTAL(9,G190:P190) -> 0
A190: =A188+1 -> 62 | B190: 330530206R0Z | C190: Demontáž stávající ocel. konstrukce šachty vč. šachetních dveří, kotvení | D190: kpl. | E190: 1 | G190: =E190*F190 -> 0 | Y190: 0
A191: Díl: | B191: M33 | C191: Montáže dopravích zařízení a vah - výtahy | G191: =SUBTOTAL(9,G192:P192) -> 0 | Y191: 1
A192: =A190+1 -> 63 | B192: 330030128 | C192: Dodávka a montáž výtahu osobního lanového 630/0,63, 8 stanic, 8 nástupišť, dle specifikace PD | D192: kus | E192: 1 | G192: =E192*F192 -> 0 | AA192: POL | AI192: 21
A193: Díl: | B193: 311 | C193: Sádrokartony | G193: =SUBTOTAL(9,G194:P196) -> 0
A194: =A192+1 -> 64 | B194: 762161110RA0 | C194: Protipožární opláštění (oboustranné)SDK/MW/SDK, vč tmelení spár protipož.tmelem - dle PD, EI 30DP1 s použitím desek Rigips habito 12,5mm | D194: m2 | E194: 73.99 | G194: =E194*F194 -> 0 | AJ194: 15 | AK194: 21
C195: čelní stěna : 30,96*1,4-8*1,1*2,235 | E195: 23.68
C196: boční stěna : 30,96*1,625 | E196: 50.31
A197: Díl: | B197: M43 | C197: Montáže ocelových konstrukcí | G197: =SUBTOTAL(9,G198:P214) -> 0
A198: =A194+1 -> 65 | B198: 4308000XX | C198: Ocelová konstrukce výtahové šachty, vč.nátěrů, oplechování a větracích mřížek, D+M | D198: komplet | E198: 1 | G198: =E198*F198 -> 0
A199: =A198+1 -> 66 | B199: 43080010XX | C199: Opláštění konstrukce výtahové šachty leštěným sklem s drátěnou vložkou tl. 7 mm - D+M | D199: m2 | E199: 52.12 | G199: =E199*F199 -> 0
C200: čelní stěna : (3,05+3,14*3+3,68*2+2,66)*1,625-8*1,1*2,235 | E200: 16.88
C201: boční stěna : (2,56*2+3,14*4+3,05)*1,7 | E201: 35.25
A202: =A199+1 -> 67 | B202: 14587263M | C202: Profil čtvercový uzavř.svařovaný S235 50 x 3 mm | D202: m | E202: 182.85 | G202: =E202*F202 -> 0
C203: příčníky čelní hlavní : 22*1,58 | E203: 34.76
C204: příčníky boční hlavní : 26*1,6 | E204: 41.6
C205: sloupky ostění : 16*2,3 | E205: 36.8
C206: sloupy hlavní rohové : 3*3,05+9*3,14+6*3,68+2*2,66 | E206: 64.81
C207: sloupky u průvlaku : 6*0,28 | E207: 1.68
C208: příčníky dělící : 8*0,4 | E208: 3.2
A209: =A202+1 -> 68 | B209: 145877784M | C209: Profil obdélník. uzavř.svařovaný S235 80x50x4 mm | D209: m | E209: 178.34 | G209: =E209*F209 -> 0
C210: příčníky čelní krátké : 8*0,27 | E210: 2.16
C211: příčníky čelní hlavní : 20*1,34 | E211: 26.8
C212: příčníky boční hlavní : 26*1,45 | E212: 37.7
C213: sloupy hlavní : 3*30,96 | E213: 92.88
C214: sloupky ostění : 8*2,35 | E214: 18.8

Sheet 09_SO O4 - Stav arch část
A1: =CONCATENATE('Rekapitulace stavby'!C62,"_",'Rekapitulace stavby'!I62) -> 09_SO 04 - Stavebně - architektonická část
A3: SPECIFIKACE DODÁVEK A PRACÍ
A4: Název akce:
A5: ='Identifikační údaje'!B1 -> ČRo Brno – III. etapa rekonstrukce budovy Beethovenova 25/4
A7: Zadavatel: | C7: ='Identifikační údaje'!E7 -> Český rozhlas, Vinohradská 12, 120 99 Praha 2
B8: IČ: | C8: ='Identifikační údaje'!B9 -> 45245053
B9: DIČ: | C9: ='Identifikační údaje'!B10 -> CZ45245053
A11: Projektant: | C11: ='Identifikační údaje'!E12 -> Ing. arch. Klement Miloš, Nejedlého 381/19, 638 00 Brno - Lesná
B12: IČ: | C12: ='Identifikační údaje'!B14 -> 15188736
B13: DIČ: | C13: ='Identifikační údaje'!B15 -> CZ6101021344
A15: Uchazeč: | C15: ='Identifikační údaje'!E19 -> , ,
B16: IČ: | C16: ='Identifikační údaje'!B23 -> 0
B17: DIČ: | C17: ='Identifikační údaje'!B24 -> 0
A19: Místo stavby: | C19: ='Identifikační údaje'!B3 -> Budova Českého rozhlasu Brno na adrese Beethovenova 25/4, 657 42 Brno
A21: Datum vyplnění: | C21: ='Identifikační údaje'!B5 -> 00:00:00
A23: =CONCATENATE("REKAPITULACE DODÁVEK A PRACÍ OBJEKTU ",'Rekapitulace stavby'!I62) -> REKAPITULACE DODÁVEK A PRACÍ OBJEKTU SO 04 - Stavebně - architektonická část
A25: P.č. | B25: Číslo položky | C25: Název položky | D25: Kč bez DPH
B26: Ceník, kapitola
A27: Díl: | B27: =B77 -> 3 | C27: =C77 -> Svislé a kompletní konstrukce | G27: =G77 -> 0
A28: Díl: | B28: =B134 -> 61 | C28: =C134 -> Upravy povrchů vnitřní | G28: =G134 -> 0
A29: Díl: | B29: =B203 -> 63 | C29: =C203 -> Podlahy a podlahové konstrukce | G29: =G203 -> 0
A30: Díl: | B30: =B206 -> 94 | C30: =C206 -> Lešení a stavební výtahy | G30: =G206 -> 0
A31: Díl: | B31: =B209 -> 95 | C31: =C209 -> Dokončovací kce na pozem.stav. | G31: =G209 -> 0
A32: Díl: | B32: =B213 -> 96 | C32: =C213 -> Bourání konstrukcí | G32: =G213 -> 0
A33: Díl: | B33: =B357 -> 99 | C33: =C357 -> Staveništní přesun hmot | G33: =G357 -> 0
A34: Díl: | B34: =B360 -> 711 | C34: =C360 -> Izolace proti vodě | G34: =G360 -> 0
A35: Díl: | B35: =B370 -> 766 | C35: =C370 -> Konstrukce truhlářské | G35: =G370 -> 0
A36: Díl: | B36: =B434 -> 767 | C36: =C434 -> Konstrukce zámečnické | G36: =G434 -> 0
A37: Díl: | B37: =B464 -> 771 | C37: =C464 -> Podlahy z dlaždic a obklady | G37: =G464 -> 0
A38: Díl: | B38: =B486 -> 781 | C38: =C486 -> Obklady keramické | G38: =G486 -> 0
A39: Díl: | B39: =B571 -> 782 | C39: =C571 -> Konstrukce z přírodního kamene | G39: =G571 -> 0
A40: Díl: | B40: =B574 -> 784 | C40: =C574 -> Malby | G40: =G574 -> 0
A41: Díl: | B41: =B578 -> 40 | C41: =C578 -> Podhledy | G41: =G578 -> 0
A42: Díl: | B42: =B598 -> 770 | C42: =C598 -> Ostatní | G42: =G598 -> 0
A44: =CONCATENATE("CELKEM ZA OBJEKT ",'Rekapitulace stavby'!I62, " v Kč bez DPH") -> CELKEM ZA OBJEKT SO 04 - Stavebně - architektonická část v Kč bez DPH | D44: =SUM(G27:G42) -> 0
A75: P.č. | B75: Číslo položky | C75: Název položky | D75: MJ | E75: množství | F75: cena / MJ | G75: celkem
B76: Ceník, kapitola | C76: Poznámka uchazeče
A77: Díl: | B77: 3 | C77: Svislé a kompletní konstrukce | G77: =SUBTOTAL(9,G78:G133) -> 0 | AB77: POL | AJ77: 21
A78: 1 | B78: 342 26-2411.RT4 | C78: Příčka SDK instalační 2x OK, 2x opl. tl. 220 mm desky impreg. tl. 12,5 mm, Orsil tl. 5 cm | D78: m2 | E78: 34.6 | G78: =E78*F78 -> 0
C79: ;předstěny ZTI | E79: 0
C80: ;přízemí | E80: 0
C81: 1,08*1,20 | E81: 1.296
C82: mezipatro: | E82: 0
C83: (0,955+0,885+0,89+0,85+2,185+2,045+3,40)*1,20 | E83: 13.452
C84: (1,17+1,20+0,50)*1,20 | E84: 3.444
C85: ;4.patro | E85: 0
C86: (1,75+0,90+0,90+0,90+1,30+0,90+0,90)*1,20 | E86: 9.06
C87: (1,625+0,90+0,90)*1,20 | E87: 4.11
C88: ;5.patro | E88: 0
C89: (0,90+0,90+0,90)*1,20 | E89: 3.24
A90: =A78+1 -> 2 | B90: 342 24-812 | C90: Příčky POROTHERM AKU na MVC 5, tl. 125 mm | D90: m2 | E90: 80.66 | G90: =E90*F90 -> 0
C91: ;mezipatro | E91: 0
C92: (2,55+3,76+2,55+2,255+0,86)*3,70 | E92: 44.3075
C93: ;5.patro | E93: 0
C94: (2,20+1,20+2,50+1,60+2,70)*2,99-0,70*2,00*3 | E94: 26.298
C95: (1,80+1,50+1,00)*2,99-0,70*2,00*2 | E95: 10.057
A96: =A90+1 -> 3 | B96: 342 24-811 | C96: Příčky POROTHERM AKU na MVC 5, tl. 100 mm | D96: m2 | E96: 39.1293 | G96: =E96*F96 -> 0
C97: ;mezipatro | E97: 0
C98: (0,90+1,275)*3,70-0,70*2,00 | E98: 6.6475
C99: ;1.patro | E99: 0
C100: 1,575*2,99-0,65*2,00 | E100: 3.4093
C101: ;2.patro | E101: 0
C102: (1,30+1,70+2,90)*2,99-0,70*2,00-0,85*2,00 | E102: 14.541
C103: ;3.patro | E103: 0
C104: (0,235+2,70)*2,99 | E104: 8.7757
C105: ;4.patro | E105: 0
C106: (1,625+0,30)*2,99 | E106: 5.7558
A107: =A96+1 -> 4 | B107: 340 23-921 | C107: Zazdívka otvorů pl.4 m2,cihlami tl.zdi do 10 cm vč.omítky | D107: m2 | E107: 5.63 | G107: =E107*F107 -> 0
C108: ;mezipatro | E108: 0
C109: 0,90*2,00+0,70*2,04 | E109: 3.228
C110: ;5.patro | E110: 0
C111: 0,60*2,00*2 | E111: 2.4
A112: =A107+1 -> 5 | B112: 340 23-9212.R00 | C112: Zazdívka otvorů pl.4 m2,cihlami tl.zdi nad 10 cm vč.omítky | D112: m2 | E112: 5.75 | G112: =E112*F112 -> 0
C113: ;mezipatro | E113: 0
C114: 0,90*2,10+0,85*2,00+0,30*3,70 | E114: 4.7
C115: ;3.patro | E115: 0
C116: 0,525*2,00 | E116: 1.05
C117: ;4.patro | E117: 0
C118: 0,90*2,001,00*2,00 | E118: 0
A119: =A112+1 -> 6 | B119: 310 23-921 | C119: Zazdívka cihlami na MVC vč.omítkky vč.provázání se stávajícím zdivem | D119: m3 | E119: 1.68 | G119: =E119*F119 -> 0
C120: ;mezipatro | E120: 0
C121: 0,30*3,70*0,30+0,60*3,70*0,30+0,20*3,70*0,20 | E121: 1.147
C122: ;5..patro | E122: 0
C123: 0,50*1,78*0,60 | E123: 0.534
A124: =A119+1 -> 7 | B124: 31701 | C124: Překlad z I prof. Č.100 dl.1000 mm D+M vč.plentování | D124: ks | E124: =SUM(E125:E126) -> 4 | G124: =E124*F124 -> 0
C125: ;mezipatro:2 | E125: 2
C126: 5.patro:2 | E126: 2
A127: =A124+1 -> 8 | B127: 31702 | C127: Překlad z I prof. Č.100 dl.1200 mm D+M vč.plentování | D127: ks | E127: =SUM(E128:E133) -> 6 | G127: =E127*F127 -> 0
C128: ;mezipatro:1 | E128: 1
C129: 1.patro:0 | E129: 0
C130: 2.patro:1 | E130: 1
C131: 3.patro:1 | E131: 1
C132: 4.patro:3 | E132: 3
C133: 5.patro:0 | E133: 0
A134: Díl: | B134: 61 | C134: Upravy povrchů vnitřní | G134: =SUBTOTAL(9,G135:G202) -> 0
A135: =A127+1 -> 9 | B135: 612 47-3182.R00 | C135: Omítka vnitřního zdiva ze suché směsi, štuková | D135: m2 | E135: 367 | G135: =E135*F135 -> 0
C136: (61,026+186,17+39,129)*2 | E136: 572.65
A137: =A135+1 -> 10 | B137: 611 10-0011 | C137: Oprava omítek stropů vnitřních přeštukování a dvojnásobný nátěr stávající beton skořepiny | D137: m2 | E137: 32.81 | G137: =E137*F137 -> 0
C138: 4.patro:2*8,80+1,17+1,17+2,27+7,80+1,40+1,40 | E138: 32.81
A139: =A137+1 -> 11 | B139: 6121000 | C139: Oprava omítek stěn vápenocem.štuková oprava z 10%. malba dvojnásobná, otěruvzdorná, bílá, včetně penetrace povrchu | D139: m2 | E139: 254.81 | G139: =E139*F139 -> 0
C140: ;přízemí | E140: 0
C141: P9:(2,365+1,62)*2*0,70 | E141: 5.579
C142: P10:(1,08+1,62)*2*0,70 | E142: 3.78
C143: P11:(1,505+1,62)*2*0,70 | E143: 4.375
C144: ;mezipatro | E144: 0
C145: M08:(4,355+1,405)*2*0,70 | E145: 8.064
C146: M13:(1,90+2,50)*2*0,70 | E146: 6.16
C147: M14:(1,245+1,17)*2*0,70 | E147: 3.381
C148: M15:(1,85+2,60)*2*0,70 | E148: 6.23
C149: M31a:(1,54+3,40)*2*0,70 | E149: 6.916
C150: M31b:(1,15+2,13)*2*0,70 | E150: 4.592
C151: M32:(1,889+2,185)*2*0,70 | E151: 5.7036
C152: ;M32a:((0,955+1,35)*2*0,70)*2 | E152: 6.454
C153: M33:(0,78+1,275)*2*0,70 | E153: 2.877
C154: M33a:(2,07+3,40)*2*0,70 | E154: 7.658
C155: M34:(1,994+2,185)*2*0,70 | E155: 5.8506
C156: M34a:((0,89+1,35)*2*0,70)*2 | E156: 6.272
C157: ;3.patro | E157: 0
C158: 307:(2,70+1,48)*2*0,70 | E158: 5.852
C159: 308:(0,955+1,48)*2*0,70 | E159: 3.409
C160: 309:(1,63+1,48)*2*0,70 | E160: 4.354
C161: 315:(1,16+1,455)*2*0,70 | E161: 3.661
C162: 317:(4,06+1,455)*2*0,70 | E162: 7.721
C163: 317a:((0,94+1,56)*2*0,70)*2 | E163: 7
C164: 317b:(3,32+2,50)*2*0,70 | E164: 8.148
C165: 316:(1,88+2,70)*2*0,70 | E165: 6.412
C166: 316a:((0,94+1,56)*2*0,70)*2 | E166: 7
C167: 318:(1,825+2,165)*2*0,70 | E167: 5.586
C168: ;4.patro | E168: 0
C169: 408:(1,80+1,625)*2*0,70 | E169: 4.795
C170: 409:(1,80+1,625)*2*0,70 | E170: 4.795
C171: 410:(3,90+2,725)*2*0,70 | E171: 9.275
C172: 410a:((0,90+1,52)*2*0,70)*2 | E172: 6.776
C173: 411:(3,15+2,80)*2*0,70 | E173: 8.33
C174: 411a:(0,90+1,30)*2*0,70 | E174: 3.08
C175: 411b:(0,90+1,30)*2*0,70 | E175: 3.08
C176: 412:(1,125+1,625)*2*0,70 | E176: 3.85
C177: 412a:(1,125+2,38)*2*0,70 | E177: 4.907
C178: 412a:(1,30+0,90)*2*0,70*2 | E178: 6.16
C179: 412b:(1,74+1,30)*2*0,70*2 | E179: 8.512
C180: 413c:(1,30+1,30)*2*0,70 | E180: 3.64
C181: 413d:(1,30+0,90)*2*0,70 | E181: 3.08
C182: 426:(2,00+1,48)*2*0,70 | E182: 4.872
C183: 426a:(1,00+1,53)*2*0,70 | E183: 3.542
C184: 426b:(1,00+1,53)*2*0,70 | E184: 3.542
C185: ;5.patro | E185: 0
C186: 511:(1,70+0,90)*2*0,70 | E186: 3.64
C187: (0,90+1,40)*2*0,70 | E187: 3.22
C188: (1,90+2,40)*2*0,70 | E188: 6.02
C189: 513:(1,50+1,00)*2*0,70 | E189: 3.5
C190: (0,90+1,20)*2*0,70 | E190: 2.94
C191: 504:(1,30+2,50)*2*0,70 | E191: 5.32
C192: 509:(2,20+1,30)*2*0,70 | E192: 4.9
A193: =A139+1 -> 12 | B193: 612 47 poz.6 | C193: Stavební zapravení svislých drážek po rozvodech ZTI | D193: m2 | E193: =SUM(E194:E197) -> 21 | G193: =E193*F193 -> 0
C194: přízemí:0,60*3,55*2 | E194: 4.26
C195: mezipatro:0,60*3,70*3 | E195: 6.66
C196: 3.patro:0,60*2,80*3 | E196: 5.04
C197: 4.patro:0,60*2,80*3 | E197: 5.04
A198: =A193+1 -> 13 | B198: 612 47 poz.7 | C198: Stavební zapravení svislých drážek po rozvodech VZT | D198: m2 | E198: =SUM(E199:E202) -> 10.5 | G198: =E198*F198 -> 0
C199: přízemí:0,30*3,55*2 | E199: 2.13
C200: mezipatro:0,30*3,70*3 | E200: 3.33
C201: 3.patro:0,30*2,80*3 | E201: 2.52
C202: 4.patro:0,30*2,80*3 | E202: 2.52
A203: Díl: | B203: 63 | C203: Podlahy a podlahové konstrukce | G203: =SUBTOTAL(9,G204:G205) -> 0
A204: =A198+1 -> 14 | B204: 632 44-12 | C204: Samonivelační stěrky tl.5mm | D204: m2 | E204: 174.6 | G204: =E204*F204 -> 0
C205: P1:174,6 | E205: 174.6
A206: Díl: | B206: 94 | C206: Lešení a stavební výtahy | G206: =SUBTOTAL(9,G207:G208) -> 0
A207: =A204+1 -> 15 | B207: 941 95-5002.R00 | C207: Lešení lehké pomocné, výška podlahy do 1,9 m | D207: m2 | E207: 132.74 | G207: =E207*F207 -> 0
C208: pro podhledy:132,74 | E208: 132.74
A209: Díl: | B209: 95 | C209: Dokončovací kce na pozem.stav. | G209: =SUBTOTAL(9,G210:P212) -> 0
A210: =A207+1 -> 16 | B210: 952 90-1111.R00 | C210: Vyčištění budov o výšce podlaží do 4 m | D210: m2 | E210: 367.48 | G210: =E210*F210 -> 0
C211: 367,48 | E211: 367.48
A212: =A210+1 -> 17 | B212: 900 - .R02 | C212: HZS - nezměřitelné práce | D212: h | E212: 100 | G212: =E212*F212 -> 0
A213: Díl: | B213: 96 | C213: Bourání konstrukcí | G213: =SUBTOTAL(9,G214:G355) -> 0
A214: =A212+1 -> 18 | B214: 962 03-1133.R00 | C214: Bourání příček cihelných tl. 15 cm | D214: m2 | E214: 32.1367 | G214: =E214*F214 -> 0
C215: ;A | E215: 0
C216: mezipatro:1,75*3,00+1,375*3,01+0,94*3,00 | E216: 12.2088
C217: 1.patro:1,715*3,00 | E217: 5.145
C218: 3.patro:2,165*3,02+1,25*3,02 | E218: 10.3133
C219: 1,48*3,02 | E219: 4.4696
A220: =A214+1 -> 19 | B220: 968 06-1125.R00 | C220: Vyvěšení dřevěných dveřních křídel pl. do 2 m2 | D220: kus | E220: 6 | G220: =E220*F220 -> 0
C221: ;C | E221: 0
C222: 2.patro:3 | E222: 3
C223: 3.patro:3 | E223: 3
A224: =A220+1 -> 20 | B224: 968 06-245 | C224: Vybourání dveřních zárubní pl. do 2 m2 | D224: m2 | E224: 28.706 | G224: =E224*F224 -> 0
C225: ;C | E225: 0
C226: 2.patro:0,80*1,97*3 | E226: 4.728
C227: 3.patro:0,80*1,97*3 | E227: 4.728
C228: 4.patro:0,80*1,97 | E228: 1.576
A229: =A224+1 -> 21 | B229: 965 08-1713.R00 | C229: Bourání dlaždic keramických tl. 1 cm, nad 1 m2 | D229: m2 | E229: 62.43 | G229: =E229*F229 -> 0
C230: ;M | E230: 0
C231: přízemí:2,30+1,75+3,80 | E231: 7.85
C232: 1.patro:7,10+2,90 | E232: 10
C233: 2.patro:1,50+1,50+1,50 | E233: 4.5
C234: 3.patro:11,71+2,68 | E234: 14.39
C235: 4.patro:5,51+2*1,40+1,70+1,17+1,17 | E235: 12.35
C236: 1,57+2,27+1,70+7,80 | E236: 13.34
A237: =A229+1 -> 22 | B237: 978 05-9521.R00 | C237: Odsekání vnitřních obkladů stěn do 2 m2 | D237: m2 | E237: =SUM(E238:E270) -> 354.3184 | G237: =E237*F237 -> 0
C238: ;M | E238: 0
C239: ;přízemí | E239: 0
... 377 more rows

Sheet 10_SO 04 - Silnoproud
A1: =CONCATENATE('Rekapitulace stavby'!C63,"_",'Rekapitulace stavby'!I63) -> 10_SO 04 - Silnoproudá elektroinstalace
A3: SPECIFIKACE DODÁVEK A PRACÍ
A4: Název akce:
A5: ='Identifikační údaje'!B1 -> ČRo Brno – III. etapa rekonstrukce budovy Beethovenova 25/4
A7: Zadavatel: | C7: ='Identifikační údaje'!E7 -> Český rozhlas, Vinohradská 12, 120 99 Praha 2
B8: IČ: | C8: ='Identifikační údaje'!B9 -> 45245053
B9: DIČ: | C9: ='Identifikační údaje'!B10 -> CZ45245053
A11: Projektant: | C11: ='Identifikační údaje'!E12 -> Ing. arch. Klement Miloš, Nejedlého 381/19, 638 00 Brno - Lesná
B12: IČ: | C12: ='Identifikační údaje'!B14 -> 15188736
B13: DIČ: | C13: ='Identifikační údaje'!B15 -> CZ6101021344
A15: Uchazeč: | C15: ='Identifikační údaje'!E19 -> , ,
B16: IČ: | C16: ='Identifikační údaje'!B23 -> 0
B17: DIČ: | C17: ='Identifikační údaje'!B24 -> 0
A19: Místo stavby: | C19: ='Identifikační údaje'!B3 -> Budova Českého rozhlasu Brno na adrese Beethovenova 25/4, 657 42 Brno
A21: Datum: | C21: ='Identifikační údaje'!B5 -> 00:00:00
A23: =CONCATENATE("REKAPITULACE DODÁVEK A PRACÍ OBJEKTU ",'Rekapitulace stavby'!I63) -> REKAPITULACE DODÁVEK A PRACÍ OBJEKTU SO 04 - Silnoproudá elektroinstalace
A25: P.č. | B25: Ozn. | D25: Materiál celkem | F25: Montáž celkem | H25: M+M celkem
A27: =B43 -> A. | B27: =C43 -> Svítidla a příslušenství | D27: =F43 -> 0 | F27: =H43 -> 0 | H27: =D27+F27 -> 0
A28: =B102 -> B. | B28: =C102 -> Spínače, zásuvky a ostatní přístroje | D28: =F102 -> 0 | F28: =H102 -> 0 | H28: =D28+F28 -> 0
A29: =B115 -> C. | B29: =C115 -> Instalační, úložný a ochranný materiál | D29: =F115 -> 0 | F29: =H115 -> 0 | H29: 0
A30: =B120 -> D. | B30: =C120 -> Kabely a vodiče | D30: =F120 -> 0 | F30: =H120 -> 0 | H30: 0
A31: =B126 -> E. | B31: =C126 -> Pospojování, uzemnění | D31: =F126 -> 0 | F31: =H126 -> 0 | H31: 0
A32: =B130 -> F. | B32: =C130 -> Rozvaděče | D32: =F130 -> 0 | F32: =H130 -> 0 | H32: 0
A33: =B134 -> G. | B33: =C134 -> Ostatní | D33: =F134 -> 0 | F33: =H134 -> 0 | H33: 0
A35: =CONCATENATE("CELKEM ZA OBJEKT ",'Rekapitulace stavby'!I63, " v Kč bez DPH") -> CELKEM ZA OBJEKT SO 04 - Silnoproudá elektroinstalace v Kč bez DPH | H35: =SUBTOTAL(9,H27:I33) -> 0
A38: Textová, výkresová i tabulková část projektové dokumentace tvoří jeden vzájemně se doplňující a provázaný celek. Jednotliví účastníci výběrového řízení se musí seznámit s projektojektovou dokumentací v návaznosti na soupis prací a na základě těchto informací části díla nacenit. Dále je potřeba při stanovení ceny dle vykázané výměry započítat všechny předpokládané doplňkové prvky a činnosti s touto položkou související tak, aby cena byla kompletní a prvek funkční.
A40: 1
F41: Materiál | H41: Montáž
A42: poř.č. | B42: položka | C42: popis položky | D42: MJ | E42: množství | F42: jedn.cena | G42: celkem [Kč] | H42: jedn.cena | I42: celkem [Kč]
B43: A. | C43: Svítidla a příslušenství | F43: =SUBTOTAL(9,G45:G100) -> 0 | H43: =SUBTOTAL(9,I45:I100) -> 0
C44: (komplet, včetně zdrojů, závěsů, pomocného materiálu, osazení zapojení, vyzkoušení apod.)
A45: 1 | C45: svítidlo typ A13 - Svítidlo stropní přisazené, bílá barva, difuzor opál, odsazený, Ø 195 mm, v=131 mm, LED 35W, 3000 K, 3000 lm, IP40 | D45: ks | E45: 2 | G45: =E45*F45 -> 0 | I45: =E45*H45 -> 0
A46: =A45+1 -> 2 | C46: svítidlo typ A5 - Svítidlo přisazené, bílá barva, difuzor sklo mat, Ø 267 mm, v=80 mm, 2xE27, 2x20W max | D46: ks | E46: 6 | G46: =E46*F46 -> 0 | I46: =E46*H46 -> 0
A47: 3 | C47: svítidlo typ A6 - Svítidlo stropní přisazené, bílá barva, difuzor opál, odsazený, Ø 130 mm, v=100 mm, LED 15W, 3000 K, 1280 lm, IP40 | D47: ks | E47: 1 | G47: 0 | I47: =E47*H47 -> 0
A48: 4 | C48: svítidlo typ C13 - Svítidlo vestavné do podhledu SDK, korpus Al, bílá barva, difuzor opál - odsazený, Ø 110 mm, vestavná hloubka 70 mm, LED SMD 2835, 13W, 3000 K, 925 lm, 90°, IP54 | D48: ks | E48: 51 | G48: 0 | I48: =E48*H48 -> 0
A49: 5 | C49: svítidlo typ C14 - Svítidlo vestavné do podhledu SDK, bílý rámeček, difuzor mat, Ø 230 mm, vestavná hloubka 150 mm, 2x E27, 2x20W max | D49: ks | E49: 2 | G49: 0 | I49: =E49*H49 -> 0
A50: 6 | C50: svítidlo typ C15 - Svítidlo vestavné do podhledu SDK, bílý rámeček, difuzor mat, Ø 190 mm, vestavná hloubka 150 mm, 2x E27, 2x15W max | D50: ks | E50: 1 | G50: 0 | I50: =E50*H50 -> 0
A51: 7 | C51: svítidlo typ C8 Svítidlo vestavné do podhledu SDK, bílá barva, odsazený světelný zdroj, Ø 69 mm, vest. hloubka 86 mm, LED 7,5W, 3000 K, 1000 lm, 33° | D51: ks | E51: 5 | G51: 0 | I51: 0
A52: 8 | C52: svítidlo typ D6 - Svítidlo nástěnné, Al+difuzor opál, Ø trubice 42 mm, l=620 mm, pro zářivku 1x14W, G5, EP | D52: ks | E52: 3 | G52: 0 | I52: 0
A53: 9 | C53: svítidlo typ E3-1 - Ukončující profil podhledu SDK, Al, difuzor PC opál, vč. LED 9W/m,3000 K, 720 lm/m, 12V DC, délka 0,75 m | D53: ks | E53: 1 | G53: 0 | I53: 0
A54: 10 | C54: svítidlo typ E3-10 - Ukončující profil podhledu SDK, Al, difuzor PC opál, vč. LED 9W/m,3000 K, 720 lm/m, 12V DC, délka 0,85m | D54: ks | E54: 1 | G54: 0 | I54: 0
A55: 11 | C55: svítidlo typ E3-11 - Ukončující profil podhledu SDK, Al, difuzor PC opál, vč. LED 9W/m,3000 K, 720 lm/m, 12V DC, délka 0,85 | D55: ks | E55: 1 | G55: 0 | I55: 0
A56: 12 | C56: svítidlo typ E3-12 - Ukončující profil podhledu SDK, Al, difuzor PC opál, vč. LED 9W/m,3000 K, 720 lm/m, 12V DC, délka 2,85m | D56: ks | E56: 1 | G56: 0 | I56: 0
A57: 13 | C57: svítidlo typ E3-13 - Ukončující profil podhledu SDK, Al, difuzor PC opál, vč. LED 9W/m,3000 K, 720 lm/m, 12V DC, délka 0,85m | D57: ks | E57: 1 | G57: 0 | I57: 0
A58: 14 | C58: svítidlo typ E3-14 - Ukončující profil podhledu SDK, Al, difuzor PC opál, vč. LED 9W/m,3000 K, 720 lm/m, 12V DC, délka 0,85m | D58: ks | E58: 1 | G58: 0 | I58: 0
A59: 15 | C59: svítidlo typ E3-15 - Ukončující profil podhledu SDK, Al, difuzor PC opál, vč. LED 9W/m,3000 K, 720 lm/m, 12V DC, délka 2,25m | D59: ks | E59: 1 | G59: 0 | I59: 0
A60: 16 | C60: svítidlo typ E3-16 - Ukončující profil podhledu SDK, Al, difuzor PC opál, vč. LED 9W/m,3000 K, 720 lm/m, 12V DC, délka 1m | D60: ks | E60: 1 | G60: 0 | I60: 0
A61: 17 | C61: svítidlo typ E3-17 - Ukončující profil podhledu SDK, Al, difuzor PC opál, vč. LED 9W/m,3000 K, 720 lm/m, 12V DC, délka 1m | D61: ks | E61: 1 | G61: 0 | I61: 0
A62: 18 | C62: svítidlo typ E3-19 - Ukončující profil podhledu SDK, Al, difuzor PC opál, vč. LED 9W/m,3000 K, 720 lm/m, 12V DC, délka 1,4m | D62: ks | E62: 1 | G62: 0 | I62: 0
A63: 19 | C63: svítidlo typ E3-2 - Ukončující profil podhledu SDK, Al, difuzor PC opál, vč. LED 9W/m,3000 K, 720 lm/m, 12V DC, délka 0,8m | D63: ks | E63: 1 | G63: 0 | I63: 0
A64: 20 | C64: svítidlo typ E3-20 - Ukončující profil podhledu SDK, Al, difuzor PC opál, vč. LED 9W/m,3000 K, 720 lm/m, 12V DC, délka 2,5m | D64: ks | E64: 1 | G64: 0 | I64: 0
A65: 21 | C65: svítidlo typ E3-21 - Ukončující profil podhledu SDK, Al, difuzor PC opál, vč. LED 9W/m,3000 K, 720 lm/m, 12V DC, délka 0,95m | D65: ks | E65: 1 | G65: 0 | I65: 0
A66: 22 | C66: svítidlo typ E3-22 - Ukončující profil podhledu SDK, Al, difuzor PC opál, vč. LED 9W/m,3000 K, 720 lm/m, 12V DC, délka 0,95m | D66: ks | E66: 1 | G66: 0 | I66: 0
A67: 23 | C67: svítidlo typ E3-23 - Ukončující profil podhledu SDK, Al, difuzor PC opál, vč. LED 9W/m,3000 K, 720 lm/m, 12V DC, délka 2,7m | D67: ks | E67: 1 | G67: 0 | I67: 0
A68: 24 | C68: svítidlo typ E3-24 - Ukončující profil podhledu SDK, Al, difuzor PC opál, vč. LED 9W/m,3000 K, 720 lm/m, 12V DC, délka 0,95m | D68: ks | E68: 1 | G68: 0 | I68: 0
A69: 25 | C69: svítidlo typ E3-25 - Ukončující profil podhledu SDK, Al, difuzor PC opál, vč. LED 9W/m,3000 K, 720 lm/m, 12V DC, délka 0,85m | D69: ks | E69: 1 | G69: 0 | I69: 0
A70: 26 | C70: svítidlo typ E3-26 - Ukončující profil podhledu SDK, Al, difuzor PC opál, vč. LED 9W/m,3000 K, 720 lm/m, 12V DC, délka 2,15m | D70: ks | E70: 1 | G70: 0 | I70: 0
A71: 27 | C71: svítidlo typ E3-27 - Ukončující profil podhledu SDK, Al, difuzor PC opál, vč. LED 9W/m,3000 K, 720 lm/m, 12V DC, délka 2m | D71: ks | E71: 1 | G71: 0 | I71: 0
A72: 28 | C72: svítidlo typ E3-28 - Ukončující profil podhledu SDK, Al, difuzor PC opál, vč. LED 9W/m,3000 K, 720 lm/m, 12V DC, délka 1,6m | D72: ks | E72: 1 | G72: 0 | I72: 0
A73: 29 | C73: svítidlo typ E3-29 - Ukončující profil podhledu SDK, Al, difuzor PC opál, vč. LED 9W/m,3000 K, 720 lm/m, 12V DC, délka 1,6m | D73: ks | E73: 1 | G73: 0 | I73: 0
A74: 30 | C74: svítidlo typ E3-3 - Ukončující profil podhledu SDK, Al, difuzor PC opál, vč. LED 9W/m,3000 K, 720 lm/m, 12V DC, délka 2,15m | D74: ks | E74: 1 | G74: 0 | I74: 0
A75: 31 | C75: svítidlo typ E3-30 - Ukončující profil podhledu SDK, Al, difuzor PC opál, vč. LED 9W/m,3000 K, 720 lm/m, 12V DC, délka 2,6m | D75: ks | E75: 1 | G75: 0 | I75: 0
A76: 32 | C76: svítidlo typ E3-31 - Ukončující profil podhledu SDK, Al, difuzor PC opál, vč. LED 9W/m,3000 K, 720 lm/m, 12V DC, délka 0,85m | D76: ks | E76: 1 | G76: 0 | I76: 0
A77: 33 | C77: svítidlo typ E3-32 - Ukončující profil podhledu SDK, Al, difuzor PC opál, vč. LED 9W/m,3000 K, 720 lm/m, 12V DC, délka 0,85m | D77: ks | E77: 1 | G77: 0 | I77: 0
A78: 34 | C78: svítidlo typ E3-33 - Ukončující profil podhledu SDK, Al, difuzor PC opál, vč. LED 9W/m,3000 K, 720 lm/m, 12V DC, délka 1,3m | D78: ks | E78: 1 | G78: 0 | I78: 0
A79: 35 | C79: svítidlo typ E3-34 - Ukončující profil podhledu SDK, Al, difuzor PC opál, vč. LED 9W/m,3000 K, 720 lm/m, 12V DC, délka 1,3m | D79: ks | E79: 1 | G79: 0 | I79: 0
A80: 36 | C80: svítidlo typ E3-36 - Ukončující profil podhledu SDK, Al, difuzor PC opál, vč. LED 9W/m,3000 K, 720 lm/m, 12V DC, délka 0,9m | D80: ks | E80: 1 | G80: 0 | I80: 0
A81: 37 | C81: svítidlo typ E3-37 - Ukončující profil podhledu SDK, Al, difuzor PC opál, vč. LED 9W/m,3000 K, 720 lm/m, 12V DC, délka 0,9m | D81: ks | E81: 1 | G81: 0 | I81: 0
A82: 38 | C82: svítidlo typ E3-38 - Ukončující profil podhledu SDK, Al, difuzor PC opál, vč. LED 9W/m,3000 K, 720 lm/m, 12V DC, délka 0,9m | D82: ks | E82: 1 | G82: 0 | I82: 0
A83: 39 | C83: svítidlo typ E3-39 - Ukončující profil podhledu SDK, Al, difuzor PC opál, vč. LED 9W/m,3000 K, 720 lm/m, 12V DC, délka 1,7m | D83: ks | E83: 1 | G83: 0 | I83: 0
A84: 40 | C84: svítidlo typ E3-4 - Ukončující profil podhledu SDK, Al, difuzor PC opál, vč. LED 9W/m,3000 K, 720 lm/m, 12V DC, délka 0,85m | D84: ks | E84: 1 | G84: 0 | I84: 0
A85: 41 | C85: svítidlo typ E3-40 - Ukončující profil podhledu SDK, Al, difuzor PC opál, vč. LED 9W/m,3000 K, 720 lm/m, 12V DC, délka 1,5m | D85: ks | E85: 1 | G85: 0 | I85: 0
A86: 42 | C86: svítidlo typ E3-41 - Ukončující profil podhledu SDK, Al, difuzor PC opál, vč. LED 9W/m,3000 K, 720 lm/m, 12V DC, délka 0,95m | D86: ks | E86: 1 | G86: 0 | I86: 0
A87: 43 | C87: svítidlo typ E3-42 - Ukončující profil podhledu SDK, Al, difuzor PC opál, vč. LED 9W/m,3000 K, 720 lm/m, 12V DC, délka 0,95m | D87: ks | E87: 1 | G87: 0 | I87: 0
A88: 44 | C88: svítidlo typ E3-5 - Ukončující profil podhledu SDK, Al, difuzor PC opál, vč. LED 9W/m,3000 K, 720 lm/m, 12V DC, délka 0,85m | D88: ks | E88: 1 | G88: 0 | I88: 0
A89: 45 | C89: svítidlo typ E3-50 - Ukončující profil podhledu SDK, Al, difuzor PC opál, vč. LED 9W/m,3000 K, 720 lm/m, 12V DC, délka 0,9m | D89: ks | E89: 1 | G89: 0 | I89: 0
A90: 46 | C90: svítidlo typ E3-51 - Ukončující profil podhledu SDK, Al, difuzor PC opál, vč. LED 9W/m,3000 K, 720 lm/m, 12V DC, délka 0,9m | D90: ks | E90: 1 | G90: 0 | I90: 0
A91: 47 | C91: svítidlo typ E3-52 - Ukončující profil podhledu SDK, Al, difuzor PC opál, vč. LED 9W/m,3000 K, 720 lm/m, 12V DC, délka 1,3m | D91: ks | E91: 1 | G91: 0 | I91: 0
A92: 48 | C92: svítidlo typ E3-53 - Ukončující profil podhledu SDK, Al, difuzor PC opál, vč. LED 9W/m,3000 K, 720 lm/m, 12V DC, délka 1,4m | D92: ks | E92: 1 | G92: 0 | I92: 0
A93: 49 | C93: svítidlo typ E3-54 - Ukončující profil podhledu SDK, Al, difuzor PC opál, vč. LED 9W/m,3000 K, 720 lm/m, 12V DC, délka 2,25m | D93: ks | E93: 1 | G93: 0 | I93: 0
A94: 50 | C94: svítidlo typ E3-55 - Ukončující profil podhledu SDK, Al, difuzor PC opál, vč. LED 9W/m,3000 K, 720 lm/m, 12V DC, délka 1,3 | D94: ks | E94: 1 | G94: 0 | I94: 0
A95: 51 | C95: svítidlo typ E3-56 - Ukončující profil podhledu SDK, Al, difuzor PC opál, vč. LED 9W/m,3000 K, 720 lm/m, 12V DC, délka 1,7m | D95: ks | E95: 1 | G95: 0 | I95: 0
A96: 52 | C96: svítidlo typ E3-57 - Ukončující profil podhledu SDK, Al, difuzor PC opál, vč. LED 9W/m,3000 K, 720 lm/m, 12V DC, délka 0,8m | D96: ks | E96: 1 | G96: 0 | I96: 0
A97: 53 | C97: svítidlo typ E3-6 - Ukončující profil podhledu SDK, Al, difuzor PC opál, vč. LED 9W/m,3000 K, 720 lm/m, 12V DC, délka 0,85m | D97: ks | E97: 1 | G97: 0 | I97: 0
A98: 54 | C98: svítidlo typ E3-7 - Ukončující profil podhledu SDK, Al, difuzor PC opál, vč. LED 9W/m,3000 K, 720 lm/m, 12V DC, délka 0,85m | D98: ks | E98: 1 | G98: 0 | I98: 0
A99: 55 | C99: svítidlo typ E3-8 - Ukončující profil podhledu SDK, Al, difuzor PC opál, vč. LED 9W/m,3000 K, 720 lm/m, 12V DC, délka 1,6m | D99: ks | E99: 1 | G99: 0 | I99: 0
A100: 56 | C100: svítidlo typ E3-9 - Ukončující profil podhledu SDK, Al, difuzor PC opál, vč. LED 9W/m,3000 K, 720 lm/m, 12V DC, délka 2,3m | D100: ks | E100: 1 | G100: 0 | I100: =E100*H100 -> 0
B102: B. | C102: Spínače, zásuvky a ostatní přístroje | F102: =SUBTOTAL(9,G105:G113) -> 0 | H102: =SUBTOTAL(9,I105:I113) -> 0
C103: (komplet, včetně příslušenství, pomocného materiálu, osazení, zapojení, vyzkoušení apod.)
C104: Návazně na předchozí etapy rekonstrukce budou osaztovány výrobky z řady ABB Time
A105: =A100+1 -> 57 | C105: Domovní spínač řazení 1, komplet | D105: ks | E105: 47 | G105: =E105*F105 -> 0 | I105: =E105*H105 -> 0
A106: 58 | C106: Domovní spínač řazení 5, komplet | D106: ks | E106: 25 | G106: 0 | I106: 0
A107: 59 | C107: Domovní tlačítko řazení 1/0 s popisem větrání , komplet | D107: ks | E107: 29 | G107: 0 | I107: 0
A108: 60 | C108: Časový doběh pro ventilátor montáž do krabice | D108: ks | E108: 18 | G108: 0 | I108: 0
A109: 61 | C109: Napojení VZT zařízení 230V, dle montážního návodu | D109: ks | E109: 18 | G109: 0 | I109: 0
A110: =A109+1 -> 62 | C110: Napojení napajecího zdroje splachovačů , dle montážního návodu | D110: ks | E110: 4 | G110: 0 | I110: 0
A111: =A110+1 -> 63 | C111: Domovní zásuvka 230V 16A,napájení z trafa komplet | D111: ks | E111: 5 | G111: 0 | I111: 0
A112: =A111+1 -> 64 | C112: Napojení osoušeče rukou 230V, dle montážního návodu | D112: ks | E112: 21 | G112: 0 | I112: 0
A113: =A112+1 -> 65 | C113: Napojení SLP zařízení 230V, dle montážního návodu | D113: ks | E113: 5 | G113: 0 | I113: 0
B115: C. | C115: Instalační, úložný a ochranný materiál | F115: =SUBTOTAL(9,G116:G118) -> 0 | H115: =SUBTOTAL(9,I115:I118) -> 0
C116: (komplet, včetně příslušenství, pomocného materiálu, výkopu, záhozu výkopu, vytyčení trasy, osazení, zapojení, vyzkoušení apod.)
A117: =A113+1 -> 66 | C117: Krabice přístrojová | D117: ks | E117: 106 | G117: =E117*F117 -> 0 | I117: =E117*H117 -> 0
A118: =A117+1 -> 67 | C118: Krabice odbočná včetně wago svorek | D118: ks | E118: 50 | G118: =E118*F118 -> 0 | I118: =E118*H118 -> 0
B120: D. | C120: Kabely a vodiče | F120: =SUBTOTAL(9,G121:G124) -> 0 | H120: =SUBTOTAL(9,I120:I124) -> 0
C121: (komplet, včetně vyhotovení drážky, zapravení drážky, vytyčení trasy, pomocného materiálu, příchytek, spojek, odlehčovacích oblouků, zapojení, vyzkoušení apod.)
A122: =A118+1 -> 68 | C122: CYKY J 3x1,5 | D122: m | E122: 150 | G122: =E122*F122 -> 0 | I122: =E122*H122 -> 0
A123: =A122+1 -> 69 | C123: CYKY J 3x2,5 | D123: m | E123: 60 | G123: =E123*F123 -> 0 | I123: =E123*H123 -> 0
A124: =A123+1 -> 70 | C124: CYKY O 3x1,5 | D124: m | E124: 40 | G124: =E124*F124 -> 0 | I124: =E124*H124 -> 0
B126: E. | C126: Pospojování, uzemnění | F126: =SUBTOTAL(9,G127:G128) -> 0 | H126: =SUBTOTAL(9,I126:I128) -> 0
C127: (komplet, včetně příslušenství, svorek, pomocného materiálu, osazení, zapojení, vyzkoušení apod.)
A128: =A124+1 -> 71 | C128: Vodič CYA4 žlutozelený včetně svorek - doplňkové pospojení | D128: m | E128: 60 | G128: =E128*F128 -> 0 | I128: =E128*H128 -> 0
B130: F. | C130: Rozvaděče | F130: =SUBTOTAL(9,G131:G132) -> 0 | H130: =SUBTOTAL(9,I130:I132) -> 0
C131: (komplet, včetně příslušenství, svorek, pomocného materiálu, osazení, zapojení, vyzkoušení apod.)
A132: =A128+1 -> 72 | C132: Doplnění stávajícího rozvaděče R11 | D132: ks | E132: 1 | G132: =E132*F132 -> 0 | I132: =E132*H132 -> 0
B134: G. | C134: Ostatní | F134: =SUBTOTAL(9,G135:G140) -> 0 | H134: =SUBTOTAL(9,I134:I140) -> 0
A135: =A132+1 -> 73 | C135: Výchozí revize | D135: hod | E135: 10 | G135: =E135*F135 -> 0 | I135: =E135*H135 -> 0
A136: =A135+1 -> 74 | C136: Demontáže včetně likvidace odpadu | D136: hod | E136: 20 | G136: =E136*F136 -> 0 | I136: 0
A137: =A136+1 -> 75 | C137: Stavební přípomoce | D137: kpl | E137: 1 | F137: --- | G137: --- | I137: 0
A138: =A137+1 -> 76 | C138: Pomocný a podružný materiál upevňovací | D138: kpl | E138: 1 | G138: =E138*F138 -> 0 | I138: 0
A139: =A138+1 -> 77 | C139: Zednické výpomoci (PPV) | D139: kpl | E139: 1 | F139: --- | G139: --- | I139: 0
A140: =A139+1 -> 78 | C140: Doprava materiálu | D140: kpl | E140: 1 | F140: --- | G140: --- | I140: 0

Sheet 011_SO 04 - VZT
A1: =CONCATENATE('Rekapitulace stavby'!C64,"_",'Rekapitulace stavby'!I64) -> 11_SO 04 - Vzduchotechnika a chlazení
A3: SPECIFIKACE DODÁVEK A PRACÍ
A4: Název akce:
A5: ='Identifikační údaje'!B1 -> ČRo Brno – III. etapa rekonstrukce budovy Beethovenova 25/4
A7: Zadavatel: | C7: ='Identifikační údaje'!E7 -> Český rozhlas, Vinohradská 12, 120 99 Praha 2 | D7: Projektant: | F7: ='Identifikační údaje'!E12 -> Ing. arch. Klement Miloš, Nejedlého 381/19, 638 00 Brno - Lesná
B8: IČ | C8: ='Identifikační údaje'!B9 -> 45245053 | E8: IČ | F8: ='Identifikační údaje'!B14 -> 15188736
B9: DIČ | C9: ='Identifikační údaje'!B10 -> CZ45245053 | E9: DIČ | F9: ='Identifikační údaje'!B15 -> CZ6101021344
A11: Uchazeč: | C11: ='Identifikační údaje'!E19 -> , , | D11: Místo stavby: | F11: ='Identifikační údaje'!B3 -> Budova Českého rozhlasu Brno na adrese Beethovenova 25/4, 657 42 Brno
B12: IČ | C12: ='Identifikační údaje'!B23 -> 0
B13: DIČ | C13: ='Identifikační údaje'!B24 -> 0
A15: Datum: | C15: ='Identifikační údaje'!B5 -> 00:00:00
A17: P.Č. | B17: Č.Z | C17: Popis položky: | D17: Měrná jednotka | F17: Cena | J17: Poznámka
F18: Jednotková | H18: Celkem
D19: - | E19: počet | F19: Dodávka | G19: Montáž | H19: Dodávka | I19: Montáž
F20: [ Kč ] | G20: [ Kč ] | H20: [ Kč ] | I20: [ Kč ]
C21: =CONCATENATE("REKAPITULACE OBJEKTU ",'Rekapitulace stavby'!I64) -> REKAPITULACE OBJEKTU SO 04 - Vzduchotechnika a chlazení
A22: 1 | B22: 1 | C22: =C53 -> Zařízení č.3 - Větrání sociálních zařízení | D22: kpl | E22: 1 | F22: - | G22: - | H22: =H75 -> 0 | I22: =I75 -> 0 | J22: -
C23: Mezisoučet | H23: =SUM(H22:H22) -> 0 | I23: =SUM(I22:I22) -> 0 | J23: Kč bez DPH
A25: =A22+1 -> 2 | B25: - | C25: Protipožární ucpávky | D25: ks | E25: 8 | H25: =E25*F25 -> 0 | I25: =E25*G25 -> 0 | J25: -
A26: =A25+1 -> 3 | B26: - | C26: Materiál pro spoje, montáž, závěsy, atd. | D26: kpl | E26: 1 | H26: =E26*F26 -> 0 | I26: =E26*G26 -> 0 | J26: -
A27: =A26+1 -> 4 | B27: - | C27: Doprava | D27: kpl | E27: 1 | F27: - | H27: - | I27: =E27*G27 -> 0 | J27: -
A28: 5 | B28: - | C28: Přesuny | D28: kpl | E28: 1 | F28: - | H28: - | I28: 0 | J28: -
A29: 6 | B29: - | C29: Uvedení do provozu, zaregulování, vyzkoušení, předávací řízení | D29: kpl | E29: 1 | F29: - | H29: - | I29: 0 | J29: -
A30: 7 | B30: - | C30: Inženýrská a koordinační činnost | D30: kpl | E30: 1 | F30: - | H30: - | I30: 0 | J30: -
A31: 8 | B31: - | C31: Prováděcí a výrobní projektová dokumentace | D31: kpl | E31: 1 | F31: - | H31: - | I31: 0 | J31: -
A32: 9 | B32: - | C32: Dokumentace konečného provedení, návody, atesty, prohlášení o shodě | D32: kpl | E32: 1 | F32: - | H32: - | I32: 0 | J32: -
C33: Mezisoučet | H33: =SUM(H25:H32) -> 0 | I33: =SUM(I25:I32) -> 0 | J33: Kč bez DPH
A35: CELKEM D+M | C35: =CONCATENATE("OBJEKT ",'Rekapitulace stavby'!I64," v Kč bez DPH") -> OBJEKT SO 04 - Vzduchotechnika a chlazení v Kč bez DPH | H35: =H23+H33+I23+I33 -> 0
A49: P.Č. | B49: Č.P. | C49: Popis položky: | D49: Měrná jednotka | F49: Cena | J49: Poznámka
F50: Jednotková cena | H50: Celková cena
D51: - | E51: počet | F51: Dodávka | G51: Montáž | H51: Dodávka | I51: Montáž
F52: [ Kč ] | G52: [ Kč ] | H52: [ Kč ] | I52: [ Kč ]
C53: Zařízení č.3 - Větrání sociálních zařízení
A54: =A32+1 -> 10 | B54: 3.1 | C54: Ventilátor - referenční výrobek Mixvent TD 800/200 Silent | D54: ks | E54: 1 | H54: =E54*F54 -> 0 | I54: =E54*G54 -> 0
A55: =A54+1 -> 11 | C55: Rychloupínací spona - referenční výrobek VBM 200 | D55: ks | E55: 2 | H55: =E55*F55 -> 0 | I55: =E55*G55 -> 0
A56: =A55+1 -> 12 | C56: Zpětná klapka - referenční výrobek RSK 200 | D56: ks | E56: 1 | H56: 0 | I56: 0
A57: 13 | B57: 3.2 | C57: Ventilátor - referenční výrobek Mixvent TD 500/160 Silent | D57: ks | E57: 11 | H57: 0 | I57: 0
A58: 14 | C58: Rychloupínací spona - referenční výrobek VBM 160 | D58: ks | E58: 22 | H58: 0 | I58: 0
A59: 15 | C59: Zpětná klapka - referenční výrobek RSK 160 | D59: ks | E59: 11 | H59: 0 | I59: 0
A60: 16 | B60: 3.3 | C60: Ventilátor - referenční výrobek Mixvent TD 350/125 Silent | D60: ks | E60: 7 | H60: 0 | I60: 0
A61: 17 | C61: Rychloupínací spona - referenční výrobek VBM 125 | D61: ks | E61: 14 | H61: 0 | I61: 0
A62: 18 | C62: Zpětná klapka - referenční výrobek RSK 125 | D62: ks | E62: 7 | H62: 0 | I62: 0
A63: 19 | B63: 3.4 | C63: Talířový ventil - referenční výrobek DAVBR 125 | D63: ks | E63: 71 | H63: 0 | I63: 0
A64: 20 | B64: 3.5 | C64: Talířový ventil - referenční výrobek DAVBR 200 | D64: ks | E64: 2 | H64: 0 | I64: 0
A65: 21 | B65: 3.6 | C65: Stěnová mřížka - referenční výrobek NOVA - L - 1 - 1 - 300 x 100 - 20,0 | D65: ks | E65: 140 | H65: 0 | I65: 0
A66: 22 | B66: 0 | C66: Trouba SPIRO - 125 - včetně tvarovek | D66: bm | E66: 10 | H66: 0 | I66: 0
A67: 23 | B67: 0 | C67: Trouba SPIRO - 160 - včetně tvarovek | D67: bm | E67: 36 | H67: 0 | I67: 0
A68: 24 | B68: 0 | C68: Trouba SPIRO - 200 - včetně tvarovek | D68: bm | E68: 16 | H68: 0 | I68: 0
A69: 25 | B69: 0 | C69: Trouba SPIRO - 250 - včetně tvarovek | D69: bm | E69: 22 | H69: 0 | I69: 0
A70: 26 | C70: Čtyřhranné ocel. potrubí sk. I včetně tvarovek | D70: m2 | E70: 26 | H70: 0 | I70: 0
A71: 27 | C71: Ohebná hadice Sonodec 25 - 127 | D71: bm | E71: 264 | H71: 0 | I71: 0
A72: 28 | C72: Ohebná hadice Sonodec 25 - 203 | D72: bm | E72: 12 | H72: 0 | I72: 0
A73: 29 | C73: Ohebná hadice Sonodec 25 - 160 | D73: bm | E73: 44 | H73: 0 | I73: 0
A74: 30 | C74: Tep a protihluk.izol.tl. 6 cm - venkovní s oplechováním | D74: m2 | E74: 5 | H74: 0 | I74: 0
A75: =CONCATENATE(C53," - celkem") -> Zařízení č.3 - Větrání sociálních zařízení - celkem | H75: =SUM(H54:H74) -> 0 | I75: =SUM(I54:I74) -> 0 | J75: bez DPH

Sheet 12_SO 04 - ZTI
A1: =CONCATENATE('Rekapitulace stavby'!C65,"_",'Rekapitulace stavby'!I65) -> 12_SO 04 - Zdravotně technické instalace
A3: SPECIFIKACE DODÁVEK A PRACÍ
A4: Název akce:
A5: ='Identifikační údaje'!B1 -> ČRo Brno – III. etapa rekonstrukce budovy Beethovenova 25/4
A7: Zadavatel: | D7: ='Identifikační údaje'!E7 -> Český rozhlas, Vinohradská 12, 120 99 Praha 2
C8: IČ: | D8: ='Identifikační údaje'!B9 -> 45245053
C9: DIČ: | D9: ='Identifikační údaje'!B10 -> CZ45245053
A11: Projektant: | D11: ='Identifikační údaje'!E12 -> Ing. arch. Klement Miloš, Nejedlého 381/19, 638 00 Brno - Lesná
C12: IČ: | D12: ='Identifikační údaje'!B14 -> 15188736
C13: DIČ: | D13: ='Identifikační údaje'!B10 -> CZ45245053
A15: Uchazeč: | D15: ='Identifikační údaje'!E19 -> , ,
C16: IČ: | D16: ='Identifikační údaje'!B23 -> 0
C17: DIČ: | D17: ='Identifikační údaje'!B24 -> 0
A19: Místo stavby: | D19: ='Identifikační údaje'!B3 -> Budova Českého rozhlasu Brno na adrese Beethovenova 25/4, 657 42 Brno
A21: Datum: | D21: ='Identifikační údaje'!B5 -> 00:00:00
A23: =CONCATENATE("REKAPITULACE DODÁVEK A PRACÍ OBJEKTU ",'Rekapitulace stavby'!I65) -> REKAPITULACE DODÁVEK A PRACÍ OBJEKTU SO 04 - Zdravotně technické instalace
A25: P.č. | C25: Ozn. | D25: Název položky | I25: Kč bez DPH
A27: Díl: | B27: =A46 -> 1 | D27: =C46 -> Stavební úpravy | I27: =I54 -> 0
A28: Díl: | B28: =A58 -> 2 | D28: =C58 -> Vnitřní kanalizace | I28: =I108 -> 0
A29: Díl: | B29: =A112 -> 3 | D29: =C112 -> Vnitřní vodovod | I29: =I191 -> 0
A30: Díl: | B30: =A195 -> 4 | D30: =C195 -> Zařizovací předměty | I30: =I252 -> 0
A32: =CONCATENATE("CELKEM ZA OBJEKT ",'Rekapitulace stavby'!I65, " v Kč bez DPH") -> CELKEM ZA OBJEKT SO 04 - Zdravotně technické instalace v Kč bez DPH | I32: =SUM(I27:J30) -> 0
A36: Poznámky:
A37: Při oceňování stavby je třeba se řídit také technickou zprávou a výkresovou dokumentací.
A38: Standardy výrobků jsou uvedeny v položkách tohoto výkazu výměr a nejsou-li uvedeny zde, pak popisem nebo příkladem v technické zprávě.
A39: S ohledem na skutečnost, že II. etapa rekonstrukce navazuje na etapu I. jsou předepsané referenční výrobky v položce tohoto výkazu
A40: výměr závazné, neb stejné jsou již do objektu osazeny v předchozí etapě rekonstrukce.
A41: Všechny položky zahrnují montáž.
A42: Ostatní zemní práce jsou ve stavebním rozpočtu.
A46: 1 | C46: Stavební úpravy
A47: poř.č. | C47: popis položky | G47: MJ | H47: množství | I47: jedn.cena | J47: celkem [Kč]
A48: 1 | C48: Sekání drážek šířky do 300 mm | G48: m | H48: 120 | J48: =I48*H48 -> 0
A49: =A48+1 -> 2 | C49: Zaomítání drážek šíř.do 300mm vč. dodání materiálu | G49: m | H49: 120 | J49: 0
A50: =A49+1 -> 3 | C50: Vybourání prostupů stropem | G50: ks | H50: 30 | J50: 0
A51: =A50+1 -> 4 | C51: Zapravení prostupů stropem | G51: ks | H51: 30 | J51: 0
A52: =A51+1 -> 5 | C52: Odvoz suti na skládku s naložením | G52: t | H52: 1.55 | J52: 0
A53: =A52+1 -> 6 | C53: Poplatek za skládku | G53: t | H53: 1.55 | J53: 0
A54: =CONCATENATE("Celkem Kč bez DPH za ",A46," - ",C46) -> Celkem Kč bez DPH za 1 - Stavební úpravy | I54: =SUM(J48:J53) -> 0
A58: 2 | C58: Vnitřní kanalizace
A59: poř.č. | C59: popis položky | G59: MJ | H59: množství | I59: jedn.cena | J59: celkem [Kč]
A60: =A53+1 -> 7 | C60: Potrubí PP HT Ø 40 | G60: m | H60: 2 | J60: =I60*H60 -> 0
A61: =A60+1 -> 8 | C61: Potrubí PP HT Ø 50 | G61: m | H61: 72 | J61: 0
A62: =A61+1 -> 9 | C62: Potrubí PP HT Ø 75 | G62: m | H62: 16 | J62: 0
A63: 10 | C63: Potrubí PP HT Ø 110 | G63: m | H63: 37 | J63: 0
A64: 11 | C64: Potrubí PP HT Ø 125 | G64: m | H64: 24 | J64: 0
A65: 12 | C65: Potrubí tlumicí hluk Ø 75 | G65: m | H65: 8 | J65: 0
A66: 13 | C66: Potrubí tlumicí hluk Ø 110 | G66: m | H66: 31 | J66: 0
A67: 14 | C67: Potrubí tlumicí hluk Ø 125 | G67: m | H67: 12 | J67: 0
A68: 15 | C68: Svařované PE potrubí Ø 75 | G68: m | H68: 22 | J68: 0
A69: 16 | C69: Hlukově optimalizované PP potrubí Ø 110 | G69: m | H69: 26 | J69: 0
A70: 17 | C70: Hlukově optimalizované PP potrubí Ø 125 | G70: m | H70: 24 | J70: 0
A71: 18 | C71: Potrubí PPR, PN 10 Ø 32 | G71: m | H71: 23 | J71: 0
A72: 19 | C72: Ochrana potrubí Ø 32 plstí | G72: m | H72: 23 | J72: 0
A73: 20 | C73: Tepelná izolace tl. 20 mm Ø 125 | G73: m | H73: 16 | J73: 0
A74: 21 | C74: Připoj.klimat.jednotek pomocí hadice s koncovkami | G74: Soub. | H74: 5 | J74: 0
A75: 22 | C75: Vyvedení a upevnění výpustek do Ø 40 | G75: ks | H75: 35 | J75: 0
A76: 23 | C76: Vyvedení a upevnění výpustek do Ø 50 | G76: ks | H76: 29 | J76: 0
A77: 24 | C77: Vyvedení a upevnění výpustek Ø 110 | G77: ks | H77: 41 | J77: 0
A78: 25 | C78: Přivzdušňovací ventil podomítkový Ø 50 | G78: ks | H78: 1 | J78: 0
A79: 26 | C79: Přivzdušňovací ventil Ø 50 | G79: ks | H79: 1 | J79: 0
A80: 27 | C80: Plastová růžice Ø 110 | G80: ks | H80: 3 | J80: 0
A81: 28 | C81: Plechová růžice Ø 125 | G81: ks | H81: 2 | J81: 0
A82: 29 | C82: Oplechování větracího potrubí Ø 75 | G82: Soub. | H82: 1 | J82: 0
A83: 30 | C83: Oplechování větracího potrubí Ø 125 | G83: Soub. | H83: 1 | J83: 0
A84: 31 | C84: Podomítkový sifon s vodní a mech.zápach.uzávěrkou | G84: ks | H84: 2 | J84: 0
A85: 32 | C85: Vpust podlahová Ø 50 s vodní a mechanickou záp. uz. | G85: ks | H85: 6 | J85: 0
A86: 33 | C86: Střešní vtok se svislým odtokem Ø 125 a el. ohřevem | G86: ks | H86: 8 | J86: 0
A87: 34 | C87: Nástavec pro střešní vtok | G87: ks | H87: 8 | J87: 0
A88: 35 | C88: Ocelové konstrukce pro upevnění potrubí | G88: Soub. | H88: 1 | J88: 0
A89: 36 | C89: Krycí dvířka 150 x 300 mm | G89: ks | H89: 4 | J89: 0
A90: 37 | C90: Krycí dvířka 300 x 300 mm | G90: ks | H90: 3 | J90: 0
A91: 38 | C91: Demontáž potrubí z litinových trub do DN 100 | G91: m | H91: 101 | J91: 0
A92: 39 | C92: Demontáž potrubí z litinových trub DN 125 | G92: m | H92: 76 | J92: 0
A93: 40 | C93: Demontáž potrubí z PVC do Ø 75 | G93: m | H93: 86 | J93: 0
A94: 41 | C94: Demontáž potrubí z PVC Ø 110 | G94: m | H94: 21 | J94: 0
A95: 42 | C95: Demontáž flexibilní trubky PPH Ø 110 vč. patk.kolena | G95: m | H95: 16 | J95: 0
A96: 43 | C96: Demontáž vpusti podlahové DN 100 | G96: ks | H96: 4 | J96: 0
A97: 44 | C97: Napojení nového na stávající potrubí Ø 75 | G97: Soub. | H97: 2 | J97: 0
A98: 45 | C98: Napojení nového na stávající potrubí Ø 110 | G98: Soub. | H98: 1 | J98: 0
A99: 46 | C99: Napojení nového na stávající potrubí Ø 125 | G99: Soub. | H99: 1 | J99: 0
A100: 47 | C100: Protipožární manžeta Ø 50 | G100: ks | H100: 3 | J100: 0
A101: 48 | C101: Protipožární manžeta Ø 75 | G101: ks | H101: 2 | J101: 0
A102: 49 | C102: Protipožární manžeta Ø 110 | G102: ks | H102: 22 | J102: 0
A103: 50 | C103: Protipožární manžeta Ø 125 | G103: ks | H103: 21 | J103: 0
A104: 51 | C104: Zkouška těsnosti kanalizace plynem | G104: m | H104: 297 | J104: 0
A105: 52 | C105: Odvoz demontovaného materiálu | G105: t | H105: 3.8 | J105: 0
A106: 53 | C106: Přesun hmot (do výšky 36 m) | G106: kpl | H106: 1 | J106: 0
A107: 54 | C107: Výpomoc HSV | G107: h | H107: 127 | J107: 0
A108: =CONCATENATE("Celkem Kč bez DPH za ",A58," - ",C58) -> Celkem Kč bez DPH za 2 - Vnitřní kanalizace | I108: =SUM(J60:J107) -> 0
A112: 3 | C112: Vnitřní vodovod
A113: poř.č. | C113: popis položky | G113: jedn. | H113: množství | I113: jedn.cena | J113: celkem [Kč]
A114: =A107+1 -> 55 | C114: Potrubí PP typ 3, PN 20 Ø 16 x 2,7 | G114: m | H114: 28 | J114: =I114*H114 -> 0
A115: =A114+1 -> 56 | C115: Potrubí PP typ 3, PN 20 Ø 20 x 3,4 | G115: m | H115: 136 | J115: 0
A116: =A115+1 -> 57 | C116: Potrubí PP typ 3, PN 20 Ø 25 x 4,2 | G116: m | H116: 53 | J116: 0
A117: 58 | C117: Potrubí PP typ 3, PN 20 Ø 32 x 5,4 | G117: m | H117: 11 | J117: 0
A118: 59 | C118: Potrubí PP s hliníkovou vložkou Ø 20 x 2,8 | G118: m | H118: 95 | J118: 0
A119: 60 | C119: Potrubí PP s hliníkovou vložkou Ø 25 x 3,5 | G119: m | H119: 125 | J119: 0
A120: 61 | C120: Potrubí PP s hliníkovou vložkou Ø 32 x 4,5 | G120: m | H120: 110 | J120: 0
A121: 62 | C121: Potrubí PP s hliníkovou vložkou Ø 40 x 5,6 | G121: m | H121: 65 | J121: 0
A122: 63 | C122: Potrubí PP s hliníkovou vložkou Ø 50 x 6,9 | G122: m | H122: 68 | J122: 0
A123: 64 | C123: Potrubí PP s hliníkovou vložkou Ø 63 x 8,7 | G123: m | H123: 15 | J123: 0
A124: 65 | C124: Potrubí ocelové závitové pozinkované DN 25 | G124: m | H124: 2 | J124: 0
A125: 66 | C125: Potrubí ocelové závitové pozinkované DN 32 | G125: m | H125: 14 | J125: 0
A126: 67 | C126: Potrubí ocelové závitové pozinkované DN 50 | G126: m | H126: 21 | J126: 0
A127: 68 | C127: Ochrana potrubí DN 25 plstí | G127: m | H127: 2 | J127: 0
A128: 69 | C128: Ochrana potrubí DN 32 plstí | G128: m | H128: 28 | J128: 0
A129: 70 | C129: Ochrana potrubí DN 50 plstí | G129: m | H129: 42 | J129: 0
A130: 71 | C130: Návleková izolace tl. 9 mm Ø 16 | G130: m | H130: 28 | J130: 0
A131: 72 | C131: Návleková izolace tl. 9 mm Ø 20 | G131: m | H131: 136 | J131: 0
A132: 73 | C132: Návleková izolace tl. 9 mm Ø 25 | G132: m | H132: 52 | J132: 0
A133: 74 | C133: Návleková izolace tl. 9 mm Ø 32 | G133: m | H133: 11 | J133: 0
A134: 75 | C134: Návleková izolace tl. 19 mm Ø 20 | G134: m | H134: 95 | J134: 0
A135: 76 | C135: Návleková izolace tl. 19 mm Ø 25 | G135: m | H135: 125 | J135: 0
A136: 77 | C136: Návleková izolace tl. 19 mm Ø 32 | G136: m | H136: 110 | J136: 0
A137: 78 | C137: Návleková izolace tl. 19 mm Ø 40 | G137: m | H137: 65 | J137: 0
A138: 79 | C138: Návleková izolace tl. 19 mm Ø 50 | G138: m | H138: 68 | J138: 0
A139: 80 | C139: Návleková izolace tl. 19 mm Ø 63 | G139: m | H139: 15 | J139: 0
A140: 81 | C140: Demontáž potrubí ocel. pozinkovaného do DN 25 | G140: m | H140: 320 | J140: 0
A141: 82 | C141: Demont.potrubí ocel.pozinkovaného DN 32 a DN 40 | G141: m | H141: 66 | J141: 0
A142: 83 | C142: Demontáž potrubí ocel. pozinkovaného DN 50 | G142: m | H142: 11 | J142: 0
A143: 84 | C143: Demontáž potrubí ocel. pozinkovaného DN 80 | G143: m | H143: 16 | J143: 0
A144: 85 | C144: Demontáž plstěných pásů z trubek do DN 25 | G144: m | H144: 320 | J144: 0
A145: 86 | C145: Demontáž plstěných pásů z trubek DN 32 a DN 40 | G145: m | H145: 66 | J145: 0
A146: 87 | C146: Demontáž plstěných pásů z trubek DN 50 | G146: m | H146: 11 | J146: 0
A147: 88 | C147: Demontáž plstěných pásů z trubek DN 80 | G147: m | H147: 16 | J147: 0
A148: 89 | C148: Demontáž armatur s jedním závitem DN 15 | G148: ks | H148: 7 | J148: 0
A149: 90 | C149: Demontáž armatur se dvěma závity do Ø 3/4" | G149: ks | H149: 47 | J149: 0
A150: 91 | C150: Demontáž armatur se dvěma závity Ø 1" | G150: ks | H150: 10 | J150: 0
A151: 92 | C151: Demontáž armatur se dvěma závity Ø 6/4" | G151: ks | H151: 4 | J151: 0
A152: 93 | C152: Demontáž hydrantu 52 C | G152: ks | H152: 12 | J152: 0
A153: 94 | C153: Demontáž cirkulačního čerpadla | G153: ks | H153: 1 | J153: 0
A154: 95 | C154: Napojení nového na stávající potrubí do Ø 32 | G154: Soub. | H154: 13 | J154: 0
A155: 96 | C155: Napojení nového na stávající potrubí Ø 40 až 63 | G155: Soub. | H155: 5 | J155: 0
A156: 97 | C156: Napojení nového na stávající potrubí DN 80 | G156: Soub. | H156: 2 | J156: 0
A157: 98 | C157: Propojení stávajícího potrubí do Ø 32 | G157: Soub. | H157: 2 | J157: 0
A158: 99 | C158: Vyvedení a upevnění výpustek DN 15 | G158: ks | H158: 169 | J158: 0
A159: 100 | C159: Nástěnka DN 15 | G159: ks | H159: 169 | J159: 0
A160: 101 | C160: Kulový kohout DN 15 | G160: ks | H160: 14 | J160: 0
A161: 102 | C161: Kulový kohout DN 20 | G161: ks | H161: 19 | J161: 0
A162: 103 | C162: Kulový kohout DN 25 | G162: ks | H162: 10 | J162: 0
A163: 104 | C163: Kulový kohout DN 32 | G163: ks | H163: 1 | J163: 0
A164: 105 | C164: Kulový kohout DN 40 | G164: ks | H164: 2 | J164: 0
A165: 106 | C165: Kulový kohout DN 15 s odvodněním | G165: ks | H165: 1 | J165: 0
A166: 107 | C166: Kulový kohout DN 20 s odvodněním | G166: ks | H166: 5 | J166: 0
A167: 108 | C167: Regulační ventil termostatický DN 15 | G167: ks | H167: 2 | J167: 0
A168: 109 | C168: Regulační ventil termostatický DN 20 | G168: ks | H168: 1 | J168: 0
A169: 110 | C169: Mechanický šikmý filtr DN 20 | G169: ks | H169: 5 | J169: 0
A170: 111 | C170: Zpětný ventil DN 20 | G170: ks | H170: 5 | J170: 0
A171: 112 | C171: Ventil na hadici se zpět.a zavzduš.ventilem DN 15 | G171: ks | H171: 1 | J171: 0
A172: 113 | C172: Vypouštěcí kohout kulový DN 15 | G172: ks | H172: 3 | J172: 0
A173: 114 | C173: Protipožární pěna | G173: balení | H173: 5 | J173: 0
A174: 115 | C174: Cirkulační čerpadlo | G174: ks | H174: 1 | J174: 0
A175: 116 | C175: Úprava potrubí u cirkulačního čerpadla | G175: Soub. | H175: 1 | J175: 0
A176: 117 | C176: Vodoměr na studenou vodu DN 15 | G176: ks | H176: 1 | J176: 0
A177: 118 | C177: Vodoměr na teplou vodu DN 15 | G177: ks | H177: 1 | J177: 0
A178: 119 | C178: Dvířka krycí 300 x 300 mm | G178: ks | H178: 27 | J178: =I178*H178 -> 0
A179: 120 | C179: Hadicový systém s hadicí DN 19 bez skříňky | G179: ks | H179: 1 | J179: 0
A180: =A179+1 -> 121 | C180: Hadicový systém s hadicí DN 25 bez skříňky | G180: ks | H180: 5 | J180: 0
A181: 122 | C181: Hadicový systém s hadicí DN 19, prosklená skříňka | G181: ks | H181: 3 | J181: 0
A182: 123 | C182: Hadicový systém s hadicí DN 25, prosklená skříňka | G182: ks | H182: 3 | J182: 0
A183: 124 | C183: Tlaková zkouška vodovodního potrubí | G183: m | H183: 985 | J183: 0
A184: 125 | C184: Proplach a desinfekce vodovodního potrubí | G184: m | H184: 985 | J184: 0
A185: 126 | C185: Odvoz demontovaného materiálu | G185: t | H185: 3.1 | J185: 0
A186: 127 | C186: Uzavř.nebo otevř.potr.při opr. vč. vypušť. a napušť. | G186: ks | H186: 20 | J186: 0
A187: 128 | C187: Přesun hmot (do výšky 36 m) | G187: kpl | H187: 1 | J187: 0
A188: 129 | C188: Výpomoc HSV | G188: h | H188: 224 | J188: 0
A189: 130 | C189: Ekvipotenciální propojení kovového potrubí (vodič) | G189: m | H189: 30 | J189: 0
A190: 131 | C190: Revize ekvipotenciálního propojení | G190: Soub. | H190: 1 | J190: 0
A191: =CONCATENATE("Celkem Kč bez DPH za ",A112," - ",C112) -> Celkem Kč bez DPH za 3 - Vnitřní vodovod | I191: =SUM(J114:J190) -> 0
A195: 4 | C195: Zařizovací předměty
A196: poř.č. | C196: popis položky | G196: MJ | H196: množství | I196: jedn.cena | J196: celkem [Kč]
A197: =A190+1 -> 132 | C197: Záchodová mísa závěsná keramická bílá | G197: ks | H197: 31 | J197: =I197*H197 -> 0
A198: =A197+1 -> 133 | C198: Záchodové sedátko plastové bílé | G198: ks | H198: 31 | J198: 0
A199: =A198+1 -> 134 | C199: Montážní prvek pro záchodovou mísu s integrov.nádržkou | G199: ks | H199: 31 | J199: 0
A200: 135 | C200: Ovládací tlačítko 3/6 l k montážnímu prvku | G200: ks | H200: 31 | J200: 0
A201: 136 | C201: Záchodová mísa závěs.keram.bílá pro těl.postižené | G201: ks | H201: 5 | J201: 0
A202: 137 | C202: Záchodové sedátko plastové bílé | G202: ks | H202: 5 | J202: 0
A203: 138 | C203: Mont.prvek pro záchod.mísu pro těl.postiž.s nádržkou | G203: ks | H203: 5 | J203: 0
A204: 139 | C204: Sada pro oddálené splachování | G204: ks | H204: 5 | J204: 0
A205: 140 | C205: Sklopné a pevné madlo | G205: Soub. | H205: 5 | J205: 0
A206: 141 | C206: Výlevka keramická závěsná bílá | G206: ks | H206: 4 | J206: 0
A207: 142 | C207: Montážní prvek pro záchodovou mísu s integrov.nádržkou | G207: ks | H207: 4 | J207: 0
A208: 143 | C208: Ovládací tlačítko 6 l k montážnímu prvku | G208: ks | H208: 4 | J208: 0
A209: 144 | C209: Směš.baterie nástěnná pochrom.s dlouh.otoč.výtok. | G209: ks | H209: 6 | J209: 0
A210: 145 | C210: Výlevka keramická bílá stojící na podlaze | G210: ks | H210: 2 | J210: 0
A211: 146 | C211: Nádržkový splachovač vysoko položený | G211: ks | H211: 2 | J211: 0
A212: 147 | C212: Splachovací trubka komplet | G212: Soub. | H212: 2 | J212: 0
A213: 148 | C213: Napojovací tvarovka Ø 110 | G213: ks | H213: 2 | J213: 0
A214: 149 | C214: Rohový ventil pochromovaný DN 15 s filtrem | G214: ks | H214: 113 | J214: 0
A215: 150 | C215: Umyvadlo keramické bílé s otvorem pro baterii JIKA CUBITO 85 cm (návaznost na předchozí instalace) | G215: ks | H215: 30 | J215: 0
A216: 151 | C216: Zápachová uzávěrka umyvadlová pochromovaná | G216: ks | H216: 30 | J216: 0
A217: 152 | C217: Směš.baterie jednopáková umyvadlov.jednootvorová NOVASERVIS UMYVADLOVÁ BATERIE S KOVOVOU VÝPUSTÍ OVAL CHROM (návaznost na předchozí instalace) | G217: ks | H217: 35 | J217: 0
A218: 153 | C218: Umývátko keramické bílé s otvorem pro baterii JIKA CUBITO 50 cm (návaznost na předchozí instalace) | G218: ks | H218: 1 | J218: 0
A219: 154 | C219: Umyvadlo keramické bílé pro tělesně postižené | G219: ks | H219: 4 | J219: 0
A220: 155 | C220: Svislé madlo k umyvadlu | G220: ks | H220: 5 | J220: 0
A221: 156 | C221: Zápachová uzávěrka umyvadlová podomítková | G221: ks | H221: 5 | J221: 0
A222: 157 | C222: Bidet keramický závěsný bílý | G222: ks | H222: 1 | J222: 0
A223: 158 | C223: Montážní prvek pro závěsný bidet | G223: ks | H223: 1 | J223: 0
A224: 159 | C224: Zápachová uzávěrka bidetová | G224: ks | H224: 1 | J224: 0
A225: 160 | C225: Směšovací baterie bidetová | G225: ks | H225: 1 | J225: 0
... 27 more rows

Sheet 13_SO 05 - Stav arch část
A1: =CONCATENATE('Rekapitulace stavby'!C67,"_",'Rekapitulace stavby'!I67) -> 13_SO 05 - Stavebně - architektonická část
A3: SPECIFIKACE DODÁVEK A PRACÍ
A4: Název akce:
A5: ='Identifikační údaje'!B1 -> ČRo Brno – III. etapa rekonstrukce budovy Beethovenova 25/4
A7: Zadavatel: | C7: ='Identifikační údaje'!E7 -> Český rozhlas, Vinohradská 12, 120 99 Praha 2
B8: IČ: | C8: ='Identifikační údaje'!B9 -> 45245053
B9: DIČ: | C9: ='Identifikační údaje'!B10 -> CZ45245053
A11: Projektant: | C11: ='Identifikační údaje'!E12 -> Ing. arch. Klement Miloš, Nejedlého 381/19, 638 00 Brno - Lesná
B12: IČ: | C12: ='Identifikační údaje'!B14 -> 15188736
B13: DIČ: | C13: ='Identifikační údaje'!B15 -> CZ6101021344
A15: Uchazeč: | C15: ='Identifikační údaje'!E19 -> , ,
B16: IČ: | C16: ='Identifikační údaje'!B23 -> 0
B17: DIČ: | C17: ='Identifikační údaje'!B24 -> 0
A19: Místo stavby: | C19: ='Identifikační údaje'!B3 -> Budova Českého rozhlasu Brno na adrese Beethovenova 25/4, 657 42 Brno
A21: Datum vyplnění: | C21: ='Identifikační údaje'!B5 -> 00:00:00
A23: =CONCATENATE("REKAPITULACE DODÁVEK A PRACÍ OBJEKTU ",'Rekapitulace stavby'!I67) -> REKAPITULACE DODÁVEK A PRACÍ OBJEKTU SO 05 - Stavebně - architektonická část
A25: P.č. | B25: Číslo položky | C25: Název položky | D25: Kč bez DPH
A27: Díl: | B27: =B52 -> 3 | C27: =C52 -> Svislé a kompletní konstrukce | G27: =G52 -> 0
A28: Díl: | B28: =B61 -> 43 | C28: =C61 -> Schodiště | G28: =G61 -> 0
A29: Díl: | B29: =B66 -> 61 | C29: =C66 -> Upravy povrchů vnitřní | G29: =G66 -> 0
A30: Díl: | B30: =B91 -> 63 | C30: =C91 -> Podlahy a podlahové konstrukce | G30: =G91 -> 0
A31: Díl: | B31: =B94 -> 94 | C31: =C94 -> Lešení a stavební výtahy | G31: =G94 -> 0
A32: Díl: | B32: =B97 -> 95 | C32: =C97 -> Dokončovací kce na pozem.stav. | G32: =G97 -> 0
A33: Díl: | B33: =B106 -> 96 | C33: =C106 -> Bourání konstrukcí | G33: =G106 -> 0
A34: Díl: | B34: =B126 -> 99 | C34: =C126 -> Staveništní přesun hmot | G34: =G126 -> 0
A35: Díl: | B35: =B128 -> 714 | C35: =C128 -> Izolace akustické a protiotřesové | G35: =G128 -> 0
A36: Díl: | B36: =B133 -> 766 | C36: =C133 -> Konstrukce truhlářské | G36: =G133 -> 0
A37: Díl: | B37: =B158 -> 767 | C37: =C158 -> Konstrukce zámečnické | G37: =G158 -> 0
A38: Díl: | B38: =B165 -> 776 | C38: =C165 -> Podlahy povlakové | G38: =G165 -> 0
A39: Díl: | B39: =B179 -> 781 | C39: =C179 -> Obklady keramické | G39: =G179 -> 0
A40: Díl: | B40: =B191 -> 782 | C40: =C191 -> Konstrukce z přírodního kamene | G40: =G191 -> 0
A41: Díl: | B41: =B197 -> 784 | C41: =C197 -> Malby | G41: =G197 -> 0
A42: Díl: | B42: =B200 -> 40 | C42: =C200 -> Podhledy | G42: =G200 -> 0
A44: =CONCATENATE("CELKEM ZA OBJEKT ",'Rekapitulace stavby'!I67, " v Kč bez DPH") -> CELKEM ZA OBJEKT SO 05 - Stavebně - architektonická část v Kč bez DPH | D44: =SUM(G27:G42) -> 0
A50: P.č. | B50: Číslo položky | C50: Název položky | D50: MJ | E50: množství | F50: cena / MJ | G50: celkem
B51: Ceník, kapitola | C51: Poznámka uchazeče
A52: Díl: | B52: 3 | C52: Svislé a kompletní konstrukce | G52: =SUBTOTAL(9,G53:G60) -> 0
A53: =1 -> 1 | B53: 34224811 | C53: Příčky POROTHERM AKU na MVC5 tl.,125 mm | D53: m2 | E53: 16.3852 | G53: =E53*F53 -> 0
C54: ;1.patro | E54: 0
C55: 5,48*2,99 | E55: 16.3852
A56: =A53+1 -> 2 | B56: 340 23-9211.R00 | C56: Zazdívka otvorů pl.4 m2,cihlami tl.zdi do 10 cm | D56: m2 | E56: 9.6973 | G56: =E56*F56 -> 0
C57: ;1.patro | E57: 0
C58: 0,95*2,00*4+1,27*2,99-0,85*2,00 | E58: 9.6973
A59: =A56+1 -> 3 | B59: 342 28-00 | C59: Opláštění SDK rozvodů VZT a ÚT vč.povrchoé úpravy | D59: m2 | E59: 26.62 | G59: =E59*F59 -> 0
C60: 0,80*3,00*6+0,90*3,00+0,50*3*2,80+1,90*2,80 | E60: 26.62
A61: Díl: | B61: 43 | C61: Schodiště | G61: =SUBTOTAL(9,G62:G65) -> 0
A62: =A59+1 -> 4 | B62: 430a Kp/1=P2b | C62: Vyčištění stávajícího teracového schodiště rovné stupně, z 1.patra do suterénu | D62: m | E62: 22.23 | G62: =E62*F62 -> 0
C63: 19*1,17 | E63: 22.23
A64: =A62+1 -> 5 | B64: 430b Kp/1=P2b | C64: Vyčištění stávajícího teracového schodiště kosé stupně, z 1.patra do suterénu | D64: m | E64: 9.36 | G64: =E64*F64 -> 0
C65: 8*1,17 | E65: 9.36
A66: Díl: | B66: 61 | C66: Upravy povrchů vnitřní | G66: =SUBTOTAL(9,G67:G90) -> 0
A67: =A64+1 -> 6 | B67: 612 47-3182.R00 | C67: Omítka vnitřního zdiva ze suché směsi, štuková | D67: m2 | E67: 52.15 | G67: =E67*F67 -> 0
C68: 16,385*2+9,69*2 | E68: 52.15
A69: =A67+1 -> 7 | B69: 612 10-003 | C69: Oprava omítek stěn vnitřních vápenocem. štukových oprava z 50 %, malba | D69: m2 | E69: 823.67 | G69: =E69*F69 -> 0
C70: 110:(1,75+2,42)*2*3,00 | E70: 25.02
C71: 111:(2,24+2,42)*2*3,00 | E71: 27.96
C72: 112:(4,04+4,50)*2*3,00 | E72: 51.24
C73: 113:(3,89+7,02)*2*3,00 | E73: 65.46
C74: 114:(4,18+7,225)*2*3,00 | E74: 68.43
C75: 115:(7,53+16,20)*2*3,00 | E75: 142.38
C76: 116:(2,10+3,00)*2*3,00 | E76: 30.6
C77: 117:(1,67+3,00)*2*3,00 | E77: 28.02
C78: 118:(3,87+6,37)*2*3,00 | E78: 61.44
C79: 119:(3,87+3,13)*2*3,00 | E79: 42
C80: 123:(4,95+4,87)*2*2,80 | E80: 54.992
C81: 125:(5,48+2,91)*2*2,80 | E81: 46.984
C82: 126:(5,48+5,54)*2*2,80 | E82: 61.712
C83: 127:(5,48+3,135)*2*2,80 | E83: 48.244
C84: 128:(5,48+6,875)*2*2,80 | E84: 69.188
A85: =A69+1 -> 8 | B85: 61142113 | C85: Oprava váp.omítek stropů - vyspravení pod podhledy | D85: m2 | E85: 220.4 | G85: =E85*F85 -> 0
C86: 159,40+61,00 | E86: 220.4
A87: =A85+1 -> 9 | B87: 611 10-0013.RAA | C87: Oprava omítek stropů vnitřních vápenocem.štukových oprava z 50 %, malba | D87: m2 | E87: 338.2 | G87: =E87*F87 -> 0
C88: ;kde nejsou podhledy | E88: 0
C89: 10,70+4,20+5,30+18,10+26,50+30,00+123,60+6,60 | E89: 225
C90: 5,00+24,10+12,00+25,70+16,00+30,40 | E90: 113.2
A91: Díl: | B91: 63 | C91: Podlahy a podlahové konstrukce | G91: =SUBTOTAL(9,G92:P93) -> 0
A92: =A87+1 -> 10 | B92: 632 47 P7 | C92: Samonivelační stěrka tl.10mm | D92: m2 | E92: 104.6 | G92: =E92*F92 -> 0
A93: =A92+1 -> 11 | B93: 63248 | C93: Vyspravení podkladu pod podlahy cca 30% | D93: m2 | E93: 164 | G93: =E93*F93 -> 0
A94: Díl: | B94: 94 | C94: Lešení a stavební výtahy | G94: =SUBTOTAL(9,G95:P96) -> 0
A95: =A93+1 -> 12 | B95: 941955002 | C95: Lešení lehké pomocné výška podlahy do 1,90m pro podhledy | D95: m2 | E95: 220.4 | G95: =E95*F95 -> 0
C96: 159,40+61,00 | E96: 220.4
A97: Díl: | B97: 95 | C97: Dokončovací kce na pozem.stav. | G97: =SUBTOTAL(9,G98:G105) -> 0
A98: =A95+1 -> 13 | B98: 952 90-1111.R00 | C98: Vyčištění budov o výšce podlaží do 4 m | D98: m2 | E98: 553.8 | G98: =E98*F98 -> 0
C99: 104,60+10,70+4,00+5,30+18,10+26,50 | E99: 169.2
C100: 30,00+123,20+6,30+5,00+24,10 | E100: 188.6
C101: 12,00+25,70+21,60+16,50+24,00 | E101: 99.8
C102: 16,00+30,40+17,20+32,60 | E102: 96.2
A103: =A98+1 -> 14 | B103: 95001 | C103: HZS - nezměřitelné práce | D103: hod | E103: 100 | G103: =E103*F103 -> 0
A104: =A103+1 -> 15 | B104: 95003 | C104: Vyklizení mobiliáře vč.ekologické likvidace | D104: kpl. | E104: 1 | G104: =E104*F104 -> 0
A105: =A104+1 -> 16 | B105: 95004 | C105: Uzavření rekonstruovaného prostoru proti šíření prašnosti | D105: kpl. | E105: 1 | G105: =E105*F105 -> 0
A106: Díl: | B106: 96 | C106: Bourání konstrukcí | G106: =SUBTOTAL(9,G107:G125) -> 0
A107: =A105+1 -> 17 | B107: 968 06-1125.R00 | C107: Vyvěšení dřevěných dveřních křídel pl. do 2 m2 | D107: kus | E107: 6 | G107: =E107*F107 -> 0
C108: ;C | E108: 0
C109: 6 | E109: 6
A110: =A107+1 -> 18 | B110: 968 06-245 | C110: Vybourání dveřních zárubní pl. do 2 m2 | D110: m2 | E110: 10.8 | G110: =E110*F110 -> 0
C111: ;C | E111: 0
C112: 0,65*2,00+0,95*2,00*5 | E112: 10.8
A113: =A110+1 -> 19 | B113: 776 51-18 | C113: Odstranění PVC a koberců lepených | D113: m2 | E113: 547.1 | G113: =E113*F113 -> 0
A114: =A113+1 -> 20 | B114: 9680701 Y | C114: Úprava dveřních křídel pr VZT | D114: ks | E114: 8 | G114: =E114*F114 -> 0
A115: =A114+1 -> 21 | B115: 971 03-3621.R00 | C115: Vybourání otv. zeď cihel. pl.4 m2, tl.10 cm, MVC | D115: m2 | E115: 2.44 | G115: =E115*F115 -> 0
C116: ;A | E116: 0
C117: 0,37*2,00+0,85*2,00 | E117: 2.44
A118: =A115+1 -> 22 | B118: 979 08-2111.R00 | C118: Vnitrostaveništní doprava suti do 10 m | D118: t | E118: 1.94 | G118: =E118*F118 -> 0
A119: =A118+1 -> 23 | B119: 979 08-2121.R00 | C119: Příplatek k vnitrost. dopravě suti za dalších 5 m | D119: t | E119: 5.82 | G119: =E119*F119 -> 0
C120: 3*1,94 | E120: 5.82
A121: =A119+1 -> 24 | B121: 979 08-1111.R00 | C121: Odvoz suti a vybour. hmot na skládku do 1 km | D121: t | E121: 1.94 | G121: =E121*F121 -> 0
A122: =A121+1 -> 25 | B122: 979 08-1121.R00 | C122: Příplatek k odvozu za každý další 1 km | D122: t | E122: 36.86 | G122: =E122*F122 -> 0
C123: 19*1,94 | E123: 36.86
A124: =A122+1 -> 26 | B124: 979093111 | C124: Uložení na skládku bez zhutnění | D124: t | E124: 1.94 | G124: =E124*F124 -> 0
A125: =A124+1 -> 27 | B125: 979 99-999 | C125: Poplatek za skladku | D125: t | E125: 1.94 | G125: =E125*F125 -> 0
A126: Díl: | B126: 99 | C126: Staveništní přesun hmot | G126: =SUBTOTAL(9,G127) -> 0
A127: =A125+1 -> 28 | B127: 999 28-1112.R00 | C127: Přesun hmot pro opravy a údržbu do výšky 36 m | D127: t | E127: 5.2 | G127: =E127*F127 -> 0
A128: Díl: | B128: 714 | C128: Izolace akustické a protiotřesové | G128: =SUBTOTAL(9,G129:P132) -> 0
A129: =A127+1 -> 29 | B129: 71401 | C129: Demontáž a opětná montáž akustického obkladu pro montáž VZT | D129: m2 | E129: 161.7 | G129: =E129*F129 -> 0
C130: 120:(3,69+7,075)*2*2,80 | E130: 60.284
C131: 121:(5,25+4,70)*2*2,80 | E131: 55.72
C132: 122:(4,83+3,33)*2*2,80 | E132: 45.696
A133: Díl: | B133: 766 | C133: Konstrukce truhlářské | G133: =SUBTOTAL(9,G134:G157) -> 0
A134: =A129+1 -> 30 | B134: 766 Tpo/1a | C134: Okno vč.parapetu - špalet. 1350/2045 mm repase - odstranění nátěru,přebroušení, nový nátěr | D134: ks | E134: 2 | G134: =E134*F134 -> 0
C135: seřízení a doplnění kování:2 | E135: 2
A136: =A134+1 -> 31 | B136: 766 Tpo/1b | C136: Okno vč.parapetu - špalet. 2800/2045 mm repase - odstranění nátěru,přebroušení, nový nátěr | D136: ks | E136: 12 | G136: =E136*F136 -> 0
C137: seřízení a doplnění kování:12 | E137: 12
A138: =A136+1 -> 32 | B138: 766 Tpo/1c | C138: Okno vč.parapetu - špalet. 4250/2045 mm repase - odstranění nátěru,přebroušení, nový nátěr | D138: ks | E138: 3 | G138: =E138*F138 -> 0
C139: seřízení a doplnění kování:3 | E139: 3
A140: =A138+1 -> 33 | B140: 766 Tpo/7a | C140: Dřevěné dveře stáv.1kř.plné 650/1980 mm repase - odstranění nátěru,přebroušení, nový nátěr | D140: ks | E140: 1 | G140: =E140*F140 -> 0
C141: seřízení a doplnění kování:1 | E141: 1
A142: =A140+1 -> 34 | B142: 766 Tpo/7b | C142: Dřevěné dveře stáv.1kř.plné 850/1980 mm repase - odstranění nátěru,přebroušení, nový nátěr | D142: ks | E142: 1 | G142: =E142*F142 -> 0
C143: seřízení a doplnění kování:1 | E143: 1
A144: =A142+1 -> 35 | B144: 766 Tpo/7a | C144: Dřevěné dveře stáv.1kř.plné 650/1980 mm repase - odstranění nátěru,přebroušení, nový nátěr | D144: ks | E144: 1 | G144: =E144*F144 -> 0
C145: seřízení a doplnění kování:1 | E145: 1
A146: =A144+1 -> 36 | B146: 766 Tpo/7b | C146: Dřevěné dveře stáv.1kř.plné 850/1980 mm repase - odstranění nátěru,přebroušení, nový nátěr | D146: ks | E146: 10 | G146: =E146*F146 -> 0
C147: seřízení a doplnění kování:10 | E147: 10
A148: =A146+1 -> 37 | B148: 766 Tpo/9b | C148: Dřevěné dveře stáv.1kř.proskl. 850/2000 mm repase - odstranění nátěru,přebroušení, nový nátěr | D148: ks | E148: 2 | G148: 0
C149: seřízení a doplnění kování:2 | E149: 2
A150: =A148+1 -> 38 | B150: 766 Tpd/15 | C150: Dřevěné dveře stáv.1kř.laminátové 850/2000 mm repase | D150: ks | E150: 6 | G150: 0
C151: seřízení a doplnění kování:6 | E151: 6
A152: =A150+1 -> 39 | B152: 766 Tn/5 | C152: Kuchyňská linka v mč.128 dl.2550 mm D+M | D152: ks | E152: 1 | G152: 0
A153: =A152+1 -> 40 | B153: 766 Tn/6 | C153: Kuchyňská linka v mč.117 dl.3000 mm D+M | D153: ks | E153: 1 | G153: 0
A154: =A153+1 -> 41 | B154: 766 Tn/10 | C154: Kuchyňská linka v mč.110 rozebrání a opětná montáž po provedení nových instalací | D154: ks | E154: 1 | G154: 0
A155: =A154+1 -> 42 | B155: 766 Tnd/2b | C155: Dřevěné dveře 1kř.plné 850/1970 mm - kopie D+M vč.zárubně | D155: ks | E155: 1 | G155: 0
B156: poznámka 1 | C156: Truhlářské konstrukce jsou kompletní výrobky dle popisu v tabulkách
B157: poznámka 2 | C157: Truhlářské konstrukce jsou vč.přesunu hmot
A158: Díl: | B158: 767 | C158: Konstrukce zámečnické | G158: =SUBTOTAL(9,G159:G164) -> 0
A159: =A155+1 -> 43 | B159: 767 Zn/10 | C159: Dvířka zakrývajíc´šachtu pro silnoproud 500/800 mm D+M protipožární EW 30 DP1 | D159: ks | E159: 1 | G159: =E159*F159 -> 0
A160: =A159+1 -> 44 | B160: 767 Zpd/4 | C160: Dveře do schodiště ocelovodřev.2kř.1375/2150mm repase. očištění, obroušení,nový nátěr | D160: ks | E160: 1 | G160: =E160*F160 -> 0
A161: =A160+1 -> 45 | B161: 767 Zpd/10 | C161: Prosklená stěna s dv.a nadsv. 2055/2800 mm repase. očištění, nové těsnění | D161: ks | E161: 1 | G161: =E161*F161 -> 0
A162: =A161+1 -> 46 | B162: 767 GK | C162: Generální klíč | D162: kpl. | E162: 1 | G162: =E162*F162 -> 0
B163: poznámka 1 | C163: Zámečnické konstrukce jsou kompletní výrobky dle popisu v tabulkách
B164: poznámka 2 | C164: Zámečnické konstrukce jsou vč.přesunu hmot
A165: Díl: | B165: 776 | C165: Podlahy povlakové | G165: =SUBTOTAL(9,G166:G178) -> 0
A166: =A162+1 -> 47 | B166: 776 57-2 P7 | C166: Položení podlah z pásů textilních včetně dodávky zátěžového antistatického koberce | D166: m2 | E166: 115.06 | G166: =E166*F166 -> 0
C167: ;zátěžový koberec tl. 8 mm antistatický ze spodu opatřen | E167: 0
C168: ;gumovou vrstvou | E168: 0
C169: ;vč.olištování dubovými lištami | E169: 0
C170: 104,60 | E170: 104.6
C171: 104,60*0,10 | E171: 10.46
A172: =A166+1 -> 48 | B172: 776 57-2 P8 | C172: Položení podlah z pásů textilních včetně dodávky zátěžového antistatického koberce | D172: m2 | E172: 487.63 | G172: =E172*F172 -> 0
C173: ;zátěžový koberec tl. 8 mm antistatický ze spodu opatřen | E173: 0
C174: ;gumovou vrstvou | E174: 0
C175: ;vč.olištování dubovými lištami krom chodby (bělnin.sokl) | E175: 0
C176: 443,30 | E176: 443.3
C177: 443,30*0,10 | E177: 44.33
A178: =A172+1 -> 49 | B178: 998 77-6104.R00 | C178: Přesun hmot pro podlahy povlakové, výšky do 36 m | D178: t | E178: 0.355 | G178: =E178*F178 -> 0
A179: Díl: | B179: 781 | C179: Obklady keramické | G179: =SUBTOTAL(9,G180:G190) -> 0
A180: =A178+1 -> 50 | B180: 78110121 | C180: Penetrace podkladu pod obklad | D180: m2 | E180: 11.339 | G180: =E180*F180 -> 0
C181: ;vč.vyspravení podkladu | E181: 0
C182: 110:(0,60+2,42+0,60)*1,45 | E182: 5.249
C183: 117:(0,60+3,00+0,60)*1,45 | E183: 6.09
A184: =A180+1 -> 51 | B184: 781475111 | C184: Obklad vnitřní keramický do tmele vč.rohových a koutových lišt, vč.dod.obkladu | D184: m2 | E184: 12.4729 | G184: =E184*F184 -> 0
C185: 11,339*1,10 | E185: 12.4729
A186: =A184+1 -> 52 | B186: 7814701 | C186: Bělninový obklad soklu v=100mm vč.dod.obkladu | D186: m2 | E186: 86.275 | G186: =E186*F186 -> 0
C187: ;chodba | E187: 0
C188: 8,00+8,00+2,30+2,90+2,215+9,53+2*2,00+4,50 | E188: 41.445
C189: 15,47+2,19+5,50+4,16+1,33+2,50+2,00 | E189: 33.15
C190: 4*2,92 | E190: 11.68
A191: Díl: | B191: 782 | C191: Konstrukce z přírodního kamene | G191: =SUBTOTAL(9,G192:G196) -> 0
A192: =A186+1 -> 53 | B192: 782 Kp/7a | C192: Ostění a parapet oken 1650/2345 mm - ryolit repase - očištění,vytmelení a přebrouš.,impregnace | D192: ks | E192: 2 | G192: =E192*F192 -> 0
A193: =A192+1 -> 54 | B193: 782 Kp/7b | C193: Ostění a parapet oken 3100/2345 mm - ryolit repase - očištění,vytmelení a přebrouš.,impregnace | D193: ks | E193: 2 | G193: =E193*F193 -> 0
A194: =A193+1 -> 55 | B194: 782 Kp/7c | C194: Ostění a parapet oken 4550/2345 mm - ryolit repase - očištění,vytmelení a přebrouš.,impregnace | D194: ks | E194: 1 | G194: =E194*F194 -> 0
A195: =A194+1 -> 56 | B195: 782 Kp/13b | C195: Parapet oken 2900 mm - ryolit repase - očištění,vytmelení a přebrouš.,impregnace | D195: ks | E195: 10 | G195: =E195*F195 -> 0
A196: =A195+1 -> 57 | B196: 782 Kp/13c | C196: Parapet oken 4350 mm - ryolit repase - očištění,vytmelení a přebrouš.,impregnace | D196: ks | E196: 2 | G196: =E196*F196 -> 0
A197: Díl: | B197: 784 | C197: Malby | G197: =SUBTOTAL(9,G198:G199) -> 0
A198: =A196+1 -> 58 | B198: 784 45-0030 | C198: Malba ze směsi , penetrace 1x, bílá 2x | D198: m2 | E198: 1161.87 | G198: =E198*F198 -> 0
C199: 1161.87 | E199: 1161.87
A200: Díl: | B200: 40 | C200: Podhledy | G200: =SUBTOTAL(9,G201:G204) -> 0
A201: =A198+1 -> 59 | B201: 40 A | C201: Sádrokartonový podhled | D201: m2 | E201: 159.4 | G201: =E201*F201 -> 0
C202: 104,60+17,20+37,60 | E202: 159.4
A203: =A201+1 -> 60 | B203: 4001 | C203: Akustický podhled | D203: m2 | E203: 61 | G203: =E203*F203 -> 0
C204: 21,60+15,30+24,10 | E204: 61

Sheet 14_SO 05 - Silnoproud
A1: =CONCATENATE('Rekapitulace stavby'!C68,"_",'Rekapitulace stavby'!I68) -> 14_SO 05 - Silnoproudá elektroinstalace
A3: SPECIFIKACE DODÁVEK A PRACÍ
A4: Název akce:
A5: ='Identifikační údaje'!B1 -> ČRo Brno – III. etapa rekonstrukce budovy Beethovenova 25/4
A7: Zadavatel: | C7: ='Identifikační údaje'!B7 -> Český rozhlas
B8: IČ: | C8: ='Identifikační údaje'!B9 -> 45245053
B9: DIČ: | C9: ='Identifikační údaje'!B10 -> CZ45245053
A11: Projektant: | C11: ='Identifikační údaje'!B12 -> Ing. arch. Klement Miloš
B12: IČ: | C12: ='Identifikační údaje'!B14 -> 15188736
B13: DIČ: | C13: ='Identifikační údaje'!B15 -> CZ6101021344
A15: Uchazeč: | C15: ='Identifikační údaje'!E19 -> , ,
B16: IČ: | C16: ='Identifikační údaje'!B23 -> 0
B17: DIČ: | C17: ='Identifikační údaje'!B24 -> 0
A19: Místo stavby: | C19: ='Identifikační údaje'!B3 -> Budova Českého rozhlasu Brno na adrese Beethovenova 25/4, 657 42 Brno
A21: Datum: | C21: ='Identifikační údaje'!B5 -> 00:00:00
A23: =CONCATENATE("REKAPITULACE DODÁVEK A PRACÍ OBJEKTU ",'Rekapitulace stavby'!I68) -> REKAPITULACE DODÁVEK A PRACÍ OBJEKTU SO 05 - Silnoproudá elektroinstalace
A25: P.č. | B25: Ozn. | D25: Materiál celkem | F25: Montáž celkem | H25: M+M celkem
A27: =B42 -> A. | B27: =C42 -> Svítidla a příslušenství | D27: =F42 -> 0 | F27: =H42 -> 0 | H27: =D27+F27 -> 0
A28: =B48 -> B. | B28: =C48 -> Spínače, zásuvky a ostatní přístroje | D28: =F48 -> 0 | F28: =H48 -> 0 | H28: =D28+F28 -> 0
A29: =B55 -> C. | B29: =C55 -> Instalační, úložný a ochranný materiál | D29: =F55 -> 0 | F29: =H55 -> 0 | H29: 0
A30: =B61 -> D. | B30: =C61 -> Kabely a vodiče | D30: =F61 -> 0 | F30: =H61 -> 0 | H30: 0
A31: =B69 -> E. | B31: =C69 -> Úpravy stávajícího rozvaděče R11 | D31: =F69 -> 0 | F31: =H69 -> 0 | H31: =D31+F31 -> 0
A32: =B73 -> F. | B32: =C73 -> Drobné úpravy stávající elektroinstalace | D32: =F73 -> 0 | F32: =H73 -> 0 | H32: =D32+F32 -> 0
A33: =B82 -> G. | B33: =C82 -> Rozvaděče | D33: =F82 -> 0 | F33: =H82 -> 0 | H33: 0
A34: =B87 -> H. | B34: =C87 -> Ostatní | D34: =F87 -> 0 | F34: =H87 -> 0 | H34: 0
A36: =CONCATENATE("CELKEM ZA OBJEKT ",'Rekapitulace stavby'!I68, " v Kč bez DPH") -> CELKEM ZA OBJEKT SO 05 - Silnoproudá elektroinstalace v Kč bez DPH | H36: =SUBTOTAL(9,H27:I34) -> 0
A38: Textová, výkresová i tabulková část projektové dokumentace tvoří jeden vzájemně se doplňující a provázaný celek. Jednotliví účastníci výběrového řízení se musí seznámit s projektojektovou dokumentací v návaznosti na soupis prací a na základě těchto informací části díla nacenit. Dále je potřeba při stanovení ceny dle vykázané výměry započítat všechny předpokládané doplňkové prvky a činnosti s touto položkou související tak, aby cena byla kompletní a prvek funkční.
A39: 1
F40: Materiál | H40: Montáž
A41: poř.č. | B41: položka | C41: popis položky | D41: MJ | E41: množství | F41: jedn.cena | G41: celkem [Kč] | H41: jedn.cena | I41: celkem [Kč]
B42: A. | C42: Svítidla a příslušenství | F42: =SUBTOTAL(9,G44:G46) -> 0 | H42: =SUBTOTAL(9,I44:I46) -> 0
C43: (komplet, včetně zdrojů, závěsů, pomocného materiálu, osazení zapojení, vyzkoušení apod.)
A44: 1 | C44: svítidlo typ A6 - Svítidlo stropní přisazené, bílá barva, difuzor opál, odsazený, Ø 130 mm, v=100 mm, LED 15W, 3000 K, 1280 lm, IP40 | D44: ks | E44: 17 | G44: =E44*F44 -> 0 | I44: =E44*H44 -> 0
A45: =A44+1 -> 2 | C45: svítidlo typ E4 - Osvětlovací lišta, položená na vodorovné části zdi ve světlíku, v úrovni stropu nad 1.NP, Al profil 35x35 mm, celková délka 5500 mm, difuzor opál, LED 14,4W/m, 3000 K, 1060 lm/m, vč. driveru, uloženého v profilu | D45: ks | E45: 4 | G45: =E45*F45 -> 0 | I45: =E45*H45 -> 0
A46: 3 | C46: NOUZOVÉ OSVĚTLENÍ s připojením k CBS Inotec | D46: ks | E46: 8 | G46: =E46*F46 -> 0 | I46: =E46*H46 -> 0
B48: B. | C48: Spínače, zásuvky a ostatní přístroje | F48: =SUBTOTAL(9,G51:G53) -> 0 | H48: =SUBTOTAL(9,I51:I53) -> 0
C49: (komplet, včetně příslušenství, pomocného materiálu, osazení, zapojení, vyzkoušení apod.)
C50: Návazně na předchozí etapy rekonstrukce budou osaztovány výrobky z řady ABB Time
A51: =A46+1 -> 4 | C51: Domovní zásuvka 230V 16A,napájení z trafa komplet | D51: ks | E51: 6 | G51: =E51*F51 -> 0 | I51: =E51*H51 -> 0
A52: 5 | C52: Napojení SLP zařízení 230V, dle montážního návodu | D52: ks | E52: 2 | G52: =E52*F52 -> 0 | I52: =E52*H52 -> 0
A53: 6 | C53: Napojení sporáku (varné desky) přes odbočnou krabici KO100 | D53: ks | E53: 1 | G53: =E53*F53 -> 0 | I53: =E53*H53 -> 0
B55: C. | C55: Instalační, úložný a ochranný materiál | F55: =SUBTOTAL(9,G56:G59) -> 0 | H55: =SUBTOTAL(9,I55:I59) -> 0
C56: (komplet, včetně příslušenství, pomocného materiálu, výkopu, záhozu výkopu, vytyčení trasy, osazení, zapojení, vyzkoušení apod.)
A57: =A53+1 -> 7 | C57: Krabice přístrojová | D57: ks | E57: 6 | G57: =E57*F57 -> 0 | I57: =E57*H57 -> 0
A58: =A57+1 -> 8 | C58: Vývod pro připojení elektroinstalace ve stolech namlouvárna | D58: ks | E58: 3 | G58: =E58*F58 -> 0 | I58: =E58*H58 -> 0
A59: =A58+1 -> 9 | C59: Krabice odbočná včetně wago svorek s funkční schopností při požáru | D59: ks | E59: 8 | G59: =E59*F59 -> 0 | I59: =E59*H59 -> 0
B61: D. | C61: Kabely a vodiče | F61: =SUBTOTAL(9,G62:G67) -> 0 | H61: =SUBTOTAL(9,I61:I67) -> 0
C62: (komplet, včetně vyhotovení drážky, zapravení drážky, vytyčení trasy, pomocného materiálu, příchytek, spojek, odlehčovacích oblouků, zapojení, vyzkoušení apod.)
A63: =A59+1 -> 10 | C63: CYKY J 3x1,5 | D63: m | E63: 150 | G63: =E63*F63 -> 0 | I63: =E63*H63 -> 0
A64: =A63+1 -> 11 | C64: CYKY O 3x1,5 | D64: m | E64: 50 | G64: =E64*F64 -> 0 | I64: =E64*H64 -> 0
A65: =A64+1 -> 12 | C65: CYKY J 3x2,5 | D65: m | E65: 300 | G65: =E65*F65 -> 0 | I65: =E65*H65 -> 0
A66: =A65+1 -> 13 | C66: CYKY J 5x2,5 | D66: m | E66: 50 | G66: =E66*F66 -> 0 | I66: =E66*H66 -> 0
A67: =A66+1 -> 14 | C67: Rozvody pro NO kabel s funkční schopností P60R -O 3x1,5 B2CAS1D0 | D67: m | E67: 60 | G67: =E67*F67 -> 0 | I67: =E67*H67 -> 0
B69: E. | C69: Úpravy stávajícího rozvaděče R11 | F69: =SUBTOTAL(9,G70:G71) -> 0 | H69: =SUBTOTAL(9,I69:I71) -> 0
A70: =A67+1 -> 15 | C70: Doplnění vývodu 16C/1 pro nápojový automat | D70: ks | E70: 2 | G70: =E70*F70 -> 0 | I70: =E70*H70 -> 0
A71: =A70+1 -> 16 | C71: Doplnění vývodu 10C/1 pro jednotný čas | D71: ks | E71: 1 | G71: =E71*F71 -> 0 | I71: =E71*H71 -> 0
B73: F. | C73: Drobné úpravy stávající elektroinstalace | F73: =SUBTOTAL(9,G74:G80) -> 0 | H73: =SUBTOTAL(9,I73:I80) -> 0
C74: (komplet, včetně potřebného materiálu, zapojení, vyzkoušení apod.)
A75: =A71+1 -> 17 | C75: Úprava elektroinstalace m.č. 110 | D75: kp | E75: 1 | G75: =E75*F75 -> 0 | I75: =E75*H75 -> 0
A76: =A75+1 -> 18 | C76: Úprava elektroinstalace m.č. 111 | D76: kp | E76: 1 | G76: 0 | I76: 0
A77: =A76+1 -> 19 | C77: Úprava elektroinstalace m.č. 112 | D77: kp | E77: 1 | G77: 0 | I77: 0
A78: =A77+1 -> 20 | C78: Úprava elektroinstalace m.č. 125 | D78: kp | E78: 1 | G78: 0 | I78: 0
A79: =A78+1 -> 21 | C79: Úprava elektroinstalace m.č. 126 | D79: kp | E79: 1 | G79: 0 | I79: 0
A80: =A79+1 -> 22 | C80: Úprava a doplnění elektroinstalace rozdělení místnosti na m.č. 127 a m.č. 128 | D80: kp | E80: 1 | G80: 0 | I80: 0
B82: G. | C82: Rozvaděče | F82: =SUBTOTAL(9,G83:G85) -> 0 | H82: =SUBTOTAL(9,I82:I85) -> 0
C83: (komplet, včetně příslušenství, pomocného materiálu, osazení, zapravení, zapojení, vyzkoušení apod.)
A84: =A80+1 -> 23 | C84: Úpravy ve stávajícím rozvaděči R11 | D84: ks | E84: 1 | G84: =E84*F84 -> 0 | I84: =E84*H84 -> 0
A85: =A84+1 -> 24 | C85: Úpravy ve stávajícím rozvaděči R11.1 | D85: ks | E85: 1 | G85: =E85*F85 -> 0 | I85: =E85*H85 -> 0
B87: H. | C87: Ostatní | F87: =SUBTOTAL(9,G88:G91) -> 0 | H87: =SUBTOTAL(9,I87:I91) -> 0
A88: =A85+1 -> 25 | C88: Výchozí revize | D88: hod | E88: 20 | G88: =E88*F88 -> 0 | I88: =E88*H88 -> 0
A89: =A88+1 -> 26 | C89: Pomocný a podružný materiál upevňovací | D89: kpl | E89: 1 | G89: =E89*F89 -> 0 | I89: =E89*H89 -> 0
A90: =A89+1 -> 27 | C90: Zednické výpomoci (PPV) | D90: kpl | E90: 1 | F90: --- | G90: --- | I90: =E90*H90 -> 0
A91: =A90+1 -> 28 | C91: Doprava materiálu | D91: kpl | E91: 1 | F91: --- | G91: --- | I91: =E91*H91 -> 0

Sheet 15_SO 05 - VZT
A1: =CONCATENATE('Rekapitulace stavby'!C69,"_",'Rekapitulace stavby'!I69) -> 15_SO 05 - Vzduchotechnika a chlazení
A3: SPECIFIKACE DODÁVEK A PRACÍ
A4: Název akce:
A5: ='Identifikační údaje'!B1 -> ČRo Brno – III. etapa rekonstrukce budovy Beethovenova 25/4
A7: Zadavatel: | C7: ='Identifikační údaje'!E7 -> Český rozhlas, Vinohradská 12, 120 99 Praha 2 | D7: Projektant: | F7: ='Identifikační údaje'!E12 -> Ing. arch. Klement Miloš, Nejedlého 381/19, 638 00 Brno - Lesná
B8: IČ | C8: ='Identifikační údaje'!B9 -> 45245053 | E8: IČ | F8: ='Identifikační údaje'!B14 -> 15188736
B9: DIČ | C9: ='Identifikační údaje'!B10 -> CZ45245053 | E9: DIČ | F9: ='Identifikační údaje'!B15 -> CZ6101021344
A11: Uchazeč: | C11: ='Identifikační údaje'!E19 -> , , | D11: Místo stavby: | F11: ='Identifikační údaje'!B3 -> Budova Českého rozhlasu Brno na adrese Beethovenova 25/4, 657 42 Brno
B12: IČ | C12: ='Identifikační údaje'!B23 -> 0
B13: DIČ | C13: ='Identifikační údaje'!B24 -> 0
A15: Datum: | C15: ='Identifikační údaje'!B5 -> 00:00:00
A17: P.Č. | B17: Č.Z | C17: Popis položky: | D17: Měrná jednotka | F17: Cena | J17: Poznámka
F18: Jednotková | H18: Celkem
D19: - | E19: počet | F19: Dodávka | G19: Montáž | H19: Dodávka | I19: Montáž
F20: [ Kč ] | G20: [ Kč ] | H20: [ Kč ] | I20: [ Kč ]
C21: =CONCATENATE("REKAPITULACE OBJEKTU ",'Rekapitulace stavby'!I69) -> REKAPITULACE OBJEKTU SO 05 - Vzduchotechnika a chlazení
A22: 1 | B22: 1 | C22: =C53 -> Zařízení č.14 - Úprava stávající vzduchotechniky větrání studií v 1 patře | D22: kpl | E22: 1 | F22: - | G22: - | H22: =H61 -> 0 | I22: =I61 -> 0 | J22: -
C23: Mezisoučet | H23: =SUM(H22:H22) -> 0 | I23: =SUM(I22:I22) -> 0 | J23: Kč bez DPH
A25: =A22+1 -> 2 | B25: - | C25: Protipožární ucpávky | D25: ks | E25: 8 | H25: =E25*F25 -> 0 | I25: =E25*G25 -> 0 | J25: -
A26: =A25+1 -> 3 | B26: - | C26: Materiál pro spoje, montáž, závěsy, atd. | D26: kpl | E26: 1 | H26: =E26*F26 -> 0 | I26: =E26*G26 -> 0 | J26: -
A27: =A26+1 -> 4 | B27: - | C27: Doprava | D27: kpl | E27: 1 | F27: - | H27: - | I27: =E27*G27 -> 0 | J27: -
A28: 5 | B28: - | C28: Přesuny | D28: kpl | E28: 1 | F28: - | H28: - | I28: 0 | J28: -
A29: 6 | B29: - | C29: Uvedení do provozu, zaregulování, vyzkoušení, předávací řízení | D29: kpl | E29: 1 | F29: - | H29: - | I29: 0 | J29: -
A30: 7 | B30: - | C30: Inženýrská a koordinační činnost | D30: kpl | E30: 1 | F30: - | H30: - | I30: 0 | J30: -
A31: 8 | B31: - | C31: Prováděcí a výrobní projektová dokumentace | D31: kpl | E31: 1 | F31: - | H31: - | I31: 0 | J31: -
A32: 9 | B32: - | C32: Dokumentace konečného provedení, návody, atesty, prohlášení o shodě | D32: kpl | E32: 1 | F32: - | H32: - | I32: 0 | J32: -
C33: Mezisoučet | H33: =SUM(H25:H32) -> 0 | I33: =SUM(I25:I32) -> 0 | J33: Kč bez DPH
A35: CELKEM D+M | C35: =CONCATENATE("OBJEKT ",'Rekapitulace stavby'!I69," v Kč bez DPH") -> OBJEKT SO 05 - Vzduchotechnika a chlazení v Kč bez DPH | H35: =H23+H33+I23+I33 -> 0
A49: P.Č. | B49: Č.P. | C49: Popis položky: | D49: Měrná jednotka | F49: Cena | J49: Poznámka
F50: Jednotková cena | H50: Celková cena
D51: - | E51: počet | F51: Dodávka | G51: Montáž | H51: Dodávka | I51: Montáž
F52: [ Kč ] | G52: [ Kč ] | H52: [ Kč ] | I52: [ Kč ]
C53: Zařízení č.14 - Úprava stávající vzduchotechniky větrání studií v 1 patře
A54: =A32+1 -> 10 | B54: 14.1 | C54: VZT jednotka HLX 01 - stávající - prohlídka, vyčištění,výměna filtru, repase | D54: ks | E54: 1 | H54: =E54*F54 -> 0 | I54: =E54*G54 -> 0
A55: =A54+1 -> 11 | C55: Frekvenční měnič P=0,5kW včetně prodrátování | D55: ks | E55: 1 | H55: =E55*F55 -> 0 | I55: =E55*G55 -> 0
A56: 12 | B56: 14.2 | C56: Ventilátor odtah - stávající - prohlídka, vyčištění, repase | D56: ks | E56: 2 | H56: 0 | I56: 0
A57: 13 | C57: Frekvenční měnič P=0,5kW včetně prodrátování | D57: ks | E57: 2 | H57: 0 | I57: 0
A58: 14 | B58: 14.3 | C58: Kondenzační chladící jednotka stávající - prohlídka, vyčištění, repase | D58: ks | E58: 1 | H58: 0 | I58: 0
A59: 15 | B59: 14.4 | C59: Uzavírací klapka 430x230 na servo - servopohon dodávka profese MaR - vyrobit po doměření | D59: ks | E59: 4 | H59: 0 | I59: 0
A60: 16 | C60: Uzavírací klapka D235 - servopohon dodávka profese MaR - vyrobit po doměření | D60: ks | E60: 4 | H60: 0 | I60: 0
A61: =CONCATENATE(C53," - celkem") -> Zařízení č.14 - Úprava stávající vzduchotechniky větrání studií v 1 patře - celkem | H61: =SUM(H54:H60) -> 0 | I61: =SUM(I54:I60) -> 0 | J61: bez DPH

Sheet 16_SO 06 - Stav arch část
A1: =CONCATENATE('Rekapitulace stavby'!C71,"_",'Rekapitulace stavby'!I71) -> 16_SO 06 - Stavebně - architektonická část
A3: SPECIFIKACE DODÁVEK A PRACÍ
A4: Název akce:
A5: ='Identifikační údaje'!B1 -> ČRo Brno – III. etapa rekonstrukce budovy Beethovenova 25/4
A7: Zadavatel: | C7: ='Identifikační údaje'!E7 -> Český rozhlas, Vinohradská 12, 120 99 Praha 2
B8: IČ: | C8: ='Identifikační údaje'!B9 -> 45245053
B9: DIČ: | C9: ='Identifikační údaje'!B10 -> CZ45245053
A11: Projektant: | C11: ='Identifikační údaje'!E12 -> Ing. arch. Klement Miloš, Nejedlého 381/19, 638 00 Brno - Lesná
B12: IČ: | C12: ='Identifikační údaje'!B14 -> 15188736
B13: DIČ: | C13: ='Identifikační údaje'!B15 -> CZ6101021344
A15: Uchazeč: | C15: ='Identifikační údaje'!E19 -> , ,
B16: IČ: | C16: ='Identifikační údaje'!B23 -> 0
B17: DIČ: | C17: ='Identifikační údaje'!B24 -> 0
A19: Místo stavby: | C19: ='Identifikační údaje'!B3 -> Budova Českého rozhlasu Brno na adrese Beethovenova 25/4, 657 42 Brno
A21: Datum vyplnění: | C21: ='Identifikační údaje'!B5 -> 00:00:00
A23: =CONCATENATE("REKAPITULACE DODÁVEK A PRACÍ OBJEKTU ",'Rekapitulace stavby'!I71) -> REKAPITULACE DODÁVEK A PRACÍ OBJEKTU SO 06 - Stavebně - architektonická část
A25: P.č. | B25: Číslo položky | C25: Název položky | D25: Kč bez DPH
A27: Díl: | B27: =B52 -> 3 | C27: =C52 -> Svislé a kompletní konstrukce | G27: =G52 -> 0
A28: Díl: | B28: =B71 -> 61 | C28: =C71 -> Upravy povrchů vnitřní | G28: =G71 -> 0
A29: Díl: | B29: =B101 -> 63 | C29: =C101 -> Podlahy a podlahové konstrukce | G29: =G101 -> 0
A30: Díl: | B30: =B106 -> 94 | C30: =C106 -> Lešení a stavební výtahy | G30: =G106 -> 0
A31: Díl: | B31: =B109 -> 95 | C31: =C109 -> Dokončovací kce na pozem.stav. | G31: =G109 -> 0
A32: Díl: | B32: =B116 -> 96 | C32: =C116 -> Bourání konstrukcí | G32: =G116 -> 0
A33: Díl: | B33: =B154 -> 99 | C33: =C154 -> Staveništní přesun hmot | G33: =G154 -> 0
A34: Díl: | B34: =B156 -> 713 | C34: =C156 -> Izolace tepelné | G34: =G156 -> 0
A35: Díl: | B35: =B159 -> 766 | C35: =C159 -> Konstrukce truhlářské | G35: =G159 -> 0
A36: Díl: | B36: =B174 -> 767 | C36: =C174 -> Konstrukce zámečnické | G36: =G174 -> 0
A37: Díl: | B37: =B180 -> 775 | C37: =C180 -> Podlahy vlysové a parketové | G37: =G180 -> 0
A38: Díl: | B38: =B184 -> 776 | C38: =C184 -> Podlahy povlakové | G38: =G184 -> 0
A39: Díl: | B39: =B196 -> 781 | C39: =C196 -> Obklady keramické | G39: =G196 -> 0
A40: Díl: | B40: =B207 -> 782 | C40: =C207 -> Konstrukce z přírodního kamene | G40: =G207 -> 0
A41: Díl: | B41: =B216 -> 784 | C41: =C216 -> Malby | G41: =G216 -> 0
A42: Díl: | B42: =B219 -> 40 | C42: =C219 -> Podhledy | G42: =G219 -> 0
A44: =CONCATENATE("CELKEM ZA OBJEKT ",'Rekapitulace stavby'!I71, " v Kč bez DPH") -> CELKEM ZA OBJEKT SO 06 - Stavebně - architektonická část v Kč bez DPH | D44: =SUM(G27:G42) -> 0
A50: P.č. | B50: Číslo položky | C50: Název položky | D50: MJ | E50: množství | F50: cena / MJ | G50: celkem
B51: Ceník, kapitola | C51: Poznámka uchazeče
A52: Díl: | B52: 3 | C52: Svislé a kompletní konstrukce | G52: =SUBTOTAL(9,G53:G70) -> 0
A53: =1 -> 1 | B53: 34224811 | C53: Příčky POROTHERM AKU na MVC5 tl.100 mm | D53: m2 | E53: 8.421 | G53: =E53*F53 -> 0
C54: ;2.patro | E54: 0
C55: 2,39*2,90-0,85*2,00 | E55: 5.231
C56: (0,20+0,90)*2,90 | E56: 3.19
A57: =A53+1 -> 2 | B57: 34224812 | C57: Příčky POROTHERM AKU na MVC5 tl.125 mm | D57: m2 | E57: 46.3489 | G57: =E57*F57 -> 0
C58: ;2.patro | E58: 0
C59: (2,02+1,246)*2,90-0,85*2,00 | E59: 7.7714
C60: (2,85+2,85+4,20+1,875)*2,90-0,85*2,00*2 | E60: 30.7475
C61: (0,60+0,30+1,80)*2,90 | E61: 7.83
A62: =A57+1 -> 3 | B62: 340 23-921 | C62: Zazdívka otvorů pl.4 m2,cihlami tl.zdi do 10 cm | D62: m2 | E62: 25.28 | G62: =E62*F62 -> 0
C63: 1,00*2,00*9+1,40*2,80 | E63: 21.92
C64: nadsvětlíky:1,40*0,80*3 | E64: 3.36
A65: =A62+1 -> 4 | B65: 342 01-22 | C65: Předstěna SDK v m.č.332 vč.tepel.izolace SDK 15mm+SDK12+TI100mm+50mm vzduch.mezera , vč.povrchové úpravy poz.2 | D65: m2 | E65: 24.58 | G65: =E65*F65 -> 0
C66: ;m.č.219,230 | E66: 0
C67: (5,78+3,00)*2,80 | E67: 24.58
A68: =A65+1 -> 5 | B68: 342 01-33 | C68: Příčka SDKtl.100 mm,ocel.kce, EI60DP1 | D68: m2 | E68: 1.8 | G68: =E68*F68 -> 0
C69: 204:0,60*3,00 | E69: 1.8
A70: =A68+1 -> 6 | B70: 3171 PŘ | C70: Překlad z profilu i120 dl.1200mm D+M vč.plentování cihlami a rabicem | D70: ks | E70: 4 | G70: =E70*F70 -> 0
A71: Díl: | B71: 61 | C71: Upravy povrchů vnitřní | G71: =SUBTOTAL(9,G72:G100) -> 0
A72: =A70+1 -> 7 | B72: 612 47-3182.R00 | C72: Omítka vnitřního zdiva ze suché směsi, štuková | D72: m2 | E72: 109.6178 | G72: =E72*F72 -> 0
C73: (8,42+46,3889)*2 | E73: 109.6178
A74: =A72+1 -> 8 | B74: 611 42113 | C74: Oprava váp.omítek stropů -vyspravení pod podhledy | D74: m2 | E74: 513.4 | G74: =E74*F74 -> 0
A75: =A74+1 -> 9 | B75: 612 10-003 | C75: Oprava omítek stěn vnitřních vápenocem. štukových oprava | D75: m2 | E75: 1039.0498 | G75: =E75*F75 -> 0
C76: 203:(4,075+9,00+15,67+2,05+4,80+5,95)*2,95 | E76: 122.5578
C77: -0,85*2,00*6-0,70*2,00*5 | E77: -17.2
C78: 203A:1,537*2,80 | E78: 4.3036
C79: 204:(5,30+7,875)*2*3,00-0,85*2,00-4,00*2,00 | E79: 69.35
C80: 210:(5,50+6,65)*2*2,80-0,85*2,00-2,65*2,00 | E80: 61.04
C81: 211:(5,45+3,80)*2*2,80-0,85*2,00-1,175*2,00 | E81: 47.75
C82: 212:(5,45+5,10)*2*2,80-0,85*2,00-4,125*2,00 | E82: 49.13
C83: 213:(5,45+2,95)*2*2,80-0,85*2,00-1,175*2,00 | E83: 42.99
C84: 218:(18,90+2,40+11,90)*2,80-0,85*2,00*10 | E84: 75.96
C85: 218A:1,90*2,80 | E85: 5.32
C86: 219:(5,313+4,85)*2*2,80-3,975*2,00 | E86: 48.9628
C87: 220:(3,04+7,00)*2,80-0,85*2,00-2,75*2,00 | E87: 20.912
C88: 221:(3,89+7,25)*2*2,80-0,85*2,00-2,75*2,00 | E88: 55.184
C89: 222:(3,91+7,25)*2*2,80-0,85*2,00-2,75*2,00 | E89: 55.296
C90: 223:(3,815+7,25)*2*2,80-0,90*2,00-2,75*2,00 | E90: 54.664
C91: 224:(3,94+3,575+5,60+2,56)*2,80-2,75*2,00 | E91: 38.39
C92: 225:(3,94+7,25)*2*2,80-0,95*2,00-2,75*2,00 | E92: 55.264
C93: 226:(3,656+7,25)*2*2,80-0,90*2,00-2,75*2,00 | E93: 53.7736
C94: 227:(3,89+7,25)*2*2,80-0,90*2,00-2,75*2,00 | E94: 55.084
C95: 228:(4,14+7,25)*2*2,80-0,90*2,00-2,75*2,00 | E95: 56.484
C96: 229:(3,465+7,00)*2*2,80-0,80*2,00-2,75*2,00 | E96: 51.504
C97: 230:(3,30+6,375+3,30)*2,80-0,85*2,00-1,15*2,00 | E97: 32.33
A98: =A75+1 -> 10 | B98: 612 40-339 | C98: Hrubá výplň rýh ve stěnách maltou zapravení svislých drážek poo rozvodech ÚT | D98: m2 | E98: 11.76 | G98: =E98*F98 -> 0
C99: ;poz.5 | E99: 0
C100: 0,30*2,80*12+0,60*2,80*1 | E100: 11.76
A101: Díl: | B101: 63 | C101: Podlahy a podlahové konstrukce | G101: =SUBTOTAL(9,G102:P105) -> 0
A102: =A98+1 -> 11 | B102: 632 44-1 | C102: Potěr anhydrit tl. 50 mm oddilatovaný od stěn EPS 20 mm | D102: m2 | E102: 111.9 | G102: =E102*F102 -> 0
A103: =A102+1 -> 12 | B103: 632 47-3 P7 | C103: Samonivelační stěrka tl.3mm | D103: m2 | E103: 111.9 | G103: =E103*F103 -> 0
A104: =A103+1 -> 13 | B104: 632 48 | C104: Vyspravení podkladu pod podlahu | D104: m2 | E104: 45 | G104: =E104*F104 -> 0
A105: =A104+1 -> 14 | B105: 63201 | C105: Úprava podlahy pro osazení fancoilů | D105: kpl. | E105: 1 | G105: =E105*F105 -> 0
A106: Díl: | B106: 94 | C106: Lešení a stavební výtahy | G106: =SUBTOTAL(9,G107:P108) -> 0
A107: =A105+1 -> 15 | B107: 941 95-5002.R00 | C107: Lešení lehké pomocné, výška podlahy do 1,9 m | D107: m2 | E107: 513.4 | G107: =E107*F107 -> 0
C108: pro podhledy:513,40 | E108: 513.4
A109: Díl: | B109: 95 | C109: Dokončovací kce na pozem.stav. | G109: =SUBTOTAL(9,G110:G115) -> 0
A110: =A107+1 -> 16 | B110: 95001 | C110: HZS - nezměřitelné práce | D110: hod | E110: 120 | G110: =E110*F110 -> 0
A111: =A110+1 -> 17 | B111: 952 90-1111.R00 | C111: Vyčištění budov o výšce podlaží do 4 m | D111: m2 | E111: 574.5 | G111: =E111*F111 -> 0
C112: ;2.patro | E112: 0
C113: 421,20+111,90+41,40 | E113: 574.5
A114: =A111+1 -> 18 | B114: 95003 | C114: Vyklizení mobiliáře vč.ekologické likvidacel | D114: kpl. | E114: 1 | G114: =E114*F114 -> 0
A115: =A114+1 -> 19 | B115: 95004 | C115: Uzavření rekonstruovaného prostoru proti šíření prašnosti | D115: kpl. | E115: 1 | G115: =E115*F115 -> 0
A116: Díl: | B116: 96 | C116: Bourání konstrukcí | G116: =SUBTOTAL(9,G117:G153) -> 0
A117: =A115+1 -> 20 | B117: 96 | C117: Bourací práce | D117: kpl. | E117: 1 | G117: =E117*F117 -> 0
A118: =A117+1 -> 21 | B118: 962 03-1133.R00 | C118: Bourání příček cihelných tl. 15 cm | D118: m2 | E118: 18.99 | G118: =E118*F118 -> 0
C119: ;A | E119: 0
C120: 2,00*2,90-0,80*2,00 | E120: 4.2
C121: (4,80+0,30)*2,90 | E121: 14.79
A122: =A118+1 -> 22 | B122: 968 06-1125.R00 | C122: Vyvěšení dřevěných dveřních křídel pl. do 2 m2 | D122: kus | E122: 10 | G122: =E122*F122 -> 0
C123: ;C | E123: 0
C124: 10 | E124: 10
A125: =A122+1 -> 23 | B125: 968 06-245 | C125: Vybourání dveřních zárubní pl. do 2 m2 | D125: m2 | E125: 18 | G125: =E125*F125 -> 0
C126: ;C | E126: 0
C127: 0,90*2,00*10 | E127: 18
A128: =A125+1 -> 24 | B128: 776 51-182. D | C128: Odstranění koberců lepených | D128: m2 | E128: 578.3 | G128: =E128*F128 -> 0
C129: ;koberec | E129: 0
C130: 77,20+4,40+8,00+36,40+20,70+27,80+16,10 | E130: 190.6
C131: 39,50+22,10+27,40+28,10+28,30+27,60 | E131: 173
C132: 19,00+28,50+27,90+28,10+28,70+25,40 | E132: 157.6
C133: 20,90 | E133: 20.9
C134: ;pryžový koberec | E134: 0
C135: 36,20 | E135: 36.2
A136: =A128+1 -> 25 | B136: 962 08-11 L | C136: Bourání příček a nadsvětlíků z luxferů | D136: m2 | E136: 18.15 | G136: =E136*F136 -> 0
C137: 1,40*0,80*3 | E137: 3.36
C138: (4,80+0,30)*2,90 | E138: 14.79
A139: =A136+1 -> 26 | B139: 968 06-22 SV | C139: Vybourání dřevěných rámů nadsvětlíků | D139: m2 | E139: 3.36 | G139: =E139*F139 -> 0
C140: 1,40*0,80*3 | E140: 3.36
A141: =A139+1 -> 27 | B141: 972 05-46 | C141: Vybourání otvoru ve stropu 730/730mm pro šachtu slaboproudu | D141: m3 | E141: 0.3197 | G141: =E141*F141 -> 0
C142: 0,73*0,73*0,60 | E142: 0.3197
A143: =A141+1 -> 28 | B143: 974 03-1 | C143: Vysekání drážek svislých pro specialisty | D143: kpl. | E143: 1 | G143: =E143*F143 -> 0
A144: =A143+1 -> 29 | B144: 7765118F | C144: Odstranění nášlapné vrstvy podlahy a násypu | D144: m2 | E144: 111.9 | G144: =E144*F144 -> 0
A145: =A144+1 -> 30 | B145: 979 01-1211.R00 | C145: Svislá doprava suti a vybour. hmot za 2.NP nošením | D145: t | E145: 31.14 | G145: =E145*F145 -> 0
A146: =A145+1 -> 31 | B146: 979 08-2111.R00 | C146: Vnitrostaveništní doprava suti do 10 m | D146: t | E146: 31.14 | G146: =E146*F146 -> 0
A147: =A146+1 -> 32 | B147: 979 08-2121.R00 | C147: Příplatek k vnitrost. dopravě suti za dalších 5 m | D147: t | E147: 155.7 | G147: =E147*F147 -> 0
C148: 5*31,14 | E148: 155.7
A149: =A147+1 -> 33 | B149: 979 08-1111.R00 | C149: Odvoz suti a vybour. hmot na skládku do 1 km | D149: t | E149: 31.14 | G149: =E149*F149 -> 0
A150: =A149+1 -> 34 | B150: 979 08-1121.R00 | C150: Příplatek k odvozu za každý další 1 km | D150: t | E150: 591.66 | G150: =E150*F150 -> 0
C151: 19*31,14 | E151: 591.66
A152: =A150+1 -> 35 | B152: 979 09-3111.R00 | C152: Uložení suti na skládku bez zhutnění | D152: t | E152: 31.14 | G152: =E152*F152 -> 0
A153: =A152+1 -> 36 | B153: 979 99-999 | C153: Poplatek za skladku | D153: t | E153: 31.14 | G153: =E153*F153 -> 0
A154: Díl: | B154: 99 | C154: Staveništní přesun hmot | G154: =SUBTOTAL(9,G155) -> 0
A155: =A153+1 -> 37 | B155: 999 28-1112.R00 | C155: Přesun hmot pro opravy a údržbu do výšky 36 m | D155: t | E155: 64.846 | G155: =E155*F155 -> 0
A156: Díl: | B156: 713 | C156: Izolace tepelné | G156: =SUBTOTAL(9,G157:G158) -> 0
A157: =A155+1 -> 38 | B157: 713 12-1 P4 | C157: Izolace tepelná podlah na sucho, jednovrstvá včetně dodávky EPS T 5000 tl.20 mm | D157: m2 | E157: 117.5 | G157: =E157*F157 -> 0
C158: 111,9*1,05 | E158: =111.9*1.05 -> 117.495
A159: Díl: | B159: 766 | C159: Konstrukce truhlářské | G159: =SUBTOTAL(9,G160:G173) -> 0
A160: =A157+1 -> 39 | B160: 766 Tpo/1a | C160: Okno vč.parapetu - špalet. 1350/2045 mm repase - odstranění nátěru, přebroušení,nový nátěr | D160: ks | E160: 3 | G160: =E160*F160 -> 0
C161: seřízení a doplnění kování:3 | E161: 3
A162: =A160+1 -> 40 | B162: 766 Tpo/1b | C162: Okno vč.parapetu - špalet. 2800/2045 mm repase - odstranění nátěru, přebroušení,nový nátěr | D162: ks | E162: 12 | G162: =E162*F162 -> 0
C163: seřízení a doplnění kování:12 | E163: 12
A164: =A162+1 -> 41 | B164: 766 Tpo/1c | C164: Okno vč.parapetu - špalet. 4250/2045 mm repase - odstranění nátěru, přebroušení,nový nátěr | D164: ks | E164: 3 | G164: =E164*F164 -> 0
C165: seřízení a doplnění kování:3 | E165: 3
A166: =A164+1 -> 42 | B166: 766 Tpd/7b | C166: Dveře stávající lakované 1kř. 850/1980 mm repase - odstranění nátěru, přebroušení,nový nátěr | D166: ks | E166: 6 | G166: =E166*F166 -> 0
A167: =A166+1 -> 43 | B167: 766 Tpd/7b | C167: Dveře stávající lakované 1kř. 850/1980 mm repase - odstranění nátěru, přebroušení,nový nátěr, přemístění na nové místo | D167: ks | E167: 7 | G167: 0
A168: =A167+1 -> 44 | B168: 766 Tpo/8b | C168: Nadsvětlík do kanceláří. 4170/680 mm repase - odstranění nátěru, přebroušení,nový nátěr | D168: ks | E168: 3 | G168: 0
A169: =A168+1 -> 45 | B169: 766 Tpd/7b | C169: Dveře stávající lakované 1kř. 850/1980 mm repase - odstranění nátěru, přebroušení,nový nátěr | D169: ks | E169: 7 | G169: 0
A170: =A169+1 -> 46 | B170: 766 Tnd/2b | C170: Dřevěne dveře 1kř.hladké plné 850/1970 mm vč.obložkové zárubně D+M - replika stávající | D170: ks | E170: 6 | G170: 0
A171: =A170+1 -> 47 | B171: 766 Tn/5 | C171: Kuchyňská linka v mč. 210,224 dl.2550mm D+M | D171: ks | E171: 2 | G171: 0
B172: poznámka 1 | C172: Truhlářské konstrukce jsou kompletní výrobky dle popisu v tabulkách
B173: poznámka 2 | C173: Truhlářské konstrukce jsou vč.přesunu hmot
A174: Díl: | B174: 767 | C174: Konstrukce zámečnické | G174: =SUBTOTAL(9,G175:G179) -> 0
A175: =A171+1 -> 48 | B175: 767 Zn/10 | C175: Dvířka zakrývající šachtu pro silnoproud 630/800mm D+M protipožární EW 30DP1 | D175: kpl. | E175: 1 | G175: =E175*F175 -> 0
A176: =A175+1 -> 49 | B176: 767 Zpd/5 | C176: Dveře 2kř. prosklené 1400/2150 mm repase | D176: ks | E176: 1 | G176: =E176*F176 -> 0
A177: =A176+1 -> 50 | B177: 767 GK | C177: Generální klíč | D177: kpl. | E177: 1 | G177: =E177*F177 -> 0
B178: poznámka 2 | C178: Zámečnické konstrukce jsou vč.přesunu hmot
B179: poznámka 1 | C179: Zámečnické konstrukce jsou kompletní výrobky dle popisu v tabulkách
A180: Díl: | B180: 775 | C180: Podlahy vlysové a parketové | G180: =SUBTOTAL(9,G181:G183) -> 0
A181: =A177+1 -> 51 | B181: 775 53-00 P6 | C181: Podlahy parketové - vlysy nové | D181: m2 | E181: 463.32 | G181: =E181*F181 -> 0
C182: 421,20*1,10 | E182: 463.32
A183: =A181+1 -> 52 | B183: 998 77-5104.R00 | C183: Přesun hmot pro podlahy vlysové, výšky do 36 m | D183: t | E183: 0.34 | G183: =E183*F183 -> 0
A184: Díl: | B184: 776 | C184: Podlahy povlakové | G184: =SUBTOTAL(9,G185:G195) -> 0
A185: =A183+1 -> 53 | B185: 776 52-21 P10 | C185: Lepení podlah gumových antistatických vč.soklíku včetně dodávky podlahoviny | D185: m2 | E185: 45.54 | G185: =E185*F185 -> 0
C186: serverovna:41,40*1,10 | E186: 45.54
A187: =A185+1 -> 54 | B187: 776 57-2 P6 | C187: Lepení povlakových podlah z pásů textilních včetně zátěžového antistatického koberce | D187: m2 | E187: 463.32 | G187: =E187*F187 -> 0
C188: ;koberec zespodu opatřen gumovou vrstvou, | E188: 0
C189: ;vč.olištování dubovými lištami | E189: 0
C190: 421,20*1,10 | E190: 463.32
A191: =A187+1 -> 55 | B191: 776 57-2 P7 | C191: Lepení povlakových podlah z pásů textilních včetně zátěžového antistatického koberce | D191: m2 | E191: 123.09 | G191: =E191*F191 -> 0
C192: ;koberec zespodu opatřen gumovou vrstvou, | E192: 0
C193: ;vč.olištování dubovými lištami | E193: 0
C194: 111,90*1,10 | E194: 123.09
A195: =A191+1 -> 56 | B195: 998 77-6104.R00 | C195: Přesun hmot pro podlahy povlakové, výšky do 36 m | D195: t | E195: 1.56 | G195: =E195*F195 -> 0
A196: Díl: | B196: 781 | C196: Obklady keramické | G196: =SUBTOTAL(9,G197:G206) -> 0
A197: =A195+1 -> 57 | B197: 781 10-1210.R00 | C197: Penetrace podkladu pod obklady | D197: m2 | E197: 8.932 | G197: =E197*F197 -> 0
C198: 210:(0,60+1,80)*1,45 | E198: 3.48
C199: 224:(0,60+2,56+0,60)*1,45 | E199: 5.452
A200: =A197+1 -> 58 | B200: 781 47-511 | C200: Obklad vnitřní keramický do tmele vč.rohových a koutových lišt, na sraz vč.dodávky obkladu | D200: m2 | E200: 9.8252 | G200: =E200*F200 -> 0
C201: 8,932*1,10 | E201: 9.8252
A202: =A200+1 -> 59 | B202: 781 47-01 | C202: Bělninový obklad soklu v= 100mm v chodbách vč.dodávky obkladu | D202: m | E202: 92.09 | G202: =E202*F202 -> 0
C203: 18,94+2,40+18,94 | E203: 39.74
C204: 4,075+8,40+15,60+2,05+4,825+5,95+1,875+3,975 | E204: 46.75
C205: 2*0,70*4 | E205: 5.6
A206: =A202+1 -> 60 | B206: 998 78-1104.R00 | C206: Přesun hmot pro obklady keramické, výšky do 36 m | D206: t | E206: 0.225 | G206: =E206*F206 -> 0
A207: Díl: | B207: 782 | C207: Konstrukce z přírodního kamene | G207: =SUBTOTAL(9,G208:G215) -> 0
A208: =A206+1 -> 61 | B208: 782 Kp/7a | C208: Ostění a parapet oken 1650/2345 mm - ryolit repase - očištění,vytmelení a přebrouš.,impregnace | D208: ks | E208: 2 | G208: =E208*F208 -> 0
A209: =A208+1 -> 62 | B209: 782 Kp/7b | C209: Ostění a parapet oken 3100/2345 mm - ryolit repase - očištění,vytmelení a přebrouš.,impregnace | D209: ks | E209: 2 | G209: 0
A210: =A209+1 -> 63 | B210: 782 Kp/7c | C210: Ostění a parapet oken 4550/2345 mm - ryolit repase - očištění,vytmelení a přebrouš.,impregnace | D210: ks | E210: 1 | G210: 0
A211: =A210+1 -> 64 | B211: 782 Kp/13a | C211: Parapet oken dl.1450 mm - ryolit repase - očištění,vytmelení a přebrouš.,impregnace | D211: ks | E211: 1 | G211: 0
A212: =A211+1 -> 65 | B212: 782 Kp/13b | C212: Parapet oken dl.2900 mm - ryolit repase - očištění,vytmelení a přebrouš.,impregnace | D212: ks | E212: 10 | G212: 0
A213: =A212+1 -> 66 | B213: 782 Kp/13c | C213: Parapet oken dl.4350 mm - ryolit repase - očištění,vytmelení a přebrouš.,impregnace | D213: ks | E213: 2 | G213: 0
B214: poznámka 1 | C214: Konstrukce z přír.kamene jsou kompletní výrobky dle popisu v tabulkách
B215: poznámka 2 | C215: Konstrukce z přír.kamene jsou vč.přesunu hmot
... 10 more rows

Sheet 17_SO 06 - Silnoproud
A1: =CONCATENATE('Rekapitulace stavby'!C72,"_",'Rekapitulace stavby'!I72) -> 17_SO 06 - Silnoproudá elektroinstalace
A3: SPECIFIKACE DODÁVEK A PRACÍ
A4: Název akce:
A5: ='Identifikační údaje'!B1 -> ČRo Brno – III. etapa rekonstrukce budovy Beethovenova 25/4
A7: Zadavatel: | C7: ='Identifikační údaje'!E7 -> Český rozhlas, Vinohradská 12, 120 99 Praha 2
B8: IČ: | C8: ='Identifikační údaje'!B9 -> 45245053
B9: DIČ: | C9: ='Identifikační údaje'!B10 -> CZ45245053
A11: Projektant: | C11: ='Identifikační údaje'!E12 -> Ing. arch. Klement Miloš, Nejedlého 381/19, 638 00 Brno - Lesná
B12: IČ: | C12: ='Identifikační údaje'!B14 -> 15188736
B13: DIČ: | C13: ='Identifikační údaje'!B15 -> CZ6101021344
A15: Uchazeč: | C15: ='Identifikační údaje'!E19 -> , ,
B16: IČ: | C16: ='Identifikační údaje'!B23 -> 0
B17: DIČ: | C17: ='Identifikační údaje'!B24 -> 0
A19: Místo stavby: | C19: ='Identifikační údaje'!B3 -> Budova Českého rozhlasu Brno na adrese Beethovenova 25/4, 657 42 Brno
A21: Datum: | C21: ='Identifikační údaje'!B5 -> 00:00:00
A23: =CONCATENATE("REKAPITULACE DODÁVEK A PRACÍ OBJEKTU ",'Rekapitulace stavby'!I72) -> REKAPITULACE DODÁVEK A PRACÍ OBJEKTU SO 06 - Silnoproudá elektroinstalace
A25: P.č. | B25: Ozn. | D25: Materiál celkem | F25: Montáž celkem | H25: M+M celkem
A27: =B43 -> A. | B27: =C43 -> Svítidla a příslušenství | D27: =F43 -> 0 | F27: =H43 -> 0 | H27: =D27+F27 -> 0
A28: =B59 -> B. | B28: =C59 -> Spínače, zásuvky a ostatní přístroje | D28: =F59 -> 0 | F28: =H59 -> 0 | H28: =D28+F28 -> 0
A29: =B72 -> C. | B29: =C72 -> Instalační, úložný a ochranný materiál | D29: =F72 -> 0 | F29: =H72 -> 0 | H29: 0
A30: =B82 -> D. | B30: =C82 -> Kabely a vodiče | D30: =F82 -> 0 | F30: =H82 -> 0 | H30: 0
A31: =B92 -> E. | B31: =C92 -> Pospojování, uzemnění | D31: =F92 -> 0 | F31: =H92 -> 0 | H31: 0
A32: =B97 -> F. | B32: =C97 -> Rozvaděče | D32: =F97 -> 0 | F32: =H97 -> 0 | H32: 0
A33: =B105 -> G. | B33: =C105 -> Ostatní | D33: =F105 -> 0 | F33: =H105 -> 0 | H33: 0
A35: =CONCATENATE("CELKEM ZA OBJEKT ",'Rekapitulace stavby'!I72, " v Kč bez DPH") -> CELKEM ZA OBJEKT SO 06 - Silnoproudá elektroinstalace v Kč bez DPH | H35: =SUBTOTAL(9,H27:I33) -> 0
A38: Textová, výkresová i tabulková část projektové dokumentace tvoří jeden vzájemně se doplňující a provázaný celek. Jednotliví účastníci výběrového řízení se musí seznámit s projektojektovou dokumentací v návaznosti na soupis prací a na základě těchto informací části díla nacenit. Dále je potřeba při stanovení ceny dle vykázané výměry započítat všechny předpokládané doplňkové prvky a činnosti s touto položkou související tak, aby cena byla kompletní a prvek funkční.
A40: 1
F41: Materiál | H41: Montáž
A42: poř.č. | B42: položka | C42: popis položky | D42: MJ | E42: množství | F42: jedn.cena | G42: celkem [Kč] | H42: jedn.cena | I42: celkem [Kč]
B43: A. | C43: Svítidla a příslušenství | F43: =SUBTOTAL(9,G45:G57) -> 0 | H43: =SUBTOTAL(9,I45:I57) -> 0
C44: (komplet, včetně zdrojů, závěsů, pomocného materiálu, osazení zapojení, vyzkoušení apod.)
A45: 1 | C45: svítidlo typ A6 - Svítidlo stropní přisazené, bílá barva, difuzor opál, odsazený, Ø 130 mm, v=100 mm, LED 15W, 3000 K, 1280 lm, IP40 | D45: ks | E45: 14 | G45: =E45*F45 -> 0 | I45: =E45*H45 -> 0
A46: =A45+1 -> 2 | C46: svítidlo typ A7 - Svítidlo přisazené, bílá barva, difuzor opál, 80x80x1480 mm, pro zářivku 2x49W, G5, EP | D46: ks | E46: 14 | G46: =E46*F46 -> 0 | I46: =E46*H46 -> 0
A47: 3 | C47: svítidlo typ A9 - Svítidlo přisazené, bílá barva, difuzor opál, 80x80x1480 mm, pro zářivku 2x49W, G5, EP | D47: ks | E47: 1 | G47: 0 | I47: =E47*H47 -> 0
A48: 4 | C48: svítidlo typ B7-1 - Svítidlo stropní závěsné, korpus Al, bílá barva, difuzor mikroprisma, velikost 62x110x2556 mm, svícení direct-indirect, LED 45+35W, 4000 K, 8235+6405 lm- napájení- závěs 2m | D48: ks | E48: 21 | G48: 0 | I48: =E48*H48 -> 0
A49: 5 | C49: svítidlo typ B7-2 - Svítidlo stropní závěsné, korpus Al, bílá barva, difuzor mikroprisma,velikost 62x110x2270 mm, svícení direct-indirect, LED 40+30W, 4000 K, 7320+5490 lm- napájení- závěs 2m | D49: ks | E49: 2 | G49: 0 | I49: =E49*H49 -> 0
A50: 6 | C50: svítidlo typ B7-4 - Svítidlo stropní závěsné, korpus Al, bílá barva, difuzor mikroprisma,velikost 62x110x2556 mm, svícení direct-indirect, LED 72+56W, 4000 K, 12528+9744 lm- napájení- závěs 2m | D50: ks | E50: 1 | G50: 0 | I50: =E50*H50 -> 0
A51: 7 | C51: svítidlo typ C12-1- Svítidlo vestavné do podhledu SDK, korpus a koncovky AL, bílá barva, difuzor mikroprisma, š=78 mm, l=1424 mm, vestavná hloubka 100 mm, LED 25W, 4000 K, 4350 lm, IP43- profil- difuzor- koncovky- LED- úchyt | D51: ks | E51: 6 | G51: 0 | I51: 0
A52: 8 | C52: svítidlo typ C12-2 - Svítidlo vestavné do podhledu SDK, korpus a koncovky AL, bílá barva, difuzor mikroprisma, š=78 mm, l=1264 mm, vestavná hloubka 100 mm, LED 40W, 4000 K, 7320 lm, IP43- profil- difuzor- koncovky- LED- úchyt | D52: ks | E52: 1 | G52: 0 | I52: 0
A53: 9 | C53: svítidlo typ C12-3 - Svítidlo vestavné do podhledu SDK, korpus a koncovky AL, bílá barva, difuzor mikroprisma, š=78 mm, l=1144 mm, vestavná hloubka 100 mm, LED 20W, 4000 K, 3660 lm, IP43- profil- difuzor- koncovky- LED- úchyt | D53: ks | E53: 16 | G53: 0 | I53: 0
A54: 10 | C54: svítidlo typ C5 - Svítidlo vestavné do podhledu SDK, bílá barva, odsazený opálový difuzor, Ø 220 mm, vestavná hloubka 90 mm, LED 30W, 3000 K, 4650 lm, IP43 | D54: ks | E54: 7 | G54: 0 | I54: 0
A55: 11 | C55: svítidlo typ C9 - Svítidlo vestavné do podhledu SDK, bílá barva odsazený opálový difuzor, Ø 175 mm, vestavná hloubka 70 mm, LED 20W, 3000 K, 1700 lm, IP54 | D55: ks | E55: 9 | G55: 0 | I55: 0
A56: 12 | C56: svítidlo typ E2 - Osvětlovací lišta, vestavná do nábytku, Al, š. 22 mm, vestav. hloubka 12 mm,difuzor opál, LED 12V, 12W/m, 3000 K, celková délka 1500 mm | D56: ks | E56: 1 | G56: 0 | I56: 0
A57: 13 | C57: NOUZOVÉ OSVĚTLENÍ s připojením k CBS Inotec | D57: ks | E57: 12 | G57: 0 | I57: 0
B59: B. | C59: Spínače, zásuvky a ostatní přístroje | F59: =SUBTOTAL(9,G62:G70) -> 0 | H59: =SUBTOTAL(9,I62:I70) -> 0
C60: (komplet, včetně příslušenství, pomocného materiálu, osazení, zapojení, vyzkoušení apod.)
C61: Návazně na předchozí etapy rekonstrukce budou osaztovány výrobky z řady ABB Time
A62: =A57+1 -> 14 | C62: Domovní spínač řazení 1, komplet | D62: ks | E62: 3 | G62: =E62*F62 -> 0 | I62: =E62*H62 -> 0
A63: 15 | C63: Domovní spínač řazení 5, komplet | D63: ks | E63: 15 | G63: 0 | I63: 0
A64: 16 | C64: Domovní spínač řazení 6, komplet | D64: ks | E64: 6 | G64: 0 | I64: 0
A65: 17 | C65: Domovní spínač řazení 7, komplet | D65: ks | E65: 10 | G65: 0 | I65: 0
A66: 18 | C66: Domovní zásuvka 230V 16A,napájení z trafa komplet | D66: ks | E66: 124 | G66: 0 | I66: 0
A67: =A66+1 -> 19 | C67: Napojení sporáku (varné desky) přes odbočnou krabici KO100 | D67: ks | E67: 2 | G67: 0 | I67: 0
A68: =A67+1 -> 20 | C68: Zásuvkový box pro montáž na pracovní desku stolu 2x zásuvka 230V 16A | D68: ks | E68: 18 | G68: 0 | I68: 0
A69: =A68+1 -> 21 | C69: Zásuvkový box pro montáž pod pracovní desku stolu 3x zásuvka 230V 16A | D69: ks | E69: 18 | G69: 0 | I69: 0
A70: =A69+1 -> 22 | C70: Napojení SLP zařízení 230V, dle montážního návodu | D70: ks | E70: 5 | G70: 0 | I70: 0
B72: C. | C72: Instalační, úložný a ochranný materiál | F72: =SUBTOTAL(9,G73:G80) -> 0 | H72: =SUBTOTAL(9,I72:I80) -> 0
C73: (komplet, včetně příslušenství, pomocného materiálu, výkopu, záhozu výkopu, vytyčení trasy, osazení, zapojení, vyzkoušení apod.)
A74: =A70+1 -> 23 | C74: Krabice přístrojová | D74: ks | E74: 158 | G74: =E74*F74 -> 0 | I74: =E74*H74 -> 0
A75: =A74+1 -> 24 | C75: Krabice odbočná včetně wago svorek | D75: ks | E75: 100 | G75: =E75*F75 -> 0 | I75: =E75*H75 -> 0
A76: 25 | C76: Odbočná krabice pro připojení elektroinstalace ve stolech komplet včetně víčka a wago svorek. Z krabice 2x vývod tr25mm pod stůl | D76: ks | E76: 13 | G76: 0 | I76: 0
A77: 26 | C77: Kanál pro uložení vedení v betonové podlaze | D77: m | E77: 10 | G77: 0 | I77: 0
A78: 27 | C78: Kabelový drátový žlab 200x100 včetně příslušenství a závěsů | D78: m | E78: 60 | G78: 0 | I78: 0
A79: 28 | C79: Lišta vkládací montáž na nábytek 18x13 | D79: m | E79: 25 | G79: 0 | I79: 0
A80: 29 | C80: Krabice odbočná včetně wago svorek s funkční schopností při požáru | D80: ks | E80: 12 | G80: 0 | I80: 0
B82: D. | C82: Kabely a vodiče | F82: =SUBTOTAL(9,G83:G90) -> 0 | H82: =SUBTOTAL(9,I82:I90) -> 0
C83: (komplet, včetně vyhotovení drážky, zapravení drážky, vytyčení trasy, pomocného materiálu, příchytek, spojek, odlehčovacích oblouků, zapojení, vyzkoušení apod.)
A84: =A80+1 -> 30 | C84: CYKY J 3x1,5 | D84: m | E84: 700 | G84: =E84*F84 -> 0 | I84: =E84*H84 -> 0
A85: =A84+1 -> 31 | C85: CYKY J 3x2,5 | D85: m | E85: 1200 | G85: =E85*F85 -> 0 | I85: =E85*H85 -> 0
A86: 32 | C86: CYKY J 5x2,5 | D86: m | E86: 60 | G86: 0 | I86: 0
A87: 33 | C87: CYKY J 5x6 | D87: m | E87: 190 | G87: 0 | I87: 0
A88: 34 | C88: CYKY O 3x1,5 | D88: m | E88: 150 | G88: 0 | I88: 0
A89: 35 | C89: Kabel H05VV-F 3Gx2,5 | D89: m | E89: 50 | G89: 0 | I89: 0
A90: 36 | C90: Rozvody pro NO kabel s funkční schopností P60R -O 3x1,5 B2CAS1D0 | D90: m | E90: 100 | G90: 0 | I90: 0
B92: E. | C92: Pospojování, uzemnění | F92: =SUBTOTAL(9,G93:G95) -> 0 | H92: =SUBTOTAL(9,I92:I95) -> 0
C93: (komplet, včetně příslušenství, svorek, pomocného materiálu, osazení, zapojení, vyzkoušení apod.)
A94: =A90+1 -> 37 | C94: Vodič CYA16 žlutozelený včetně svorek - hlavní pospojení | D94: m | E94: 100 | G94: =E94*F94 -> 0 | I94: =E94*H94 -> 0
A95: =A94+1 -> 38 | C95: Vodič CYA4 žlutozelený včetně svorek - doplňkové pospojení | D95: m | E95: 50 | G95: =E95*F95 -> 0 | I95: =E95*H95 -> 0
B97: F. | C97: Rozvaděče | F97: =SUBTOTAL(9,G98:G103) -> 0 | H97: =SUBTOTAL(9,I97:I103) -> 0
C98: (komplet, včetně příslušenství, svorek, pomocného materiálu, osazení, zapojení, vyzkoušení apod.)
A99: =A95+1 -> 39 | C99: Patrový rozvaděč R21.1 | D99: ks | E99: 1 | G99: =E99*F99 -> 0 | I99: =E99*H99 -> 0
A100: =A99+1 -> 40 | C100: Patrový rozvaděč R21.2 | D100: ks | E100: 1 | G100: =E100*F100 -> 0 | I100: =E100*H100 -> 0
A101: =A100+1 -> 41 | C101: Patrový rozvaděč R21.3 | D101: ks | E101: 1 | G101: =E101*F101 -> 0 | I101: =E101*H101 -> 0
A102: =A101+1 -> 42 | C102: Patrový rozvaděč R21.4 | D102: ks | E102: 1 | G102: =E102*F102 -> 0 | I102: =E102*H102 -> 0
A103: =A102+1 -> 43 | C103: Patrový rozvaděč R21.5 | D103: ks | E103: 1 | G103: =E103*F103 -> 0 | I103: =E103*H103 -> 0
B105: G. | C105: Ostatní | F105: =SUBTOTAL(9,G106:G110) -> 0 | H105: =SUBTOTAL(9,I105:I110) -> 0
A106: =A103+1 -> 44 | C106: Výchozí revize | D106: hod | E106: 20 | G106: =E106*F106 -> 0 | I106: =E106*H106 -> 0
A107: =A106+1 -> 45 | C107: Demontáže včetně likvidace odpadu | D107: hod | E107: 150 | G107: =E107*F107 -> 0 | I107: =E107*H107 -> 0
A108: =A107+1 -> 46 | C108: Pomocný a podružný materiál upevňovací | D108: kpl | E108: 1 | G108: =E108*F108 -> 0 | I108: =E108*H108 -> 0
A109: =A108+1 -> 47 | C109: Zednické výpomoci (PPV) | D109: kpl | E109: 1 | F109: --- | G109: --- | I109: =E109*H109 -> 0
A110: =A109+1 -> 48 | C110: Doprava materiálu | D110: kpl | E110: 1 | F110: --- | G110: --- | I110: =E110*H110 -> 0

Sheet 18_SO 07 - Stav arch část
A1: =CONCATENATE('Rekapitulace stavby'!C74,"_",'Rekapitulace stavby'!I74) -> 18_SO 07 - Stavebně - architektonická část
A3: SPECIFIKACE DODÁVEK A PRACÍ
A4: Název akce:
A5: ='Identifikační údaje'!B1 -> ČRo Brno – III. etapa rekonstrukce budovy Beethovenova 25/4
A7: Zadavatel: | C7: ='Identifikační údaje'!E7 -> Český rozhlas, Vinohradská 12, 120 99 Praha 2
B8: IČ: | C8: ='Identifikační údaje'!B9 -> 45245053
B9: DIČ: | C9: ='Identifikační údaje'!B10 -> CZ45245053
A11: Projektant: | C11: ='Identifikační údaje'!E12 -> Ing. arch. Klement Miloš, Nejedlého 381/19, 638 00 Brno - Lesná
B12: IČ: | C12: ='Identifikační údaje'!B14 -> 15188736
B13: DIČ: | C13: ='Identifikační údaje'!B15 -> CZ6101021344
A15: Uchazeč: | C15: ='Identifikační údaje'!E19 -> , ,
B16: IČ: | C16: ='Identifikační údaje'!B23 -> 0
B17: DIČ: | C17: ='Identifikační údaje'!B24 -> 0
A19: Místo stavby: | C19: ='Identifikační údaje'!B3 -> Budova Českého rozhlasu Brno na adrese Beethovenova 25/4, 657 42 Brno
A21: Datum vyplnění: | C21: ='Identifikační údaje'!B5 -> 00:00:00
A23: =CONCATENATE("REKAPITULACE DODÁVEK A PRACÍ OBJEKTU ",'Rekapitulace stavby'!I74) -> REKAPITULACE DODÁVEK A PRACÍ OBJEKTU SO 07 - Stavebně - architektonická část
A25: P.č. | B25: Číslo položky | C25: Název položky | D25: Kč bez DPH
A27: Díl: | B27: =B52 -> 3 | C27: =C52 -> Svislé a kompletní konstrukce | G27: =G52 -> 0
A28: Díl: | B28: =B70 -> 61 | C28: =C70 -> Upravy povrchů vnitřní | G28: =G70 -> 0
A29: Díl: | B29: =B100 -> 63 | C29: =C100 -> Podlahy a podlahové konstrukce | G29: =G100 -> 0
A30: Díl: | B30: =B104 -> 94 | C30: =C104 -> Lešení a stavební výtahy | G30: =G104 -> 0
A31: Díl: | B31: =B107 -> 95 | C31: =C107 -> Dokončovací kce na pozem.stav. | G31: =G107 -> 0
A32: Díl: | B32: =B112 -> 96 | C32: =C112 -> Bourání konstrukcí | G32: =G112 -> 0
A33: Díl: | B33: =B163 -> 99 | C33: =C163 -> Staveništní přesun hmot | G33: =G163 -> 0
A34: Díl: | B34: =B165 -> 713 | C34: =C165 -> Izolace tepelné | G34: =G165 -> 0
A35: Díl: | B35: =B168 -> 766 | C35: =C168 -> Konstrukce truhlářské | G35: =G168 -> 0
A36: Díl: | B36: =B183 -> 767 | C36: =C183 -> Konstrukce zámečnické | G36: =G183 -> 0
A37: Díl: | B37: =B190 -> 775 | C37: =C190 -> Podlahy vlysové a parketové | G37: =G190 -> 0
A38: Díl: | B38: =B194 -> 776 | C38: =C194 -> Podlahy povlakové | G38: =G194 -> 0
A39: Díl: | B39: =B205 -> 781 | C39: =C205 -> Obklady keramické | G39: =G205 -> 0
A40: Díl: | B40: =B215 -> 782 | C40: =C215 -> Konstrukce z přírodního kamene | G40: =G215 -> 0
A41: Díl: | B41: =B224 -> 784 | C41: =C224 -> Malby | G41: =G224 -> 0
A42: Díl: | B42: =B227 -> 40 | C42: =C227 -> Podhledy | G42: =G227 -> 0
A44: =CONCATENATE("CELKEM ZA OBJEKT ",'Rekapitulace stavby'!I74, " v Kč bez DPH") -> CELKEM ZA OBJEKT SO 07 - Stavebně - architektonická část v Kč bez DPH | D44: =SUM(G27:G42) -> 0
A50: P.č. | B50: Číslo položky | C50: Název položky | D50: MJ | E50: množství | F50: cena / MJ | G50: celkem
B51: Ceník, kapitola | C51: Poznámka uchazeče
A52: Díl: | B52: 3 | C52: Svislé a kompletní konstrukce | G52: =SUBTOTAL(9,G53:G69) -> 0
A53: =1 -> 1 | B53: 34224811 | C53: Příčky POROTHERM AKU na MVC tl. 100 mm | D53: m2 | E53: 25.5275 | G53: =E53*F53 -> 0
C54: ;3.patro | E54: 0
C55: (2,575+2*1,30)*2,90-0,85*2,00*2 | E55: 11.6075
C56: 3,50*2,90+(1,00+0,30)*2,90 | E56: 13.92
A57: =A53+1 -> 2 | B57: 34224813 | C57: Příčky POROTHERM AKU na MVC tl. 150 mm | D57: m2 | E57: 25.93 | G57: =E57*F57 -> 0
C58: ;3.patro | E58: 0
C59: (3,00+7,70)*2,90-0,85*2,00*3 | E59: 25.93
A60: =A57+1 -> 3 | B60: 34224812 | C60: Příčky POROTHERM AKU na MVC tl. 125 mm | D60: m2 | E60: 33.6864 | G60: =E60*F60 -> 0
C61: ;3.patro | E61: 0
C62: 1,946*2,90+3,47*2,90+6,20*2,90 | E62: 33.6864
A63: =A60+1 -> 4 | B63: 34201 | C63: Předstěna SDK v m.č.332 vč.tepel.izolace SDK 15mm+SDK12+TI100mm+50mm vzduch.mezera , vč.povrchové úpravy | D63: m2 | E63: 17.3 | G63: =E63*F63 -> 0
C64: (0,60+5,575)*2,80 | E64: 17.3
A65: =A63+1 -> 5 | B65: 3171 PŘ | C65: Překlad z profilu I100 dl.1250mm vč.plentování cihlami a rabicem | D65: ks | E65: 5 | G65: =E65*F65 -> 0
A66: =A65+1 -> 6 | B66: 340 23-9212.R00 | C66: Zazdívka otvorů pl.4 m2,cihlami tl.zdi nad 10 cm | D66: m2 | E66: 17.6 | G66: =E66*F66 -> 0
C67: ;3.patro | E67: 0
C68: 0,85*2,00*7+0,95*2,00*3 | E68: 17.6
A69: =A66+1 -> 7 | B69: 3172 PŘ | C69: Překlad z profilu I100 dl.1650mm vč.plentování cihlami a rabicem | D69: ks | E69: 1 | G69: =E69*F69 -> 0
A70: Díl: | B70: 61 | C70: Upravy povrchů vnitřní | G70: =SUBTOTAL(9,G71:G99) -> 0
A71: =A69+1 -> 8 | B71: 612 47-3182.R00 | C71: Omítka vnitřního zdiva ze suché směsi, štuková | D71: m2 | E71: 170.286 | G71: =E71*F71 -> 0
C72: ;na nové zdivo | E72: 0
C73: (25,527+33,686+25,93)*2 | E73: 170.286
A74: =A71+1 -> 9 | B74: 612 10-003 | C74: Oprava omítek stěn vnitřních vápenocem. štukových oprava | D74: m2 | E74: 1225.658 | G74: =E74*F74 -> 0
C75: 303:(4,00+9,90+15,50+2,02+5,50)*2,80+8*0,70*2,80 | E75: 119.056
C76: 304:5,595*2,80 | E76: 15.666
C77: 304a:(1,875+3,475)*2,80 | E77: 14.98
C78: 305:(5,50+4,80)*2*2,80 | E78: 57.68
C79: 310:(5,00+2,50+5,00)*2,80 | E79: 35
C80: 311:(5,65+3,99)*2*2,80 | E80: 53.984
C81: 312:(5,65+3,725)*2*2,80 | E81: 52.5
C82: 313:(5,65+4,82)*2*2,80 | E82: 58.632
C83: 314:(5,65+3,24)*2*2,80 | E83: 49.784
C84: 319:(18,715+2,375)*2*2,80 | E84: 118.104
C85: 319a:1,745*2,80 | E85: 4.886
C86: 320:(7,17+3,305)*2*2,80 | E86: 58.66
C87: 322:(3,52+7,17)*2*2,80 | E87: 59.864
C88: 323:(4,10+7,17)*2*2,80 | E88: 63.112
C89: 324:(3,70+7,17)*2*2,80 | E89: 60.872
C90: 325:(3,84+7,15)*2*2,80 | E90: 61.544
C91: 326:(4,814+3,88+3,519)*2,80 | E91: 34.1964
C92: 327:(8,036+3,86+8,036)*2,80 | E92: 55.8096
C93: 328:(3,72+7,435)*2*2,80 | E93: 62.468
C94: 329:(3,92+7,435)*2*2,80 | E94: 63.588
C95: 330:(3,85+7,435)*2*2,80 | E95: 63.196
C96: 331:(3,65+7,435)*2*2,80 | E96: 62.076
A97: =A74+1 -> 10 | B97: 611 10-0013 | C97: Oprava váp.omítek stropů -vyspravení pod podhledy | D97: m2 | E97: 580.8 | G97: =E97*F97 -> 0
A98: =A97+1 -> 11 | B98: 612 40-339 | C98: Hrubá výplň rýh ve stěnách maltou, zapravení svislých drážek po rozvodech ÚT poz.5 | D98: m2 | E98: 11.76 | G98: =E98*F98 -> 0
C99: 0,30*2,80*12+0,60*2,80*1 | E99: 11.76
A100: Díl: | B100: 63 | C100: Podlahy a podlahové konstrukce | G100: =SUBTOTAL(9,G101:P103) -> 0
A101: =A98+1 -> 12 | B101: 632 44-1 | C101: Potěr anhydrit tl. 50 mm oddilatovaný od stěn EPS 20 mm | D101: m2 | E101: 129.9 | G101: =E101*F101 -> 0
A102: =A101+1 -> 13 | B102: 632 47-3 P7 | C102: Samonivelační stěrka tl.3mm | D102: m2 | E102: 129.9 | G102: =E102*F102 -> 0
A103: =A102+1 -> 14 | B103: 632 48 | C103: Vyspravení podkladu pod podlahu | D103: m2 | E103: 30.36 | G103: =E103*F103 -> 0
A104: Díl: | B104: 94 | C104: Lešení a stavební výtahy | G104: =SUBTOTAL(9,G105:P106) -> 0
A105: =A103+1 -> 15 | B105: 941 95-5002.R00 | C105: Lešení lehké pomocné, výška podlahy do 1,9 m | D105: m2 | E105: 580.8 | G105: =E105*F105 -> 0
C106: pro podhledy:580,80 | E106: 580.8
A107: Díl: | B107: 95 | C107: Dokončovací kce na pozem.stav. | G107: =SUBTOTAL(9,G108:G111) -> 0
A108: =A105+1 -> 16 | B108: 952 90-1111.R00 | C108: Vyčištění budov o výšce podlaží do 4 m | D108: m2 | E108: 580.8 | G108: =E108*F108 -> 0
A109: =A108+1 -> 17 | B109: 95001 | C109: HZS - nezměřitelné práce | D109: hod | E109: 120 | G109: =E109*F109 -> 0
A110: =A109+1 -> 18 | B110: 95003 | C110: Vyklizení mobiliáře vč.ekologické likvidace | D110: kpl. | E110: 1 | G110: =E110*F110 -> 0
A111: =A110+1 -> 19 | B111: 95004 | C111: Uzavření rekonstruovaného prostoru proti šíření prašnosti | D111: kpl. | E111: 1 | G111: =E111*F111 -> 0
A112: Díl: | B112: 96 | C112: Bourání konstrukcí | G112: =SUBTOTAL(9,G113:G162) -> 0
A113: =A111+1 -> 20 | B113: 962 03-1132.R00 | C113: Bourání příček cihelných tl. 10 cm | D113: m2 | E113: 2.28 | G113: =E113*F113 -> 0
C114: ;A | E114: 0
C115: 0,80*2,85 | E115: 2.28
A116: =A113+1 -> 21 | B116: 962 03-1133.R00 | C116: Bourání příček cihelných tl. 15 cm | D116: m2 | E116: 27.132 | G116: =E116*F116 -> 0
C117: ;A | E117: 0
C118: (2,22+2,30+5,00)*2,85 | E118: 27.132
A119: =A116+1 -> 22 | B119: 968 06-1125.R00 | C119: Vyvěšení dřevěných dveřních křídel pl. do 2 m2 | D119: kus | E119: 1 | G119: =E119*F119 -> 0
C120: ;C | E120: 0
C121: 1 | E121: 1
A122: =A119+1 -> 23 | B122: 968 06-245 | C122: Vybourání dveřních zárubní pl. do 2 m2 | D122: m2 | E122: 1.576 | G122: =E122*F122 -> 0
C123: ;C | E123: 0
C124: 0,80*1,97 | E124: 1.576
A125: =A122+1 -> 24 | B125: 714 11-08 F | C125: Demontáž akustických obkladů, stěn - kompletní konstrukce | D125: m2 | E125: 130.872 | G125: =E125*F125 -> 0
C126: (1,94+4,95)*2*2,85 | E126: 39.273
C127: (8,95+7,12)*2*2,85 | E127: 91.599
A128: =A125+1 -> 25 | B128: 962 03-2231.R00 | C128: Bourání zdiva z cihel pálených na MVC | D128: m3 | E128: 0.8978 | G128: =E128*F128 -> 0
C129: ;A | E129: 0
C130: 0,70*2,85*0,45 | E130: 0.8978
A131: =A128+1 -> 26 | B131: 96956 G | C131: Demontáž kazetových podhledů - kompletní konstrukce | D131: m2 | E131: 94.4 | G131: =E131*F131 -> 0
C132: 59,10+35,30 | E132: 94.4
A133: =A131+1 -> 27 | B133: 96955 H | C133: Demontáž akustických podhledů - kompletní konstrukce | D133: m2 | E133: 60.4 | G133: =E133*F133 -> 0
C134: 50,80+9,60 | E134: 60.4
A135: =A133+1 -> 28 | B135: 96958 PH | C135: Demontáž požárních hlásičů | D135: ks | E135: 11 | G135: =E135*F135 -> 0
A136: =A135+1 -> 29 | B136: 776 51 D | C136: Odstranění PVC a koberců lepených | D136: m2 | E136: 1522.5 | G136: =E136*F136 -> 0
C137: ;PVC | E137: 0
C138: 50,80+27,70 | E138: 78.5
C139: (59,10+35,30+3,20)*2 | E139: 195.2
C140: (15,00+23,20+21,30+30,00+18,60+9,60)*2 | E140: 235.4
C141: (25,20+30,00+27,20+28,10+21,70)*2 | E141: 264.4
C142: (29,30+28,30+29,80+29,30+28,80+21,20)*2 | E142: 333.4
C143: ;koberce | E143: 0
C144: 15,00+22,20+21,30+30,00+18,60+9,60 | E144: 116.7
C145: 25,20+30,00+27,20+28,10+21,70 | E145: 132.2
C146: 29,30+28,30+29,80+29,30+28,80+21,20 | E146: 166.7
A147: =A136+1 -> 30 | B147: 96808 EL | C147: Demontáž elektrorozvaděče | D147: ks | E147: 1 | G147: =E147*F147 -> 0
A148: =A147+1 -> 31 | B148: 96809 ZD | C148: Demontáž zaslepení stávajících dveří | D148: ks | E148: 2 | G148: =E148*F148 -> 0
A149: =A148+1 -> 32 | B149: 725 21 U | C149: Demontáž umyvadel | D149: soubor | E149: 2 | G149: =E149*F149 -> 0
A150: =A149+1 -> 33 | B150: 978 05-9521.R00 | C150: Odsekání vnitřních obkladů stěn do 2 m2 | D150: m2 | E150: 1 | G150: =E150*F150 -> 0
C151: 1,00*0,50*2 | E151: 1
A152: =A150+1 -> 34 | B152: 7765118F | C152: Odstranění nášlapné vrstvy podlahy a násypu | D152: m2 | E152: 129.9 | G152: =E152*F152 -> 0
A153: =A152+1 -> 35 | B153: 979 01-1211.R00 | C153: Svislá doprava suti a vybour. hmot za 2.NP nošením | D153: t | E153: 37.4 | G153: =E153*F153 -> 0
A154: =A153+1 -> 36 | B154: 979 01-1219.R00 | C154: Přípl.k svislé dopr.suti za každé další NP nošením | D154: t | E154: 37.4 | G154: =E154*F154 -> 0
A155: =A154+1 -> 37 | B155: 979 08-2111.R00 | C155: Vnitrostaveništní doprava suti do 10 m | D155: t | E155: 37.4 | G155: =E155*F155 -> 0
A156: =A155+1 -> 38 | B156: 979 08-2121.R00 | C156: Příplatek k vnitrost. dopravě suti za dalších 5 m | D156: t | E156: 187 | G156: =E156*F156 -> 0
C157: 5*37,4 | E157: 187
A158: =A156+1 -> 39 | B158: 979 08-1121.R00 | C158: Příplatek k odvozu za každý další 1 km | D158: t | E158: 710.6 | G158: =E158*F158 -> 0
C159: 19*37,4 | E159: 710.6
A160: =A158+1 -> 40 | B160: 979 08-1111.R00 | C160: Odvoz suti a vybour. hmot na skládku do 1 km | D160: t | E160: 37.4 | G160: =E160*F160 -> 0
A161: =A160+1 -> 41 | B161: 979 09-311.R00 | C161: Uložení suti na skládku | D161: t | E161: 37.4 | G161: =E161*F161 -> 0
A162: =A161+1 -> 42 | B162: 979 99-999 | C162: Poplatek za skladku | D162: t | E162: 37.4 | G162: =E162*F162 -> 0
A163: Díl: | B163: 99 | C163: Staveništní přesun hmot | G163: =SUBTOTAL(9,G164) -> 0
A164: =A162+1 -> 43 | B164: 999 28-1112.R00 | C164: Přesun hmot pro opravy a údržbu do výšky 36 m | D164: t | E164: 11.42 | G164: =E164*F164 -> 0
A165: Díl: | B165: 713 | C165: Izolace tepelné | G165: =SUBTOTAL(9,G166:G167) -> 0
A166: =A164+1 -> 44 | B166: 713 12-1 P4 | C166: Izolace tepelná podlah na sucho, jednovrstvá včetně dodávky EPS T 5000 tl.20 mm | D166: m2 | E166: =E167 -> 136.395 | G166: =E166*F166 -> 0
C167: 129,9*1,05 | E167: =129.9*1.05 -> 136.395
A168: Díl: | B168: 766 | C168: Konstrukce truhlářské | G168: =SUBTOTAL(9,G169:G182) -> 0
A169: =A166+1 -> 45 | B169: 766 Tpo/1a | C169: Okno vč.parapetu - špalet. 1350/2045 mm repase - odstranění nátěru, přebroušení,nový nátěr | D169: ks | E169: 3 | G169: =E169*F169 -> 0
C170: seřízení a doplnění kování:3 | E170: 3
A171: =A169+1 -> 46 | B171: 766 Tpo/1b | C171: Okno vč.parapetu - špalet. 2800/2045 mm repase - odstranění nátěru, přebroušení,nový nátěr | D171: ks | E171: 13 | G171: =E171*F171 -> 0
C172: seřízení a doplnění kování:13 | E172: 13
A173: =A171+1 -> 47 | B173: 766 Tpo/1c | C173: Okno vč.parapetu - špalet. 4250/2045 mm repase - odstranění nátěru, přebroušení,nový nátěr | D173: ks | E173: 3 | G173: =E173*F173 -> 0
C174: seřízení a doplnění kování:3 | E174: 3
A175: =A173+1 -> 48 | B175: 766 Tpd/7b | C175: Stávající dřev.dveře 1kř.plné 850/1980 mm repase - očištění, přebrtoušení, nový nátěr,kování | D175: ks | E175: 5 | G175: =E175*F175 -> 0
A176: =A175+1 -> 49 | B176: 766 Tpd/7b | C176: Stávající dřev.dveře 1kř.plné 850/1980 mm repase - očištění, přebrtoušení, nový nátěr,kování - přemisťované na nové místo | D176: ks | E176: 7 | G176: 0
A177: =A176+1 -> 50 | B177: 766 Tn/5 | C177: Kuchyňská linka dl. 2550 mm mč.310,326 D+M | D177: ks | E177: 2 | G177: 0
A178: =A177+1 -> 51 | B178: 766 Tpo/8b | C178: Stávající nadsvětlík do kanceláří 3300/650 mm repase - očištění, přebrtoušení, nový nátěr,kování | D178: ks | E178: 5 | G178: 0
A179: =A178+1 -> 52 | B179: 766 Tpo/8d | C179: Stávající nadsvětlík do kanceláří 2570/750 mm repase - očištění, přebrtoušení, nový nátěr,kování | D179: ks | E179: 1 | G179: 0
A180: =A179+1 -> 53 | B180: 766 Tnd/2b | C180: Dřevěné dveře 1kř.plné 850/1970 mm D+M vč.obložkové zárubně - replika stávajících dveří | D180: ks | E180: 10 | G180: 0
B181: poznámka 1 | C181: Truhlářské konstrukce jsou kompletní výrobky dle tabulek
B182: poznámka 2 | C182: Truhlářské konstrukce jsou vč.přesunu hmot
A183: Díl: | B183: 767 | C183: Konstrukce zámečnické | G183: =SUBTOTAL(9,G184:G189) -> 0
A184: =A180+1 -> 54 | B184: 767 | C184: Zámečnické výrobky | D184: kpl. | E184: 1 | G184: =E184*F184 -> 0
A185: =A184+1 -> 55 | B185: 767 Zn10 | C185: Dvířka zakrývající šachtu pro silnoproud 500/800mm požár. EW 30 DP1 D+M | D185: ks | E185: 1 | G185: =E185*F185 -> 0
A186: =A185+1 -> 56 | B186: 767 Zpd/5 | C186: Dveře 2kř.prosklené 1400/2150 mm repase | D186: ks | E186: 1 | G186: =E186*F186 -> 0
A187: =A186+1 -> 57 | B187: 767 GK | C187: Generální klíč | D187: kpl. | E187: 1 | G187: =E187*F187 -> 0
B188: poznámka 1 | C188: Zámečnické konstrukce jsou kompletní výrobky dle tabulek
B189: poznámka 2 | C189: Zámečnické konstrukce jsou vč.přesunu hmot
A190: Díl: | B190: 775 | C190: Podlahy vlysové a parketové | G190: =SUBTOTAL(9,G191:G193) -> 0
A191: =A187+1 -> 58 | B191: 775 53-00 P6; P9 | C191: Podlahy parketové - vlysy nové | D191: m2 | E191: =E192 -> 496.21 | G191: =E191*F191 -> 0
C192: 451,1*1,10 | E192: =451.1*1.1 -> 496.21
A193: =A191+1 -> 59 | B193: 998 77-5104.R00 | C193: Přesun hmot pro podlahy vlysové, výšky do 36 m | D193: t | E193: 0.6 | G193: =E193*F193 -> 0
A194: Díl: | B194: 776 | C194: Podlahy povlakové | G194: =SUBTOTAL(9,G195:G204) -> 0
A195: =A193+1 -> 60 | B195: 776 57-2 P6 | C195: Lepení povlakových podlah z pásů textilních včetně zátěžového antistatického koberce | D195: m2 | E195: 465.85 | G195: =E195*F195 -> 0
C196: ;koberec zespodu opatřen gumovou vrstvou | E196: 0
C197: 423,50*1,10 | E197: 465.85
A198: =A195+1 -> 61 | B198: 776 57-2 P7 | C198: Lepení povlakových podlah z pásů textilních včetně zátěžového antistatického koberce | D198: m2 | E198: 142.89 | G198: =E198*F198 -> 0
C199: ;koberec zespodu opatřen gumovou vrstvou | E199: 0
C200: 129,90*1,10 | E200: 142.89
A201: =A198+1 -> 62 | B201: 776 57-2 P9 | C201: Lepení povlakových podlah z pásů textilních včetně zátěžového antistatického koberce | D201: m2 | E201: 30.36 | G201: =E201*F201 -> 0
C202: ;koberec zespodu opatřen gumovou vrstvou | E202: 0
C203: 27,60*1,10 | E203: 30.36
A204: =A201+1 -> 63 | B204: 998 77-6104.R00 | C204: Přesun hmot pro podlahy povlakové, výšky do 36 m | D204: t | E204: 0.285 | G204: =E204*F204 -> 0
A205: Díl: | B205: 781 | C205: Obklady keramické | G205: =SUBTOTAL(9,G206:G214) -> 0
A206: =A204+1 -> 64 | B206: 781 10-1210.R00 | C206: Penetrace podkladu pod obklady | D206: m2 | E206: 6.483 | G206: =E206*F206 -> 0
C207: 326:(0,60+2,575+1,296)*1,45 | E207: 6.483
A208: =A206+1 -> 65 | B208: 781 47-511 | C208: Obklad vnitřní keramický do tmele vč.rohových a koutových lišt na sraz vč. dodávky obkladu | D208: m2 | E208: 7.1313 | G208: =E208*F208 -> 0
C209: 6,483*1,10 | E209: 7.1313
A210: =A208+1 -> 66 | B210: 781 47-01 | C210: Bělninový obklad soklu v= 100mm v chodbách vč.dodávky obkladu | D210: m | E210: 97.23 | G210: =E210*F210 -> 0
C211: (18,715+2,375)*2 | E211: 42.18
C212: 10,03+8,40+10,03+5,285+2,02+5,285+8,40 | E212: 49.45
C213: 2*0,70*4 | E213: 5.6
A214: =A210+1 -> 67 | B214: 998 78-1104.R00 | C214: Přesun hmot pro obklady keramické, výšky do 36 m | D214: t | E214: 0.136 | G214: =E214*F214 -> 0
A215: Díl: | B215: 782 | C215: Konstrukce z přírodního kamene | G215: =SUBTOTAL(9,G216:G223) -> 0
... 16 more rows

Sheet 19_SO 07 - Silnoproud
A1: =CONCATENATE('Rekapitulace stavby'!C75,"_",'Rekapitulace stavby'!I75) -> 19_SO 07 - Silnoproudá elektroinstalace
A3: SPECIFIKACE DODÁVEK A PRACÍ
A4: Název akce:
A5: ='Identifikační údaje'!B1 -> ČRo Brno – III. etapa rekonstrukce budovy Beethovenova 25/4
A7: Zadavatel: | C7: ='Identifikační údaje'!E7 -> Český rozhlas, Vinohradská 12, 120 99 Praha 2
B8: IČ: | C8: ='Identifikační údaje'!B9 -> 45245053
B9: DIČ: | C9: ='Identifikační údaje'!B10 -> CZ45245053
A11: Projektant: | C11: ='Identifikační údaje'!E12 -> Ing. arch. Klement Miloš, Nejedlého 381/19, 638 00 Brno - Lesná
B12: IČ: | C12: ='Identifikační údaje'!B14 -> 15188736
B13: DIČ: | C13: ='Identifikační údaje'!B15 -> CZ6101021344
A15: Uchazeč: | C15: ='Identifikační údaje'!E19 -> , ,
B16: IČ: | C16: ='Identifikační údaje'!B23 -> 0
B17: DIČ: | C17: ='Identifikační údaje'!B24 -> 0
A19: Místo stavby: | C19: ='Identifikační údaje'!B3 -> Budova Českého rozhlasu Brno na adrese Beethovenova 25/4, 657 42 Brno
A21: Datum: | C21: ='Identifikační údaje'!B5 -> 00:00:00
A23: =CONCATENATE("REKAPITULACE DODÁVEK A PRACÍ OBJEKTU ",'Rekapitulace stavby'!I75) -> REKAPITULACE DODÁVEK A PRACÍ OBJEKTU SO 07 - Silnoproudá elektroinstalace
A25: P.č. | B25: Ozn. | D25: Materiál celkem | F25: Montáž celkem | H25: M+M celkem
A27: =B43 -> A. | B27: =C43 -> Svítidla a příslušenství | D27: =F43 -> 0 | F27: =H43 -> 0 | H27: =D27+F27 -> 0
A28: =B61 -> B. | B28: =C61 -> Spínače, zásuvky a ostatní přístroje | D28: =F61 -> 0 | F28: =H61 -> 0 | H28: =D28+F28 -> 0
A29: =B73 -> C. | B29: =C73 -> Instalační, úložný a ochranný materiál | D29: =F73 -> 0 | F29: =H73 -> 0 | H29: 0
A30: =B82 -> D. | B30: =C82 -> Kabely a vodiče | D30: =F82 -> 0 | F30: =H82 -> 0 | H30: 0
A31: =B92 -> E. | B31: =C92 -> Pospojování, uzemnění | D31: =F92 -> 0 | F31: =H92 -> 0 | H31: 0
A32: =B97 -> F. | B32: =C97 -> Rozvaděče | D32: =F97 -> 0 | F32: =H97 -> 0 | H32: 0
A33: =B106 -> G. | B33: =C106 -> Ostatní | D33: =F106 -> 0 | F33: =H106 -> 0 | H33: 0
A35: =CONCATENATE("CELKEM ZA OBJEKT ",'Rekapitulace stavby'!I75, " v Kč bez DPH") -> CELKEM ZA OBJEKT SO 07 - Silnoproudá elektroinstalace v Kč bez DPH | H35: =SUBTOTAL(9,H27:I33) -> 0
A38: Textová, výkresová i tabulková část projektové dokumentace tvoří jeden vzájemně se doplňující a provázaný celek. Jednotliví účastníci výběrového řízení se musí seznámit s projektojektovou dokumentací v návaznosti na soupis prací a na základě těchto informací části díla nacenit. Dále je potřeba při stanovení ceny dle vykázané výměry započítat všechny předpokládané doplňkové prvky a činnosti s touto položkou související tak, aby cena byla kompletní a prvek funkční.
A40: 1
F41: Materiál | H41: Montáž
A42: poř.č. | B42: položka | C42: popis položky | D42: MJ | E42: množství | F42: jedn.cena | G42: celkem [Kč] | H42: jedn.cena | I42: celkem [Kč]
B43: A. | C43: Svítidla a příslušenství | F43: =SUBTOTAL(9,G45:G59) -> 0 | H43: =SUBTOTAL(9,I45:I59) -> 0
C44: (komplet, včetně zdrojů, závěsů, pomocného materiálu, osazení zapojení, vyzkoušení apod.)
A45: 1 | C45: svítidlo typ A11-1 - Svítidlo stropní přisazené, korpus ocel, bílá barva, difuzor PMMA opál, 80x80x1480 mm, pro zářivku 2x80W, G5, EP | D45: ks | E45: 5 | G45: =E45*F45 -> 0 | I45: =E45*H45 -> 0
A46: =A45+1 -> 2 | C46: svítidlo typ A11-2 - Svítidlo stropní přisazené, korpus ocel, bílá barva, difuzor PMMA opál, 80x80x1180 mm, pro zářivku 2x54W, G5, EP | D46: ks | E46: 3 | G46: =E46*F46 -> 0 | I46: =E46*H46 -> 0
A47: 3 | C47: svítidlo typ A12 - Svítidlo stropní přisazené, korpus ocel, bílá barva, difuzor PMMA opál, 80x80x1180 mm, pro zářivku 2x54W, G5, EP | D47: ks | E47: 2 | G47: =E47*F47 -> 0 | I47: =E47*H47 -> 0
A48: 4 | C48: svítidlo typ A6 - Svítidlo stropní přisazené, bílá barva, difuzor opál, odsazený, Ø 130 mm, v=100 mm, LED 15W, 3000 K, 1280 lm, IP40 | D48: ks | E48: 14 | G48: 0 | I48: 0
A49: 5 | C49: svítidlo typ A7 - Svítidlo přisazené, bílá barva, difuzor opál, 80x80x1480 mm, pro zářivku 2x49W, G5, EP | D49: ks | E49: 1 | G49: 0 | I49: 0
A50: 6 | C50: svítidlo typ B7-1 - Svítidlo stropní závěsné, korpus Al, bílá barva, difuzor mikroprisma, velikost 62x110x2556 mm, svícení direct-indirect, LED 45+35W, 4000 K, 8235+6405 lm- napájení- závěs 2m | D50: ks | E50: 28 | G50: 0 | I50: 0
A51: 7 | C51: svítidlo typ B7-3 - Svítidlo stropní závěsné, korpus Al, bílá barva, difuzor mikroprisma,velikost 62x110x1990 mm, svícení direct-indirect, LED 35+30W, 4000 K, 6405+5490 lm- napájení- závěs 2m | D51: ks | E51: 3 | G51: 0 | I51: 0
A52: 8 | C52: svítidlo typ C12-1- Svítidlo vestavné do podhledu SDK, korpus a koncovky AL, bílá barva, difuzor mikroprisma, š=78 mm, l=1424 mm, vestavná hloubka 100 mm, LED 25W, 4000 K, 4350 lm, IP43- profil- difuzor- koncovky- LED- úchyt | D52: ks | E52: 8 | G52: 0 | I52: 0
A53: 9 | C53: svítidlo typ C12-3 - Svítidlo vestavné do podhledu SDK, korpus a koncovky AL, bílá barva, difuzor mikroprisma, š=78 mm, l=1144 mm, vestavná hloubka 100 mm, LED 20W, 4000 K, 3660 lm, IP43- profil- difuzor- koncovky- LED- úchyt | D53: ks | E53: 10 | G53: 0 | I53: 0
A54: 10 | C54: svítidlo typ C12-4 - Svítidlo vestavné do podhledu SDK, korpus a koncovky AL, bílá barva, difuzor mikroprisma, š=78 mm, l=864 mm, vestavná hloubka 100 mm, LED 15W, 4000 K, 2745 lm, IP43- profil- difuzor- koncovky- LED- úchyt | D54: ks | E54: 10 | G54: 0 | I54: 0
A55: 11 | C55: svítidlo typ C5 - Svítidlo vestavné do podhledu SDK, bílá barva, odsazený opálový difuzor, Ø 220 mm, vestavná hloubka 90 mm, LED 30W, 3000 K, 4650 lm, IP43 | D55: ks | E55: 7 | G55: 0 | I55: 0
A56: 12 | C56: svítidlo typ C9 - Svítidlo vestavné do podhledu SDK, bílá barva odsazený opálový difuzor, Ø 175 mm, vestavná hloubka 70 mm, LED 20W, 3000 K, 1700 lm, IP54 | D56: ks | E56: 9 | G56: 0 | I56: 0
A57: 13 | C57: svítidlo typ E2 - Osvětlovací lišta, vestavná do nábytku, Al, š. 22 mm, vestav. hloubka 12 mm,difuzor opál, LED 12V, 12W/m, 3000 K, celková délka 1500 mm | D57: ks | E57: 1 | G57: 0 | I57: 0
A58: 14 | C58: svítidlo typ E3-24 - Ukončující profil podhledu SDK, Al, difuzor PC opál, vč. LED 9W/m,3000 K, 720 lm/m, 12V DC, délka 0,95m | D58: ks | E58: 1 | G58: 0 | I58: 0
A59: 15 | C59: NOUZOVÉ OSVĚTLENÍ s připojením k CBS Inotec | D59: ks | E59: 12 | G59: 0 | I59: 0
B61: B. | C61: Spínače, zásuvky a ostatní přístroje | F61: =SUBTOTAL(9,G64:G71) -> 0 | H61: =SUBTOTAL(9,I64:I71) -> 0
C62: (komplet, včetně příslušenství, pomocného materiálu, osazení, zapojení, vyzkoušení apod.)
C63: Návazně na předchozí etapy rekonstrukce budou osaztovány výrobky z řady ABB Time
A64: =A59+1 -> 16 | C64: Domovní spínač řazení 1, komplet | D64: ks | E64: 5 | G64: =E64*F64 -> 0 | I64: =E64*H64 -> 0
A65: 17 | C65: Domovní spínač řazení 5, komplet | D65: ks | E65: 16 | G65: =E65*F65 -> 0 | I65: =E65*H65 -> 0
A66: 18 | C66: Domovní spínač řazení 6, komplet | D66: ks | E66: 8 | G66: 0 | I66: 0
A67: 19 | C67: Domovní spínač řazení 7, komplet | D67: ks | E67: 8 | G67: 0 | I67: 0
A68: 20 | C68: Domovní zásuvka 230V 16A,napájení z trafa komplet | D68: ks | E68: 165 | G68: 0 | I68: 0
A69: 21 | C69: Napojení sporáku (varné desky) přes odbočnou krabici KO100 | D69: ks | E69: 2 | G69: 0 | I69: 0
A70: 22 | C70: Zásuvkový box pro montáž na pracovní desku stolu 2x zásuvka 230V 16A | D70: ks | E70: 26 | G70: 0 | I70: 0
A71: 23 | C71: Zásuvkový box pro montáž pod pracovní desku stolu 3x zásuvka 230V 16A | D71: ks | E71: 26 | G71: 0 | I71: 0
B73: C. | C73: Instalační, úložný a ochranný materiál | F73: =SUBTOTAL(9,G74:G80) -> 0 | H73: =SUBTOTAL(9,I73:I80) -> 0
C74: (komplet, včetně příslušenství, pomocného materiálu, výkopu, záhozu výkopu, vytyčení trasy, osazení, zapojení, vyzkoušení apod.)
A75: =A71+1 -> 24 | C75: Krabice přístrojová | D75: ks | E75: 202 | G75: =E75*F75 -> 0 | I75: =E75*H75 -> 0
A76: =A75+1 -> 25 | C76: Krabice odbočná včetně wago svorek | D76: ks | E76: 100 | G76: 0 | I76: 0
A77: =A76+1 -> 26 | C77: Odbočná krabice pro připojení elektroinstalace ve stolech komplet včetně víčka a wago svorek. Z krabice 2x vývod tr25mm pod stůl | D77: ks | E77: 15 | G77: 0 | I77: 0
A78: =A77+1 -> 27 | C78: Kabelový drátový žlab 200x100 včetně příslušenství a závěsů | D78: m | E78: 60 | G78: 0 | I78: 0
A79: =A78+1 -> 28 | C79: Lišta vkládací montáž na nábytek 18x13 | D79: m | E79: 30 | G79: 0 | I79: 0
A80: =A79+1 -> 29 | C80: Krabice odbočná včetně wago svorek s funkční schopností při požáru | D80: ks | E80: 12 | G80: 0 | I80: 0
B82: D. | C82: Kabely a vodiče | F82: =SUBTOTAL(9,G83:G90) -> 0 | H82: =SUBTOTAL(9,I82:I90) -> 0
C83: (komplet, včetně vyhotovení drážky, zapravení drážky, vytyčení trasy, pomocného materiálu, příchytek, spojek, odlehčovacích oblouků, zapojení, vyzkoušení apod.)
A84: =A80+1 -> 30 | C84: CYKY J 3x1,5 | D84: m | E84: 700 | G84: =E84*F84 -> 0 | I84: =E84*H84 -> 0
A85: =A84+1 -> 31 | C85: CYKY J 3x2,5 | D85: m | E85: 1100 | G85: 0 | I85: 0
A86: 32 | C86: CYKY J 5x2,5 | D86: m | E86: 50 | G86: 0 | I86: 0
A87: 33 | C87: CYKY J 5x6 | D87: m | E87: 100 | G87: 0 | I87: 0
A88: 34 | C88: CYKY O 3x1,5 | D88: m | E88: 100 | G88: 0 | I88: 0
A89: 35 | C89: Kabel H05VV-F 3Gx2,5 | D89: m | E89: 60 | G89: 0 | I89: 0
A90: 36 | C90: Rozvody pro NO kabel s funkční schopností P60R -O 3x1,5 B2CAS1D0 | D90: m | E90: 100 | G90: 0 | I90: 0
B92: E. | C92: Pospojování, uzemnění | F92: =SUBTOTAL(9,G93:G95) -> 0 | H92: =SUBTOTAL(9,I92:I95) -> 0
C93: (komplet, včetně příslušenství, svorek, pomocného materiálu, osazení, zapojení, vyzkoušení apod.)
A94: =A90+1 -> 37 | C94: Vodič CYA16 žlutozelený včetně svorek - hlavní pospojení | D94: m | E94: 80 | G94: =E94*F94 -> 0 | I94: =E94*H94 -> 0
A95: =A94+1 -> 38 | C95: Vodič CYA4 žlutozelený včetně svorek - doplňkové pospojení | D95: m | E95: 50 | G95: =E95*F95 -> 0 | I95: =E95*H95 -> 0
B97: F. | C97: Rozvaděče | F97: =SUBTOTAL(9,G98:G104) -> 0 | H97: =SUBTOTAL(9,I97:I104) -> 0
C98: (komplet, včetně příslušenství, svorek, pomocného materiálu, osazení, zapojení, vyzkoušení apod.)
A99: =A95+1 -> 39 | C99: Patrový rozvaděč R31.1 | D99: ks | E99: 1 | G99: =E99*F99 -> 0 | I99: =E99*H99 -> 0
A100: =A99+1 -> 40 | C100: Patrový rozvaděč R31.2 | D100: ks | E100: 1 | G100: 0 | I100: 0
A101: =A100+1 -> 41 | C101: Patrový rozvaděč R31.3 | D101: ks | E101: 1 | G101: 0 | I101: 0
A102: =A101+1 -> 42 | C102: Patrový rozvaděč R31.4 | D102: ks | E102: 1 | G102: 0 | I102: 0
A103: =A102+1 -> 43 | C103: Patrový rozvaděč R31.5 | D103: ks | E103: 1 | G103: 0 | I103: 0
A104: =A103+1 -> 44 | C104: Patrový rozvaděč R31.6 | D104: ks | E104: 1 | G104: 0 | I104: 0
B106: G. | C106: Ostatní | F106: =SUBTOTAL(9,G107:G111) -> 0 | H106: =SUBTOTAL(9,I106:I111) -> 0
A107: =A104+1 -> 45 | C107: Výchozí revize | D107: hod | E107: 20 | G107: =E107*F107 -> 0 | I107: =E107*H107 -> 0
A108: =A107+1 -> 46 | C108: Demontáže včetně likvidace odpadu | D108: hod | E108: 150 | G108: =E108*F108 -> 0 | I108: =E108*H108 -> 0
A109: =A108+1 -> 47 | C109: Pomocný a podružný materiál upevňovací | D109: kpl | E109: 1 | G109: =E109*F109 -> 0 | I109: =E109*H109 -> 0
A110: =A109+1 -> 48 | C110: Zednické výpomoci (PPV) | D110: kpl | E110: 1 | F110: --- | G110: --- | I110: =E110*H110 -> 0
A111: =A110+1 -> 49 | C111: Doprava materiálu | D111: kpl | E111: 1 | F111: --- | G111: --- | I111: =E111*H111 -> 0

Sheet 20_SO 08 - Stav arch část
A1: =CONCATENATE('Rekapitulace stavby'!C77,"_",'Rekapitulace stavby'!I77) -> 20_SO 08 - Stavebně - architektonická část
A3: SPECIFIKACE DODÁVEK A PRACÍ
A4: Název akce:
A5: ='Identifikační údaje'!B1 -> ČRo Brno – III. etapa rekonstrukce budovy Beethovenova 25/4
A7: Zadavatel: | C7: ='Identifikační údaje'!E7 -> Český rozhlas, Vinohradská 12, 120 99 Praha 2
B8: IČ: | C8: ='Identifikační údaje'!B9 -> 45245053
B9: DIČ: | C9: ='Identifikační údaje'!B10 -> CZ45245053
A11: Projektant: | C11: ='Identifikační údaje'!E12 -> Ing. arch. Klement Miloš, Nejedlého 381/19, 638 00 Brno - Lesná
B12: IČ: | C12: ='Identifikační údaje'!B14 -> 15188736
B13: DIČ: | C13: ='Identifikační údaje'!B15 -> CZ6101021344
A15: Uchazeč: | C15: ='Identifikační údaje'!E19 -> , ,
B16: IČ: | C16: ='Identifikační údaje'!B23 -> 0
B17: DIČ: | C17: ='Identifikační údaje'!B24 -> 0
A19: Místo stavby: | C19: ='Identifikační údaje'!B3 -> Budova Českého rozhlasu Brno na adrese Beethovenova 25/4, 657 42 Brno
A21: Datum vyplnění: | C21: ='Identifikační údaje'!B5 -> 00:00:00
A23: =CONCATENATE("REKAPITULACE DODÁVEK A PRACÍ OBJEKTU ",'Rekapitulace stavby'!I77) -> REKAPITULACE DODÁVEK A PRACÍ OBJEKTU SO 08 - Stavebně - architektonická část
A25: P.č. | B25: Číslo položky | C25: Název položky | D25: Kč bez DPH
A27: Díl: | B27: =B53 -> 3 | C27: =C53 -> Svislé a kompletní konstrukce | G27: =G53 -> 0
A28: Díl: | B28: =B74 -> 61 | C28: =C74 -> Upravy povrchů vnitřní | G28: =G74 -> 0
A29: Díl: | B29: =B97 -> 63 | C29: =C97 -> Podlahy a podlahové konstrukce | G29: =G97 -> 0
A30: Díl: | B30: =B101 -> 94 | C30: =C101 -> Lešení a stavební výtahy | G30: =G101 -> 0
A31: Díl: | B31: =B104 -> 95 | C31: =C104 -> Dokončovací kce na pozem.stav. | G31: =G104 -> 0
A32: Díl: | B32: =B109 -> 96 | C32: =C109 -> Bourání konstrukcí | G32: =G109 -> 0
A33: Díl: | B33: =B175 -> 99 | C33: =C175 -> Staveništní přesun hmot | G33: =G175 -> 0
A34: Díl: | B34: =B177 -> 713 | C34: =C177 -> Izolace tepelné | G34: =G177 -> 0
A35: Díl: | B35: =B180 -> 766 | C35: =C180 -> Konstrukce truhlářské | G35: =G180 -> 0
A36: Díl: | B36: =B194 -> 767 | C36: =C194 -> Konstrukce zámečnické | G36: =G194 -> 0
A37: Díl: | B37: =B205 -> 775 | C37: =C205 -> Podlahy vlysové a parketové | G37: =G205 -> 0
A38: Díl: | B38: =B209 -> 776 | C38: =C209 -> Podlahy povlakové | G38: =G209 -> 0
A39: Díl: | B39: =B219 -> 781 | C39: =C219 -> Obklady keramické | G39: =G219 -> 0
A40: Díl: | B40: =B224 -> 782 | C40: =C224 -> Konstrukce z přírodního kamene | G40: =G224 -> 0
A41: Díl: | B41: =B233 -> 784 | C41: =C233 -> Malby | G41: =G233 -> 0
A42: Díl: | B42: =B236 -> 40 | C42: =C236 -> Podhledy | G42: =G236 -> 0
A44: =CONCATENATE("CELKEM ZA OBJEKT ",'Rekapitulace stavby'!I77, " v Kč bez DPH") -> CELKEM ZA OBJEKT SO 08 - Stavebně - architektonická část v Kč bez DPH | D44: =SUM(G27:G42) -> 0
A51: P.č. | B51: Číslo položky | C51: Název položky | D51: MJ | E51: množství | F51: cena / MJ | G51: celkem
B52: Ceník, kapitola | C52: Poznámka uchazeče
A53: Díl: | B53: 3 | C53: Svislé a kompletní konstrukce | G53: =SUBTOTAL(9,G54:G73) -> 0
A54: =1 -> 1 | B54: 34224811 | C54: Příčky POROTHERM AKU na MVC5 tl.100 mm | D54: m2 | E54: 124.6639 | G54: =E54*F54 -> 0
C55: ;4.patro | E55: 0
C56: (2,425+4,775+2,425+4,775+9,00+11,00)*2,90 | E56: 99.76
C57: (3,15+1,30+1,30+1,60+2,80+2,20+0,341)*2,90 | E57: 36.8039
C58: -0,85*2,00*5-0,85*2,00*2 | E58: -11.9
A59: =A54+1 -> 2 | B59: 34224812 | C59: Příčky POROTHERM AKU na MVC5 tl.125 mm | D59: m2 | E59: 124.0078 | G59: =E59*F59 -> 0
C60: ;4.patro | E60: 0
C61: (5,60+5,60+2,00+5,36+3,472+7,90)*2,90 | E61: 86.8028
C62: (10,50+1,80+2,35+0,80)*2,90 | E62: 44.805
C63: -0,85*2,00*3-1,25*2,00 | E63: -7.6
A64: =A59+1 -> 3 | B64: 34224813 | C64: Příčky POROTHERM AKU na MVC5 tl.150 mm | D64: m2 | E64: 26.72 | G64: =E64*F64 -> 0
C65: ;4.patro | E65: 0
C66: 9,80*2,90-0,85*2,00 | E66: 26.72
A67: =A64+1 -> 4 | B67: 340 23-9212.R00 | C67: Zazdívka otvorů pl.4 m2,cihlami tl.zdi nad 10 cm | D67: m2 | E67: 7.7 | G67: =E67*F67 -> 0
C68: ;4.patro | E68: 0
C69: 0,90*2,00+0,65*2,00+0,85*2,00*2 | E69: 6.5
C70: 2,00*0,60 | E70: 1.2
A71: =A67+1 -> 5 | B71: 3171 PŘ | C71: Překlad z profilu I100 dl.1250mm D+M vč.plentování cihlami a rabicem | D71: ks | E71: 11 | G71: =E71*F71 -> 0
A72: =A71+1 -> 6 | B72: 3172 PŘ | C72: Překlad z profilu I100 dl.1000mm D+M vč.plentování cihlami a rabicem | D72: ks | E72: 2 | G72: =E72*F72 -> 0
A73: =A72+1 -> 7 | B73: 3173 PŘ | C73: Překlad z profilu I100 dl.1650mm D+M vč.plentování cihlami a rabicem | D73: ks | E73: 1 | G73: =E73*F73 -> 0
A74: Díl: | B74: 61 | C74: Upravy povrchů vnitřní | G74: =SUBTOTAL(9,G75:G96) -> 0
A75: =A73+1 -> 8 | B75: 612 47-3182.R00 | C75: Omítka vnitřního zdiva ze suché směsi, štuková | D75: m2 | E75: 550.768 | G75: =E75*F75 -> 0
C76: (124,664+124,00+26,72)*2 | E76: 550.768
A77: =A75+1 -> 9 | B77: 611 10-001 | C77: Oprava omítek stropů vnitřních - vyspravení pod podhledy | D77: m2 | E77: 536.7 | G77: =E77*F77 -> 0
A78: =A77+1 -> 10 | B78: 612 10-003 | C78: Oprava omítek stěn vnitřních vápenocem. štukových oprava | D78: m2 | E78: 731.0296 | G78: =E78*F78 -> 0
C79: 403:(9,97+9,00)*2,80+8*0,70*2,80 | E79: 68.796
C80: 404:(4,90+5,455)*2,80 | E80: 28.994
C81: 404a:(0,75+3,782)*2,80 | E81: 12.6896
C82: 404b:(5,60+6,651)*2,80 | E82: 34.3028
C83: 406:(5,60+5,217+5,217)*2,80 | E83: 44.8952
C84: 407:(5,60+2,80)*2*2,80 | E84: 47.04
C85: 413:(7,60+2,42+9,80)*2,80 | E85: 55.496
C86: 414:5,475*2,80 | E86: 15.33
C87: 415:3,52*2,80 | E87: 9.856
C88: 416:(4,47+7,30+4,47)*2,80 | E88: 45.472
C89: 417:(3,925+7,30)*2*2,80 | E89: 62.86
C90: 418:(3,815+7,25)*2*2,80 | E90: 61.964
C91: 419:(3,89+4,825)*2*2,80 | E91: 48.804
C92: 420:(7,655+8,00)*2*2,80 | E92: 87.668
C93: 422:(7,80+7,225)*2*2,80 | E93: 84.14
C94: 424:(2,175+3,765+2,175)*2,80 | E94: 22.722
A95: =A78+1 -> 11 | B95: 612 40-339 | C95: Hrubá výplň rýh ve stěnách maltou, zapravení svislých drážek po rozvodech ÚT poz.5 | D95: m2 | E95: 11.76 | G95: =E95*F95 -> 0
C96: 0,30*2,80*12+0,60*2,80*1 | E96: 11.76
A97: Díl: | B97: 63 | C97: Podlahy a podlahové konstrukce | G97: =SUBTOTAL(9,G98:P100) -> 0
A98: =A95+1 -> 12 | B98: 632 44-1 | C98: Potěr anhydrit tl. 50 mm oddilatovaný od stěn EPS 20 mm | D98: m2 | E98: 379.8 | G98: =E98*F98 -> 0
A99: =A98+1 -> 13 | B99: 632 47-3 P7 | C99: Samonivelační stěrka tl.3mm | D99: m2 | E99: 379.8 | G99: =E99*F99 -> 0
A100: =A99+1 -> 14 | B100: 632 48 | C100: Vyspravení podkladu pod podlahu | D100: m2 | E100: 89.5 | G100: =E100*F100 -> 0
A101: Díl: | B101: 94 | C101: Lešení a stavební výtahy | G101: =SUBTOTAL(9,G102:P103) -> 0
A102: =A100+1 -> 15 | B102: 941 95-5002.R00 | C102: Lešení lehké pomocné, výška podlahy do 1,9 m | D102: m2 | E102: 536.7 | G102: =E102*F102 -> 0
C103: pro podhledy:156,90+379,80 | E103: 536.7
A104: Díl: | B104: 95 | C104: Dokončovací kce na pozem.stav. | G104: =SUBTOTAL(9,G105:G108) -> 0
A105: =A102+1 -> 16 | B105: 952 90-1111.R00 | C105: Vyčištění budov o výšce podlaží do 4 m | D105: m2 | E105: 536.7 | G105: =E105*F105 -> 0
A106: =A105+1 -> 17 | B106: 95001 | C106: HZS - nezměřitelné práce | D106: hod | E106: 100 | G106: =E106*F106 -> 0
A107: =A106+1 -> 18 | B107: 95003 | C107: Vyklizení mobiliáře vč.ekologické likvidace | D107: kpl. | E107: 1 | G107: =E107*F107 -> 0
A108: =A107+1 -> 19 | B108: 95004 | C108: Uzavření rekonstruovaného prostoru proti šíření prašnosti | D108: kpl. | E108: 1 | G108: =E108*F108 -> 0
A109: Díl: | B109: 96 | C109: Bourání konstrukcí | G109: =SUBTOTAL(9,G110:G174) -> 0
A110: =A108+1 -> 20 | B110: 962 03-2231.R00 | C110: Bourání zdiva z cihel pálených na MVC | D110: m3 | E110: 0.7425 | G110: =E110*F110 -> 0
C111: ;A | E111: 0
C112: 0,55*3,00*0,45 | E112: 0.7425
A113: =A110+1 -> 21 | B113: 962 03-1132.R00 | C113: Bourání příček cihelných tl. 10 cm | D113: m2 | E113: 269.499 | G113: =E113*F113 -> 0
C114: ;A | E114: 0
C115: (2,58+0,36+2,17+3,675+2,175+3,675+4,22)*3,00 | E115: 56.565
C116: (5,67+0,965+0,95+1,844+3,565+1,683+1,425)*3,00 | E116: 48.306
C117: (1,10+2,45+2,404+1,725+2,21+1,475+5,60+1,659)*3,00 | E117: 55.869
C118: (3,203+3,45+2,60+5,525+1,40+3*4,775+5,75)*3,00 | E118: 108.759
A119: =A113+1 -> 22 | B119: 962 03-1133.R00 | C119: Bourání příček cihelných tl. 15 cm | D119: m2 | E119: 15.3 | G119: =E119*F119 -> 0
C120: ;A | E120: 0
C121: 5,10*3,00 | E121: 15.3
A122: =A119+1 -> 23 | B122: 962 03-6 P | C122: Demontáž dřevěných příček | D122: m2 | E122: 44.85 | G122: =E122*F122 -> 0
C123: (1,70+3,80+5,60+3,85)*3,00 | E123: 44.85
A124: =A122+1 -> 24 | B124: 965 08-1713.R00 | C124: Bourání dlaždic keramických tl. 1 cm, nad 1 m2 | D124: m2 | E124: 89.5 | G124: =E124*F124 -> 0
C125: ;M | E125: 0
C126: 9,40+1,40+50,20+19,00+9,50 | E126: 89.5
A127: =A124+1 -> 25 | B127: 776 51-18 D | C127: Odstranění PVC a koberců | D127: m2 | E127: 486.6 | G127: =E127*F127 -> 0
C128: ;PVC | E128: 0
C129: 58,00+92,50+7,30+10,70+19,00+19,00+16,00 | E129: 222.5
C130: 18,50+27,00+11,30+25,50+27,60+18,60 | E130: 128.5
C131: 25,10+26,20+24,80+14,30+15,50+8,10 | E131: 114
C132: ;koberec | E132: 0
C133: 21,60 | E133: 21.6
A134: =A127+1 -> 26 | B134: 96956 G | C134: Demontáž kazetových podhledů -kompletní konstrukce | D134: m2 | E134: 101.3 | G134: =E134*F134 -> 0
C135: 58,00+18,50+24,80 | E135: 101.3
A136: =A134+1 -> 27 | B136: 968 06-1125.R00 | C136: Vyvěšení dřevěných dveřních křídel pl. do 2 m2 | D136: kus | E136: 21 | G136: =E136*F136 -> 0
C137: ;C | E137: 0
C138: 21 | E138: 21
A139: =A136+1 -> 28 | B139: 968 06-2455.R00 | C139: Vybourání dřevěných dveřních zárubní pl. do 2 m2 | D139: m2 | E139: 28.8 | G139: =E139*F139 -> 0
C140: ;C | E140: 0
C141: 0,80*2,00*18 | E141: 28.8
A142: =A139+1 -> 29 | B142: 968 06-2456.R00 | C142: Vybourání dřevěných dveřních zárubní pl. nad 2 m2 | D142: m2 | E142: 2.8 | G142: =E142*F142 -> 0
C143: ;C | E143: 0
C144: 1,40*2,00 | E144: 2.8
A145: =A142+1 -> 30 | B145: 776 51-18 KO | C145: Odstranění obkladu kobercem vč.podkladu | D145: m2 | E145: 134.022 | G145: =E145*F145 -> 0
C146: (15,037+7,30)*2*3,00 | E146: 134.022
A147: =A145+1 -> 31 | B147: 96805 V | C147: Úprava dveřních křídel pro VZT | D147: ks | E147: 5 | G147: =E147*F147 -> 0
A148: =A147+1 -> 32 | B148: 978 05-9521.R00 | C148: Odsekání vnitřních obkladů stěn do 2 m2 | D148: m2 | E148: 101.217 | G148: =E148*F148 -> 0
C149: ;M | E149: 0
C150: (7,60+1,40)*1,80+7,63*1,30 | E150: 26.119
C151: (5,50+1,40)*2*1,80 | E151: 24.84
C152: (1,00+1,40)*2*1,80*2 | E152: 17.28
C153: (1,70+3,00)*2*1,35 | E153: 12.69
C154: (3,89+2,45)*2*1,60 | E154: 20.288
A155: =A148+1 -> 33 | B155: 725 21-08 U | C155: Demontáž umyvadel | D155: soubor | E155: 6 | G155: =E155*F155 -> 0
A156: =A155+1 -> 34 | B156: 96809 PA | C156: Odstranění parapetů | D156: m | E156: 13.75 | G156: =E156*F156 -> 0
C157: 5*2,75 | E157: 13.75
A158: =A156+1 -> 35 | B158: 962 20-00 L | C158: Bourání příček ze sklobetonu - luxfery | D158: m2 | E158: 7.01 | G158: =E158*F158 -> 0
C159: 1,75*3,00+2,20*0,80 | E159: 7.01
A160: =A158+1 -> 36 | B160: 96822 PV | C160: Vybourání podlahové vpust | D160: ks | E160: 3 | G160: =E160*F160 -> 0
A161: =A160+1 -> 37 | B161: 96823 | C161: Vybourání otvoru ve stropu 460/265mm | D161: ks | E161: 1 | G161: =E161*F161 -> 0
A162: =A161+1 -> 38 | B162: 96823 DI | C162: Vybourání digestoře | D162: ks | E162: 1 | G162: =E162*F162 -> 0
A163: =A162+1 -> 39 | B163: 7765118F | C163: Odstranění nášlapné vrstvy podlahy a násypu | D163: m2 | E163: 379.8 | G163: =E163*F163 -> 0
A164: 40 | B164: 979 01-1219.R00 | C164: Přípl.k svislé dopr.suti za každé další NP nošením | D164: t | E164: =2*131.42 -> 262.84 | G164: =E164*F164 -> 0
C165: 2*131,42 | E165: 262.84
A166: =A164+1 -> 41 | B166: 979 01-1211.R00 | C166: Svislá doprava suti a vybour. hmot za 2.NP nošením | D166: t | E166: 131.42 | G166: =E166*F166 -> 0
A167: =A166+1 -> 42 | B167: 979 08-2111.R00 | C167: Vnitrostaveništní doprava suti do 10 m | D167: t | E167: 131.42 | G167: =E167*F167 -> 0
A168: =A167+1 -> 43 | B168: 979 08-2121.R00 | C168: Příplatek k vnitrost. dopravě suti za dalších 5 m | D168: t | E168: =5*131.42 -> 657.1 | G168: =E168*F168 -> 0
C169: 5*131,42 | E169: 657.1
A170: =A168+1 -> 44 | B170: 979 08-1121.R00 | C170: Příplatek k odvozu za každý další 1 km | D170: t | E170: =19*131.42 -> 2496.98 | G170: =E170*F170 -> 0
C171: 19*131,42 | E171: 2496.98
A172: =A170+1 -> 45 | B172: 979 08-1111.R00 | C172: Odvoz suti a vybour. hmot na skládku do 1 km | D172: t | E172: 131.42 | G172: =E172*F172 -> 0
A173: =A172+1 -> 46 | B173: 979 0093111 | C173: Uložení suti na skládku bez zhutnění | D173: t | E173: 131.42 | G173: =E173*F173 -> 0
A174: =A173+1 -> 47 | B174: 979 99-999 | C174: Poplatek za skladku | D174: t | E174: 131.42 | G174: =E174*F174 -> 0
A175: Díl: | B175: 99 | C175: Staveništní přesun hmot | G175: =SUBTOTAL(9,G176) -> 0
A176: =A174+1 -> 48 | B176: 999 28-1112.R00 | C176: Přesun hmot pro opravy a údržbu do výšky 36 m | D176: t | E176: 43.03 | G176: =E176*F176 -> 0
A177: Díl: | B177: 713 | C177: Izolace tepelné | G177: =SUBTOTAL(9,G178:G179) -> 0
A178: =A176+1 -> 49 | B178: 713 12-1 P4 | C178: Izolace tepelná podlah na sucho, jednovrstvá včetně dodávky EPS T 5000 tl.20 mm | D178: m2 | E178: =E179 -> 398.79 | G178: =E178*F178 -> 0
C179: 379,8*1,05 | E179: =379.8*1.05 -> 398.79
A180: Díl: | B180: 766 | C180: Konstrukce truhlářské | G180: =SUBTOTAL(9,G181:G193) -> 0
A181: =A178+1 -> 50 | B181: 766 Tpo/1a | C181: Dřevěné okno vč.parapetu - špalet. 1350/2045mm repase - odst.nátěrů, přebrouš.nový nátěr, | D181: kpl. | E181: 3 | G181: =E181*F181 -> 0
C182: seřízení a doplnění kování:3 | E182: 3
A183: =A181+1 -> 51 | B183: 766 Tpo/1b | C183: Dřevěné okno vč.parapetu - špalet. 2800/2045mm repase - odst.nátěrů, přebrouš.nový nátěr, | D183: kpl. | E183: 13 | G183: =E183*F183 -> 0
C184: seřízení a doplnění kování:13 | E184: 13
A185: =A183+1 -> 52 | B185: 766 Tpo/1c | C185: Dřevěné okno vč.parapetu - špalet. 4250/2045mm repase - odst.nátěrů, přebrouš.nový nátěr, | D185: kpl. | E185: 3 | G185: =E185*F185 -> 0
C186: seřízení a doplnění kování:3 | E186: 3
A187: =A185+1 -> 53 | B187: 766 Tn/5 | C187: Kuchyňská linka dl.2550 mm mč.404b, 419 D+M | D187: ks | E187: 2 | G187: =E187*F187 -> 0
A188: =A187+1 -> 54 | B188: 766 Tpd/1 | C188: Dřevěné dýhované dveře stáv. 850/1970 mm repase - podlepení uvolněných dýh a doplnění | D188: ks | E188: 1 | G188: =E188*F188 -> 0
A189: =A188+1 -> 55 | B189: 766 Tnd/2b | C189: Dřevěné dveře nové 1kř.plné 850/1970 mm - vč.obložkové zárubně D+M - replika stávajících | D189: ks | E189: 8 | G189: =E189*F189 -> 0
A190: =A189+1 -> 56 | B190: 766 Tpd/1 | C190: Restaurátorská renovace dřevěných dýhovaných dveří 1. kř. 850/1970 mm a jejich přemístění - podlepení uvolněných dýh a doplnění | D190: ks | E190: 3 | G190: =E190*F190 -> 0
A191: =A190+1 -> 57 | B191: 766 Tnd/4 | C191: Dřevěné dveře nové 1kř.plné 850/1970 mm - vč.obložkové zárubně, dýhované D+M - replika stávajcích dveří | D191: ks | E191: 4 | G191: =E191*F191 -> 0
B192: poznámka 1 | C192: Truhlářské konstrukce jsou kompletní výrobky dle tabulek
B193: poznámka 2 | C193: Truhlářské konstrukce jsou vč.přesunu hmot
A194: Díl: | B194: 767 | C194: Konstrukce zámečnické | G194: =SUBTOTAL(9,G195:G204) -> 0
A195: =A191+1 -> 58 | B195: 767 Zp/17 | C195: Věšáková stěna - přemístění do bytu v 5.np repase,očištění,popř.výměna | D195: ks | E195: 1 | G195: =E195*F195 -> 0
C196: vč.samozavírače:1 | E196: 1
A197: =A195+1 -> 59 | B197: 767 Zp/7a | C197: Ocelová okenní mříž 1350/2700 mm repase,očištění,obrouš. nový nátěr, | D197: ks | E197: 1 | G197: =E197*F197 -> 0
C198: vč.samozavírače:1 | E198: 1
A199: =A197+1 -> 60 | B199: 767 Zn/10 | C199: Dvířka zakrývající šachtu pro silnoproud 500/800mm EW 30DP1 D+M | D199: ks | E199: 1 | G199: =E199*F199 -> 0
C200: vč.samozavírače:1 | E200: 1
A201: =A199+1 -> 61 | B201: 767 GK | C201: Generální klíč D+M | D201: kpl. | E201: 1 | G201: =E201*F201 -> 0
C202: vč.samozavírače:1 | E202: 1
B203: poznámka 1 | C203: Zámečnické konstrukce jsou kompletní výrobky dle tabulek
B204: poznámka 2 | C204: Zámečnické konstrukce jsou vč.přesunu hmot
A205: Díl: | B205: 775 | C205: Podlahy vlysové a parketové | G205: =SUBTOTAL(9,G206:G208) -> 0
A206: =A201+1 -> 62 | B206: 775 53-00 P6 | C206: Podlahy parketové - vlysy nové | D206: m2 | E206: 172.59 | G206: =E206*F206 -> 0
C207: 156,90*1,10 | E207: 172.59
A208: =A206+1 -> 63 | B208: 998 77-5104.R00 | C208: Přesun hmot pro podlahy vlysové, výšky do 36 m | D208: t | E208: 2.93 | G208: =E208*F208 -> 0
A209: Díl: | B209: 776 | C209: Podlahy povlakové | G209: =SUBTOTAL(9,G210:G218) -> 0
A210: =A208+1 -> 64 | B210: 776 57-2 P6 | C210: Lepení povlakových podlah z pásů textilních včetně zátěžového antistatického koberce | D210: m2 | E210: 172.59 | G210: =E210*F210 -> 0
C211: ;koberec zespodu opatřen gumovou vrstvou | E211: 0
C212: ;vč.olištování dubovými lištami | E212: 0
C213: 156,90*1,10 | E213: 172.59
A214: =A210+1 -> 65 | B214: 776 57-2 P7 | C214: Lepení povlakových podlah z pásů textilních včetně zátěžového antistatického koberce | D214: m2 | E214: 417.78 | G214: =E214*F214 -> 0
C215: ;koberec zespodu opatřen gumovou vrstvou | E215: 0
C216: ;vč.olištování dubovými lištami | E216: 0
... 24 more rows

Sheet 21_SO 08 - Silnoproud
A1: =CONCATENATE('Rekapitulace stavby'!C78,"_",'Rekapitulace stavby'!I75) -> 21_SO 07 - Silnoproudá elektroinstalace
A3: SPECIFIKACE DODÁVEK A PRACÍ
A4: Název akce:
A5: ='Identifikační údaje'!B1 -> ČRo Brno – III. etapa rekonstrukce budovy Beethovenova 25/4
A7: Zadavatel: | C7: ='Identifikační údaje'!E7 -> Český rozhlas, Vinohradská 12, 120 99 Praha 2
B8: IČ: | C8: ='Identifikační údaje'!B9 -> 45245053
B9: DIČ: | C9: ='Identifikační údaje'!B10 -> CZ45245053
A11: Projektant: | C11: ='Identifikační údaje'!E12 -> Ing. arch. Klement Miloš, Nejedlého 381/19, 638 00 Brno - Lesná
B12: IČ: | C12: ='Identifikační údaje'!B14 -> 15188736
B13: DIČ: | C13: ='Identifikační údaje'!B15 -> CZ6101021344
A15: Uchazeč: | C15: ='Identifikační údaje'!E19 -> , ,
B16: IČ: | C16: ='Identifikační údaje'!B23 -> 0
B17: DIČ: | C17: ='Identifikační údaje'!B24 -> 0
A19: Místo stavby: | C19: ='Identifikační údaje'!B3 -> Budova Českého rozhlasu Brno na adrese Beethovenova 25/4, 657 42 Brno
A21: Datum: | C21: ='Identifikační údaje'!B5 -> 00:00:00
A23: =CONCATENATE("REKAPITULACE DODÁVEK A PRACÍ OBJEKTU ",'Rekapitulace stavby'!I78) -> REKAPITULACE DODÁVEK A PRACÍ OBJEKTU SO 08 - Silnoproudá elektroinstalace
A25: P.č. | B25: Ozn. | D25: Materiál celkem | F25: Montáž celkem | H25: M+M celkem
A27: =B43 -> A. | B27: =C43 -> Svítidla a příslušenství | D27: =F43 -> 0 | F27: =H43 -> 0 | H27: =D27+F27 -> 0
A28: =B58 -> B. | B28: =C58 -> Spínače, zásuvky a ostatní přístroje | D28: =F58 -> 0 | F28: =H58 -> 0 | H28: =D28+F28 -> 0
A29: =B71 -> C. | B29: =C71 -> Instalační, úložný a ochranný materiál | D29: =F71 -> 0 | F29: =H71 -> 0 | H29: 0
A30: =B80 -> D. | B30: =C80 -> Kabely a vodiče | D30: =F80 -> 0 | F30: =H80 -> 0 | H30: 0
A31: =B90 -> E. | B31: =C90 -> Pospojování, uzemnění | D31: =F90 -> 0 | F31: =H90 -> 0 | H31: 0
A32: =B95 -> F. | B32: =C95 -> Rozvaděče | D32: =F95 -> 0 | F32: =H95 -> 0 | H32: 0
A33: =B109 -> G. | B33: =C109 -> Ostatní | D33: =F109 -> 0 | F33: =H109 -> 0 | H33: 0
A35: =CONCATENATE("CELKEM ZA OBJEKT ",'Rekapitulace stavby'!I78, " v Kč bez DPH") -> CELKEM ZA OBJEKT SO 08 - Silnoproudá elektroinstalace v Kč bez DPH | H35: =SUBTOTAL(9,H27:I33) -> 0
A38: Textová, výkresová i tabulková část projektové dokumentace tvoří jeden vzájemně se doplňující a provázaný celek. Jednotliví účastníci výběrového řízení se musí seznámit s projektojektovou dokumentací v návaznosti na soupis prací a na základě těchto informací části díla nacenit. Dále je potřeba při stanovení ceny dle vykázané výměry započítat všechny předpokládané doplňkové prvky a činnosti s touto položkou související tak, aby cena byla kompletní a prvek funkční.
A40: 1
F41: Materiál | H41: Montáž
A42: poř.č. | B42: položka | C42: popis položky | D42: MJ | E42: množství | F42: jedn.cena | G42: celkem [Kč] | H42: jedn.cena | I42: celkem [Kč]
B43: A. | C43: Svítidla a příslušenství | F43: =SUBTOTAL(9,G45:G56) -> 0 | H43: =SUBTOTAL(9,I45:I56) -> 0
C44: (komplet, včetně zdrojů, závěsů, pomocného materiálu, osazení zapojení, vyzkoušení apod.)
A45: 1 | C45: svítidlo typ A6 - Svítidlo stropní přisazené, bílá barva, difuzor opál, odsazený, Ø 130 mm, v=100 mm, LED 15W, 3000 K, 1280 lm, IP40 | D45: ks | E45: 14 | G45: =E45*F45 -> 0 | I45: =E45*H45 -> 0
A46: =A45+1 -> 2 | C46: svítidlo typ B7-1 - Svítidlo stropní závěsné, korpus Al, bílá barva, difuzor mikroprisma, velikost 62x110x2556 mm, svícení direct-indirect, LED 45+35W, 4000 K, 8235+6405 lm- napájení- závěs 2m | D46: ks | E46: 28 | G46: =E46*F46 -> 0 | I46: =E46*H46 -> 0
A47: 3 | C47: svítidlo typ B7-2 - Svítidlo stropní závěsné, korpus Al, bílá barva, difuzor mikroprisma, velikost 62x110x2270 mm, svícení direct-indirect, LED 40+30W, 4000 K, 7320+5490 lm - napájení- závěs 2m | D47: ks | E47: 3 | G47: 0 | I47: =E47*H47 -> 0
A48: 4 | C48: svítidlo typ B7-3 - Svítidlo stropní závěsné, korpus Al, bílá barva, difuzor mikroprisma,velikost 62x110x1990 mm, svícení direct-indirect, LED 35+30W, 4000 K, 6405+5490 lm- napájení- závěs 2m | D48: ks | E48: 2 | G48: 0 | I48: 0
A49: 5 | C49: svítidlo B7-4 - Svítidlo stropní závěsné, korpus Al, bílá barva, difuzor mikroprisma,velikost 62x110x2556 mm, svícení direct-indirect, LED 72+56W, 4000 K, 12528+9744 lm- napájení- závěs 2m | D49: ks | E49: 1 | G49: 0 | I49: 0
A50: 6 | C50: svítidlo typ C12-1- Svítidlo vestavné do podhledu SDK, korpus a koncovky AL, bílá barva, difuzor mikroprisma, š=78 mm, l=1424 mm, vestavná hloubka 100 mm, LED 25W, 4000 K, 4350 lm, IP43- profil- difuzor- koncovky- LED- úchyt | D50: ks | E50: 7 | G50: 0 | I50: 0
A51: 7 | C51: svítidlo typ C12-3 - Svítidlo vestavné do podhledu SDK, korpus a koncovky AL, bílá barva, difuzor mikroprisma, š=78 mm, l=1144 mm, vestavná hloubka 100 mm, LED 20W, 4000 K, 3660 lm, IP43- profil- difuzor- koncovky- LED- úchyt | D51: ks | E51: 15 | G51: 0 | I51: 0
A52: 8 | C52: svítidlo C12-4 - Svítidlo vestavné do podhledu SDK, korpus a koncovky AL, bílá barva, difuzor mikroprisma, š=78 mm, l=864 mm, vestavná hloubka 100 mm, LED 15W, 4000 K, 2745 lm, IP43- profil- difuzor- koncovky- LED- úchyt | D52: ks | E52: 8 | G52: 0 | I52: 0
A53: 9 | C53: svítidlo typ C5 - Svítidlo vestavné do podhledu SDK, bílá barva, odsazený opálový difuzor, Ø 220 mm, vestavná hloubka 90 mm, LED 30W, 3000 K, 4650 lm, IP43 | D53: ks | E53: 5 | G53: 0 | I53: 0
A54: 10 | C54: svítidlo typ C9 - Svítidlo vestavné do podhledu SDK, bílá barva odsazený opálový difuzor, Ø 175 mm, vestavná hloubka 70 mm, LED 20W, 3000 K, 1700 lm, IP54 | D54: ks | E54: 9 | G54: 0 | I54: 0
A55: 11 | C55: svítidlo typ E2 - Osvětlovací lišta, vestavná do nábytku, Al, š. 22 mm, vestav. hloubka 12 mm,difuzor opál, LED 12V, 12W/m, 3000 K, celková délka 1500 mm | D55: ks | E55: 2 | G55: 0 | I55: 0
A56: 12 | C56: NOUZOVÉ OSVĚTLENÍ s připojením k CBS Inotec | D56: ks | E56: 11 | G56: 0 | I56: 0
B58: B. | C58: Spínače, zásuvky a ostatní přístroje | F58: =SUBTOTAL(9,G61:G69) -> 0 | H58: =SUBTOTAL(9,I61:I69) -> 0
C59: (komplet, včetně příslušenství, pomocného materiálu, osazení, zapojení, vyzkoušení apod.)
C60: Návazně na předchozí etapy rekonstrukce budou osaztovány výrobky z řady ABB Time
A61: =A56+1 -> 13 | C61: Domovní spínač řazení 1, komplet | D61: ks | E61: 6 | G61: =E61*F61 -> 0 | I61: =E61*H61 -> 0
A62: 14 | C62: Domovní spínač řazení 5, komplet | D62: ks | E62: 12 | G62: =E62*F62 -> 0 | I62: =E62*H62 -> 0
A63: 15 | C63: Domovní spínač řazení 6, komplet | D63: ks | E63: 4 | G63: 0 | I63: 0
A64: 16 | C64: Domovní spínač řazení 6+6, komplet | D64: ks | E64: 4 | G64: 0 | I64: 0
A65: 17 | C65: Domovní spínač řazení 7, komplet | D65: ks | E65: 9 | G65: 0 | I65: 0
A66: 18 | C66: Domovní zásuvka 230V 16A,napájení z trafa komplet | D66: ks | E66: 125 | G66: 0 | I66: 0
A67: 19 | C67: Napojení sporáku (varné desky) přes odbočnou krabici KO100 | D67: ks | E67: 2 | G67: 0 | I67: 0
A68: 20 | C68: Zásuvkový box pro montáž na pracovní desku stolu 2x zásuvka 230V 16A | D68: ks | E68: 35 | G68: =E68*F68 -> 0 | I68: =E68*H68 -> 0
A69: 21 | C69: Zásuvkový box pro montáž pod pracovní desku stolu 3x zásuvka 230V 16A | D69: ks | E69: 35 | G69: 0 | I69: 0
B71: C. | C71: Instalační, úložný a ochranný materiál | F71: =SUBTOTAL(9,G72:G78) -> 0 | H71: =SUBTOTAL(9,I71:I78) -> 0
C72: (komplet, včetně příslušenství, pomocného materiálu, výkopu, záhozu výkopu, vytyčení trasy, osazení, zapojení, vyzkoušení apod.)
A73: =A69+1 -> 22 | C73: Krabice přístrojová | D73: ks | E73: 160 | G73: =E73*F73 -> 0 | I73: =E73*H73 -> 0
A74: =A73+1 -> 23 | C74: Krabice odbočná včetně wago svorek | D74: ks | E74: 100 | G74: 0 | I74: 0
A75: =A74+1 -> 24 | C75: Odbočná krabice pro připojení elektroinstalace ve stolech komplet včetně víčka a wago svorek. Z krabice 2x vývod tr25mm pod stůl | D75: ks | E75: 19 | G75: 0 | I75: 0
A76: =A75+1 -> 25 | C76: Kabelový drátový žlab 200x100 včetně příslušenství a závěsů | D76: m | E76: 60 | G76: 0 | I76: 0
A77: =A76+1 -> 26 | C77: Lišta vkládací montáž na nábytek 18x13 | D77: m | E77: 40 | G77: 0 | I77: 0
A78: =A77+1 -> 27 | C78: Krabice odbočná včetně wago svorek s funkční schopností při požáru | D78: ks | E78: 11 | G78: 0 | I78: 0
B80: D. | C80: Kabely a vodiče | F80: =SUBTOTAL(9,G81:G88) -> 0 | H80: =SUBTOTAL(9,I80:I88) -> 0
C81: (komplet, včetně vyhotovení drážky, zapravení drážky, vytyčení trasy, pomocného materiálu, příchytek, spojek, odlehčovacích oblouků, zapojení, vyzkoušení apod.)
A82: =A78+1 -> 28 | C82: CYKY J 3x1,5 | D82: m | E82: 750 | G82: =E82*F82 -> 0 | I82: =E82*H82 -> 0
A83: =A82+1 -> 29 | C83: CYKY J 3x2,5 | D83: m | E83: 800 | G83: 0 | I83: 0
A84: 30 | C84: CYKY J 5x2,5 | D84: m | E84: 50 | G84: 0 | I84: 0
A85: 31 | C85: CYKY J 5x6 | D85: m | E85: 530 | G85: 0 | I85: 0
A86: 32 | C86: CYKY O 3x1,5 | D86: m | E86: 120 | G86: 0 | I86: 0
A87: 33 | C87: Kabel H05VV-F 3Gx2,5 | D87: m | E87: 80 | G87: 0 | I87: 0
A88: 34 | C88: Rozvody pro NO kabel s funkční schopností P60R -O 3x1,5 B2CAS1D0 | D88: m | E88: 80 | G88: 0 | I88: 0
B90: E. | C90: Pospojování, uzemnění | F90: =SUBTOTAL(9,G91:G93) -> 0 | H90: =SUBTOTAL(9,I90:I93) -> 0
C91: (komplet, včetně příslušenství, svorek, pomocného materiálu, osazení, zapojení, vyzkoušení apod.)
A92: =A88+1 -> 35 | C92: Vodič CYA16 žlutozelený včetně svorek - hlavní pospojení | D92: m | E92: 90 | G92: =E92*F92 -> 0 | I92: =E92*H92 -> 0
A93: =A92+1 -> 36 | C93: Vodič CYA4 žlutozelený včetně svorek - doplňkové pospojení | D93: m | E93: 50 | G93: =E93*F93 -> 0 | I93: =E93*H93 -> 0
B95: F. | C95: Rozvaděče | F95: =SUBTOTAL(9,G96:G107) -> 0 | H95: =SUBTOTAL(9,I95:I107) -> 0
C96: (komplet, včetně příslušenství, svorek, pomocného materiálu, osazení, zapojení, vyzkoušení apod.)
A97: =A93+1 -> 37 | C97: Patrový rozvaděč R41.1 | D97: ks | E97: 1 | G97: =E97*F97 -> 0 | I97: =E97*H97 -> 0
A98: =A97+1 -> 38 | C98: Patrový rozvaděč R41.2 | D98: ks | E98: 1 | G98: 0 | I98: 0
A99: =A98+1 -> 39 | C99: Patrový rozvaděč R41.3 | D99: ks | E99: 1 | G99: 0 | I99: 0
A100: 40 | C100: Patrový rozvaděč R41.4 | D100: ks | E100: 1 | G100: 0 | I100: 0
A101: 41 | C101: Patrový rozvaděč R41.5 | D101: ks | E101: 1 | G101: 0 | I101: 0
A102: 42 | C102: Patrový rozvaděč R41.6 | D102: ks | E102: 1 | G102: 0 | I102: 0
A103: 43 | C103: Patrový rozvaděč R41.7 | D103: ks | E103: 1 | G103: =E103*F103 -> 0 | I103: =E103*H103 -> 0
A104: 44 | C104: Patrový rozvaděč R41.8 | D104: ks | E104: 1 | G104: =E104*F104 -> 0 | I104: =E104*H104 -> 0
A105: 45 | C105: Patrový rozvaděč R41.9 | D105: ks | E105: 1 | G105: =E105*F105 -> 0 | I105: =E105*H105 -> 0
A106: 46 | C106: Patrový rozvaděč R41.10 | D106: ks | E106: 1 | G106: =E106*F106 -> 0 | I106: =E106*H106 -> 0
A107: 47 | C107: Patrový rozvaděč R41.11 | D107: ks | E107: 1 | G107: =E107*F107 -> 0 | I107: =E107*H107 -> 0
B109: G. | C109: Ostatní | F109: =SUBTOTAL(9,G110:G114) -> 0 | H109: =SUBTOTAL(9,I109:I114) -> 0
A110: =A107+1 -> 48 | C110: Výchozí revize | D110: hod | E110: 20 | G110: =E110*F110 -> 0 | I110: =E110*H110 -> 0
A111: =A110+1 -> 49 | C111: Demontáže včetně likvidace odpadu | D111: hod | E111: 150 | G111: =E111*F111 -> 0 | I111: =E111*H111 -> 0
A112: =A111+1 -> 50 | C112: Pomocný a podružný materiál upevňovací | D112: kpl | E112: 1 | G112: =E112*F112 -> 0 | I112: =E112*H112 -> 0
A113: =A112+1 -> 51 | C113: Zednické výpomoci (PPV) | D113: kpl | E113: 1 | F113: --- | G113: --- | I113: =E113*H113 -> 0
A114: =A113+1 -> 52 | C114: Doprava materiálu | D114: kpl | E114: 1 | F114: --- | G114: --- | I114: =E114*H114 -> 0

Sheet 22_SO 09 - Stav arch část
A1: =CONCATENATE('Rekapitulace stavby'!C80,"_",'Rekapitulace stavby'!I80) -> 22_SO 09 - Stavebně - architektonická část
A3: SPECIFIKACE DODÁVEK A PRACÍ
A4: Název akce:
A5: ='Identifikační údaje'!B1 -> ČRo Brno – III. etapa rekonstrukce budovy Beethovenova 25/4
A7: Zadavatel: | C7: ='Identifikační údaje'!E7 -> Český rozhlas, Vinohradská 12, 120 99 Praha 2
B8: IČ: | C8: ='Identifikační údaje'!B9 -> 45245053
B9: DIČ: | C9: ='Identifikační údaje'!B10 -> CZ45245053
A11: Projektant: | C11: ='Identifikační údaje'!E12 -> Ing. arch. Klement Miloš, Nejedlého 381/19, 638 00 Brno - Lesná
B12: IČ: | C12: ='Identifikační údaje'!B14 -> 15188736
B13: DIČ: | C13: ='Identifikační údaje'!B15 -> CZ6101021344
A15: Uchazeč: | C15: ='Identifikační údaje'!E19 -> , ,
B16: IČ: | C16: ='Identifikační údaje'!B23 -> 0
B17: DIČ: | C17: ='Identifikační údaje'!B24 -> 0
A19: Místo stavby: | C19: ='Identifikační údaje'!B3 -> Budova Českého rozhlasu Brno na adrese Beethovenova 25/4, 657 42 Brno
A21: Datum vyplnění: | C21: ='Identifikační údaje'!B5 -> 00:00:00
A23: =CONCATENATE("REKAPITULACE DODÁVEK A PRACÍ OBJEKTU ",'Rekapitulace stavby'!I80) -> REKAPITULACE DODÁVEK A PRACÍ OBJEKTU SO 09 - Stavebně - architektonická část
A25: P.č. | B25: Číslo položky | C25: Název položky | D25: Kč bez DPH
A27: Díl: | B27: =B55 -> 3 | C27: =C55 -> Svislé a kompletní konstrukce | G27: =G55 -> 0
A28: Díl: | B28: =B69 -> 61 | C28: =C69 -> Upravy povrchů vnitřní | G28: =G69 -> 0
A29: Díl: | B29: =B87 -> 94 | C29: =C87 -> Lešení a stavební výtahy | G29: =G87 -> 0
A30: Díl: | B30: =B90 -> 95 | C30: =C90 -> Dokončovací kce na pozem.stav. | G30: =G90 -> 0
A31: Díl: | B31: =B100 -> 96 | C31: =C100 -> Bourání konstrukcí | G31: =G100 -> 0
A32: Díl: | B32: =B149 -> 99 | C32: =C149 -> Staveništní přesun hmot | G32: =G149 -> 0
A33: Díl: | B33: =B151 -> 711 | C33: =C151 -> Izolace proti vodě | G33: =G151 -> 0
A34: Díl: | B34: =B154 -> 764 | C34: =C154 -> Konstrukce klemířské | G34: =G154 -> 0
A35: Díl: | B35: =B161 -> 766 | C35: =C161 -> Konstrukce truhlářské | G35: =G161 -> 0
A36: Díl: | B36: =B180 -> 767 | C36: =C180 -> Konstrukce zámečnické | G36: =G180 -> 0
A37: Díl: | B37: =B200 -> 771 | C37: =C200 -> Podlahy vlysové a parketové | G37: =G200 -> 0
A38: Díl: | B38: =B205 -> 772 | C38: =C205 -> Kamenné dlažby | G38: =G205 -> 0
A39: Díl: | B39: =B207 -> 775 | C39: =C207 -> Podlahy vlysové a parketové | G39: =G207 -> 0
A40: Díl: | B40: =B211 -> 776 | C40: =C211 -> Podlahy povlakové | G40: =G211 -> 0
A41: Díl: | B41: =B217 -> 781 | C41: =C217 -> Obklady keramické | G41: =G217 -> 0
A42: Díl: | B42: =B226 -> 782 | C42: =C226 -> Konstrukce z přírodního kamene | G42: =G226 -> 0
A43: Díl: | B43: =B231 -> 784 | C43: =C231 -> Malby | G43: =G231 -> 0
A44: Díl: | B44: =B234 -> 40 | C44: =C234 -> Podhledy | G44: =G234 -> 0
A46: =CONCATENATE("CELKEM ZA OBJEKT ",'Rekapitulace stavby'!I80, " v Kč bez DPH") -> CELKEM ZA OBJEKT SO 09 - Stavebně - architektonická část v Kč bez DPH | D46: =SUM(G27:G44) -> 0
A53: P.č. | B53: Číslo položky | C53: Název položky | D53: MJ | E53: množství | F53: cena / MJ | G53: celkem
B54: Ceník, kapitola | C54: Poznámka uchazeče
A55: Díl: | B55: 3 | C55: Svislé a kompletní konstrukce | G55: =SUBTOTAL(9,G56:G68) -> 0
A56: =1 -> 1 | B56: 34224811 | C56: Příčky POROTHERM AKU na MVC5 tl.100 mm | D56: m2 | E56: 4.3355 | G56: =E56*F56 -> 0
C57: ;5.patro | E57: 0
C58: 1,45*2,99 | E58: 4.3355
A59: =A56+1 -> 2 | B59: 34224812 | C59: Příčky POROTHERM AKU na MVC5 tl.125 mm | D59: m2 | E59: 37.051 | G59: =E59*F59 -> 0
C60: ;5.patro | E60: 0
C61: (1,735+1,325+0,90)*2,90-0,70*2,00*2 | E61: 8.684
C62: (2,175+2,50+2,50+1,355+2,70)*2,90 | E62: 32.567
C63: -0,70*2,00*3 | E63: -4.2
A64: =A59+1 -> 3 | B64: 340 23-9211.RT2 | C64: Zazdívka otvorů pl.4 m2,cihlami tl.zdi do 10 cm s použitím suché maltové směsi | D64: m2 | E64: 1.7 | G64: =E64*F64 -> 0
C65: ;5.patro | E65: 0
C66: 0,85*2,00 | E66: 1.7
A67: =A64+1 -> 4 | B67: 3171 PŘ | C67: Překlad z profilu I100 dl.1000mm vč.plentování cihlami a rabicem D+M | D67: ks | E67: 4 | G67: =E67*F67 -> 0
A68: =A67+1 -> 5 | B68: 3172 PŘ | C68: Překlad z profilu I120 dl.1250mm vč.plentování cihlami a rabicem D+M | D68: ks | E68: 2 | G68: =E68*F68 -> 0
A69: Díl: | B69: 61 | C69: Upravy povrchů vnitřní | G69: =SUBTOTAL(9,G70:G86) -> 0
A70: =A68+1 -> 6 | B70: 612 47-3182.R00 | C70: Omítka vnitřního zdiva ze suché směsi, štuková | D70: m2 | E70: 82.773 | G70: =E70*F70 -> 0
C71: ;5.patro | E71: 0
C72: (4,3355+37,051)*2 | E72: 82.773
A73: =A70+1 -> 7 | B73: 612 10-003 | C73: Oprava omítek stěn vnitřních vápenocem. štukových oprava | D73: m2 | E73: 215.81 | G73: =E73*F73 -> 0
C74: 503:(2,60+2,40)*2,80 | E74: 14
C75: 504:2,50*2,80 | E75: 7
C76: 505:(6,10+2,60+3,40)*2,80 | E76: 33.88
C77: 506:(4,90+5,325)*2,80 | E77: 28.63
C78: 507:(4,90+3,00)*2*2,80 | E78: 44.24
C79: 508:(3,50+2,75)*2*2,80 | E79: 35
C80: 509:(0,60+2,175)*2,80 | E80: 7.77
C81: 510:(5,50+1,50)*2*2,80 | E81: 39.2
C82: 510a.:2,175*2,80 | E82: 6.09
A83: =A73+1 -> 8 | B83: 611 10-001 | C83: Oprava omítek stropů - vyspravení pod podhledy | D83: m2 | E83: 74 | G83: =E83*F83 -> 0
A84: =A83+1 -> 9 | B84: 611 10-0013.RAA | C84: Oprava omítek stropů vnitřních vápenocem.štukových oprava | D84: m2 | E84: 10.9 | G84: =E84*F84 -> 0
C85: ;5.patro | E85: 0
C86: 8,40+2,50 | E86: 10.9
A87: Díl: | B87: 94 | C87: Lešení a stavební výtahy | G87: =SUBTOTAL(9,G88:P89) -> 0
A88: =A84+1 -> 10 | B88: 941 95-5002.R00 | C88: Lešení lehké pomocné, výška podlahy do 1,9 m | D88: m2 | E88: 74 | G88: =E88*F88 -> 0
C89: pro podhledy:74,00 | E89: 74
A90: Díl: | B90: 95 | C90: Dokončovací kce na pozem.stav. | G90: =SUBTOTAL(9,G91:G99) -> 0
A91: =A88+1 -> 11 | B91: 952 90-1111.R00 | C91: Vyčištění budov o výšce podlaží do 4 m | D91: m2 | E91: 118.7 | G91: =E91*F91 -> 0
C92: ;5.patro | E92: 0
C93: 5,80+3,50+11,80+26,30+15,00+8,90+2,70+8,40 | E93: 82.4
C94: 2,30 | E94: 2.3
C95: ;6.patro | E95: 0
C96: 27,50+6,50 | E96: 34
A97: =A91+1 -> 12 | B97: 95001 | C97: HZS - nezměřitelné práce | D97: hod | E97: 50 | G97: =E97*F97 -> 0
A98: =A97+1 -> 13 | B98: 95003 | C98: Vyklizení mobiliáře vč. ekologické likvidace | D98: kpl. | E98: 1 | G98: =E98*F98 -> 0
A99: =A98+1 -> 14 | B99: 95004 | C99: Uzavření rekonstruovaného prostoru proti šíření prašnosti | D99: kpl. | E99: 1 | G99: =E99*F99 -> 0
A100: Díl: | B100: 96 | C100: Bourání konstrukcí | G100: =SUBTOTAL(9,G101:G148) -> 0
A101: =A99+1 -> 15 | B101: 962 03-1132.R00 | C101: Bourání příček cihelných tl. 10 cm | D101: m2 | E101: 23.988 | G101: =E101*F101 -> 0
C102: ;A | E102: 0
C103: ;5.patro | E103: 0
C104: (1,00+1,85+2,60+1,146+1,40)*3,00 | E104: 23.988
A105: =A101+1 -> 16 | B105: 968 06-1125.R00 | C105: Vyvěšení dřevěných dveřních křídel pl. do 2 m2 | D105: kus | E105: 4 | G105: =E105*F105 -> 0
C106: ;C | E106: 0
C107: ;5.patro | E107: 0
C108: 4 | E108: 4
A109: =A105+1 -> 17 | B109: 968 06-245 | C109: Vybourání dveřních zárubní pl. do 2 m2 | D109: m2 | E109: 6.2 | G109: =E109*F109 -> 0
C110: ;C | E110: 0
C111: ;5.patro | E111: 0
C112: 0,75*2,00*3+0,85*2,00 | E112: 6.2
A113: =A109+1 -> 18 | B113: 971 03-3621.R00 | C113: Vybourání otv. zeď cihel. pl.4 m2, tl.10 cm, MVC | D113: m2 | E113: 1.7 | G113: =E113*F113 -> 0
C114: ;A | E114: 0
C115: ;5.patro | E115: 0
C116: 0,85*2,00 | E116: 1.7
A117: =A113+1 -> 19 | B117: 971 03-359 | C117: Vybourání otv. zeď cihel, na MVC | D117: m3 | E117: 0.76 | G117: =E117*F117 -> 0
C118: ;A | E118: 0
C119: ;5.patro | E119: 0
C120: 0,95*2,00*0,40 | E120: 0.76
A121: =A117+1 -> 20 | B121: 96807 R | C121: Demontáž radiátorů | D121: ks | E121: 3 | G121: =E121*F121 -> 0
A122: =A121+1 -> 21 | B122: 978 05-952 | C122: Odsekání vnitřních obkladů stěn | D122: m2 | E122: 18.56 | G122: =E122*F122 -> 0
C123: ;M | E123: 0
C124: ;5.patro | E124: 0
C125: (2,75+0,80+3,50+2,75)*1,60+0,90*2*1,60 | E125: 18.56
A126: =A122+1 -> 22 | B126: 965 08-1713.R00 | C126: Bourání dlaždic keramických tl. 1 cm, nad 1 m2 | D126: m2 | E126: 26.2 | G126: =E126*F126 -> 0
C127: ;D | E127: 0
C128: ;5.patro | E128: 0
